Workbook

Sheet Introduction
C4: Joint Monitoring Programme for Water Supply, Sanitation and Hygiene
C6: Estimates on household water, sanitation and hygiene by wealth quintile and sub-national region in
C7: =+Water!B5 -> Guatemala
C9: Updated May 2021
C11: Follow the links below to find the following information:
C13: JMP Estimates
C14: WASH status and trends by wealth quintile (customized quintiles made without water and sanitation assets)
C15: Water
C16: Sanitation
C17: Hygiene
C19: Data inputs
C20: customized wealth quintiles and subnational data:
C21: =IF(INDIRECT(CONCATENATE("Water","!B105"))=0,"",INDIRECT(CONCATENATE("Water","!B105"))) -> WHS03
C22: =IF(INDIRECT(CONCATENATE("Water","!B106"))=0,"",INDIRECT(CONCATENATE("Water","!B106"))) -> ENCOVI11
C23: =IF(INDIRECT(CONCATENATE("Water","!B107"))=0,"",INDIRECT(CONCATENATE("Water","!B107"))) -> DHS15
C24: =IF(INDIRECT(CONCATENATE("Water","!B108"))=0,"",INDIRECT(CONCATENATE("Water","!B108"))) -> 
C25: =IF(INDIRECT(CONCATENATE("Water","!B109"))=0,"",INDIRECT(CONCATENATE("Water","!B109"))) -> 
C26: =IF(INDIRECT(CONCATENATE("Water","!B110"))=0,"",INDIRECT(CONCATENATE("Water","!B110"))) -> 
C27: =IF(INDIRECT(CONCATENATE("Water","!B111"))=0,"",INDIRECT(CONCATENATE("Water","!B111"))) -> 
C28: =IF(INDIRECT(CONCATENATE("Water","!B112"))=0,"",INDIRECT(CONCATENATE("Water","!B112"))) -> 
C29: =IF(INDIRECT(CONCATENATE("Water","!B113"))=0,"",INDIRECT(CONCATENATE("Water","!B113"))) -> 
C30: =IF(INDIRECT(CONCATENATE("Water","!B114"))=0,"",INDIRECT(CONCATENATE("Water","!B114"))) -> 
C31: =IF(INDIRECT(CONCATENATE("Water","!B115"))=0,"",INDIRECT(CONCATENATE("Water","!B115"))) -> 
C32: =IF(INDIRECT(CONCATENATE("Water","!B116"))=0,"",INDIRECT(CONCATENATE("Water","!B116"))) -> 
L55: =+IF(ISNUMBER(M48), "", "Insufficient data to estimate safely managed sanitation services at national level") -> Insufficient data to estimate safely managed sanitation services at national level

Sheet Water
A1: BGD
B4: Summary of trends in use of drinking water by wealth quintile (%)
B5: =IF(ISERROR(INDIRECT(CONCATENATE($B105,"!A2"))),"",INDIRECT(CONCATENATE($B105,"!A2"))) -> Guatemala
B7: =B118 -> National use of drinking water sources, 2000–2020 | J7: =B218 -> Urban use of drinking water sources, 2000–2020 | R7: =B318 -> Rural use of drinking water sources, 2000–2020
B31: =IF(ISERROR(INDIRECT(CONCATENATE($B105,"!A2"))),"",INDIRECT(CONCATENATE($B105,"!A2"))) -> Guatemala | F31: Poorest | J31: Poor | N31: Middle | R31: Rich | V31: Richest
F32: Basic | G32: Limited | H32: Unimproved | I32: Surface water | J32: Basic | K32: Limited | L32: Unimproved | M32: Surface water | N32: Basic | O32: Limited | P32: Unimproved | Q32: Surface water | R32: Basic | S32: Limited | T32: Unimproved | U32: Surface water | V32: Basic | W32: Limited | X32: Unimproved | Y32: Surface water
B33: NATIONAL | D33: Estimate | E33: =C99 -> 2000 | F33: =E99 -> 80.42423095 | G33: =F99 -> 2.401959524 | H33: 1.806657848 | I33: 15.36715168 | J33: =J99 -> 85.0073821 | K33: =K99 -> 1.076042811 | L33: 6.347507795 | M33: 7.569067296 | N33: =O99 -> 81.5274335 | O33: =P99 -> 0.6160763237 | P33: 14.87399798 | Q33: 2.982492191 | R33: =T99 -> 94.15644244 | S33: =U99 -> 0.1414468339 | T33: 4.220430485 | U33: 1.481680237 | V33: =Y99 -> 97.8649119 | W33: =Z99 -> 0.09796287478 | X33: 1.858553792 | Y33: 0.1785714286
E34: =C100 -> 2020 | F34: =E100 -> 77.40950714 | G34: 2.311921429 | H34: 8.09484127 | I34: 12.18373016 | J34: =J100 -> 92.34237294 | K34: 1.168890797 | L34: 2.260400963 | M34: 4.228335301 | N34: =O100 -> 96.31036981 | O34: 0.7277861699 | P34: 0 | Q34: 2.96184402 | R34: =T100 -> 97.48320058 | S34: 0.1464444676 | T34: 0.03922985927 | U34: 2.331125093 | V34: =Y100 -> 99.38226429 | W34: 0.09948174603 | X34: 0.05396825397 | Y34: 0.4642857143
B36: URBAN | D36: Estimate | E36: =C199 -> 2000 | F36: =E199 -> 95.40416249 | G36: =F199 -> 0.2870737086 | H36: 3.087039852 | I36: 1.221723953 | J36: =J199 -> 96.68505824 | K36: =K199 -> 0.3882934066 | L36: 2.291328897 | M36: 0.6353194544 | N36: =O199 -> 96.99148352 | O36: =P199 -> 0 | P36: 2.651373626 | Q36: 0.3571428571 | R36: =T199 -> 97.64983962 | S36: =U199 -> 0.04884934448 | T36: 2.194168174 | U36: 0.1071428571 | V36: =Y199 -> 99.16092437 | W36: =Z199 -> 0 | X36: 0.8390756303 | Y36: 0
E37: =C200 -> 2020 | F37: =E200 -> 92.66243025 | G37: 0.278823762 | H37: 5.968278753 | I37: 1.09046724 | J37: =J200 -> 97.07915083 | K37: 0.3898761078 | L37: 1.683162578 | M37: 0.847810481 | N37: =O200 -> 98.37021446 | O37: 0 | P37: 0.7012141085 | Q37: 0.9285714286 | R37: =T200 -> 99.63763366 | S37: 0.0498437387 | T37: 0.03395117541 | U37: 0.2785714286 | V37: =Y200 -> 100 | W37: 0 | X37: 0 | Y37: 0
B39: RURAL | D39: Estimate | E39: =C299 -> 2000 | F39: =E299 -> 76.6848917 | G39: =F299 -> 2.987723053 | H39: 1.721506329 | I39: 18.60587892 | J39: =J299 -> 81.69089643 | K39: =K299 -> 1.624653218 | L39: 3.574105522 | M39: 13.11034483 | N39: =O299 -> 84.04138412 | O39: =P299 -> 1.236529751 | P39: 7.055933382 | Q39: 7.666152745 | R39: =T299 -> 89.73884112 | S39: =U299 -> 0.7693193641 | T39: 5.897046211 | U39: 3.594793302 | V39: =Y299 -> 91.57644246 | W39: =Z299 -> 0.2755559954 | X39: 5.327871677 | Y39: 2.82012987
E40: =C300 -> 2020 | F40: =E300 -> 72.02438628 | G40: 2.80614492 | H40: 9.074401388 | I40: 16.09506741 | J40: =J300 -> 87.01020426 | K40: 1.730442614 | L40: 4.355904848 | M40: 6.903448276 | N40: =O300 -> 93.09792074 | O40: 1.369781685 | P40: 0.5837612763 | Q40: 4.9485363 | R40: =T300 -> 95.32751319 | S40: 0.8172303198 | T40: 0 | U40: 3.85525649 | V40: =Y300 -> 96.93204054 | W40: 0.291671135 | X40: 0 | Y40: 2.776288329
A97: NATIONAL | D97: Poorest | I97: Poor | N97: Middle | S97: Rich | X97: Richest
D98: Improved | E98: Basic | F98: Limited | G98: Unimproved | H98: Surface water | I98: Improved | J98: Basic | K98: Limited | L98: Unimproved | M98: Surface water | N98: Improved | O98: Basic | P98: Limited | Q98: Unimproved | R98: Surface water | S98: Improved | T98: Basic | U98: Limited | V98: Unimproved | W98: Surface water | X98: Improved | Y98: Basic | Z98: Limited | AA98: Unimproved | AB98: Surface water
A99: Forecast period: | C99: 2000 | D99: =IF((D101+H101)>100,D101*100/(D101+H101),D101) -> 82.82619048 | E99: =D99*AVERAGEIF(E105:E116,">0")/100 -> 80.42423095 | F99: =D99*(100-AVERAGEIF(E105:E116,">0"))/100 -> 2.401959524 | G99: =100-(E99+F99+H99) -> 1.806657848 | H99: =IF((D101+H101)>100,H101*100/(D101+H101),H101) -> 15.36715168 | I99: =IF((I101+M101)>100,I101*100/(I101+M101),I101) -> 86.08342491 | J99: =I99*AVERAGEIF(J105:J116,">0")/100 -> 85.0073821 | K99: =I99*(100-AVERAGEIF(J105:J116,">0"))/100 -> 1.076042811 | L99: =100-(J99+K99+M99) -> 6.347507795 | M99: =IF((I101+M101)>100,M101*100/(I101+M101),M101) -> 7.569067296 | N99: =IF((N101+R101)>100,N101*100/(N101+R101),N101) -> 82.14350983 | O99: =N99*AVERAGEIF(O105:O116,">0")/100 -> 81.5274335 | P99: =N99*(100-AVERAGEIF(O105:O116,">0"))/100 -> 0.6160763237 | Q99: =100-(O99+P99+R99) -> 14.87399798 | R99: =IF((N101+R101)>100,R101*100/(N101+R101),R101) -> 2.982492191 | S99: =IF((S101+W101)>100,S101*100/(S101+W101),S101) -> 94.29788928 | T99: =S99*AVERAGEIF(T105:T116,">0")/100 -> 94.15644244 | U99: =S99*(100-AVERAGEIF(T105:T116,">0"))/100 -> 0.1414468339 | V99: =100-(T99+U99+W99) -> 4.220430485 | W99: =IF((S101+W101)>100,W101*100/(S101+W101),W101) -> 1.481680237 | X99: =IF((X101+AB101)>100,X101*100/(X101+AB101),X101) -> 97.96287478 | Y99: =X99*AVERAGEIF(Y105:Y116,">0")/100 -> 97.8649119 | Z99: =X99*(100-AVERAGEIF(Y105:Y116,">0"))/100 -> 0.09796287478 | AA99: =100-(Y99+Z99+AB99) -> 1.858553792 | AB99: =IF((X101+AB101)>100,AB101*100/(X101+AB101),AB101) -> 0.1785714286
C100: 2020 | D100: =IF((D102+H102)>100,D102*100/(D102+H102),D102) -> 79.72142857 | E100: =D100*AVERAGEIF(E105:E116,">0")/100 -> 77.40950714 | F100: =D100*(100-AVERAGEIF(E105:E116,">0"))/100 -> 2.311921429 | G100: =100-(E100+F100+H100) -> 8.09484127 | H100: =IF((D102+H102)>100,H102*100/(D102+H102),H102) -> 12.18373016 | I100: =IF((I102+M102)>100,I102*100/(I102+M102),I102) -> 93.51126374 | J100: =I100*AVERAGEIF(J105:J116,">0")/100 -> 92.34237294 | K100: =I100*(100-AVERAGEIF(J105:J116,">0"))/100 -> 1.168890797 | L100: =100-(J100+K100+M100) -> 2.260400963 | M100: =IF((I102+M102)>100,M102*100/(I102+M102),M102) -> 4.228335301 | N100: =IF((N102+R102)>100,N102*100/(N102+R102),N102) -> 97.03815598 | O100: =N100*AVERAGEIF(O105:O116,">0")/100 -> 96.31036981 | P100: =N100*(100-AVERAGEIF(O105:O116,">0"))/100 -> 0.7277861699 | Q100: =100-(O100+P100+R100) -> 0 | R100: =IF((N102+R102)>100,R102*100/(N102+R102),R102) -> 2.96184402 | S100: =IF((S102+W102)>100,S102*100/(S102+W102),S102) -> 97.62964505 | T100: =S100*AVERAGEIF(T105:T116,">0")/100 -> 97.48320058 | U100: =S100*(100-AVERAGEIF(T105:T116,">0"))/100 -> 0.1464444676 | V100: =100-(T100+U100+W100) -> 0.03922985927 | W100: =IF((S102+W102)>100,W102*100/(S102+W102),W102) -> 2.331125093 | X100: =IF((X102+AB102)>100,X102*100/(X102+AB102),X102) -> 99.48174603 | Y100: =X100*AVERAGEIF(Y105:Y116,">0")/100 -> 99.38226429 | Z100: =X100*(100-AVERAGEIF(Y105:Y116,">0"))/100 -> 0.09948174603 | AA100: =100-(Y100+Z100+AB100) -> 0.05396825397 | AB100: =IF((X102+AB102)>100,AB102*100/(X102+AB102),AB102) -> 0.4642857143
A101: Regression period: | C101: =MinRegYear(C99,C105:C116) -> 2001 | D101: =IF(MAX(C105:C116)-MIN(C105:C116)<5,AVERAGEIF(C105:C116,">0",D105:D116), IF(FORECAST($C101,D$105:D$116,$C$105:$C$116)<0,0, IF(FORECAST($C101,D$105:D$116,$C$105:$C$116)>100,100, FORECAST($C101,D$105:D$116,$C$105:$C$116)))) -> 82.82619048 | H101: =IF(MAX(C105:C116)-MIN(C105:C116)<5,AVERAGEIF(C105:C116,">0",H105:H116), IF(FORECAST($C101,H$105:H$116,$C$105:$C$116)<0,0, IF(FORECAST($C101,H$105:H$116,$C$105:$C$116)>100,100, FORECAST($C101,H$105:H$116,$C$105:$C$116)))) -> 15.36715168 | I101: =IF(MAX(C105:C116)-MIN(C105:C116)<5,AVERAGEIF(C105:C116,">0",I105:I116), IF(FORECAST($C101,I$105:I$116,$C$105:$C$116)<0,0, IF(FORECAST($C101,I$105:I$116,$C$105:$C$116)>100,100, FORECAST($C101,I$105:I$116,$C$105:$C$116)))) -> 86.08342491 | M101: =IF(MAX(C105:C116)-MIN(C105:C116)<5,AVERAGEIF(C105:C116,">0",M105:M116), IF(FORECAST($C101,M$105:M$116,$C$105:$C$116)<0,0, IF(FORECAST($C101,M$105:M$116,$C$105:$C$116)>100,100, FORECAST($C101,M$105:M$116,$C$105:$C$116)))) -> 7.569067296 | N101: =IF(MAX(C105:C116)-MIN(C105:C116)<5,AVERAGEIF(C105:C116,">0",N105:N116), IF(FORECAST($C101,N$105:N$116,$C$105:$C$116)<0,0, IF(FORECAST($C101,N$105:N$116,$C$105:$C$116)>100,100, FORECAST($C101,N$105:N$116,$C$105:$C$116)))) -> 82.14350983 | R101: =IF(MAX(C105:C116)-MIN(C105:C116)<5,AVERAGEIF(C105:C116,">0",R105:R116), IF(FORECAST($C101,R$105:R$116,$C$105:$C$116)<0,0, IF(FORECAST($C101,R$105:R$116,$C$105:$C$116)>100,100, FORECAST($C101,R$105:R$116,$C$105:$C$116)))) -> 2.982492191 | S101: =IF(MAX(C105:C116)-MIN(C105:C116)<5,AVERAGEIF(C105:C116,">0",S105:S116), IF(FORECAST($C101,S$105:S$116,$C$105:$C$116)<0,0, IF(FORECAST($C101,S$105:S$116,$C$105:$C$116)>100,100, FORECAST($C101,S$105:S$116,$C$105:$C$116)))) -> 94.29788928 | W101: =IF(MAX(C105:C116)-MIN(C105:C116)<5,AVERAGEIF(C105:C116,">0",W105:W116), IF(FORECAST($C101,W$105:W$116,$C$105:$C$116)<0,0, IF(FORECAST($C101,W$105:W$116,$C$105:$C$116)>100,100, FORECAST($C101,W$105:W$116,$C$105:$C$116)))) -> 1.481680237 | X101: =IF(MAX(C105:C116)-MIN(C105:C116)<5,AVERAGEIF(C105:C116,">0",X105:X116), IF(FORECAST($C101,X$105:X$116,$C$105:$C$116)<0,0, IF(FORECAST($C101,X$105:X$116,$C$105:$C$116)>100,100, FORECAST($C101,X$105:X$116,$C$105:$C$116)))) -> 97.96287478 | AB101: =IF(MAX(C105:C116)-MIN(C105:C116)<5,AVERAGEIF(C105:C116,">0",AB105:AB116), IF(FORECAST($C101,AB$105:AB$116,$C$105:$C$116)<0,0, IF(FORECAST($C101,AB$105:AB$116,$C$105:$C$116)>100,100, FORECAST($C101,AB$105:AB$116,$C$105:$C$116)))) -> 0.1785714286
C102: =MaxRegYear(C100,C105:C116) -> 2017 | D102: =IF(MAX(C105:C116)-MIN(C105:C116)<5,AVERAGEIF(C105:C116,">0",D105:D116), IF(FORECAST($C102,D$105:D$116,$C$105:$C$116)<0,0, IF(FORECAST($C102,D$105:D$116,$C$105:$C$116)>100,100, FORECAST($C102,D$105:D$116,$C$105:$C$116)))) -> 79.72142857 | H102: =IF(MAX(C105:C116)-MIN(C105:C116)<5,AVERAGEIF(C105:C116,">0",H105:H116), IF(FORECAST($C102,H$105:H$116,$C$105:$C$116)<0,0, IF(FORECAST($C102,H$105:H$116,$C$105:$C$116)>100,100, FORECAST($C102,H$105:H$116,$C$105:$C$116)))) -> 12.18373016 | I102: =IF(MAX(C105:C116)-MIN(C105:C116)<5,AVERAGEIF(C105:C116,">0",I105:I116), IF(FORECAST($C102,I$105:I$116,$C$105:$C$116)<0,0, IF(FORECAST($C102,I$105:I$116,$C$105:$C$116)>100,100, FORECAST($C102,I$105:I$116,$C$105:$C$116)))) -> 93.51126374 | M102: =IF(MAX(C105:C116)-MIN(C105:C116)<5,AVERAGEIF(C105:C116,">0",M105:M116), IF(FORECAST($C102,M$105:M$116,$C$105:$C$116)<0,0, IF(FORECAST($C102,M$105:M$116,$C$105:$C$116)>100,100, FORECAST($C102,M$105:M$116,$C$105:$C$116)))) -> 4.228335301 | N102: =IF(MAX(C105:C116)-MIN(C105:C116)<5,AVERAGEIF(C105:C116,">0",N105:N116), IF(FORECAST($C102,N$105:N$116,$C$105:$C$116)<0,0, IF(FORECAST($C102,N$105:N$116,$C$105:$C$116)>100,100, FORECAST($C102,N$105:N$116,$C$105:$C$116)))) -> 99.30027134 | R102: =IF(MAX(C105:C116)-MIN(C105:C116)<5,AVERAGEIF(C105:C116,">0",R105:R116), IF(FORECAST($C102,R$105:R$116,$C$105:$C$116)<0,0, IF(FORECAST($C102,R$105:R$116,$C$105:$C$116)>100,100, FORECAST($C102,R$105:R$116,$C$105:$C$116)))) -> 3.030889364 | S102: =IF(MAX(C105:C116)-MIN(C105:C116)<5,AVERAGEIF(C105:C116,">0",S105:S116), IF(FORECAST($C102,S$105:S$116,$C$105:$C$116)<0,0, IF(FORECAST($C102,S$105:S$116,$C$105:$C$116)>100,100, FORECAST($C102,S$105:S$116,$C$105:$C$116)))) -> 97.62964505 | W102: =IF(MAX(C105:C116)-MIN(C105:C116)<5,AVERAGEIF(C105:C116,">0",W105:W116), IF(FORECAST($C102,W$105:W$116,$C$105:$C$116)<0,0, IF(FORECAST($C102,W$105:W$116,$C$105:$C$116)>100,100, FORECAST($C102,W$105:W$116,$C$105:$C$116)))) -> 2.331125093 | X102: =IF(MAX(C105:C116)-MIN(C105:C116)<5,AVERAGEIF(C105:C116,">0",X105:X116), IF(FORECAST($C102,X$105:X$116,$C$105:$C$116)<0,0, IF(FORECAST($C102,X$105:X$116,$C$105:$C$116)>100,100, FORECAST($C102,X$105:X$116,$C$105:$C$116)))) -> 99.48174603 | AB102: =IF(MAX(C105:C116)-MIN(C105:C116)<5,AVERAGEIF(C105:C116,">0",AB105:AB116), IF(FORECAST($C102,AB$105:AB$116,$C$105:$C$116)<0,0, IF(FORECAST($C102,AB$105:AB$116,$C$105:$C$116)>100,100, FORECAST($C102,AB$105:AB$116,$C$105:$C$116)))) -> 0.4642857143
B104: Survey | C104: Year | D104: Improved | E104: % Improved < = 30min | H104: Surface water | I104: Improved | J104: % Improved < = 30min | M104: Surface water | N104: Improved | O104: % Improved < = 30min | R104: Surface water | S104: Improved | T104: % Improved < = 30min | W104: Surface water | X104: Improved | Y104: % Improved < = 30min | AB104: Surface water
B105: WHS03 | C105: 2003 | D105: =IF(ISERROR(INDIRECT(CONCATENATE($B105,"!C16"))),"",INDIRECT(CONCATENATE($B105,"!C16"))) -> 85.33333333 | E105: =IF(ISERROR(INDIRECT(CONCATENATE($B105,"!C23"))),"",INDIRECT(CONCATENATE($B105,"!C23"))) -> N/A | H105: =IF(ISERROR(INDIRECT(CONCATENATE($B105,"!C21"))),"",INDIRECT(CONCATENATE($B105,"!C21"))) -> 11.72839506 | I105: =IF(ISERROR(INDIRECT(CONCATENATE($B105,"!D16"))),"",INDIRECT(CONCATENATE($B105,"!D16"))) -> 88.82051282 | J105: =IF(ISERROR(INDIRECT(CONCATENATE($B105,"!D23"))),"",INDIRECT(CONCATENATE($B105,"!D23"))) -> N/A | M105: =IF(ISERROR(INDIRECT(CONCATENATE($B105,"!D21"))),"",INDIRECT(CONCATENATE($B105,"!D21"))) -> 5.578512397 | N105: =IF(ISERROR(INDIRECT(CONCATENATE($B105,"!E16"))),"",INDIRECT(CONCATENATE($B105,"!E16"))) -> 85.01026694 | O105: =IF(ISERROR(INDIRECT(CONCATENATE($B105,"!E23"))),"",INDIRECT(CONCATENATE($B105,"!E23"))) -> N/A | R105: =IF(ISERROR(INDIRECT(CONCATENATE($B105,"!E21"))),"",INDIRECT(CONCATENATE($B105,"!E21"))) -> 1.726121979 | S105: =IF(ISERROR(INDIRECT(CONCATENATE($B105,"!F16"))),"",INDIRECT(CONCATENATE($B105,"!F16"))) -> 95.80777096 | T105: =IF(ISERROR(INDIRECT(CONCATENATE($B105,"!F23"))),"",INDIRECT(CONCATENATE($B105,"!F23"))) -> N/A | W105: =IF(ISERROR(INDIRECT(CONCATENATE($B105,"!F21"))),"",INDIRECT(CONCATENATE($B105,"!F21"))) -> 0.725388601 | X105: =IF(ISERROR(INDIRECT(CONCATENATE($B105,"!G16"))),"",INDIRECT(CONCATENATE($B105,"!G16"))) -> 98.45679012 | Y105: =IF(ISERROR(INDIRECT(CONCATENATE($B105,"!G23"))),"",INDIRECT(CONCATENATE($B105,"!G23"))) -> N/A | AB105: =IF(ISERROR(INDIRECT(CONCATENATE($B105,"!G221"))),"",INDIRECT(CONCATENATE($B105,"!G21"))) -> 0
B106: ENCOVI11 | C106: 2011 | D106: 72.2 | E106: 96 | H106: 23.1 | I106: 85.3 | J106: 98.3 | M106: 10.2 | N106: 90.7 | O106: 98.8 | R106: 6.8 | S106: 93.1 | T106: 99.8 | W106: 4.6 | X106: 98 | Y106: 99.9 | AB106: 1
B107: DHS15 | C107: 2015 | D107: 85.9 | E107: 98.2 | H107: 6.1 | I107: 96.2 | J107: 99.2 | M107: 1.5 | N107: 98.6 | O107: 99.7 | R107: 0.5 | S107: 99.4 | T107: 99.9 | W107: 0.5 | X107: 99.9 | Y107: 99.9 | AB107: 0
D111: =IF(ISERROR(INDIRECT(CONCATENATE($B111,"!C16"))),"",INDIRECT(CONCATENATE($B111,"!C16"))) ->  | E111: =IF(ISERROR(INDIRECT(CONCATENATE($B111,"!C23"))),"",INDIRECT(CONCATENATE($B111,"!C23"))) ->  | H111: =IF(ISERROR(INDIRECT(CONCATENATE($B111,"!C21"))),"",INDIRECT(CONCATENATE($B111,"!C21"))) ->  | I111: =IF(ISERROR(INDIRECT(CONCATENATE($B111,"!D16"))),"",INDIRECT(CONCATENATE($B111,"!D16"))) ->  | J111: =IF(ISERROR(INDIRECT(CONCATENATE($B111,"!D23"))),"",INDIRECT(CONCATENATE($B111,"!D23"))) ->  | M111: =IF(ISERROR(INDIRECT(CONCATENATE($B111,"!D21"))),"",INDIRECT(CONCATENATE($B111,"!D21"))) ->  | N111: =IF(ISERROR(INDIRECT(CONCATENATE($B111,"!E16"))),"",INDIRECT(CONCATENATE($B111,"!E16"))) ->  | O111: =IF(ISERROR(INDIRECT(CONCATENATE($B111,"!E23"))),"",INDIRECT(CONCATENATE($B111,"!E23"))) ->  | R111: =IF(ISERROR(INDIRECT(CONCATENATE($B111,"!E21"))),"",INDIRECT(CONCATENATE($B111,"!E21"))) ->  | S111: =IF(ISERROR(INDIRECT(CONCATENATE($B111,"!F16"))),"",INDIRECT(CONCATENATE($B111,"!F16"))) ->  | T111: =IF(ISERROR(INDIRECT(CONCATENATE($B111,"!F23"))),"",INDIRECT(CONCATENATE($B111,"!F23"))) ->  | W111: =IF(ISERROR(INDIRECT(CONCATENATE($B111,"!F21"))),"",INDIRECT(CONCATENATE($B111,"!F21"))) ->  | X111: =IF(ISERROR(INDIRECT(CONCATENATE($B111,"!G16"))),"",INDIRECT(CONCATENATE($B111,"!G16"))) ->  | Y111: =IF(ISERROR(INDIRECT(CONCATENATE($B111,"!G23"))),"",INDIRECT(CONCATENATE($B111,"!G23"))) ->  | AB111: =IF(ISERROR(INDIRECT(CONCATENATE($B111,"!G221"))),"",INDIRECT(CONCATENATE($B111,"!G21"))) -> 
D112: =IF(ISERROR(INDIRECT(CONCATENATE($B112,"!C16"))),"",INDIRECT(CONCATENATE($B112,"!C16"))) ->  | E112: =IF(ISERROR(INDIRECT(CONCATENATE($B112,"!C23"))),"",INDIRECT(CONCATENATE($B112,"!C23"))) ->  | H112: =IF(ISERROR(INDIRECT(CONCATENATE($B112,"!C21"))),"",INDIRECT(CONCATENATE($B112,"!C21"))) ->  | I112: =IF(ISERROR(INDIRECT(CONCATENATE($B112,"!D16"))),"",INDIRECT(CONCATENATE($B112,"!D16"))) ->  | J112: =IF(ISERROR(INDIRECT(CONCATENATE($B112,"!D23"))),"",INDIRECT(CONCATENATE($B112,"!D23"))) ->  | M112: =IF(ISERROR(INDIRECT(CONCATENATE($B112,"!D21"))),"",INDIRECT(CONCATENATE($B112,"!D21"))) ->  | N112: =IF(ISERROR(INDIRECT(CONCATENATE($B112,"!E16"))),"",INDIRECT(CONCATENATE($B112,"!E16"))) ->  | O112: =IF(ISERROR(INDIRECT(CONCATENATE($B112,"!E23"))),"",INDIRECT(CONCATENATE($B112,"!E23"))) ->  | R112: =IF(ISERROR(INDIRECT(CONCATENATE($B112,"!E21"))),"",INDIRECT(CONCATENATE($B112,"!E21"))) ->  | S112: =IF(ISERROR(INDIRECT(CONCATENATE($B112,"!F16"))),"",INDIRECT(CONCATENATE($B112,"!F16"))) ->  | T112: =IF(ISERROR(INDIRECT(CONCATENATE($B112,"!F23"))),"",INDIRECT(CONCATENATE($B112,"!F23"))) ->  | W112: =IF(ISERROR(INDIRECT(CONCATENATE($B112,"!F21"))),"",INDIRECT(CONCATENATE($B112,"!F21"))) ->  | X112: =IF(ISERROR(INDIRECT(CONCATENATE($B112,"!G16"))),"",INDIRECT(CONCATENATE($B112,"!G16"))) ->  | Y112: =IF(ISERROR(INDIRECT(CONCATENATE($B112,"!G23"))),"",INDIRECT(CONCATENATE($B112,"!G23"))) ->  | AB112: =IF(ISERROR(INDIRECT(CONCATENATE($B112,"!G221"))),"",INDIRECT(CONCATENATE($B112,"!G21"))) -> 
B118: =CONCATENATE("National use of drinking water sources, ",C99,"–",C100) -> National use of drinking water sources, 2000–2020 | S118: Data points used for regression
E153: =IF(ISERROR(INDIRECT(CONCATENATE($B153,"!M18"))),"",INDIRECT(CONCATENATE($B153,"!M18"))) ->  | F153: =IF(ISERROR(INDIRECT(CONCATENATE($B153,"!M19"))),"",INDIRECT(CONCATENATE($B153,"!M19"))) ->  | G153: =IF(ISERROR(INDIRECT(CONCATENATE($B153,"!M20"))),"",INDIRECT(CONCATENATE($B153,"!M20"))) ->  | H153: =IF(ISERROR(INDIRECT(CONCATENATE($B153,"!M21"))),"",INDIRECT(CONCATENATE($B153,"!M21"))) ->  | J153: =IF(ISERROR(INDIRECT(CONCATENATE($B153,"!N18"))),"",INDIRECT(CONCATENATE($B153,"!N18"))) ->  | K153: =IF(ISERROR(INDIRECT(CONCATENATE($B153,"!N19"))),"",INDIRECT(CONCATENATE($B153,"!N19"))) ->  | L153: =IF(ISERROR(INDIRECT(CONCATENATE($B153,"!N20"))),"",INDIRECT(CONCATENATE($B153,"!N20"))) ->  | M153: =IF(ISERROR(INDIRECT(CONCATENATE($B153,"!N21"))),"",INDIRECT(CONCATENATE($B153,"!N21"))) ->  | O153: =IF(ISERROR(INDIRECT(CONCATENATE($B153,"!O18"))),"",INDIRECT(CONCATENATE($B153,"!O18"))) ->  | P153: =IF(ISERROR(INDIRECT(CONCATENATE($B153,"!O19"))),"",INDIRECT(CONCATENATE($B153,"!O19"))) ->  | Q153: =IF(ISERROR(INDIRECT(CONCATENATE($B153,"!O20"))),"",INDIRECT(CONCATENATE($B153,"!O20"))) ->  | R153: =IF(ISERROR(INDIRECT(CONCATENATE($B153,"!O21"))),"",INDIRECT(CONCATENATE($B153,"!O21"))) ->  | T153: =IF(ISERROR(INDIRECT(CONCATENATE($B153,"!P18"))),"",INDIRECT(CONCATENATE($B153,"!P18"))) ->  | U153: =IF(ISERROR(INDIRECT(CONCATENATE($B153,"!P19"))),"",INDIRECT(CONCATENATE($B153,"!P19"))) ->  | V153: =IF(ISERROR(INDIRECT(CONCATENATE($B153,"!P20"))),"",INDIRECT(CONCATENATE($B153,"!P20"))) ->  | W153: =IF(ISERROR(INDIRECT(CONCATENATE($B153,"!P21"))),"",INDIRECT(CONCATENATE($B153,"!P21"))) ->  | Y153: =IF(ISERROR(INDIRECT(CONCATENATE($B153,"!Q18"))),"",INDIRECT(CONCATENATE($B153,"!Q18"))) ->  | Z153: =IF(ISERROR(INDIRECT(CONCATENATE($B153,"!Q19"))),"",INDIRECT(CONCATENATE($B153,"!Q19"))) ->  | AA153: =IF(ISERROR(INDIRECT(CONCATENATE($B153,"!Q20"))),"",INDIRECT(CONCATENATE($B153,"!Q20"))) ->  | AB153: =IF(ISERROR(INDIRECT(CONCATENATE($B153,"!Q21"))),"",INDIRECT(CONCATENATE($B153,"!Q1"))) -> 
A197: URBAN | D197: Poorest | I197: Poor | N197: Middle | S197: Rich | X197: Richest
D198: Improved | E198: Basic | F198: Limited | G198: Unimproved | H198: Surface water | I198: Improved | J198: Basic | K198: Limited | L198: Unimproved | M198: Surface water | N198: Improved | O198: Basic | P198: Limited | Q198: Unimproved | R198: Surface water | S198: Improved | T198: Basic | U198: Limited | V198: Unimproved | W198: Surface water | X198: Improved | Y198: Basic | Z198: Limited | AA198: Unimproved | AB198: Surface water
A199: Forecast period: | C199: 2000 | D199: =IF((D201+H201)>100,D201*100/(D201+H201),D201) -> 95.6912362 | E199: =D199*AVERAGEIF(E205:E216,">0")/100 -> 95.40416249 | F199: =D199*(100-AVERAGEIF(E205:E216,">0"))/100 -> 0.2870737086 | G199: =100-(E199+F199+H199) -> 3.087039852 | H199: =IF((D201+H201)>100,H201*100/(D201+H201),H201) -> 1.221723953 | I199: =IF((I201+M201)>100,I201*100/(I201+M201),I201) -> 97.07335165 | J199: =I199*AVERAGEIF(J205:J216,">0")/100 -> 96.68505824 | K199: =I199*(100-AVERAGEIF(J205:J216,">0"))/100 -> 0.3882934066 | L199: =100-(J199+K199+M199) -> 2.291328897 | M199: =IF((I201+M201)>100,M201*100/(I201+M201),M201) -> 0.6353194544 | N199: =IF((N201+R201)>100,N201*100/(N201+R201),N201) -> 96.99148352 | O199: =N199*AVERAGEIF(O205:O216,">0")/100 -> 96.99148352 | P199: =N199*(100-AVERAGEIF(O205:O216,">0"))/100 -> 0 | Q199: =100-(O199+P199+R199) -> 2.651373626 | R199: =IF((N201+R201)>100,R201*100/(N201+R201),R201) -> 0.3571428571 | S199: =IF((S201+W201)>100,S201*100/(S201+W201),S201) -> 97.69868897 | T199: =S199*AVERAGEIF(T205:T216,">0")/100 -> 97.64983962 | U199: =S199*(100-AVERAGEIF(T205:T216,">0"))/100 -> 0.04884934448 | V199: =100-(T199+U199+W199) -> 2.194168174 | W199: =IF((S201+W201)>100,W201*100/(S201+W201),W201) -> 0.1071428571 | X199: =IF((X201+AB201)>100,X201*100/(X201+AB201),X201) -> 99.16092437 | Y199: =X199*AVERAGEIF(Y205:Y216,">0")/100 -> 99.16092437 | Z199: =X199*(100-AVERAGEIF(Y205:Y216,">0"))/100 -> 0 | AA199: =100-(Y199+Z199+AB199) -> 0.8390756303 | AB199: =IF((X201+AB201)>100,AB201*100/(X201+AB201),AB201) -> 0
C200: 2020 | D200: =IF((D202+H202)>100,D202*100/(D202+H202),D202) -> 92.94125401 | E200: =D200*AVERAGEIF(E205:E216,">0")/100 -> 92.66243025 | F200: =D200*(100-AVERAGEIF(E205:E216,">0"))/100 -> 0.278823762 | G200: =100-(E200+F200+H200) -> 5.968278753 | H200: =IF((D202+H202)>100,H202*100/(D202+H202),H202) -> 1.09046724 | I200: =IF((I202+M202)>100,I202*100/(I202+M202),I202) -> 97.46902694 | J200: =I200*AVERAGEIF(J205:J216,">0")/100 -> 97.07915083 | K200: =I200*(100-AVERAGEIF(J205:J216,">0"))/100 -> 0.3898761078 | L200: =100-(J200+K200+M200) -> 1.683162578 | M200: =IF((I202+M202)>100,M202*100/(I202+M202),M202) -> 0.847810481 | N200: =IF((N202+R202)>100,N202*100/(N202+R202),N202) -> 98.37021446 | O200: =N200*AVERAGEIF(O205:O216,">0")/100 -> 98.37021446 | P200: =N200*(100-AVERAGEIF(O205:O216,">0"))/100 -> 0 | Q200: =100-(O200+P200+R200) -> 0.7012141085 | R200: =IF((N202+R202)>100,R202*100/(N202+R202),R202) -> 0.9285714286 | S200: =IF((S202+W202)>100,S202*100/(S202+W202),S202) -> 99.6874774 | T200: =S200*AVERAGEIF(T205:T216,">0")/100 -> 99.63763366 | U200: =S200*(100-AVERAGEIF(T205:T216,">0"))/100 -> 0.0498437387 | V200: =100-(T200+U200+W200) -> 0.03395117541 | W200: =IF((S202+W202)>100,W202*100/(S202+W202),W202) -> 0.2785714286 | X200: =IF((X202+AB202)>100,X202*100/(X202+AB202),X202) -> 100 | Y200: =X200*AVERAGEIF(Y205:Y216,">0")/100 -> 100 | Z200: =X200*(100-AVERAGEIF(Y205:Y216,">0"))/100 -> 0 | AA200: =100-(Y200+Z200+AB200) -> 0 | AB200: =IF((X202+AB202)>100,AB202*100/(X202+AB202),AB202) -> 0
A201: Regression period: | C201: =MinRegYear(C199,C205:C216) -> 2001 | D201: =IF(MAX(C205:C216)-MIN(C205:C216)<5,AVERAGEIF(C205:C216,">0",D205:D216), IF(FORECAST($C201,D$205:D$216,$C$205:$C$216)<0,0, IF(FORECAST($C201,D$205:D$216,$C$205:$C$216)>100,100, FORECAST($C201,D$205:D$216,$C$205:$C$216)))) -> 95.6912362 | H201: =IF(MAX(C205:C216)-MIN(C205:C216)<5,AVERAGEIF(C205:C216,">0",H205:H216), IF(FORECAST($C201,H$205:H$216,$C$205:$C$216)<0,0, IF(FORECAST($C201,H$205:H$216,$C$205:$C$216)>100,100, FORECAST($C201,H$205:H$216,$C$205:$C$216)))) -> 1.221723953 | I201: =IF(MAX(C205:C216)-MIN(C205:C216)<5,AVERAGEIF(C205:C216,">0",I205:I216), IF(FORECAST($C201,I$205:I$216,$C$205:$C$216)<0,0, IF(FORECAST($C201,I$205:I$216,$C$205:$C$216)>100,100, FORECAST($C201,I$205:I$216,$C$205:$C$216)))) -> 97.07335165 | M201: =IF(MAX(C205:C216)-MIN(C205:C216)<5,AVERAGEIF(C205:C216,">0",M205:M216), IF(FORECAST($C201,M$205:M$216,$C$205:$C$216)<0,0, IF(FORECAST($C201,M$205:M$216,$C$205:$C$216)>100,100, FORECAST($C201,M$205:M$216,$C$205:$C$216)))) -> 0.6353194544 | N201: =IF(MAX(C205:C216)-MIN(C205:C216)<5,AVERAGEIF(C205:C216,">0",N205:N216), IF(FORECAST($C201,N$205:N$216,$C$205:$C$216)<0,0, IF(FORECAST($C201,N$205:N$216,$C$205:$C$216)>100,100, FORECAST($C201,N$205:N$216,$C$205:$C$216)))) -> 96.99148352 | R201: =IF(MAX(C205:C216)-MIN(C205:C216)<5,AVERAGEIF(C205:C216,">0",R205:R216), IF(FORECAST($C201,R$205:R$216,$C$205:$C$216)<0,0, IF(FORECAST($C201,R$205:R$216,$C$205:$C$216)>100,100, FORECAST($C201,R$205:R$216,$C$205:$C$216)))) -> 0.3571428571 | S201: =IF(MAX(C205:C216)-MIN(C205:C216)<5,AVERAGEIF(C205:C216,">0",S205:S216), IF(FORECAST($C201,S$205:S$216,$C$205:$C$216)<0,0, IF(FORECAST($C201,S$205:S$216,$C$205:$C$216)>100,100, FORECAST($C201,S$205:S$216,$C$205:$C$216)))) -> 97.69868897 | W201: =IF(MAX(C205:C216)-MIN(C205:C216)<5,AVERAGEIF(C205:C216,">0",W205:W216), IF(FORECAST($C201,W$205:W$216,$C$205:$C$216)<0,0, IF(FORECAST($C201,W$205:W$216,$C$205:$C$216)>100,100, FORECAST($C201,W$205:W$216,$C$205:$C$216)))) -> 0.1071428571 | X201: =IF(MAX(C205:C216)-MIN(C205:C216)<5,AVERAGEIF(C205:C216,">0",X205:X216), IF(FORECAST($C201,X$205:X$216,$C$205:$C$216)<0,0, IF(FORECAST($C201,X$205:X$216,$C$205:$C$216)>100,100, FORECAST($C201,X$205:X$216,$C$205:$C$216)))) -> 99.16092437 | AB201: =IF(MAX(C205:C216)-MIN(C205:C216)<5,AVERAGEIF(C205:C216,">0",AB205:AB216), IF(FORECAST($C201,AB$205:AB$216,$C$205:$C$216)<0,0, IF(FORECAST($C201,AB$205:AB$216,$C$205:$C$216)>100,100, FORECAST($C201,AB$205:AB$216,$C$205:$C$216)))) -> 0
C202: =MaxRegYear(C200,C205:C216) -> 2017 | D202: =IF(MAX(C205:C216)-MIN(C205:C216)<5,AVERAGEIF(C205:C216,">0",D205:D216), IF(FORECAST($C202,D$205:D$216,$C$205:$C$216)<0,0, IF(FORECAST($C202,D$205:D$216,$C$205:$C$216)>100,100, FORECAST($C202,D$205:D$216,$C$205:$C$216)))) -> 92.94125401 | H202: =IF(MAX(C205:C216)-MIN(C205:C216)<5,AVERAGEIF(C205:C216,">0",H205:H216), IF(FORECAST($C202,H$205:H$216,$C$205:$C$216)<0,0, IF(FORECAST($C202,H$205:H$216,$C$205:$C$216)>100,100, FORECAST($C202,H$205:H$216,$C$205:$C$216)))) -> 1.09046724 | I202: =IF(MAX(C205:C216)-MIN(C205:C216)<5,AVERAGEIF(C205:C216,">0",I205:I216), IF(FORECAST($C202,I$205:I$216,$C$205:$C$216)<0,0, IF(FORECAST($C202,I$205:I$216,$C$205:$C$216)>100,100, FORECAST($C202,I$205:I$216,$C$205:$C$216)))) -> 97.46902694 | M202: =IF(MAX(C205:C216)-MIN(C205:C216)<5,AVERAGEIF(C205:C216,">0",M205:M216), IF(FORECAST($C202,M$205:M$216,$C$205:$C$216)<0,0, IF(FORECAST($C202,M$205:M$216,$C$205:$C$216)>100,100, FORECAST($C202,M$205:M$216,$C$205:$C$216)))) -> 0.847810481 | N202: =IF(MAX(C205:C216)-MIN(C205:C216)<5,AVERAGEIF(C205:C216,">0",N205:N216), IF(FORECAST($C202,N$205:N$216,$C$205:$C$216)<0,0, IF(FORECAST($C202,N$205:N$216,$C$205:$C$216)>100,100, FORECAST($C202,N$205:N$216,$C$205:$C$216)))) -> 98.37021446 | R202: =IF(MAX(C205:C216)-MIN(C205:C216)<5,AVERAGEIF(C205:C216,">0",R205:R216), IF(FORECAST($C202,R$205:R$216,$C$205:$C$216)<0,0, IF(FORECAST($C202,R$205:R$216,$C$205:$C$216)>100,100, FORECAST($C202,R$205:R$216,$C$205:$C$216)))) -> 0.9285714286 | S202: =IF(MAX(C205:C216)-MIN(C205:C216)<5,AVERAGEIF(C205:C216,">0",S205:S216), IF(FORECAST($C202,S$205:S$216,$C$205:$C$216)<0,0, IF(FORECAST($C202,S$205:S$216,$C$205:$C$216)>100,100, FORECAST($C202,S$205:S$216,$C$205:$C$216)))) -> 99.6874774 | W202: =IF(MAX(C205:C216)-MIN(C205:C216)<5,AVERAGEIF(C205:C216,">0",W205:W216), IF(FORECAST($C202,W$205:W$216,$C$205:$C$216)<0,0, IF(FORECAST($C202,W$205:W$216,$C$205:$C$216)>100,100, FORECAST($C202,W$205:W$216,$C$205:$C$216)))) -> 0.2785714286 | X202: =IF(MAX(C205:C216)-MIN(C205:C216)<5,AVERAGEIF(C205:C216,">0",X205:X216), IF(FORECAST($C202,X$205:X$216,$C$205:$C$216)<0,0, IF(FORECAST($C202,X$205:X$216,$C$205:$C$216)>100,100, FORECAST($C202,X$205:X$216,$C$205:$C$216)))) -> 100 | AB202: =IF(MAX(C205:C216)-MIN(C205:C216)<5,AVERAGEIF(C205:C216,">0",AB205:AB216), IF(FORECAST($C202,AB$205:AB$216,$C$205:$C$216)<0,0, IF(FORECAST($C202,AB$205:AB$216,$C$205:$C$216)>100,100, FORECAST($C202,AB$205:AB$216,$C$205:$C$216)))) -> 0
B204: Survey | C204: Year | D204: Improved | E204: % Improved < = 30min | H204: Surface water | I204: Improved | J204: % Improved < = 30min | M204: Surface water | N204: Improved | O204: % Improved < = 30min | R204: Surface water | S204: Improved | T204: % Improved < = 30min | W204: Surface water | X204: Improved | Y204: % Improved < = 30min | AB204: Surface water
B205: WHS03 | C205: 2003 | D205: =IF(ISERROR(INDIRECT(CONCATENATE($B205,"!H16"))),"",INDIRECT(CONCATENATE($B205,"!H16"))) -> 98.00498753 | E205: =IF(ISERROR(INDIRECT(CONCATENATE($B205,"!H23"))),"",INDIRECT(CONCATENATE($B205,"!H23"))) -> N/A | H205: =IF(ISERROR(INDIRECT(CONCATENATE($B205,"!H21"))),"",INDIRECT(CONCATENATE($B205,"!H21"))) -> 0.7518796992 | I205: =IF(ISERROR(INDIRECT(CONCATENATE($B205,"!I16"))),"",INDIRECT(CONCATENATE($B205,"!I16"))) -> 98.2630273 | J205: =IF(ISERROR(INDIRECT(CONCATENATE($B205,"!I23"))),"",INDIRECT(CONCATENATE($B205,"!I23"))) -> N/A | M205: =IF(ISERROR(INDIRECT(CONCATENATE($B205,"!I21"))),"",INDIRECT(CONCATENATE($B205,"!I21"))) -> 0.2512562814 | N205: =IF(ISERROR(INDIRECT(CONCATENATE($B205,"!J16"))),"",INDIRECT(CONCATENATE($B205,"!J16"))) -> 98.01488834 | O205: =IF(ISERROR(INDIRECT(CONCATENATE($B205,"!J23"))),"",INDIRECT(CONCATENATE($B205,"!J23"))) -> N/A | R205: =IF(ISERROR(INDIRECT(CONCATENATE($B205,"!J21"))),"",INDIRECT(CONCATENATE($B205,"!J21"))) -> 0 | S205: =IF(ISERROR(INDIRECT(CONCATENATE($B205,"!K16"))),"",INDIRECT(CONCATENATE($B205,"!K16"))) -> 98.2278481 | T205: =IF(ISERROR(INDIRECT(CONCATENATE($B205,"!K23"))),"",INDIRECT(CONCATENATE($B205,"!K23"))) -> N/A | W205: =IF(ISERROR(INDIRECT(CONCATENATE($B205,"!K21"))),"",INDIRECT(CONCATENATE($B205,"!K21"))) -> 0 | X205: =IF(ISERROR(INDIRECT(CONCATENATE($B205,"!L16"))),"",INDIRECT(CONCATENATE($B205,"!L16"))) -> 99.26470588 | Y205: =IF(ISERROR(INDIRECT(CONCATENATE($B205,"!L23"))),"",INDIRECT(CONCATENATE($B205,"!L23"))) -> N/A | AB205: =IF(ISERROR(INDIRECT(CONCATENATE($B205,"!L221"))),"",INDIRECT(CONCATENATE($B205,"!L21"))) -> 0
B206: ENCOVI11 | C206: 2011 | D206: 86 | E206: 99.7 | H206: 2.5 | I206: 93.9 | J206: 99.3 | M206: 2 | N206: 95.3 | O206: 100 | R206: 2 | S206: 98.1 | T206: 100 | W206: 0.6 | X206: 99.7 | Y206: 100 | AB206: 0
B207: DHS15 | C207: 2015 | D207: 98.6 | E207: 99.7 | H207: 0.2 | I207: 99.7 | J207: 99.9 | M207: 0 | N207: 99.9 | O207: 100 | R207: 0 | S207: 100 | T207: 99.9 | W207: 0 | X207: 99.9 | Y207: 100 | AB207: 0
B218: =CONCATENATE("Urban use of drinking water sources, ",C199,"–",C200) -> Urban use of drinking water sources, 2000–2020 | S218: Data points used for regression
E253: =IF(ISERROR(INDIRECT(CONCATENATE($B253,"!M18"))),"",INDIRECT(CONCATENATE($B253,"!M18"))) ->  | F253: =IF(ISERROR(INDIRECT(CONCATENATE($B253,"!M19"))),"",INDIRECT(CONCATENATE($B253,"!M19"))) ->  | G253: =IF(ISERROR(INDIRECT(CONCATENATE($B253,"!M20"))),"",INDIRECT(CONCATENATE($B253,"!M20"))) ->  | H253: =IF(ISERROR(INDIRECT(CONCATENATE($B253,"!M21"))),"",INDIRECT(CONCATENATE($B253,"!M21"))) ->  | J253: =IF(ISERROR(INDIRECT(CONCATENATE($B253,"!N18"))),"",INDIRECT(CONCATENATE($B253,"!N18"))) ->  | K253: =IF(ISERROR(INDIRECT(CONCATENATE($B253,"!N19"))),"",INDIRECT(CONCATENATE($B253,"!N19"))) ->  | L253: =IF(ISERROR(INDIRECT(CONCATENATE($B253,"!N20"))),"",INDIRECT(CONCATENATE($B253,"!N20"))) ->  | M253: =IF(ISERROR(INDIRECT(CONCATENATE($B253,"!N21"))),"",INDIRECT(CONCATENATE($B253,"!N21"))) ->  | O253: =IF(ISERROR(INDIRECT(CONCATENATE($B253,"!O18"))),"",INDIRECT(CONCATENATE($B253,"!O18"))) ->  | P253: =IF(ISERROR(INDIRECT(CONCATENATE($B253,"!O19"))),"",INDIRECT(CONCATENATE($B253,"!O19"))) ->  | Q253: =IF(ISERROR(INDIRECT(CONCATENATE($B253,"!O20"))),"",INDIRECT(CONCATENATE($B253,"!O20"))) ->  | R253: =IF(ISERROR(INDIRECT(CONCATENATE($B253,"!O21"))),"",INDIRECT(CONCATENATE($B253,"!O21"))) ->  | T253: =IF(ISERROR(INDIRECT(CONCATENATE($B253,"!P18"))),"",INDIRECT(CONCATENATE($B253,"!P18"))) ->  | U253: =IF(ISERROR(INDIRECT(CONCATENATE($B253,"!P19"))),"",INDIRECT(CONCATENATE($B253,"!P19"))) ->  | V253: =IF(ISERROR(INDIRECT(CONCATENATE($B253,"!P20"))),"",INDIRECT(CONCATENATE($B253,"!P20"))) ->  | W253: =IF(ISERROR(INDIRECT(CONCATENATE($B253,"!P21"))),"",INDIRECT(CONCATENATE($B253,"!P21"))) ->  | Y253: =IF(ISERROR(INDIRECT(CONCATENATE($B253,"!Q18"))),"",INDIRECT(CONCATENATE($B253,"!Q18"))) ->  | Z253: =IF(ISERROR(INDIRECT(CONCATENATE($B253,"!Q19"))),"",INDIRECT(CONCATENATE($B253,"!Q19"))) ->  | AA253: =IF(ISERROR(INDIRECT(CONCATENATE($B253,"!Q20"))),"",INDIRECT(CONCATENATE($B253,"!Q20"))) ->  | AB253: =IF(ISERROR(INDIRECT(CONCATENATE($B253,"!Q21"))),"",INDIRECT(CONCATENATE($B253,"!Q1"))) -> 
E254: =IF(ISERROR(INDIRECT(CONCATENATE($B254,"!M18"))),"",INDIRECT(CONCATENATE($B254,"!M18"))) ->  | F254: =IF(ISERROR(INDIRECT(CONCATENATE($B254,"!M19"))),"",INDIRECT(CONCATENATE($B254,"!M19"))) ->  | G254: =IF(ISERROR(INDIRECT(CONCATENATE($B254,"!M20"))),"",INDIRECT(CONCATENATE($B254,"!M20"))) ->  | H254: =IF(ISERROR(INDIRECT(CONCATENATE($B254,"!M21"))),"",INDIRECT(CONCATENATE($B254,"!M21"))) ->  | J254: =IF(ISERROR(INDIRECT(CONCATENATE($B254,"!N18"))),"",INDIRECT(CONCATENATE($B254,"!N18"))) ->  | K254: =IF(ISERROR(INDIRECT(CONCATENATE($B254,"!N19"))),"",INDIRECT(CONCATENATE($B254,"!N19"))) ->  | L254: =IF(ISERROR(INDIRECT(CONCATENATE($B254,"!N20"))),"",INDIRECT(CONCATENATE($B254,"!N20"))) ->  | M254: =IF(ISERROR(INDIRECT(CONCATENATE($B254,"!N21"))),"",INDIRECT(CONCATENATE($B254,"!N21"))) ->  | O254: =IF(ISERROR(INDIRECT(CONCATENATE($B254,"!O18"))),"",INDIRECT(CONCATENATE($B254,"!O18"))) ->  | P254: =IF(ISERROR(INDIRECT(CONCATENATE($B254,"!O19"))),"",INDIRECT(CONCATENATE($B254,"!O19"))) ->  | Q254: =IF(ISERROR(INDIRECT(CONCATENATE($B254,"!O20"))),"",INDIRECT(CONCATENATE($B254,"!O20"))) ->  | R254: =IF(ISERROR(INDIRECT(CONCATENATE($B254,"!O21"))),"",INDIRECT(CONCATENATE($B254,"!O21"))) ->  | T254: =IF(ISERROR(INDIRECT(CONCATENATE($B254,"!P18"))),"",INDIRECT(CONCATENATE($B254,"!P18"))) ->  | U254: =IF(ISERROR(INDIRECT(CONCATENATE($B254,"!P19"))),"",INDIRECT(CONCATENATE($B254,"!P19"))) ->  | V254: =IF(ISERROR(INDIRECT(CONCATENATE($B254,"!P20"))),"",INDIRECT(CONCATENATE($B254,"!P20"))) ->  | W254: =IF(ISERROR(INDIRECT(CONCATENATE($B254,"!P21"))),"",INDIRECT(CONCATENATE($B254,"!P21"))) ->  | Y254: =IF(ISERROR(INDIRECT(CONCATENATE($B254,"!Q18"))),"",INDIRECT(CONCATENATE($B254,"!Q18"))) ->  | Z254: =IF(ISERROR(INDIRECT(CONCATENATE($B254,"!Q19"))),"",INDIRECT(CONCATENATE($B254,"!Q19"))) ->  | AA254: =IF(ISERROR(INDIRECT(CONCATENATE($B254,"!Q20"))),"",INDIRECT(CONCATENATE($B254,"!Q20"))) ->  | AB254: =IF(ISERROR(INDIRECT(CONCATENATE($B254,"!Q21"))),"",INDIRECT(CONCATENATE($B254,"!Q1"))) -> 
E255: =IF(ISERROR(INDIRECT(CONCATENATE($B255,"!M18"))),"",INDIRECT(CONCATENATE($B255,"!M18"))) ->  | F255: =IF(ISERROR(INDIRECT(CONCATENATE($B255,"!M19"))),"",INDIRECT(CONCATENATE($B255,"!M19"))) ->  | G255: =IF(ISERROR(INDIRECT(CONCATENATE($B255,"!M20"))),"",INDIRECT(CONCATENATE($B255,"!M20"))) ->  | H255: =IF(ISERROR(INDIRECT(CONCATENATE($B255,"!M21"))),"",INDIRECT(CONCATENATE($B255,"!M21"))) ->  | J255: =IF(ISERROR(INDIRECT(CONCATENATE($B255,"!N18"))),"",INDIRECT(CONCATENATE($B255,"!N18"))) ->  | K255: =IF(ISERROR(INDIRECT(CONCATENATE($B255,"!N19"))),"",INDIRECT(CONCATENATE($B255,"!N19"))) ->  | L255: =IF(ISERROR(INDIRECT(CONCATENATE($B255,"!N20"))),"",INDIRECT(CONCATENATE($B255,"!N20"))) ->  | M255: =IF(ISERROR(INDIRECT(CONCATENATE($B255,"!N21"))),"",INDIRECT(CONCATENATE($B255,"!N21"))) ->  | O255: =IF(ISERROR(INDIRECT(CONCATENATE($B255,"!O18"))),"",INDIRECT(CONCATENATE($B255,"!O18"))) ->  | P255: =IF(ISERROR(INDIRECT(CONCATENATE($B255,"!O19"))),"",INDIRECT(CONCATENATE($B255,"!O19"))) ->  | Q255: =IF(ISERROR(INDIRECT(CONCATENATE($B255,"!O20"))),"",INDIRECT(CONCATENATE($B255,"!O20"))) ->  | R255: =IF(ISERROR(INDIRECT(CONCATENATE($B255,"!O21"))),"",INDIRECT(CONCATENATE($B255,"!O21"))) ->  | T255: =IF(ISERROR(INDIRECT(CONCATENATE($B255,"!P18"))),"",INDIRECT(CONCATENATE($B255,"!P18"))) ->  | U255: =IF(ISERROR(INDIRECT(CONCATENATE($B255,"!P19"))),"",INDIRECT(CONCATENATE($B255,"!P19"))) ->  | V255: =IF(ISERROR(INDIRECT(CONCATENATE($B255,"!P20"))),"",INDIRECT(CONCATENATE($B255,"!P20"))) ->  | W255: =IF(ISERROR(INDIRECT(CONCATENATE($B255,"!P21"))),"",INDIRECT(CONCATENATE($B255,"!P21"))) ->  | Y255: =IF(ISERROR(INDIRECT(CONCATENATE($B255,"!Q18"))),"",INDIRECT(CONCATENATE($B255,"!Q18"))) ->  | Z255: =IF(ISERROR(INDIRECT(CONCATENATE($B255,"!Q19"))),"",INDIRECT(CONCATENATE($B255,"!Q19"))) ->  | AA255: =IF(ISERROR(INDIRECT(CONCATENATE($B255,"!Q20"))),"",INDIRECT(CONCATENATE($B255,"!Q20"))) ->  | AB255: =IF(ISERROR(INDIRECT(CONCATENATE($B255,"!Q21"))),"",INDIRECT(CONCATENATE($B255,"!Q1"))) -> 
E256: =IF(ISERROR(INDIRECT(CONCATENATE($B256,"!M18"))),"",INDIRECT(CONCATENATE($B256,"!M18"))) ->  | F256: =IF(ISERROR(INDIRECT(CONCATENATE($B256,"!M19"))),"",INDIRECT(CONCATENATE($B256,"!M19"))) ->  | G256: =IF(ISERROR(INDIRECT(CONCATENATE($B256,"!M20"))),"",INDIRECT(CONCATENATE($B256,"!M20"))) ->  | H256: =IF(ISERROR(INDIRECT(CONCATENATE($B256,"!M21"))),"",INDIRECT(CONCATENATE($B256,"!M21"))) ->  | J256: =IF(ISERROR(INDIRECT(CONCATENATE($B256,"!N18"))),"",INDIRECT(CONCATENATE($B256,"!N18"))) ->  | K256: =IF(ISERROR(INDIRECT(CONCATENATE($B256,"!N19"))),"",INDIRECT(CONCATENATE($B256,"!N19"))) ->  | L256: =IF(ISERROR(INDIRECT(CONCATENATE($B256,"!N20"))),"",INDIRECT(CONCATENATE($B256,"!N20"))) ->  | M256: =IF(ISERROR(INDIRECT(CONCATENATE($B256,"!N21"))),"",INDIRECT(CONCATENATE($B256,"!N21"))) ->  | O256: =IF(ISERROR(INDIRECT(CONCATENATE($B256,"!O18"))),"",INDIRECT(CONCATENATE($B256,"!O18"))) ->  | P256: =IF(ISERROR(INDIRECT(CONCATENATE($B256,"!O19"))),"",INDIRECT(CONCATENATE($B256,"!O19"))) ->  | Q256: =IF(ISERROR(INDIRECT(CONCATENATE($B256,"!O20"))),"",INDIRECT(CONCATENATE($B256,"!O20"))) ->  | R256: =IF(ISERROR(INDIRECT(CONCATENATE($B256,"!O21"))),"",INDIRECT(CONCATENATE($B256,"!O21"))) ->  | T256: =IF(ISERROR(INDIRECT(CONCATENATE($B256,"!P18"))),"",INDIRECT(CONCATENATE($B256,"!P18"))) ->  | U256: =IF(ISERROR(INDIRECT(CONCATENATE($B256,"!P19"))),"",INDIRECT(CONCATENATE($B256,"!P19"))) ->  | V256: =IF(ISERROR(INDIRECT(CONCATENATE($B256,"!P20"))),"",INDIRECT(CONCATENATE($B256,"!P20"))) ->  | W256: =IF(ISERROR(INDIRECT(CONCATENATE($B256,"!P21"))),"",INDIRECT(CONCATENATE($B256,"!P21"))) ->  | Y256: =IF(ISERROR(INDIRECT(CONCATENATE($B256,"!Q18"))),"",INDIRECT(CONCATENATE($B256,"!Q18"))) ->  | Z256: =IF(ISERROR(INDIRECT(CONCATENATE($B256,"!Q19"))),"",INDIRECT(CONCATENATE($B256,"!Q19"))) ->  | AA256: =IF(ISERROR(INDIRECT(CONCATENATE($B256,"!Q20"))),"",INDIRECT(CONCATENATE($B256,"!Q20"))) ->  | AB256: =IF(ISERROR(INDIRECT(CONCATENATE($B256,"!Q21"))),"",INDIRECT(CONCATENATE($B256,"!Q1"))) -> 
E257: =IF(ISERROR(INDIRECT(CONCATENATE($B257,"!M18"))),"",INDIRECT(CONCATENATE($B257,"!M18"))) ->  | F257: =IF(ISERROR(INDIRECT(CONCATENATE($B257,"!M19"))),"",INDIRECT(CONCATENATE($B257,"!M19"))) ->  | G257: =IF(ISERROR(INDIRECT(CONCATENATE($B257,"!M20"))),"",INDIRECT(CONCATENATE($B257,"!M20"))) ->  | H257: =IF(ISERROR(INDIRECT(CONCATENATE($B257,"!M21"))),"",INDIRECT(CONCATENATE($B257,"!M21"))) ->  | J257: =IF(ISERROR(INDIRECT(CONCATENATE($B257,"!N18"))),"",INDIRECT(CONCATENATE($B257,"!N18"))) ->  | K257: =IF(ISERROR(INDIRECT(CONCATENATE($B257,"!N19"))),"",INDIRECT(CONCATENATE($B257,"!N19"))) ->  | L257: =IF(ISERROR(INDIRECT(CONCATENATE($B257,"!N20"))),"",INDIRECT(CONCATENATE($B257,"!N20"))) ->  | M257: =IF(ISERROR(INDIRECT(CONCATENATE($B257,"!N21"))),"",INDIRECT(CONCATENATE($B257,"!N21"))) ->  | O257: =IF(ISERROR(INDIRECT(CONCATENATE($B257,"!O18"))),"",INDIRECT(CONCATENATE($B257,"!O18"))) ->  | P257: =IF(ISERROR(INDIRECT(CONCATENATE($B257,"!O19"))),"",INDIRECT(CONCATENATE($B257,"!O19"))) ->  | Q257: =IF(ISERROR(INDIRECT(CONCATENATE($B257,"!O20"))),"",INDIRECT(CONCATENATE($B257,"!O20"))) ->  | R257: =IF(ISERROR(INDIRECT(CONCATENATE($B257,"!O21"))),"",INDIRECT(CONCATENATE($B257,"!O21"))) ->  | T257: =IF(ISERROR(INDIRECT(CONCATENATE($B257,"!P18"))),"",INDIRECT(CONCATENATE($B257,"!P18"))) ->  | U257: =IF(ISERROR(INDIRECT(CONCATENATE($B257,"!P19"))),"",INDIRECT(CONCATENATE($B257,"!P19"))) ->  | V257: =IF(ISERROR(INDIRECT(CONCATENATE($B257,"!P20"))),"",INDIRECT(CONCATENATE($B257,"!P20"))) ->  | W257: =IF(ISERROR(INDIRECT(CONCATENATE($B257,"!P21"))),"",INDIRECT(CONCATENATE($B257,"!P21"))) ->  | Y257: =IF(ISERROR(INDIRECT(CONCATENATE($B257,"!Q18"))),"",INDIRECT(CONCATENATE($B257,"!Q18"))) ->  | Z257: =IF(ISERROR(INDIRECT(CONCATENATE($B257,"!Q19"))),"",INDIRECT(CONCATENATE($B257,"!Q19"))) ->  | AA257: =IF(ISERROR(INDIRECT(CONCATENATE($B257,"!Q20"))),"",INDIRECT(CONCATENATE($B257,"!Q20"))) ->  | AB257: =IF(ISERROR(INDIRECT(CONCATENATE($B257,"!Q21"))),"",INDIRECT(CONCATENATE($B257,"!Q1"))) -> 
A297: RURAL | D297: Poorest | I297: Poor | N297: Middle | S297: Rich | X297: Richest
D298: Improved | E298: Basic | F298: Limited | G298: Unimproved | H298: Surface water | I298: Improved | J298: Basic | K298: Limited | L298: Unimproved | M298: Surface water | N298: Improved | O298: Basic | P298: Limited | Q298: Unimproved | R298: Surface water | S298: Improved | T298: Basic | U298: Limited | V298: Unimproved | W298: Surface water | X298: Improved | Y298: Basic | Z298: Limited | AA298: Unimproved | AB298: Surface water
A299: Forecast period: | C299: 2000 | D299: =IF((D301+H301)>100,D301*100/(D301+H301),D301) -> 79.67261475 | E299: =D299*AVERAGEIF(E305:E316,">0")/100 -> 76.6848917 | F299: =D299*(100-AVERAGEIF(E305:E316,">0"))/100 -> 2.987723053 | G299: =100-(E299+F299+H299) -> 1.721506329 | H299: =IF((D301+H301)>100,H301*100/(D301+H301),H301) -> 18.60587892 | I299: =IF((I301+M301)>100,I301*100/(I301+M301),I301) -> 83.31554965 | J299: =I299*AVERAGEIF(J305:J316,">0")/100 -> 81.69089643 | K299: =I299*(100-AVERAGEIF(J305:J316,">0"))/100 -> 1.624653218 | L299: =100-(J299+K299+M299) -> 3.574105522 | M299: =IF((I301+M301)>100,M301*100/(I301+M301),M301) -> 13.11034483 | N299: =IF((N301+R301)>100,N301*100/(N301+R301),N301) -> 85.27791387 | O299: =N299*AVERAGEIF(O305:O316,">0")/100 -> 84.04138412 | P299: =N299*(100-AVERAGEIF(O305:O316,">0"))/100 -> 1.236529751 | Q299: =100-(O299+P299+R299) -> 7.055933382 | R299: =IF((N301+R301)>100,R301*100/(N301+R301),R301) -> 7.666152745 | S299: =IF((S301+W301)>100,S301*100/(S301+W301),S301) -> 90.50816049 | T299: =S299*AVERAGEIF(T305:T316,">0")/100 -> 89.73884112 | U299: =S299*(100-AVERAGEIF(T305:T316,">0"))/100 -> 0.7693193641 | V299: =100-(T299+U299+W299) -> 5.897046211 | W299: =IF((S301+W301)>100,W301*100/(S301+W301),W301) -> 3.594793302 | X299: =IF((X301+AB301)>100,X301*100/(X301+AB301),X301) -> 91.85199845 | Y299: =X299*AVERAGEIF(Y305:Y316,">0")/100 -> 91.57644246 | Z299: =X299*(100-AVERAGEIF(Y305:Y316,">0"))/100 -> 0.2755559954 | AA299: =100-(Y299+Z299+AB299) -> 5.327871677 | AB299: =IF((X301+AB301)>100,AB301*100/(X301+AB301),AB301) -> 2.82012987
C300: 2020 | D300: =IF((D302+H302)>100,D302*100/(D302+H302),D302) -> 74.8305312 | E300: =D300*AVERAGEIF(E305:E316,">0")/100 -> 72.02438628 | F300: =D300*(100-AVERAGEIF(E305:E316,">0"))/100 -> 2.80614492 | G300: =100-(E300+F300+H300) -> 9.074401388 | H300: =IF((D302+H302)>100,H302*100/(D302+H302),H302) -> 16.09506741 | I300: =IF((I302+M302)>100,I302*100/(I302+M302),I302) -> 88.74064688 | J300: =I300*AVERAGEIF(J305:J316,">0")/100 -> 87.01020426 | K300: =I300*(100-AVERAGEIF(J305:J316,">0"))/100 -> 1.730442614 | L300: =100-(J300+K300+M300) -> 4.355904848 | M300: =IF((I302+M302)>100,M302*100/(I302+M302),M302) -> 6.903448276 | N300: =IF((N302+R302)>100,N302*100/(N302+R302),N302) -> 94.46770242 | O300: =N300*AVERAGEIF(O305:O316,">0")/100 -> 93.09792074 | P300: =N300*(100-AVERAGEIF(O305:O316,">0"))/100 -> 1.369781685 | Q300: =100-(O300+P300+R300) -> 0.5837612763 | R300: =IF((N302+R302)>100,R302*100/(N302+R302),R302) -> 4.9485363 | S300: =IF((S302+W302)>100,S302*100/(S302+W302),S302) -> 96.14474351 | T300: =S300*AVERAGEIF(T305:T316,">0")/100 -> 95.32751319 | U300: =S300*(100-AVERAGEIF(T305:T316,">0"))/100 -> 0.8172303198 | V300: =100-(T300+U300+W300) -> 0 | W300: =IF((S302+W302)>100,W302*100/(S302+W302),W302) -> 3.85525649 | X300: =IF((X302+AB302)>100,X302*100/(X302+AB302),X302) -> 97.22371167 | Y300: =X300*AVERAGEIF(Y305:Y316,">0")/100 -> 96.93204054 | Z300: =X300*(100-AVERAGEIF(Y305:Y316,">0"))/100 -> 0.291671135 | AA300: =100-(Y300+Z300+AB300) -> 0 | AB300: =IF((X302+AB302)>100,AB302*100/(X302+AB302),AB302) -> 2.776288329
A301: Regression period: | C301: =MinRegYear(C299,C305:C316) -> 2001 | D301: =IF(MAX(C305:C316)-MIN(C305:C316)<5,AVERAGEIF(C305:C316,">0",D305:D316), IF(FORECAST($C301,D$305:D$316,$C$305:$C$316)<0,0, IF(FORECAST($C301,D$305:D$316,$C$305:$C$316)>100,100, FORECAST($C301,D$305:D$316,$C$305:$C$316)))) -> 79.67261475 | H301: =IF(MAX(C305:C316)-MIN(C305:C316)<5,AVERAGEIF(C305:C316,">0",H305:H316), IF(FORECAST($C301,H$305:H$316,$C$305:$C$316)<0,0, IF(FORECAST($C301,H$305:H$316,$C$305:$C$316)>100,100, FORECAST($C301,H$305:H$316,$C$305:$C$316)))) -> 18.60587892 | I301: =IF(MAX(C305:C316)-MIN(C305:C316)<5,AVERAGEIF(C305:C316,">0",I305:I316), IF(FORECAST($C301,I$305:I$316,$C$305:$C$316)<0,0, IF(FORECAST($C301,I$305:I$316,$C$305:$C$316)>100,100, FORECAST($C301,I$305:I$316,$C$305:$C$316)))) -> 83.31554965 | M301: =IF(MAX(C305:C316)-MIN(C305:C316)<5,AVERAGEIF(C305:C316,">0",M305:M316), IF(FORECAST($C301,M$305:M$316,$C$305:$C$316)<0,0, IF(FORECAST($C301,M$305:M$316,$C$305:$C$316)>100,100, FORECAST($C301,M$305:M$316,$C$305:$C$316)))) -> 13.11034483 | N301: =IF(MAX(C305:C316)-MIN(C305:C316)<5,AVERAGEIF(C305:C316,">0",N305:N316), IF(FORECAST($C301,N$305:N$316,$C$305:$C$316)<0,0, IF(FORECAST($C301,N$305:N$316,$C$305:$C$316)>100,100, FORECAST($C301,N$305:N$316,$C$305:$C$316)))) -> 85.27791387 | R301: =IF(MAX(C305:C316)-MIN(C305:C316)<5,AVERAGEIF(C305:C316,">0",R305:R316), IF(FORECAST($C301,R$305:R$316,$C$305:$C$316)<0,0, IF(FORECAST($C301,R$305:R$316,$C$305:$C$316)>100,100, FORECAST($C301,R$305:R$316,$C$305:$C$316)))) -> 7.666152745 | S301: =IF(MAX(C305:C316)-MIN(C305:C316)<5,AVERAGEIF(C305:C316,">0",S305:S316), IF(FORECAST($C301,S$305:S$316,$C$305:$C$316)<0,0, IF(FORECAST($C301,S$305:S$316,$C$305:$C$316)>100,100, FORECAST($C301,S$305:S$316,$C$305:$C$316)))) -> 90.50816049 | W301: =IF(MAX(C305:C316)-MIN(C305:C316)<5,AVERAGEIF(C305:C316,">0",W305:W316), IF(FORECAST($C301,W$305:W$316,$C$305:$C$316)<0,0, IF(FORECAST($C301,W$305:W$316,$C$305:$C$316)>100,100, FORECAST($C301,W$305:W$316,$C$305:$C$316)))) -> 3.594793302 | X301: =IF(MAX(C305:C316)-MIN(C305:C316)<5,AVERAGEIF(C305:C316,">0",X305:X316), IF(FORECAST($C301,X$305:X$316,$C$305:$C$316)<0,0, IF(FORECAST($C301,X$305:X$316,$C$305:$C$316)>100,100, FORECAST($C301,X$305:X$316,$C$305:$C$316)))) -> 91.85199845 | AB301: =IF(MAX(C305:C316)-MIN(C305:C316)<5,AVERAGEIF(C305:C316,">0",AB305:AB316), IF(FORECAST($C301,AB$305:AB$316,$C$305:$C$316)<0,0, IF(FORECAST($C301,AB$305:AB$316,$C$305:$C$316)>100,100, FORECAST($C301,AB$305:AB$316,$C$305:$C$316)))) -> 2.82012987
C302: =MaxRegYear(C300,C305:C316) -> 2017 | D302: =IF(MAX(C305:C316)-MIN(C305:C316)<5,AVERAGEIF(C305:C316,">0",D305:D316), IF(FORECAST($C302,D$305:D$316,$C$305:$C$316)<0,0, IF(FORECAST($C302,D$305:D$316,$C$305:$C$316)>100,100, FORECAST($C302,D$305:D$316,$C$305:$C$316)))) -> 74.8305312 | H302: =IF(MAX(C305:C316)-MIN(C305:C316)<5,AVERAGEIF(C305:C316,">0",H305:H316), IF(FORECAST($C302,H$305:H$316,$C$305:$C$316)<0,0, IF(FORECAST($C302,H$305:H$316,$C$305:$C$316)>100,100, FORECAST($C302,H$305:H$316,$C$305:$C$316)))) -> 16.09506741 | I302: =IF(MAX(C305:C316)-MIN(C305:C316)<5,AVERAGEIF(C305:C316,">0",I305:I316), IF(FORECAST($C302,I$305:I$316,$C$305:$C$316)<0,0, IF(FORECAST($C302,I$305:I$316,$C$305:$C$316)>100,100, FORECAST($C302,I$305:I$316,$C$305:$C$316)))) -> 88.74064688 | M302: =IF(MAX(C305:C316)-MIN(C305:C316)<5,AVERAGEIF(C305:C316,">0",M305:M316), IF(FORECAST($C302,M$305:M$316,$C$305:$C$316)<0,0, IF(FORECAST($C302,M$305:M$316,$C$305:$C$316)>100,100, FORECAST($C302,M$305:M$316,$C$305:$C$316)))) -> 6.903448276 | N302: =IF(MAX(C305:C316)-MIN(C305:C316)<5,AVERAGEIF(C305:C316,">0",N305:N316), IF(FORECAST($C302,N$305:N$316,$C$305:$C$316)<0,0, IF(FORECAST($C302,N$305:N$316,$C$305:$C$316)>100,100, FORECAST($C302,N$305:N$316,$C$305:$C$316)))) -> 94.46770242 | R302: =IF(MAX(C305:C316)-MIN(C305:C316)<5,AVERAGEIF(C305:C316,">0",R305:R316), IF(FORECAST($C302,R$305:R$316,$C$305:$C$316)<0,0, IF(FORECAST($C302,R$305:R$316,$C$305:$C$316)>100,100, FORECAST($C302,R$305:R$316,$C$305:$C$316)))) -> 4.9485363 | S302: =IF(MAX(C305:C316)-MIN(C305:C316)<5,AVERAGEIF(C305:C316,">0",S305:S316), IF(FORECAST($C302,S$305:S$316,$C$305:$C$316)<0,0, IF(FORECAST($C302,S$305:S$316,$C$305:$C$316)>100,100, FORECAST($C302,S$305:S$316,$C$305:$C$316)))) -> 96.25246954 | W302: =IF(MAX(C305:C316)-MIN(C305:C316)<5,AVERAGEIF(C305:C316,">0",W305:W316), IF(FORECAST($C302,W$305:W$316,$C$305:$C$316)<0,0, IF(FORECAST($C302,W$305:W$316,$C$305:$C$316)>100,100, FORECAST($C302,W$305:W$316,$C$305:$C$316)))) -> 3.859576138 | X302: =IF(MAX(C305:C316)-MIN(C305:C316)<5,AVERAGEIF(C305:C316,">0",X305:X316), IF(FORECAST($C302,X$305:X$316,$C$305:$C$316)<0,0, IF(FORECAST($C302,X$305:X$316,$C$305:$C$316)>100,100, FORECAST($C302,X$305:X$316,$C$305:$C$316)))) -> 97.8494198 | AB302: =IF(MAX(C305:C316)-MIN(C305:C316)<5,AVERAGEIF(C305:C316,">0",AB305:AB316), IF(FORECAST($C302,AB$305:AB$316,$C$305:$C$316)<0,0, IF(FORECAST($C302,AB$305:AB$316,$C$305:$C$316)>100,100, FORECAST($C302,AB$305:AB$316,$C$305:$C$316)))) -> 2.794155844
B304: Survey | C304: Year | D304: Improved | E304: % Improved < = 30min | H304: Surface water | I304: Improved | J304: % Improved < = 30min | M304: Surface water | N304: Improved | O304: % Improved < = 30min | R304: Surface water | S304: Improved | T304: % Improved < = 30min | W304: Surface water | X304: Improved | Y304: % Improved < = 30min | AB304: Surface water
B305: WHS03 | C305: 2003 | D305: =IF(ISERROR(INDIRECT(CONCATENATE($B305,"!M16"))),"",INDIRECT(CONCATENATE($B305,"!M16"))) -> 81.94945848 | E305: =IF(ISERROR(INDIRECT(CONCATENATE($B305,"!M23"))),"",INDIRECT(CONCATENATE($B305,"!M23"))) -> N/A | H305: =IF(ISERROR(INDIRECT(CONCATENATE($B305,"!M21"))),"",INDIRECT(CONCATENATE($B305,"!M21"))) -> 14.33756806 | I305: =IF(ISERROR(INDIRECT(CONCATENATE($B305,"!N16"))),"",INDIRECT(CONCATENATE($B305,"!N16"))) -> 85.66243194 | J305: =IF(ISERROR(INDIRECT(CONCATENATE($B305,"!N23"))),"",INDIRECT(CONCATENATE($B305,"!N23"))) -> N/A | M305: =IF(ISERROR(INDIRECT(CONCATENATE($B305,"!N21"))),"",INDIRECT(CONCATENATE($B305,"!N21"))) -> 10.34482759 | N305: =IF(ISERROR(INDIRECT(CONCATENATE($B305,"!O16"))),"",INDIRECT(CONCATENATE($B305,"!O16"))) -> 88.26714801 | O305: =IF(ISERROR(INDIRECT(CONCATENATE($B305,"!O23"))),"",INDIRECT(CONCATENATE($B305,"!O23"))) -> N/A | R305: =IF(ISERROR(INDIRECT(CONCATENATE($B305,"!O21"))),"",INDIRECT(CONCATENATE($B305,"!O21"))) -> 5.282331512 | S305: =IF(ISERROR(INDIRECT(CONCATENATE($B305,"!P16"))),"",INDIRECT(CONCATENATE($B305,"!P16"))) -> 92.55898367 | T305: =IF(ISERROR(INDIRECT(CONCATENATE($B305,"!P23"))),"",INDIRECT(CONCATENATE($B305,"!P23"))) -> N/A | W305: =IF(ISERROR(INDIRECT(CONCATENATE($B305,"!P21"))),"",INDIRECT(CONCATENATE($B305,"!P21"))) -> 2.014652015 | X305: =IF(ISERROR(INDIRECT(CONCATENATE($B305,"!Q16"))),"",INDIRECT(CONCATENATE($B305,"!Q16"))) -> 93.50180505 | Y305: =IF(ISERROR(INDIRECT(CONCATENATE($B305,"!Q23"))),"",INDIRECT(CONCATENATE($B305,"!Q23"))) -> N/A | AB305: =IF(ISERROR(INDIRECT(CONCATENATE($B305,"!Q221"))),"",INDIRECT(CONCATENATE($B305,"!Q21"))) -> 1.818181818
B306: ENCOVI11 | C306: 2011 | D306: 68 | E306: 95 | H306: 28.9 | I306: 81.7 | J306: 97.1 | M306: 15.2 | N306: 85.5 | O306: 98.1 | R306: 12.1 | S306: 90.1 | T306: 98.8 | W306: 8.6 | X306: 92.9 | Y306: 99.5 | AB306: 5.8
B307: DHS15 | C307: 2015 | D307: 81.2 | E307: 97.5 | H307: 8.5 | I307: 91.4 | J307: 99 | M307: 3.7 | N307: 97 | O307: 99 | R307: 1.2 | S307: 98.2 | T307: 99.5 | W307: 0.6 | X307: 98.9 | Y307: 99.9 | AB307: 0.8
B318: =CONCATENATE("Rural use of drinking water sources, ",C299,"–",C300) -> Rural use of drinking water sources, 2000–2020 | S318: Data points used for regression

Sheet Sanitation
B4: Summary of trends in use of sanitation facilities by wealth quintile (%)
B5: =IF(ISERROR(INDIRECT(CONCATENATE($B105,"!A2"))),"",INDIRECT(CONCATENATE($B105,"!A2"))) -> Guatemala
B7: =B118 -> National use of sanitation facilities, 2000–2020 | J7: =B218 -> Urban use of sanitation facilities, 2000–2020 | R7: =B318 -> Rural use of sanitation facilities, 2000–2020
B31: =IF(ISERROR(INDIRECT(CONCATENATE($B105,"!A2"))),"",INDIRECT(CONCATENATE($B105,"!A2"))) -> Guatemala | F31: Poorest | J31: Poor | N31: Middle | R31: Rich | V31: Richest
F32: Basic | G32: Limited | H32: Unimproved | I32: Open defecation | J32: Basic | K32: Limited | L32: Unimproved | M32: Open defecation | N32: Basic | O32: Limited | P32: Unimproved | Q32: Open defecation | R32: Basic | S32: Limited | T32: Unimproved | U32: Open defecation | V32: Basic | W32: Limited | X32: Unimproved | Y32: Open defecation
B33: NATIONAL | D33: Estimate | E33: =C99 -> 2000 | F33: =E99 -> 36.03328034 | G33: =F99 -> 2.464656658 | H33: 37.09195777 | I33: 24.41010524 | J33: =J99 -> 43.72233876 | K33: =K99 -> 3.548005018 | L33: 36.85061038 | M33: 15.87904584 | N33: =O99 -> 59.38496363 | O33: =P99 -> 5.938496363 | P33: 28.56947391 | Q33: 6.107066092 | R33: =T99 -> 78.27447795 | S33: =U99 -> 8.474419615 | T33: 11.40123433 | U33: 1.849868109 | V33: =Y99 -> 94.45585553 | W33: =Z99 -> 3.728520613 | X33: 1.655711194 | Y33: 0.15991266
E34: =C100 -> 2020 | F34: =E100 -> 44.89304395 | G34: 3.070659641 | H34: 31.89296395 | I34: 20.14333246 | J34: =J100 -> 54.65117051 | K34: 4.434864024 | L34: 30.56606989 | M34: 10.34789558 | N34: =O100 -> 66.34417286 | O34: 6.634417286 | P34: 23.31928492 | Q34: 3.702124939 | R34: =T100 -> 76.90788755 | S34: 8.326465125 | T34: 13.31954499 | U34: 1.446102335 | V34: =Y100 -> 92.60258439 | W34: 3.655365173 | X34: 3.535281876 | Y34: 0.2067685651
B36: URBAN | D36: Estimate | E36: =C199 -> 2000 | F36: =E199 -> 64.27178322 | G36: =F199 -> 7.077547557 | H36: 23.15141102 | I36: 5.499258204 | J36: =J199 -> 81.14378567 | K36: =K199 -> 10.58397204 | L36: 7.640217385 | M36: 0.6320248962 | N36: =O199 -> 89.24573226 | O36: =P199 -> 8.700837407 | P36: 1.890332859 | Q36: 0.163097471 | R36: =T199 -> 95.11589379 | S36: =U199 -> 4.124266397 | T36: 0.6700828456 | U36: 0.08975696497 | V36: =Y199 -> 97.22145831 | W36: =Z199 -> 2.763400624 | X36: 0.004279056922 | Y36: 0.01086200904
E37: =C200 -> 2020 | F37: =E200 -> 62.02723042 | G37: 6.83037954 | H37: 23.29139068 | I37: 7.850999363 | J37: =J200 -> 75.11955272 | K37: 9.798202529 | L37: 13.35739016 | M37: 1.724854587 | N37: =O200 -> 84.61980707 | O37: 8.249841915 | P37: 6.611782111 | Q37: 0.5185689052 | R37: =T200 -> 92.45794264 | S37: 4.009016483 | T37: 3.23355288 | U37: 0.2994879919 | V37: =Y200 -> 95.92287071 | W37: 2.726489865 | X37: 1.322398197 | Y37: 0.0282412235
B39: RURAL | D39: Estimate | E39: =C299 -> 2000 | F39: =E299 -> 32.64600812 | G39: =F299 -> 1.558477775 | H39: 35.63297593 | I39: 30.16253817 | J39: =J299 -> 36.83580326 | K39: =K299 -> 2.427814306 | L39: 40.03457183 | M39: 20.70181061 | N39: =O299 -> 40.37111215 | O39: =P299 -> 3.290156717 | P39: 40.11651436 | Q39: 16.22221677 | R39: =T299 -> 49.6218969 | S39: =U299 -> 5.177937068 | T39: 37.01564413 | U39: 8.184521902 | V39: =Y299 -> 70.10438539 | W39: =Z299 -> 5.80662586 | X39: 20.41044916 | Y39: 3.678539586
E40: =C300 -> 2020 | F40: =E300 -> 42.31937449 | G40: 2.020271647 | H40: 32.93210138 | I40: 22.72825248 | J40: =J300 -> 46.16674161 | K40: 3.04280797 | L40: 34.90243408 | M40: 15.88801634 | N40: =O300 -> 54.84056927 | O40: 4.469385601 | P40: 30.85075671 | Q40: 9.839288418 | R40: =T300 -> 63.77336925 | S40: 6.654612444 | T40: 26.37930007 | U40: 3.192718236 | V40: =Y300 -> 77.20695315 | W40: 6.394919352 | X40: 15.3434812 | Y40: 1.054646304
A97: NATIONAL | D97: Poorest | I97: Poor | N97: Middle | S97: Rich | X97: Richest
D98: Improved | E98: Basic | F98: Limited | G98: Unimproved | H98: Open defecation | I98: Improved | J98: Basic | K98: Limited | L98: Unimproved | M98: Open defecation | N98: Improved | O98: Basic | P98: Limited | Q98: Unimproved | R98: Open defecation | S98: Improved | T98: Basic | U98: Limited | V98: Unimproved | W98: Open defecation | X98: Improved | Y98: Basic | Z98: Limited | AA98: Unimproved | AB98: Open defecation
A99: Forecast period: | C99: 2000 | D99: =IF((D101+H101)>100,D101*100/(D101+H101),D101) -> 38.49793699 | E99: =D99*AVERAGEIF(E105:E116,">0")/100 -> 36.03328034 | F99: =D99*(100-AVERAGEIF(E105:E116,">0"))/100 -> 2.464656658 | G99: =100-(E99+F99+H99) -> 37.09195777 | H99: =IF((D101+H101)>100,H101*100/(D101+H101),H101) -> 24.41010524 | I99: =IF((I101+M101)>100,I101*100/(I101+M101),I101) -> 47.27034378 | J99: =I99*AVERAGEIF(J105:J116,">0")/100 -> 43.72233876 | K99: =I99*(100-AVERAGEIF(J105:J116,">0"))/100 -> 3.548005018 | L99: =100-(J99+K99+M99) -> 36.85061038 | M99: =IF((I101+M101)>100,M101*100/(I101+M101),M101) -> 15.87904584 | N99: =IF((N101+R101)>100,N101*100/(N101+R101),N101) -> 65.32346 | O99: =N99*AVERAGEIF(O105:O116,">0")/100 -> 59.38496363 | P99: =N99*(100-AVERAGEIF(O105:O116,">0"))/100 -> 5.938496363 | Q99: =100-(O99+P99+R99) -> 28.56947391 | R99: =IF((N101+R101)>100,R101*100/(N101+R101),R101) -> 6.107066092 | S99: =IF((S101+W101)>100,S101*100/(S101+W101),S101) -> 86.74889756 | T99: =S99*AVERAGEIF(T105:T116,">0")/100 -> 78.27447795 | U99: =S99*(100-AVERAGEIF(T105:T116,">0"))/100 -> 8.474419615 | V99: =100-(T99+U99+W99) -> 11.40123433 | W99: =IF((S101+W101)>100,W101*100/(S101+W101),W101) -> 1.849868109 | X99: =IF((X101+AB101)>100,X101*100/(X101+AB101),X101) -> 98.18437615 | Y99: =X99*AVERAGEIF(Y105:Y116,">0")/100 -> 94.45585553 | Z99: =X99*(100-AVERAGEIF(Y105:Y116,">0"))/100 -> 3.728520613 | AA99: =100-(Y99+Z99+AB99) -> 1.655711194 | AB99: =IF((X101+AB101)>100,AB101*100/(X101+AB101),AB101) -> 0.15991266
C100: 2020 | D100: =IF((D102+H102)>100,D102*100/(D102+H102),D102) -> 47.96370359 | E100: =D100*AVERAGEIF(E105:E116,">0")/100 -> 44.89304395 | F100: =D100*(100-AVERAGEIF(E105:E116,">0"))/100 -> 3.070659641 | G100: =100-(E100+F100+H100) -> 31.89296395 | H100: =IF((D102+H102)>100,H102*100/(D102+H102),H102) -> 20.14333246 | I100: =IF((I102+M102)>100,I102*100/(I102+M102),I102) -> 59.08603453 | J100: =I100*AVERAGEIF(J105:J116,">0")/100 -> 54.65117051 | K100: =I100*(100-AVERAGEIF(J105:J116,">0"))/100 -> 4.434864024 | L100: =100-(J100+K100+M100) -> 30.56606989 | M100: =IF((I102+M102)>100,M102*100/(I102+M102),M102) -> 10.34789558 | N100: =IF((N102+R102)>100,N102*100/(N102+R102),N102) -> 72.97859014 | O100: =N100*AVERAGEIF(O105:O116,">0")/100 -> 66.34417286 | P100: =N100*(100-AVERAGEIF(O105:O116,">0"))/100 -> 6.634417286 | Q100: =100-(O100+P100+R100) -> 23.31928492 | R100: =IF((N102+R102)>100,R102*100/(N102+R102),R102) -> 3.702124939 | S100: =IF((S102+W102)>100,S102*100/(S102+W102),S102) -> 85.23435267 | T100: =S100*AVERAGEIF(T105:T116,">0")/100 -> 76.90788755 | U100: =S100*(100-AVERAGEIF(T105:T116,">0"))/100 -> 8.326465125 | V100: =100-(T100+U100+W100) -> 13.31954499 | W100: =IF((S102+W102)>100,W102*100/(S102+W102),W102) -> 1.446102335 | X100: =IF((X102+AB102)>100,X102*100/(X102+AB102),X102) -> 96.25794956 | Y100: =X100*AVERAGEIF(Y105:Y116,">0")/100 -> 92.60258439 | Z100: =X100*(100-AVERAGEIF(Y105:Y116,">0"))/100 -> 3.655365173 | AA100: =100-(Y100+Z100+AB100) -> 3.535281876 | AB100: =IF((X102+AB102)>100,AB102*100/(X102+AB102),AB102) -> 0.2067685651
A101: Regression period: | C101: =MinRegYear(C99,C105:C116) -> 2001 | D101: =IF(MAX(C105:C116)-MIN(C105:C116)<5,AVERAGEIF(C105:C116,">0",D105:D116), IF(FORECAST($C101,D$105:D$116,$C$105:$C$116)<0,0, IF(FORECAST($C101,D$105:D$116,$C$105:$C$116)>100,100, FORECAST($C101,D$105:D$116,$C$105:$C$116)))) -> 38.49793699 | H101: =IF(MAX(C105:C116)-MIN(C105:C116)<5,AVERAGEIF(C105:C116,">0",H105:H116), IF(FORECAST($C101,H$105:H$116,$C$105:$C$116)<0,0, IF(FORECAST($C101,H$105:H$116,$C$105:$C$116)>100,100, FORECAST($C101,H$105:H$116,$C$105:$C$116)))) -> 24.41010524 | I101: =IF(MAX(C105:C116)-MIN(C105:C116)<5,AVERAGEIF(C105:C116,">0",I105:I116), IF(FORECAST($C101,I$105:I$116,$C$105:$C$116)<0,0, IF(FORECAST($C101,I$105:I$116,$C$105:$C$116)>100,100, FORECAST($C101,I$105:I$116,$C$105:$C$116)))) -> 47.27034378 | M101: =IF(MAX(C105:C116)-MIN(C105:C116)<5,AVERAGEIF(C105:C116,">0",M105:M116), IF(FORECAST($C101,M$105:M$116,$C$105:$C$116)<0,0, IF(FORECAST($C101,M$105:M$116,$C$105:$C$116)>100,100, FORECAST($C101,M$105:M$116,$C$105:$C$116)))) -> 15.87904584 | N101: =IF(MAX(C105:C116)-MIN(C105:C116)<5,AVERAGEIF(C105:C116,">0",N105:N116), IF(FORECAST($C101,N$105:N$116,$C$105:$C$116)<0,0, IF(FORECAST($C101,N$105:N$116,$C$105:$C$116)>100,100, FORECAST($C101,N$105:N$116,$C$105:$C$116)))) -> 65.32346 | R101: =IF(MAX(C105:C116)-MIN(C105:C116)<5,AVERAGEIF(C105:C116,">0",R105:R116), IF(FORECAST($C101,R$105:R$116,$C$105:$C$116)<0,0, IF(FORECAST($C101,R$105:R$116,$C$105:$C$116)>100,100, FORECAST($C101,R$105:R$116,$C$105:$C$116)))) -> 6.107066092 | S101: =IF(MAX(C105:C116)-MIN(C105:C116)<5,AVERAGEIF(C105:C116,">0",S105:S116), IF(FORECAST($C101,S$105:S$116,$C$105:$C$116)<0,0, IF(FORECAST($C101,S$105:S$116,$C$105:$C$116)>100,100, FORECAST($C101,S$105:S$116,$C$105:$C$116)))) -> 86.74889756 | W101: =IF(MAX(C105:C116)-MIN(C105:C116)<5,AVERAGEIF(C105:C116,">0",W105:W116), IF(FORECAST($C101,W$105:W$116,$C$105:$C$116)<0,0, IF(FORECAST($C101,W$105:W$116,$C$105:$C$116)>100,100, FORECAST($C101,W$105:W$116,$C$105:$C$116)))) -> 1.849868109 | X101: =IF(MAX(C105:C116)-MIN(C105:C116)<5,AVERAGEIF(C105:C116,">0",X105:X116), IF(FORECAST($C101,X$105:X$116,$C$105:$C$116)<0,0, IF(FORECAST($C101,X$105:X$116,$C$105:$C$116)>100,100, FORECAST($C101,X$105:X$116,$C$105:$C$116)))) -> 98.18437615 | AB101: =IF(MAX(C105:C116)-MIN(C105:C116)<5,AVERAGEIF(C105:C116,">0",AB105:AB116), IF(FORECAST($C101,AB$105:AB$116,$C$105:$C$116)<0,0, IF(FORECAST($C101,AB$105:AB$116,$C$105:$C$116)>100,100, FORECAST($C101,AB$105:AB$116,$C$105:$C$116)))) -> 0.15991266
C102: =MaxRegYear(C100,C105:C116) -> 2017 | D102: =IF(MAX(C105:C116)-MIN(C105:C116)<5,AVERAGEIF(C105:C116,">0",D105:D116), IF(FORECAST($C102,D$105:D$116,$C$105:$C$116)<0,0, IF(FORECAST($C102,D$105:D$116,$C$105:$C$116)>100,100, FORECAST($C102,D$105:D$116,$C$105:$C$116)))) -> 47.96370359 | H102: =IF(MAX(C105:C116)-MIN(C105:C116)<5,AVERAGEIF(C105:C116,">0",H105:H116), IF(FORECAST($C102,H$105:H$116,$C$105:$C$116)<0,0, IF(FORECAST($C102,H$105:H$116,$C$105:$C$116)>100,100, FORECAST($C102,H$105:H$116,$C$105:$C$116)))) -> 20.14333246 | I102: =IF(MAX(C105:C116)-MIN(C105:C116)<5,AVERAGEIF(C105:C116,">0",I105:I116), IF(FORECAST($C102,I$105:I$116,$C$105:$C$116)<0,0, IF(FORECAST($C102,I$105:I$116,$C$105:$C$116)>100,100, FORECAST($C102,I$105:I$116,$C$105:$C$116)))) -> 59.08603453 | M102: =IF(MAX(C105:C116)-MIN(C105:C116)<5,AVERAGEIF(C105:C116,">0",M105:M116), IF(FORECAST($C102,M$105:M$116,$C$105:$C$116)<0,0, IF(FORECAST($C102,M$105:M$116,$C$105:$C$116)>100,100, FORECAST($C102,M$105:M$116,$C$105:$C$116)))) -> 10.34789558 | N102: =IF(MAX(C105:C116)-MIN(C105:C116)<5,AVERAGEIF(C105:C116,">0",N105:N116), IF(FORECAST($C102,N$105:N$116,$C$105:$C$116)<0,0, IF(FORECAST($C102,N$105:N$116,$C$105:$C$116)>100,100, FORECAST($C102,N$105:N$116,$C$105:$C$116)))) -> 72.97859014 | R102: =IF(MAX(C105:C116)-MIN(C105:C116)<5,AVERAGEIF(C105:C116,">0",R105:R116), IF(FORECAST($C102,R$105:R$116,$C$105:$C$116)<0,0, IF(FORECAST($C102,R$105:R$116,$C$105:$C$116)>100,100, FORECAST($C102,R$105:R$116,$C$105:$C$116)))) -> 3.702124939 | S102: =IF(MAX(C105:C116)-MIN(C105:C116)<5,AVERAGEIF(C105:C116,">0",S105:S116), IF(FORECAST($C102,S$105:S$116,$C$105:$C$116)<0,0, IF(FORECAST($C102,S$105:S$116,$C$105:$C$116)>100,100, FORECAST($C102,S$105:S$116,$C$105:$C$116)))) -> 85.23435267 | W102: =IF(MAX(C105:C116)-MIN(C105:C116)<5,AVERAGEIF(C105:C116,">0",W105:W116), IF(FORECAST($C102,W$105:W$116,$C$105:$C$116)<0,0, IF(FORECAST($C102,W$105:W$116,$C$105:$C$116)>100,100, FORECAST($C102,W$105:W$116,$C$105:$C$116)))) -> 1.446102335 | X102: =IF(MAX(C105:C116)-MIN(C105:C116)<5,AVERAGEIF(C105:C116,">0",X105:X116), IF(FORECAST($C102,X$105:X$116,$C$105:$C$116)<0,0, IF(FORECAST($C102,X$105:X$116,$C$105:$C$116)>100,100, FORECAST($C102,X$105:X$116,$C$105:$C$116)))) -> 96.25794956 | AB102: =IF(MAX(C105:C116)-MIN(C105:C116)<5,AVERAGEIF(C105:C116,">0",AB105:AB116), IF(FORECAST($C102,AB$105:AB$116,$C$105:$C$116)<0,0, IF(FORECAST($C102,AB$105:AB$116,$C$105:$C$116)>100,100, FORECAST($C102,AB$105:AB$116,$C$105:$C$116)))) -> 0.2067685651
B104: Survey | C104: Year | D104: Improved | E104: Not shared | H104: Open defecation | I104: Improved | J104: Not shared | M104: Open defecation | N104: Improved | O104: Not shared | R104: Open defecation | S104: Improved | T104: Not shared | W104: Open defecation | X104: Improved | Y104: Not shared | AB104: Open defecation
B105: WHS03 | C105: 2003 | D105: =IF(ISERROR(INDIRECT(CONCATENATE($B105,"!C122"))),"",INDIRECT(CONCATENATE($B105,"!C122"))) -> 39.73305955 | E105: =IF(ISERROR(INDIRECT(CONCATENATE($B105,"!C129"))),"",INDIRECT(CONCATENATE($B105,"!C129"))) -> 93.59795134 | H105: =IF(ISERROR(INDIRECT(CONCATENATE($B105,"!C127"))),"",INDIRECT(CONCATENATE($B105,"!C127"))) -> 22.6899384 | I105: =IF(ISERROR(INDIRECT(CONCATENATE($B105,"!D122"))),"",INDIRECT(CONCATENATE($B105,"!D122"))) -> 49.53560372 | J105: =IF(ISERROR(INDIRECT(CONCATENATE($B105,"!D129"))),"",INDIRECT(CONCATENATE($B105,"!D129"))) -> 92.49422633 | M105: =IF(ISERROR(INDIRECT(CONCATENATE($B105,"!D127"))),"",INDIRECT(CONCATENATE($B105,"!D127"))) -> 14.24148607 | N105: =IF(ISERROR(INDIRECT(CONCATENATE($B105,"!E122"))),"",INDIRECT(CONCATENATE($B105,"!E122"))) -> 67.0310702 | O105: =IF(ISERROR(INDIRECT(CONCATENATE($B105,"!E129"))),"",INDIRECT(CONCATENATE($B105,"!E129"))) -> 90.90909091 | R105: =IF(ISERROR(INDIRECT(CONCATENATE($B105,"!E127"))),"",INDIRECT(CONCATENATE($B105,"!E127"))) -> 5.293440736 | S105: =IF(ISERROR(INDIRECT(CONCATENATE($B105,"!F122"))),"",INDIRECT(CONCATENATE($B105,"!F122"))) -> 88.10754912 | T105: =IF(ISERROR(INDIRECT(CONCATENATE($B105,"!F129"))),"",INDIRECT(CONCATENATE($B105,"!F129"))) -> 90.23109244 | W105: =IF(ISERROR(INDIRECT(CONCATENATE($B105,"!F127"))),"",INDIRECT(CONCATENATE($B105,"!F127"))) -> 1.344364012 | X105: =IF(ISERROR(INDIRECT(CONCATENATE($B105,"!G122"))),"",INDIRECT(CONCATENATE($B105,"!G122"))) -> 98.22916667 | Y105: =IF(ISERROR(INDIRECT(CONCATENATE($B105,"!G129"))),"",INDIRECT(CONCATENATE($B105,"!G129"))) -> 96.20253165 | AB105: =IF(ISERROR(INDIRECT(CONCATENATE($B105,"!G2127"))),"",INDIRECT(CONCATENATE($B105,"!G127"))) -> 0.1041666667
B106: ENCOVI11 | C106: 2011 | D106: 44.25833593 | E106: N/A | H106: 25.30383297 | I106: 52.29025473 | J106: N/A | M106: 15.2605749 | N106: 67.85575955 | O106: N/A | R106: 6.143001007 | S106: 81.15839799 | T106: N/A | W106: 2.962614625 | X106: 96.123578 | Y106: N/A | AB106: 0.3740065451
B107: DHS15 | C107: 2015 | D107: 46.88428623 | E107: N/A | H107: 18.30303858 | I107: 59.18567037 | J107: N/A | M107: 9.14695738 | N107: 73.52313674 | O107: N/A | R107: 2.97672716 | S107: 88.51961013 | T107: N/A | W107: 0.5865063074 | X107: 97.06994057 | Y107: N/A | AB107: 0.07770561399
B118: =CONCATENATE("National use of sanitation facilities, ",C99,"–",C100) -> National use of sanitation facilities, 2000–2020 | S118: Data points used for regression
A197: URBAN | D197: Poorest | I197: Poor | N197: Middle | S197: Rich | X197: Richest
D198: Improved | E198: Basic | F198: Limited | G198: Unimproved | H198: Open defecation | I198: Improved | J198: Basic | K198: Limited | L198: Unimproved | M198: Open defecation | N198: Improved | O198: Basic | P198: Limited | Q198: Unimproved | R198: Open defecation | S198: Improved | T198: Basic | U198: Limited | V198: Unimproved | W198: Open defecation | X198: Improved | Y198: Basic | Z198: Limited | AA198: Unimproved | AB198: Open defecation
A199: Forecast period: | C199: 2000 | D199: =IF((D201+H201)>100,D201*100/(D201+H201),D201) -> 71.34933078 | E199: =D199*AVERAGEIF(E205:E216,">0")/100 -> 64.27178322 | F199: =D199*(100-AVERAGEIF(E205:E216,">0"))/100 -> 7.077547557 | G199: =100-(E199+F199+H199) -> 23.15141102 | H199: =IF((D201+H201)>100,H201*100/(D201+H201),H201) -> 5.499258204 | I199: =IF((I201+M201)>100,I201*100/(I201+M201),I201) -> 91.72775772 | J199: =I199*AVERAGEIF(J205:J216,">0")/100 -> 81.14378567 | K199: =I199*(100-AVERAGEIF(J205:J216,">0"))/100 -> 10.58397204 | L199: =100-(J199+K199+M199) -> 7.640217385 | M199: =IF((I201+M201)>100,M201*100/(I201+M201),M201) -> 0.6320248962 | N199: =IF((N201+R201)>100,N201*100/(N201+R201),N201) -> 97.94656967 | O199: =N199*AVERAGEIF(O205:O216,">0")/100 -> 89.24573226 | P199: =N199*(100-AVERAGEIF(O205:O216,">0"))/100 -> 8.700837407 | Q199: =100-(O199+P199+R199) -> 1.890332859 | R199: =IF((N201+R201)>100,R201*100/(N201+R201),R201) -> 0.163097471 | S199: =IF((S201+W201)>100,S201*100/(S201+W201),S201) -> 99.24016019 | T199: =S199*AVERAGEIF(T205:T216,">0")/100 -> 95.11589379 | U199: =S199*(100-AVERAGEIF(T205:T216,">0"))/100 -> 4.124266397 | V199: =100-(T199+U199+W199) -> 0.6700828456 | W199: =IF((S201+W201)>100,W201*100/(S201+W201),W201) -> 0.08975696497 | X199: =IF((X201+AB201)>100,X201*100/(X201+AB201),X201) -> 99.98485893 | Y199: =X199*AVERAGEIF(Y205:Y216,">0")/100 -> 97.22145831 | Z199: =X199*(100-AVERAGEIF(Y205:Y216,">0"))/100 -> 2.763400624 | AA199: =100-(Y199+Z199+AB199) -> 0.004279056922 | AB199: =IF((X201+AB201)>100,AB201*100/(X201+AB201),AB201) -> 0.01086200904
C200: 2020 | D200: =IF((D202+H202)>100,D202*100/(D202+H202),D202) -> 68.85760996 | E200: =D200*AVERAGEIF(E205:E216,">0")/100 -> 62.02723042 | F200: =D200*(100-AVERAGEIF(E205:E216,">0"))/100 -> 6.83037954 | G200: =100-(E200+F200+H200) -> 23.29139068 | H200: =IF((D202+H202)>100,H202*100/(D202+H202),H202) -> 7.850999363 | I200: =IF((I202+M202)>100,I202*100/(I202+M202),I202) -> 84.91775525 | J200: =I200*AVERAGEIF(J205:J216,">0")/100 -> 75.11955272 | K200: =I200*(100-AVERAGEIF(J205:J216,">0"))/100 -> 9.798202529 | L200: =100-(J200+K200+M200) -> 13.35739016 | M200: =IF((I202+M202)>100,M202*100/(I202+M202),M202) -> 1.724854587 | N200: =IF((N202+R202)>100,N202*100/(N202+R202),N202) -> 92.86964898 | O200: =N200*AVERAGEIF(O205:O216,">0")/100 -> 84.61980707 | P200: =N200*(100-AVERAGEIF(O205:O216,">0"))/100 -> 8.249841915 | Q200: =100-(O200+P200+R200) -> 6.611782111 | R200: =IF((N202+R202)>100,R202*100/(N202+R202),R202) -> 0.5185689052 | S200: =IF((S202+W202)>100,S202*100/(S202+W202),S202) -> 96.46695913 | T200: =S200*AVERAGEIF(T205:T216,">0")/100 -> 92.45794264 | U200: =S200*(100-AVERAGEIF(T205:T216,">0"))/100 -> 4.009016483 | V200: =100-(T200+U200+W200) -> 3.23355288 | W200: =IF((S202+W202)>100,W202*100/(S202+W202),W202) -> 0.2994879919 | X200: =IF((X202+AB202)>100,X202*100/(X202+AB202),X202) -> 98.64936058 | Y200: =X200*AVERAGEIF(Y205:Y216,">0")/100 -> 95.92287071 | Z200: =X200*(100-AVERAGEIF(Y205:Y216,">0"))/100 -> 2.726489865 | AA200: =100-(Y200+Z200+AB200) -> 1.322398197 | AB200: =IF((X202+AB202)>100,AB202*100/(X202+AB202),AB202) -> 0.0282412235
A201: Regression period: | C201: =MinRegYear(C199,C205:C216) -> 2001 | D201: =IF(MAX(C205:C216)-MIN(C205:C216)<5,AVERAGEIF(C205:C216,">0",D205:D216), IF(FORECAST($C201,D$205:D$216,$C$205:$C$216)<0,0, IF(FORECAST($C201,D$205:D$216,$C$205:$C$216)>100,100, FORECAST($C201,D$205:D$216,$C$205:$C$216)))) -> 71.34933078 | H201: =IF(MAX(C205:C216)-MIN(C205:C216)<5,AVERAGEIF(C205:C216,">0",H205:H216), IF(FORECAST($C201,H$205:H$216,$C$205:$C$216)<0,0, IF(FORECAST($C201,H$205:H$216,$C$205:$C$216)>100,100, FORECAST($C201,H$205:H$216,$C$205:$C$216)))) -> 5.499258204 | I201: =IF(MAX(C205:C216)-MIN(C205:C216)<5,AVERAGEIF(C205:C216,">0",I205:I216), IF(FORECAST($C201,I$205:I$216,$C$205:$C$216)<0,0, IF(FORECAST($C201,I$205:I$216,$C$205:$C$216)>100,100, FORECAST($C201,I$205:I$216,$C$205:$C$216)))) -> 91.72775772 | M201: =IF(MAX(C205:C216)-MIN(C205:C216)<5,AVERAGEIF(C205:C216,">0",M205:M216), IF(FORECAST($C201,M$205:M$216,$C$205:$C$216)<0,0, IF(FORECAST($C201,M$205:M$216,$C$205:$C$216)>100,100, FORECAST($C201,M$205:M$216,$C$205:$C$216)))) -> 0.6320248962 | N201: =IF(MAX(C205:C216)-MIN(C205:C216)<5,AVERAGEIF(C205:C216,">0",N205:N216), IF(FORECAST($C201,N$205:N$216,$C$205:$C$216)<0,0, IF(FORECAST($C201,N$205:N$216,$C$205:$C$216)>100,100, FORECAST($C201,N$205:N$216,$C$205:$C$216)))) -> 97.94656967 | R201: =IF(MAX(C205:C216)-MIN(C205:C216)<5,AVERAGEIF(C205:C216,">0",R205:R216), IF(FORECAST($C201,R$205:R$216,$C$205:$C$216)<0,0, IF(FORECAST($C201,R$205:R$216,$C$205:$C$216)>100,100, FORECAST($C201,R$205:R$216,$C$205:$C$216)))) -> 0.163097471 | S201: =IF(MAX(C205:C216)-MIN(C205:C216)<5,AVERAGEIF(C205:C216,">0",S205:S216), IF(FORECAST($C201,S$205:S$216,$C$205:$C$216)<0,0, IF(FORECAST($C201,S$205:S$216,$C$205:$C$216)>100,100, FORECAST($C201,S$205:S$216,$C$205:$C$216)))) -> 99.24016019 | W201: =IF(MAX(C205:C216)-MIN(C205:C216)<5,AVERAGEIF(C205:C216,">0",W205:W216), IF(FORECAST($C201,W$205:W$216,$C$205:$C$216)<0,0, IF(FORECAST($C201,W$205:W$216,$C$205:$C$216)>100,100, FORECAST($C201,W$205:W$216,$C$205:$C$216)))) -> 0.08975696497 | X201: =IF(MAX(C205:C216)-MIN(C205:C216)<5,AVERAGEIF(C205:C216,">0",X205:X216), IF(FORECAST($C201,X$205:X$216,$C$205:$C$216)<0,0, IF(FORECAST($C201,X$205:X$216,$C$205:$C$216)>100,100, FORECAST($C201,X$205:X$216,$C$205:$C$216)))) -> 99.98485893 | AB201: =IF(MAX(C205:C216)-MIN(C205:C216)<5,AVERAGEIF(C205:C216,">0",AB205:AB216), IF(FORECAST($C201,AB$205:AB$216,$C$205:$C$216)<0,0, IF(FORECAST($C201,AB$205:AB$216,$C$205:$C$216)>100,100, FORECAST($C201,AB$205:AB$216,$C$205:$C$216)))) -> 0.01086200904
C202: =MaxRegYear(C200,C205:C216) -> 2017 | D202: =IF(MAX(C205:C216)-MIN(C205:C216)<5,AVERAGEIF(C205:C216,">0",D205:D216), IF(FORECAST($C202,D$205:D$216,$C$205:$C$216)<0,0, IF(FORECAST($C202,D$205:D$216,$C$205:$C$216)>100,100, FORECAST($C202,D$205:D$216,$C$205:$C$216)))) -> 68.85760996 | H202: =IF(MAX(C205:C216)-MIN(C205:C216)<5,AVERAGEIF(C205:C216,">0",H205:H216), IF(FORECAST($C202,H$205:H$216,$C$205:$C$216)<0,0, IF(FORECAST($C202,H$205:H$216,$C$205:$C$216)>100,100, FORECAST($C202,H$205:H$216,$C$205:$C$216)))) -> 7.850999363 | I202: =IF(MAX(C205:C216)-MIN(C205:C216)<5,AVERAGEIF(C205:C216,">0",I205:I216), IF(FORECAST($C202,I$205:I$216,$C$205:$C$216)<0,0, IF(FORECAST($C202,I$205:I$216,$C$205:$C$216)>100,100, FORECAST($C202,I$205:I$216,$C$205:$C$216)))) -> 84.91775525 | M202: =IF(MAX(C205:C216)-MIN(C205:C216)<5,AVERAGEIF(C205:C216,">0",M205:M216), IF(FORECAST($C202,M$205:M$216,$C$205:$C$216)<0,0, IF(FORECAST($C202,M$205:M$216,$C$205:$C$216)>100,100, FORECAST($C202,M$205:M$216,$C$205:$C$216)))) -> 1.724854587 | N202: =IF(MAX(C205:C216)-MIN(C205:C216)<5,AVERAGEIF(C205:C216,">0",N205:N216), IF(FORECAST($C202,N$205:N$216,$C$205:$C$216)<0,0, IF(FORECAST($C202,N$205:N$216,$C$205:$C$216)>100,100, FORECAST($C202,N$205:N$216,$C$205:$C$216)))) -> 92.86964898 | R202: =IF(MAX(C205:C216)-MIN(C205:C216)<5,AVERAGEIF(C205:C216,">0",R205:R216), IF(FORECAST($C202,R$205:R$216,$C$205:$C$216)<0,0, IF(FORECAST($C202,R$205:R$216,$C$205:$C$216)>100,100, FORECAST($C202,R$205:R$216,$C$205:$C$216)))) -> 0.5185689052 | S202: =IF(MAX(C205:C216)-MIN(C205:C216)<5,AVERAGEIF(C205:C216,">0",S205:S216), IF(FORECAST($C202,S$205:S$216,$C$205:$C$216)<0,0, IF(FORECAST($C202,S$205:S$216,$C$205:$C$216)>100,100, FORECAST($C202,S$205:S$216,$C$205:$C$216)))) -> 96.46695913 | W202: =IF(MAX(C205:C216)-MIN(C205:C216)<5,AVERAGEIF(C205:C216,">0",W205:W216), IF(FORECAST($C202,W$205:W$216,$C$205:$C$216)<0,0, IF(FORECAST($C202,W$205:W$216,$C$205:$C$216)>100,100, FORECAST($C202,W$205:W$216,$C$205:$C$216)))) -> 0.2994879919 | X202: =IF(MAX(C205:C216)-MIN(C205:C216)<5,AVERAGEIF(C205:C216,">0",X205:X216), IF(FORECAST($C202,X$205:X$216,$C$205:$C$216)<0,0, IF(FORECAST($C202,X$205:X$216,$C$205:$C$216)>100,100, FORECAST($C202,X$205:X$216,$C$205:$C$216)))) -> 98.64936058 | AB202: =IF(MAX(C205:C216)-MIN(C205:C216)<5,AVERAGEIF(C205:C216,">0",AB205:AB216), IF(FORECAST($C202,AB$205:AB$216,$C$205:$C$216)<0,0, IF(FORECAST($C202,AB$205:AB$216,$C$205:$C$216)>100,100, FORECAST($C202,AB$205:AB$216,$C$205:$C$216)))) -> 0.0282412235
B204: Survey | C204: Year | D204: Improved | E204: Not shared | H204: Open defecation | I204: Improved | J204: Not shared | M204: Open defecation | N204: Improved | O204: Not shared | R204: Open defecation | S204: Improved | T204: Not shared | W204: Open defecation | X204: Improved | Y204: Not shared | AB204: Open defecation
B205: WHS03 | C205: 2003 | D205: =IF(ISERROR(INDIRECT(CONCATENATE($B205,"!H122"))),"",INDIRECT(CONCATENATE($B205,"!H122"))) -> 71.0723192 | E205: =IF(ISERROR(INDIRECT(CONCATENATE($B205,"!H129"))),"",INDIRECT(CONCATENATE($B205,"!H129"))) -> 90.08042895 | H205: =IF(ISERROR(INDIRECT(CONCATENATE($B205,"!H127"))),"",INDIRECT(CONCATENATE($B205,"!H127"))) -> 4.738154613 | I205: =IF(ISERROR(INDIRECT(CONCATENATE($B205,"!I122"))),"",INDIRECT(CONCATENATE($B205,"!I122"))) -> 92.08542714 | J205: =IF(ISERROR(INDIRECT(CONCATENATE($B205,"!I129"))),"",INDIRECT(CONCATENATE($B205,"!I129"))) -> 88.46153846 | M205: =IF(ISERROR(INDIRECT(CONCATENATE($B205,"!I127"))),"",INDIRECT(CONCATENATE($B205,"!I127"))) -> 0.5025125628 | N205: =IF(ISERROR(INDIRECT(CONCATENATE($B205,"!J122"))),"",INDIRECT(CONCATENATE($B205,"!J122"))) -> 98.375 | O205: =IF(ISERROR(INDIRECT(CONCATENATE($B205,"!J129"))),"",INDIRECT(CONCATENATE($B205,"!J129"))) -> 91.11675127 | R205: =IF(ISERROR(INDIRECT(CONCATENATE($B205,"!J127"))),"",INDIRECT(CONCATENATE($B205,"!J127"))) -> 0 | S205: =IF(ISERROR(INDIRECT(CONCATENATE($B205,"!K122"))),"",INDIRECT(CONCATENATE($B205,"!K122"))) -> 99.34895833 | T205: =IF(ISERROR(INDIRECT(CONCATENATE($B205,"!K129"))),"",INDIRECT(CONCATENATE($B205,"!K129"))) -> 95.84415584 | W205: =IF(ISERROR(INDIRECT(CONCATENATE($B205,"!K127"))),"",INDIRECT(CONCATENATE($B205,"!K127"))) -> 0 | X205: =IF(ISERROR(INDIRECT(CONCATENATE($B205,"!L122"))),"",INDIRECT(CONCATENATE($B205,"!L122"))) -> 99.75429975 | Y205: =IF(ISERROR(INDIRECT(CONCATENATE($B205,"!L129"))),"",INDIRECT(CONCATENATE($B205,"!L129"))) -> 97.2361809 | AB205: =IF(ISERROR(INDIRECT(CONCATENATE($B205,"!L2127"))),"",INDIRECT(CONCATENATE($B205,"!L127"))) -> 0
B206: ENCOVI11 | C206: 2011 | D206: 69.68864469 | E206: N/A | H206: 10.13431013 | I206: 83.844747 | J206: N/A | M206: 2.113391587 | N206: 91.58435799 | O206: N/A | R206: 1.007861318 | S206: 96.1405647 | T206: N/A | W206: 0.5687588869 | X206: 99.34103812 | Y206: N/A | AB206: 0.06082725061
B207: DHS15 | C207: 2015 | D207: 69.23798211 | E207: N/A | H207: 5.446889248 | I207: 88.18684501 | J207: N/A | M207: 1.056018786 | N207: 95.6303549 | O207: N/A | R207: 0.05907217539 | S207: 97.72450581 | T207: N/A | W207: 0.04132492688 | X207: 98.6890541 | Y207: N/A | AB207: 0
B218: =CONCATENATE("Urban use of sanitation facilities, ",C199,"–",C200) -> Urban use of sanitation facilities, 2000–2020 | S218: Data points used for regression
A297: RURAL | D297: Poorest | I297: Poor | N297: Middle | S297: Rich | X297: Richest
D298: Improved | E298: Basic | F298: Limited | G298: Unimproved | H298: Open defecation | I298: Improved | J298: Basic | K298: Limited | L298: Unimproved | M298: Open defecation | N298: Improved | O298: Basic | P298: Limited | Q298: Unimproved | R298: Open defecation | S298: Improved | T298: Basic | U298: Limited | V298: Unimproved | W298: Open defecation | X298: Improved | Y298: Basic | Z298: Limited | AA298: Unimproved | AB298: Open defecation
A299: Forecast period: | C299: 2000 | D299: =IF((D301+H301)>100,D301*100/(D301+H301),D301) -> 34.20448589 | E299: =D299*AVERAGEIF(E305:E316,">0")/100 -> 32.64600812 | F299: =D299*(100-AVERAGEIF(E305:E316,">0"))/100 -> 1.558477775 | G299: =100-(E299+F299+H299) -> 35.63297593 | H299: =IF((D301+H301)>100,H301*100/(D301+H301),H301) -> 30.16253817 | I299: =IF((I301+M301)>100,I301*100/(I301+M301),I301) -> 39.26361757 | J299: =I299*AVERAGEIF(J305:J316,">0")/100 -> 36.83580326 | K299: =I299*(100-AVERAGEIF(J305:J316,">0"))/100 -> 2.427814306 | L299: =100-(J299+K299+M299) -> 40.03457183 | M299: =IF((I301+M301)>100,M301*100/(I301+M301),M301) -> 20.70181061 | N299: =IF((N301+R301)>100,N301*100/(N301+R301),N301) -> 43.66126887 | O299: =N299*AVERAGEIF(O305:O316,">0")/100 -> 40.37111215 | P299: =N299*(100-AVERAGEIF(O305:O316,">0"))/100 -> 3.290156717 | Q299: =100-(O299+P299+R299) -> 40.11651436 | R299: =IF((N301+R301)>100,R301*100/(N301+R301),R301) -> 16.22221677 | S299: =IF((S301+W301)>100,S301*100/(S301+W301),S301) -> 54.79983397 | T299: =S299*AVERAGEIF(T305:T316,">0")/100 -> 49.6218969 | U299: =S299*(100-AVERAGEIF(T305:T316,">0"))/100 -> 5.177937068 | V299: =100-(T299+U299+W299) -> 37.01564413 | W299: =IF((S301+W301)>100,W301*100/(S301+W301),W301) -> 8.184521902 | X299: =IF((X301+AB301)>100,X301*100/(X301+AB301),X301) -> 75.91101125 | Y299: =X299*AVERAGEIF(Y305:Y316,">0")/100 -> 70.10438539 | Z299: =X299*(100-AVERAGEIF(Y305:Y316,">0"))/100 -> 5.80662586 | AA299: =100-(Y299+Z299+AB299) -> 20.41044916 | AB299: =IF((X301+AB301)>100,AB301*100/(X301+AB301),AB301) -> 3.678539586
C300: 2020 | D300: =IF((D302+H302)>100,D302*100/(D302+H302),D302) -> 44.33964614 | E300: =D300*AVERAGEIF(E305:E316,">0")/100 -> 42.31937449 | F300: =D300*(100-AVERAGEIF(E305:E316,">0"))/100 -> 2.020271647 | G300: =100-(E300+F300+H300) -> 32.93210138 | H300: =IF((D302+H302)>100,H302*100/(D302+H302),H302) -> 22.72825248 | I300: =IF((I302+M302)>100,I302*100/(I302+M302),I302) -> 49.20954958 | J300: =I300*AVERAGEIF(J305:J316,">0")/100 -> 46.16674161 | K300: =I300*(100-AVERAGEIF(J305:J316,">0"))/100 -> 3.04280797 | L300: =100-(J300+K300+M300) -> 34.90243408 | M300: =IF((I302+M302)>100,M302*100/(I302+M302),M302) -> 15.88801634 | N300: =IF((N302+R302)>100,N302*100/(N302+R302),N302) -> 59.30995487 | O300: =N300*AVERAGEIF(O305:O316,">0")/100 -> 54.84056927 | P300: =N300*(100-AVERAGEIF(O305:O316,">0"))/100 -> 4.469385601 | Q300: =100-(O300+P300+R300) -> 30.85075671 | R300: =IF((N302+R302)>100,R302*100/(N302+R302),R302) -> 9.839288418 | S300: =IF((S302+W302)>100,S302*100/(S302+W302),S302) -> 70.4279817 | T300: =S300*AVERAGEIF(T305:T316,">0")/100 -> 63.77336925 | U300: =S300*(100-AVERAGEIF(T305:T316,">0"))/100 -> 6.654612444 | V300: =100-(T300+U300+W300) -> 26.37930007 | W300: =IF((S302+W302)>100,W302*100/(S302+W302),W302) -> 3.192718236 | X300: =IF((X302+AB302)>100,X302*100/(X302+AB302),X302) -> 83.6018725 | Y300: =X300*AVERAGEIF(Y305:Y316,">0")/100 -> 77.20695315 | Z300: =X300*(100-AVERAGEIF(Y305:Y316,">0"))/100 -> 6.394919352 | AA300: =100-(Y300+Z300+AB300) -> 15.3434812 | AB300: =IF((X302+AB302)>100,AB302*100/(X302+AB302),AB302) -> 1.054646304
A301: Regression period: | C301: =MinRegYear(C299,C305:C316) -> 2001 | D301: =IF(MAX(C305:C316)-MIN(C305:C316)<5,AVERAGEIF(C305:C316,">0",D305:D316), IF(FORECAST($C301,D$305:D$316,$C$305:$C$316)<0,0, IF(FORECAST($C301,D$305:D$316,$C$305:$C$316)>100,100, FORECAST($C301,D$305:D$316,$C$305:$C$316)))) -> 34.20448589 | H301: =IF(MAX(C305:C316)-MIN(C305:C316)<5,AVERAGEIF(C305:C316,">0",H305:H316), IF(FORECAST($C301,H$305:H$316,$C$305:$C$316)<0,0, IF(FORECAST($C301,H$305:H$316,$C$305:$C$316)>100,100, FORECAST($C301,H$305:H$316,$C$305:$C$316)))) -> 30.16253817 | I301: =IF(MAX(C305:C316)-MIN(C305:C316)<5,AVERAGEIF(C305:C316,">0",I305:I316), IF(FORECAST($C301,I$305:I$316,$C$305:$C$316)<0,0, IF(FORECAST($C301,I$305:I$316,$C$305:$C$316)>100,100, FORECAST($C301,I$305:I$316,$C$305:$C$316)))) -> 39.26361757 | M301: =IF(MAX(C305:C316)-MIN(C305:C316)<5,AVERAGEIF(C305:C316,">0",M305:M316), IF(FORECAST($C301,M$305:M$316,$C$305:$C$316)<0,0, IF(FORECAST($C301,M$305:M$316,$C$305:$C$316)>100,100, FORECAST($C301,M$305:M$316,$C$305:$C$316)))) -> 20.70181061 | N301: =IF(MAX(C305:C316)-MIN(C305:C316)<5,AVERAGEIF(C305:C316,">0",N305:N316), IF(FORECAST($C301,N$305:N$316,$C$305:$C$316)<0,0, IF(FORECAST($C301,N$305:N$316,$C$305:$C$316)>100,100, FORECAST($C301,N$305:N$316,$C$305:$C$316)))) -> 43.66126887 | R301: =IF(MAX(C305:C316)-MIN(C305:C316)<5,AVERAGEIF(C305:C316,">0",R305:R316), IF(FORECAST($C301,R$305:R$316,$C$305:$C$316)<0,0, IF(FORECAST($C301,R$305:R$316,$C$305:$C$316)>100,100, FORECAST($C301,R$305:R$316,$C$305:$C$316)))) -> 16.22221677 | S301: =IF(MAX(C305:C316)-MIN(C305:C316)<5,AVERAGEIF(C305:C316,">0",S305:S316), IF(FORECAST($C301,S$305:S$316,$C$305:$C$316)<0,0, IF(FORECAST($C301,S$305:S$316,$C$305:$C$316)>100,100, FORECAST($C301,S$305:S$316,$C$305:$C$316)))) -> 54.79983397 | W301: =IF(MAX(C305:C316)-MIN(C305:C316)<5,AVERAGEIF(C305:C316,">0",W305:W316), IF(FORECAST($C301,W$305:W$316,$C$305:$C$316)<0,0, IF(FORECAST($C301,W$305:W$316,$C$305:$C$316)>100,100, FORECAST($C301,W$305:W$316,$C$305:$C$316)))) -> 8.184521902 | X301: =IF(MAX(C305:C316)-MIN(C305:C316)<5,AVERAGEIF(C305:C316,">0",X305:X316), IF(FORECAST($C301,X$305:X$316,$C$305:$C$316)<0,0, IF(FORECAST($C301,X$305:X$316,$C$305:$C$316)>100,100, FORECAST($C301,X$305:X$316,$C$305:$C$316)))) -> 75.91101125 | AB301: =IF(MAX(C305:C316)-MIN(C305:C316)<5,AVERAGEIF(C305:C316,">0",AB305:AB316), IF(FORECAST($C301,AB$305:AB$316,$C$305:$C$316)<0,0, IF(FORECAST($C301,AB$305:AB$316,$C$305:$C$316)>100,100, FORECAST($C301,AB$305:AB$316,$C$305:$C$316)))) -> 3.678539586
C302: =MaxRegYear(C300,C305:C316) -> 2017 | D302: =IF(MAX(C305:C316)-MIN(C305:C316)<5,AVERAGEIF(C305:C316,">0",D305:D316), IF(FORECAST($C302,D$305:D$316,$C$305:$C$316)<0,0, IF(FORECAST($C302,D$305:D$316,$C$305:$C$316)>100,100, FORECAST($C302,D$305:D$316,$C$305:$C$316)))) -> 44.33964614 | H302: =IF(MAX(C305:C316)-MIN(C305:C316)<5,AVERAGEIF(C305:C316,">0",H305:H316), IF(FORECAST($C302,H$305:H$316,$C$305:$C$316)<0,0, IF(FORECAST($C302,H$305:H$316,$C$305:$C$316)>100,100, FORECAST($C302,H$305:H$316,$C$305:$C$316)))) -> 22.72825248 | I302: =IF(MAX(C305:C316)-MIN(C305:C316)<5,AVERAGEIF(C305:C316,">0",I305:I316), IF(FORECAST($C302,I$305:I$316,$C$305:$C$316)<0,0, IF(FORECAST($C302,I$305:I$316,$C$305:$C$316)>100,100, FORECAST($C302,I$305:I$316,$C$305:$C$316)))) -> 49.20954958 | M302: =IF(MAX(C305:C316)-MIN(C305:C316)<5,AVERAGEIF(C305:C316,">0",M305:M316), IF(FORECAST($C302,M$305:M$316,$C$305:$C$316)<0,0, IF(FORECAST($C302,M$305:M$316,$C$305:$C$316)>100,100, FORECAST($C302,M$305:M$316,$C$305:$C$316)))) -> 15.88801634 | N302: =IF(MAX(C305:C316)-MIN(C305:C316)<5,AVERAGEIF(C305:C316,">0",N305:N316), IF(FORECAST($C302,N$305:N$316,$C$305:$C$316)<0,0, IF(FORECAST($C302,N$305:N$316,$C$305:$C$316)>100,100, FORECAST($C302,N$305:N$316,$C$305:$C$316)))) -> 59.30995487 | R302: =IF(MAX(C305:C316)-MIN(C305:C316)<5,AVERAGEIF(C305:C316,">0",R305:R316), IF(FORECAST($C302,R$305:R$316,$C$305:$C$316)<0,0, IF(FORECAST($C302,R$305:R$316,$C$305:$C$316)>100,100, FORECAST($C302,R$305:R$316,$C$305:$C$316)))) -> 9.839288418 | S302: =IF(MAX(C305:C316)-MIN(C305:C316)<5,AVERAGEIF(C305:C316,">0",S305:S316), IF(FORECAST($C302,S$305:S$316,$C$305:$C$316)<0,0, IF(FORECAST($C302,S$305:S$316,$C$305:$C$316)>100,100, FORECAST($C302,S$305:S$316,$C$305:$C$316)))) -> 70.4279817 | W302: =IF(MAX(C305:C316)-MIN(C305:C316)<5,AVERAGEIF(C305:C316,">0",W305:W316), IF(FORECAST($C302,W$305:W$316,$C$305:$C$316)<0,0, IF(FORECAST($C302,W$305:W$316,$C$305:$C$316)>100,100, FORECAST($C302,W$305:W$316,$C$305:$C$316)))) -> 3.192718236 | X302: =IF(MAX(C305:C316)-MIN(C305:C316)<5,AVERAGEIF(C305:C316,">0",X305:X316), IF(FORECAST($C302,X$305:X$316,$C$305:$C$316)<0,0, IF(FORECAST($C302,X$305:X$316,$C$305:$C$316)>100,100, FORECAST($C302,X$305:X$316,$C$305:$C$316)))) -> 83.6018725 | AB302: =IF(MAX(C305:C316)-MIN(C305:C316)<5,AVERAGEIF(C305:C316,">0",AB305:AB316), IF(FORECAST($C302,AB$305:AB$316,$C$305:$C$316)<0,0, IF(FORECAST($C302,AB$305:AB$316,$C$305:$C$316)>100,100, FORECAST($C302,AB$305:AB$316,$C$305:$C$316)))) -> 1.054646304
B304: Survey | C304: Year | D304: Improved | E304: Not shared | H304: Open defecation | I304: Improved | J304: Not shared | M304: Open defecation | N304: Improved | O304: Not shared | R304: Open defecation | S304: Improved | T304: Not shared | W304: Open defecation | X304: Improved | Y304: Not shared | AB304: Open defecation
B305: WHS03 | C305: 2003 | D305: =IF(ISERROR(INDIRECT(CONCATENATE($B305,"!M122"))),"",INDIRECT(CONCATENATE($B305,"!M122"))) -> 35.71428571 | E305: =IF(ISERROR(INDIRECT(CONCATENATE($B305,"!M129"))),"",INDIRECT(CONCATENATE($B305,"!M129"))) -> 95.44364508 | H305: =IF(ISERROR(INDIRECT(CONCATENATE($B305,"!M127"))),"",INDIRECT(CONCATENATE($B305,"!M127"))) -> 28.57142857 | I305: =IF(ISERROR(INDIRECT(CONCATENATE($B305,"!N122"))),"",INDIRECT(CONCATENATE($B305,"!N122"))) -> 41.47005445 | J305: =IF(ISERROR(INDIRECT(CONCATENATE($B305,"!N129"))),"",INDIRECT(CONCATENATE($B305,"!N129"))) -> 93.81663113 | M305: =IF(ISERROR(INDIRECT(CONCATENATE($B305,"!N127"))),"",INDIRECT(CONCATENATE($B305,"!N127"))) -> 18.51179673 | N305: =IF(ISERROR(INDIRECT(CONCATENATE($B305,"!O122"))),"",INDIRECT(CONCATENATE($B305,"!O122"))) -> 45.89416058 | O305: =IF(ISERROR(INDIRECT(CONCATENATE($B305,"!O129"))),"",INDIRECT(CONCATENATE($B305,"!O129"))) -> 92.46435845 | R305: =IF(ISERROR(INDIRECT(CONCATENATE($B305,"!O127"))),"",INDIRECT(CONCATENATE($B305,"!O127"))) -> 14.7810219 | S305: =IF(ISERROR(INDIRECT(CONCATENATE($B305,"!P122"))),"",INDIRECT(CONCATENATE($B305,"!P122"))) -> 56.95970696 | T305: =IF(ISERROR(INDIRECT(CONCATENATE($B305,"!P129"))),"",INDIRECT(CONCATENATE($B305,"!P129"))) -> 90.5511811 | W305: =IF(ISERROR(INDIRECT(CONCATENATE($B305,"!P127"))),"",INDIRECT(CONCATENATE($B305,"!P127"))) -> 7.326007326 | X305: =IF(ISERROR(INDIRECT(CONCATENATE($B305,"!Q122"))),"",INDIRECT(CONCATENATE($B305,"!Q122"))) -> 76.86025408 | Y305: =IF(ISERROR(INDIRECT(CONCATENATE($B305,"!Q129"))),"",INDIRECT(CONCATENATE($B305,"!Q129"))) -> 92.35074627 | AB305: =IF(ISERROR(INDIRECT(CONCATENATE($B305,"!Q2127"))),"",INDIRECT(CONCATENATE($B305,"!Q127"))) -> 3.085299456
B306: ENCOVI11 | C306: 2011 | D306: 39.81024668 | E306: N/A | H306: 27.50158128 | I306: 42.59023894 | J306: N/A | M306: 22.45805796 | N306: 52.61127972 | O306: N/A | R306: 14.16287304 | S306: 63.94836272 | T306: N/A | W306: 5.768261965 | X306: 80.754144 | Y306: N/A | AB306: 2.834366696
B307: DHS15 | C307: 2015 | D307: 43.55856069 | E307: N/A | H307: 22.33389041 | I307: 49.89269883 | J307: N/A | M307: 13.31316144 | N307: 57.90748105 | O307: N/A | R307: 9.350496803 | S307: 68.88717228 | T307: N/A | W307: 3.347615458 | X307: 82.6162852 | Y307: N/A | AB307: 0.8521260228
B318: =CONCATENATE("Rural use of sanitation facilities, ",C299,"–",C300) -> Rural use of sanitation facilities, 2000–2020 | S318: Data points used for regression

Sheet Hygiene
B4: Access to hygiene facilities by wealth quintile (%)
B5: =IF(ISERROR(INDIRECT(CONCATENATE($E$32,"!A2"))),"",INDIRECT(CONCATENATE($E$32,"!A2"))) -> Guatemala
B7: =CONCATENATE("National ",IF(ISERROR(INDIRECT(CONCATENATE($E$32,"!A2"))),"",INDIRECT(CONCATENATE($E$32,"!A210")))) -> National Access to hygiene facilities | K7: =CONCATENATE("Urban ",IF(ISERROR(INDIRECT(CONCATENATE($E$32,"!A2"))),"",INDIRECT(CONCATENATE($E$32,"!A210")))) -> Urban Access to hygiene facilities | S7: =CONCATENATE("Rural ",IF(ISERROR(INDIRECT(CONCATENATE($E$32,"!A2"))),"",INDIRECT(CONCATENATE($E$32,"!A210")))) -> Rural Access to hygiene facilities
E32: =INDEX(B88:B100,A88) -> DHS15 | G32: =IF(ISERROR(INDIRECT(CONCATENATE($E$32,"!A2"))),"",INDIRECT(CONCATENATE($E$32,"!A2"))) -> Guatemala | K32: Poorest | N32: Poor | Q32: Middle | T32: Rich | W32: Richest
K33: Basic | L33: Limited | M33: No facility | N33: Basic | O33: Limited | P33: No facility | Q33: Basic | R33: Limited | S33: No facility | T33: Basic | U33: Limited | V33: No facility | W33: Basic | X33: Limited | Y33: No facility
B34: >>> Select Survey : | G34: NATIONAL | J34: =IF(ISERROR(INDIRECT(CONCATENATE(#REF!,"!A2"))),"",INDIRECT(CONCATENATE(#REF!,"!A210"))) ->  | K34: =IF(ISERROR(INDIRECT(CONCATENATE($E$32,"!C222"))),"",INDIRECT(CONCATENATE($E$32,"!C222"))) -> 50.71644467 | L34: =IF(ISERROR(INDIRECT(CONCATENATE($E$32,"!C223"))),"",INDIRECT(CONCATENATE($E$32,"!C223"))) -> 43.21234185 | M34: =IF(ISERROR(INDIRECT(CONCATENATE($E$32,"!C224"))),"",INDIRECT(CONCATENATE($E$32,"!C224"))) -> 6.071213482 | N34: =IF(ISERROR(INDIRECT(CONCATENATE($E$32,"!D222"))),"",INDIRECT(CONCATENATE($E$32,"!D222"))) -> 72.68234771 | O34: =IF(ISERROR(INDIRECT(CONCATENATE($E$32,"!D223"))),"",INDIRECT(CONCATENATE($E$32,"!D223"))) -> 25.61190774 | P34: =IF(ISERROR(INDIRECT(CONCATENATE($E$32,"!D224"))),"",INDIRECT(CONCATENATE($E$32,"!D224"))) -> 1.705744542 | Q34: =IF(ISERROR(INDIRECT(CONCATENATE($E$32,"!E222"))),"",INDIRECT(CONCATENATE($E$32,"!E222"))) -> 83.76913545 | R34: =IF(ISERROR(INDIRECT(CONCATENATE($E$32,"!E223"))),"",INDIRECT(CONCATENATE($E$32,"!E223"))) -> 15.30670055 | S34: =IF(ISERROR(INDIRECT(CONCATENATE($E$32,"!E224"))),"",INDIRECT(CONCATENATE($E$32,"!E224"))) -> 0.9241640047 | T34: =IF(ISERROR(INDIRECT(CONCATENATE($E$32,"!F222"))),"",INDIRECT(CONCATENATE($E$32,"!F222"))) -> 88.4467164 | U34: =IF(ISERROR(INDIRECT(CONCATENATE($E$32,"!F223"))),"",INDIRECT(CONCATENATE($E$32,"!F223"))) -> 9.766551019 | V34: =IF(ISERROR(INDIRECT(CONCATENATE($E$32,"!F224"))),"",INDIRECT(CONCATENATE($E$32,"!F224"))) -> 1.786732586 | W34: =IF(ISERROR(INDIRECT(CONCATENATE($E$32,"!G222"))),"",INDIRECT(CONCATENATE($E$32,"!G222"))) -> 92.31229497 | X34: =IF(ISERROR(INDIRECT(CONCATENATE($E$32,"!G223"))),"",INDIRECT(CONCATENATE($E$32,"!G223"))) -> 5.100806722 | Y34: =IF(ISERROR(INDIRECT(CONCATENATE($E$32,"!G224"))),"",INDIRECT(CONCATENATE($E$32,"!G224"))) -> 2.586898312
G37: URBAN | J37: =IF(ISERROR(INDIRECT(CONCATENATE(#REF!,"!A2"))),"",INDIRECT(CONCATENATE(#REF!,"!A210"))) ->  | K37: =IF(ISERROR(INDIRECT(CONCATENATE($E$32,"!H222"))),"",INDIRECT(CONCATENATE($E$32,"!H222"))) -> 72.64708488 | L37: =IF(ISERROR(INDIRECT(CONCATENATE($E$32,"!H223"))),"",INDIRECT(CONCATENATE($E$32,"!H223"))) -> 25.20140925 | M37: =IF(ISERROR(INDIRECT(CONCATENATE($E$32,"!H224"))),"",INDIRECT(CONCATENATE($E$32,"!H224"))) -> 2.151505864 | N37: =IF(ISERROR(INDIRECT(CONCATENATE($E$32,"!I222"))),"",INDIRECT(CONCATENATE($E$32,"!I222"))) -> 84.95262916 | O37: =IF(ISERROR(INDIRECT(CONCATENATE($E$32,"!I223"))),"",INDIRECT(CONCATENATE($E$32,"!I223"))) -> 13.74888626 | P37: =IF(ISERROR(INDIRECT(CONCATENATE($E$32,"!I224"))),"",INDIRECT(CONCATENATE($E$32,"!I224"))) -> 1.298484579 | Q37: =IF(ISERROR(INDIRECT(CONCATENATE($E$32,"!J222"))),"",INDIRECT(CONCATENATE($E$32,"!J222"))) -> 86.38219502 | R37: =IF(ISERROR(INDIRECT(CONCATENATE($E$32,"!J223"))),"",INDIRECT(CONCATENATE($E$32,"!J223"))) -> 10.76858847 | S37: =IF(ISERROR(INDIRECT(CONCATENATE($E$32,"!J224"))),"",INDIRECT(CONCATENATE($E$32,"!J224"))) -> 2.849216509 | T37: =IF(ISERROR(INDIRECT(CONCATENATE($E$32,"!K222"))),"",INDIRECT(CONCATENATE($E$32,"!K222"))) -> 90.6113155 | U37: =IF(ISERROR(INDIRECT(CONCATENATE($E$32,"!K223"))),"",INDIRECT(CONCATENATE($E$32,"!K223"))) -> 6.827262353 | V37: =IF(ISERROR(INDIRECT(CONCATENATE($E$32,"!K224"))),"",INDIRECT(CONCATENATE($E$32,"!K224"))) -> 2.561422144 | W37: =IF(ISERROR(INDIRECT(CONCATENATE($E$32,"!L222"))),"",INDIRECT(CONCATENATE($E$32,"!L222"))) -> 93.17243464 | X37: =IF(ISERROR(INDIRECT(CONCATENATE($E$32,"!L223"))),"",INDIRECT(CONCATENATE($E$32,"!L223"))) -> 3.610212087 | Y37: =IF(ISERROR(INDIRECT(CONCATENATE($E$32,"!L224"))),"",INDIRECT(CONCATENATE($E$32,"!L224"))) -> 3.217353277
G40: RURAL | J40: =IF(ISERROR(INDIRECT(CONCATENATE(#REF!,"!A2"))),"",INDIRECT(CONCATENATE(#REF!,"!A210"))) ->  | K40: =IF(ISERROR(INDIRECT(CONCATENATE($E$32,"!M222"))),"",INDIRECT(CONCATENATE($E$32,"!M222"))) -> 44.33447398 | L40: =IF(ISERROR(INDIRECT(CONCATENATE($E$32,"!M223"))),"",INDIRECT(CONCATENATE($E$32,"!M223"))) -> 47.29284256 | M40: =IF(ISERROR(INDIRECT(CONCATENATE($E$32,"!M224"))),"",INDIRECT(CONCATENATE($E$32,"!M224"))) -> 8.372683458 | N40: =IF(ISERROR(INDIRECT(CONCATENATE($E$32,"!N222"))),"",INDIRECT(CONCATENATE($E$32,"!N222"))) -> 61.6000396 | O40: =IF(ISERROR(INDIRECT(CONCATENATE($E$32,"!N223"))),"",INDIRECT(CONCATENATE($E$32,"!N223"))) -> 35.75446322 | P40: =IF(ISERROR(INDIRECT(CONCATENATE($E$32,"!N224"))),"",INDIRECT(CONCATENATE($E$32,"!N224"))) -> 2.645497177 | Q40: =IF(ISERROR(INDIRECT(CONCATENATE($E$32,"!O222"))),"",INDIRECT(CONCATENATE($E$32,"!O222"))) -> 76.31086206 | R40: =IF(ISERROR(INDIRECT(CONCATENATE($E$32,"!O223"))),"",INDIRECT(CONCATENATE($E$32,"!O223"))) -> 22.62142558 | S40: =IF(ISERROR(INDIRECT(CONCATENATE($E$32,"!O224"))),"",INDIRECT(CONCATENATE($E$32,"!O224"))) -> 1.06771236 | T40: =IF(ISERROR(INDIRECT(CONCATENATE($E$32,"!P222"))),"",INDIRECT(CONCATENATE($E$32,"!P222"))) -> 84.50805678 | U40: =IF(ISERROR(INDIRECT(CONCATENATE($E$32,"!P223"))),"",INDIRECT(CONCATENATE($E$32,"!P223"))) -> 14.5679754 | V40: =IF(ISERROR(INDIRECT(CONCATENATE($E$32,"!P224"))),"",INDIRECT(CONCATENATE($E$32,"!P224"))) -> 0.9239678232 | W40: =IF(ISERROR(INDIRECT(CONCATENATE($E$32,"!Q222"))),"",INDIRECT(CONCATENATE($E$32,"!Q222"))) -> 91.57556803 | X40: =IF(ISERROR(INDIRECT(CONCATENATE($E$32,"!Q223"))),"",INDIRECT(CONCATENATE($E$32,"!Q223"))) -> 7.536720247 | Y40: =IF(ISERROR(INDIRECT(CONCATENATE($E$32,"!Q224"))),"",INDIRECT(CONCATENATE($E$32,"!Q224"))) -> 0.8877117251
A88: 3 | B88: WHS03
B89: ENCOVI11
B90: DHS15
B91: Template

Sheet WHS03
A2: =A1026 -> Guatemala
A3: =A1034 -> 2003
A4: Use of drinking water sources
A5: by wealth quintile and sub-national region
A6: Notes:
A7: WHO/UNICEF JMP customised wealth index excludes water,
A8: sanitation and hygiene assets.
A9: Survey used for analysis: | B9: =A1025 -> WHS03
A10: Time to source based on: | B10: ENCOVI11
A11: =B1027 -> 
A14: Use of drinking water sources | C14: NATIONAL wealth index quintile | H14: URBAN wealth index quintile | M14: RURAL wealth index quintile | BA14: Raw numbers of respondents: | BB14: Use of drinking water sources | BC14: NATIONAL wealth index quintile | BH14: URBAN wealth index quintile | BM14: RURAL wealth index quintile
A15: Weighted percentage (used in graphs) | C15: Poorest | D15: Poor | E15: Middle | F15: Rich | G15: Richest | H15: Poorest | I15: Poor | J15: Middle | K15: Rich | L15: Richest | M15: Poorest | N15: Poor | O15: Middle | P15: Rich | Q15: Richest | BA15: Water data, raw numbers (weighted) | BC15: Poorest | BD15: Poor | BE15: Middle | BF15: Rich | BG15: Richest | BH15: Poorest | BI15: Poor | BJ15: Middle | BK15: Rich | BL15: Richest | BM15: Poorest | BN15: Poor | BO15: Middle | BP15: Rich | BQ15: Richest
A16: Water | B16: Improved | C16: 85.33333333 | D16: 88.82051282 | E16: 85.01026694 | F16: 95.80777096 | G16: 98.45679012 | H16: 98.00498753 | I16: 98.2630273 | J16: 98.01488834 | K16: 98.2278481 | L16: 99.26470588 | M16: 81.94945848 | N16: 85.66243194 | O16: 88.26714801 | P16: 92.55898367 | Q16: 93.50180505 | BA16: Water | BB16: Improved | BC16: N/A | BD16: N/A | BE16: N/A | BF16: N/A | BG16: N/A | BH16: N/A | BI16: N/A | BJ16: N/A | BK16: N/A | BL16: N/A | BM16: N/A | BN16: N/A | BO16: N/A | BP16: N/A | BQ16: N/A
B17: Not Improved | C17: 14.66666667 | D17: 11.17948718 | E17: 14.98973306 | F17: 4.192229039 | G17: 1.543209877 | H17: 1.995012469 | I17: 1.736972705 | J17: 1.985111663 | K17: 1.772151899 | L17: 0.7352941176 | M17: 18.05054152 | N17: 14.33756806 | O17: 11.73285199 | P17: 7.441016334 | Q17: 6.498194946 | BB17: Not Improved | BC17: N/A | BD17: N/A | BE17: N/A | BF17: N/A | BG17: N/A | BH17: N/A | BI17: N/A | BJ17: N/A | BK17: N/A | BL17: N/A | BM17: N/A | BN17: N/A | BO17: N/A | BP17: N/A | BQ17: N/A
A18: Water ladder | B18: Basic | C18: =C16*ENCOVI11!C23/100 -> 81.92 | D18: =D16*ENCOVI11!D23/100 -> 87.3105641 | E18: =E16*ENCOVI11!E23/100 -> 83.99014374 | F18: =F16*ENCOVI11!F23/100 -> 95.61615542 | G18: =G16*ENCOVI11!G23/100 -> 98.35833333 | H18: =H16*ENCOVI11!H23/100 -> 97.71097257 | I18: =I16*ENCOVI11!I23/100 -> 97.5751861 | J18: =J16*ENCOVI11!J23/100 -> 98.01488834 | K18: =K16*ENCOVI11!K23/100 -> 98.2278481 | L18: =L16*ENCOVI11!L23/100 -> 99.26470588 | M18: =M16*ENCOVI11!M23/100 -> 77.85198556 | N18: =N16*ENCOVI11!N23/100 -> 83.17822142 | O18: =O16*ENCOVI11!O23/100 -> 86.5900722 | P18: =P16*ENCOVI11!P23/100 -> 91.44827586 | Q18: =Q16*ENCOVI11!Q23/100 -> 93.03429603 | BA18: Water ladder | BB18: Basic | BC18: N/A | BD18: N/A | BE18: N/A | BF18: N/A | BG18: N/A | BH18: N/A | BI18: N/A | BJ18: N/A | BK18: N/A | BL18: N/A | BM18: N/A | BN18: N/A | BO18: N/A | BP18: N/A | BQ18: N/A
B19: Limited | C19: =C16*ENCOVI11!C22/100 -> 3.413333333 | D19: =D16*ENCOVI11!D22/100 -> 1.509948718 | E19: =E16*ENCOVI11!E22/100 -> 1.020123203 | F19: =F16*ENCOVI11!F22/100 -> 0.1916155419 | G19: =G16*ENCOVI11!G22/100 -> 0.09845679012 | H19: =H16*ENCOVI11!H22/100 -> 0.2940149626 | I19: =I16*ENCOVI11!I22/100 -> 0.6878411911 | J19: =J16*ENCOVI11!J22/100 -> 0 | K19: =K16*ENCOVI11!K22/100 -> 0 | L19: =L16*ENCOVI11!L22/100 -> 0 | M19: =M16*ENCOVI11!M22/100 -> 4.097472924 | N19: =N16*ENCOVI11!N22/100 -> 2.484210526 | O19: =O16*ENCOVI11!O22/100 -> 1.677075812 | P19: =P16*ENCOVI11!P22/100 -> 1.110707804 | Q19: =Q16*ENCOVI11!Q22/100 -> 0.4675090253 | BB19: Limited | BC19: N/A | BD19: N/A | BE19: N/A | BF19: N/A | BG19: N/A | BH19: N/A | BI19: N/A | BJ19: N/A | BK19: N/A | BL19: N/A | BM19: N/A | BN19: N/A | BO19: N/A | BP19: N/A | BQ19: N/A
B20: Unimproved | C20: =100-(C18+C19+C21) -> 2.938271605 | D20: =100-(D18+D19+D21) -> 5.600974783 | E20: 13.26361108 | F20: 3.466840438 | G20: 1.543209877 | H20: 1.24313277 | I20: 1.485716423 | J20: 1.985111663 | K20: 1.772151899 | L20: 0.7352941176 | M20: 3.712973458 | N20: 3.992740472 | O20: 6.450520474 | P20: 5.426364319 | Q20: 4.680013128 | BB20: Unimproved | BC20: N/A | BD20: N/A | BE20: N/A | BF20: N/A | BG20: N/A | BH20: N/A | BI20: N/A | BJ20: N/A | BK20: N/A | BL20: N/A | BM20: N/A | BN20: N/A | BO20: N/A | BP20: N/A | BQ20: N/A
B21: Surface water | C21: =C64 -> 11.72839506 | D21: 5.578512397 | E21: 1.726121979 | F21: 0.725388601 | G21: 0 | H21: 0.7518796992 | I21: 0.2512562814 | J21: 0 | K21: 0 | L21: 0 | M21: 14.33756806 | N21: 10.34482759 | O21: 5.282331512 | P21: 2.014652015 | Q21: 1.818181818 | BB21: Surface water | BC21: N/A | BD21: N/A | BE21: N/A | BF21: N/A | BG21: N/A | BH21: N/A | BI21: N/A | BJ21: N/A | BK21: N/A | BL21: N/A | BM21: N/A | BN21: N/A | BO21: N/A | BP21: N/A | BQ21: N/A
A22: Improved water point at more than 30 minutes | B22: Yes | C22: N/A | D22: N/A | E22: N/A | F22: N/A | G22: N/A | H22: N/A | I22: N/A | J22: N/A | K22: N/A | L22: N/A | M22: N/A | N22: N/A | O22: N/A | P22: N/A | Q22: N/A | BA22: Improved water point at more than 30 minutes | BB22: Yes | BC22: N/A | BD22: N/A | BE22: N/A | BF22: N/A | BG22: N/A | BH22: N/A | BI22: N/A | BJ22: N/A | BK22: N/A | BL22: N/A | BM22: N/A | BN22: N/A | BO22: N/A | BP22: N/A | BQ22: N/A
B23: No | C23: N/A | D23: N/A | E23: N/A | F23: N/A | G23: N/A | H23: N/A | I23: N/A | J23: N/A | K23: N/A | L23: N/A | M23: N/A | N23: N/A | O23: N/A | P23: N/A | Q23: N/A | BB23: No | BC23: N/A | BD23: N/A | BE23: N/A | BF23: N/A | BG23: N/A | BH23: N/A | BI23: N/A | BJ23: N/A | BK23: N/A | BL23: N/A | BM23: N/A | BN23: N/A | BO23: N/A | BP23: N/A | BQ23: N/A
A24: Manually calculated ratios | B24: Improved wells
B25: Improved springs
B26: Other
C27: NATIONAL wealth index quintile | H27: URBAN wealth index quintile | M27: RURAL wealth index quintile | BA27: Raw numbers of respondents: | BB27: Use of drinking water sources | BC27: NATIONAL wealth index quintile | BH27: URBAN wealth index quintile | BM27: RURAL wealth index quintile
A28: Percentage based on weighted population | C28: Poorest | D28: Poor | E28: Middle | F28: Rich | G28: Richest | H28: Poorest | I28: Poor | J28: Middle | K28: Rich | L28: Richest | M28: Poorest | N28: Poor | O28: Middle | P28: Rich | Q28: Richest | BA28: Water data, raw numbers (weighted) | BC28: Poorest | BD28: Poor | BE28: Middle | BF28: Rich | BG28: Richest | BH28: Poorest | BI28: Poor | BJ28: Middle | BK28: Rich | BL28: Richest | BM28: Poorest | BN28: Poor | BO28: Middle | BP28: Rich | BQ28: Richest
A29: Piped water | B29: Yes | C29: 73.74358974 | D29: 72.71794872 | E29: 66.0164271 | F29: 81.799591 | G29: 94.75308642 | H29: 89.7755611 | I29: 94.78908189 | J29: 96.27791563 | K29: 96.4556962 | L29: 98.7745098 | M29: 68.95306859 | N29: 74.41016334 | O29: 68.59205776 | P29: 64.79128857 | Q29: 62.99638989 | BA29: Piped water | BB29: Yes | BC29: N/A | BD29: N/A | BE29: N/A | BF29: N/A | BG29: N/A | BH29: N/A | BI29: N/A | BJ29: N/A | BK29: N/A | BL29: N/A | BM29: N/A | BN29: N/A | BO29: N/A | BP29: N/A | BQ29: N/A
B30: No | C30: 26.25641026 | D30: 27.28205128 | E30: 33.9835729 | F30: 18.200409 | G30: 5.24691358 | H30: 10.2244389 | I30: 5.210918114 | J30: 3.722084367 | K30: 3.544303797 | L30: 1.225490196 | M30: 31.04693141 | N30: 25.58983666 | O30: 31.40794224 | P30: 35.20871143 | Q30: 37.00361011 | BB30: No | BC30: N/A | BD30: N/A | BE30: N/A | BF30: N/A | BG30: N/A | BH30: N/A | BI30: N/A | BJ30: N/A | BK30: N/A | BL30: N/A | BM30: N/A | BN30: N/A | BO30: N/A | BP30: N/A | BQ30: N/A
A31: Piped water on premises | B31: Yes | C31: 67.28205128 | D31: 69.12820513 | E31: 63.5523614 | F31: 80.57259714 | G31: 94.13580247 | H31: 81.79551122 | I31: 91.81141439 | J31: 95.2853598 | K31: 95.94936709 | L31: 98.28431373 | M31: 63.71841155 | N31: 69.14700544 | O31: 65.70397112 | P31: 62.97640653 | Q31: 62.27436823 | BA31: Piped water on premises | BB31: Yes | BC31: N/A | BD31: N/A | BE31: N/A | BF31: N/A | BG31: N/A | BH31: N/A | BI31: N/A | BJ31: N/A | BK31: N/A | BL31: N/A | BM31: N/A | BN31: N/A | BO31: N/A | BP31: N/A | BQ31: N/A
B32: No | C32: 32.71794872 | D32: 30.87179487 | E32: 36.4476386 | F32: 19.42740286 | G32: 5.864197531 | H32: 18.20448878 | I32: 8.188585608 | J32: 4.714640199 | K32: 4.050632911 | L32: 1.715686275 | M32: 36.28158845 | N32: 30.85299456 | O32: 34.29602888 | P32: 37.02359347 | Q32: 37.72563177 | BB32: No | BC32: N/A | BD32: N/A | BE32: N/A | BF32: N/A | BG32: N/A | BH32: N/A | BI32: N/A | BJ32: N/A | BK32: N/A | BL32: N/A | BM32: N/A | BN32: N/A | BO32: N/A | BP32: N/A | BQ32: N/A
A33: Piped water into dwelling | B33: Yes | C33: N/A | D33: N/A | E33: N/A | F33: N/A | G33: N/A | H33: N/A | I33: N/A | J33: N/A | K33: N/A | L33: N/A | M33: N/A | N33: N/A | O33: N/A | P33: N/A | Q33: N/A | BA33: Piped water into dwelling | BB33: Yes | BC33: N/A | BD33: N/A | BE33: N/A | BF33: N/A | BG33: N/A | BH33: N/A | BI33: N/A | BJ33: N/A | BK33: N/A | BL33: N/A | BM33: N/A | BN33: N/A | BO33: N/A | BP33: N/A | BQ33: N/A
B34: No | C34: N/A | D34: N/A | E34: N/A | F34: N/A | G34: N/A | H34: N/A | I34: N/A | J34: N/A | K34: N/A | L34: N/A | M34: N/A | N34: N/A | O34: N/A | P34: N/A | Q34: N/A | BB34: No | BC34: N/A | BD34: N/A | BE34: N/A | BF34: N/A | BG34: N/A | BH34: N/A | BI34: N/A | BJ34: N/A | BK34: N/A | BL34: N/A | BM34: N/A | BN34: N/A | BO34: N/A | BP34: N/A | BQ34: N/A
A35: Water source on premises | B35: Yes | C35: N/A | D35: N/A | E35: N/A | F35: N/A | G35: N/A | H35: N/A | I35: N/A | J35: N/A | K35: N/A | L35: N/A | M35: N/A | N35: N/A | O35: N/A | P35: N/A | Q35: N/A | BA35: Water source on premises | BB35: Yes | BC35: N/A | BD35: N/A | BE35: N/A | BF35: N/A | BG35: N/A | BH35: N/A | BI35: N/A | BJ35: N/A | BK35: N/A | BL35: N/A | BM35: N/A | BN35: N/A | BO35: N/A | BP35: N/A | BQ35: N/A
B36: No | C36: N/A | D36: N/A | E36: N/A | F36: N/A | G36: N/A | H36: N/A | I36: N/A | J36: N/A | K36: N/A | L36: N/A | M36: N/A | N36: N/A | O36: N/A | P36: N/A | Q36: N/A | BB36: No | BC36: N/A | BD36: N/A | BE36: N/A | BF36: N/A | BG36: N/A | BH36: N/A | BI36: N/A | BJ36: N/A | BK36: N/A | BL36: N/A | BM36: N/A | BN36: N/A | BO36: N/A | BP36: N/A | BQ36: N/A
A37: Improved Water source on premises | B37: Yes | C37: N/A | D37: N/A | E37: N/A | F37: N/A | G37: N/A | H37: N/A | I37: N/A | J37: N/A | K37: N/A | L37: N/A | M37: N/A | N37: N/A | O37: N/A | P37: N/A | Q37: N/A | BA37: Improved water source on premises | BB37: Yes | BC37: N/A | BD37: N/A | BE37: N/A | BF37: N/A | BG37: N/A | BH37: N/A | BI37: N/A | BJ37: N/A | BK37: N/A | BL37: N/A | BM37: N/A | BN37: N/A | BO37: N/A | BP37: N/A | BQ37: N/A
B38: No | C38: N/A | D38: N/A | E38: N/A | F38: N/A | G38: N/A | H38: N/A | I38: N/A | J38: N/A | K38: N/A | L38: N/A | M38: N/A | N38: N/A | O38: N/A | P38: N/A | Q38: N/A | BB38: No | BC38: N/A | BD38: N/A | BE38: N/A | BF38: N/A | BG38: N/A | BH38: N/A | BI38: N/A | BJ38: N/A | BK38: N/A | BL38: N/A | BM38: N/A | BN38: N/A | BO38: N/A | BP38: N/A | BQ38: N/A
A39: Piped water on premises available when needed | B39: Yes | C39: N/A | D39: N/A | E39: N/A | F39: N/A | G39: N/A | H39: N/A | I39: N/A | J39: N/A | K39: N/A | L39: N/A | M39: N/A | N39: N/A | O39: N/A | P39: N/A | Q39: N/A | BA39: Piped water on premises available when needed | BB39: Yes | BC39: N/A | BD39: N/A | BE39: N/A | BF39: N/A | BG39: N/A | BH39: N/A | BI39: N/A | BJ39: N/A | BK39: N/A | BL39: N/A | BM39: N/A | BN39: N/A | BO39: N/A | BP39: N/A | BQ39: N/A
B40: No | C40: N/A | D40: N/A | E40: N/A | F40: N/A | G40: N/A | H40: N/A | I40: N/A | J40: N/A | K40: N/A | L40: N/A | M40: N/A | N40: N/A | O40: N/A | P40: N/A | Q40: N/A | BB40: No | BC40: N/A | BD40: N/A | BE40: N/A | BF40: N/A | BG40: N/A | BH40: N/A | BI40: N/A | BJ40: N/A | BK40: N/A | BL40: N/A | BM40: N/A | BN40: N/A | BO40: N/A | BP40: N/A | BQ40: N/A
A41: Water point at more than 30 minutes | B41: Yes | C41: 8.116883117 | D41: 4.332129964 | E41: 5.084745763 | F41: 5.882352941 | G41: 2.564102564 | H41: 5.970149254 | I41: 16.66666667 | J41: 0 | K41: 12.5 | L41: 0 | M41: 6.666666667 | N41: 9.316770186 | O41: 3.428571429 | P41: 4.787234043 | Q41: 4.020100503 | BA41: Water point at more than 30 minutes | BB41: Yes | BC41: N/A | BD41: N/A | BE41: N/A | BF41: N/A | BG41: N/A | BH41: N/A | BI41: N/A | BJ41: N/A | BK41: N/A | BL41: N/A | BM41: N/A | BN41: N/A | BO41: N/A | BP41: N/A | BQ41: N/A
B42: No | C42: 91.88311688 | D42: 92.88311688 | E42: 93.88311688 | F42: 94.88311688 | G42: 95.88311688 | H42: 96.88311688 | I42: 97.88311688 | J42: 98.88311688 | K42: 99.88311688 | L42: 100.8831169 | M42: 101.8831169 | N42: 102.8831169 | O42: 103.8831169 | P42: 104.8831169 | Q42: 105.8831169 | BB42: No | BC42: N/A | BD42: N/A | BE42: N/A | BF42: N/A | BG42: N/A | BH42: N/A | BI42: N/A | BJ42: N/A | BK42: N/A | BL42: N/A | BM42: N/A | BN42: N/A | BO42: N/A | BP42: N/A | BQ42: N/A
A43: Water source available when needed | B43: Yes | C43: N/A | D43: N/A | E43: N/A | F43: N/A | G43: N/A | H43: N/A | I43: N/A | J43: N/A | K43: N/A | L43: N/A | M43: N/A | N43: N/A | O43: N/A | P43: N/A | Q43: N/A | BA43: Water source available when needed | BB43: Yes | BC43: N/A | BD43: N/A | BE43: N/A | BF43: N/A | BG43: N/A | BH43: N/A | BI43: N/A | BJ43: N/A | BK43: N/A | BL43: N/A | BM43: N/A | BN43: N/A | BO43: N/A | BP43: N/A | BQ43: N/A
B44: No | C44: N/A | D44: N/A | E44: N/A | F44: N/A | G44: N/A | H44: N/A | I44: N/A | J44: N/A | K44: N/A | L44: N/A | M44: N/A | N44: N/A | O44: N/A | P44: N/A | Q44: N/A | BB44: No | BC44: N/A | BD44: N/A | BE44: N/A | BF44: N/A | BG44: N/A | BH44: N/A | BI44: N/A | BJ44: N/A | BK44: N/A | BL44: N/A | BM44: N/A | BN44: N/A | BO44: N/A | BP44: N/A | BQ44: N/A
A45: Improved water source available when needed | B45: Yes | C45: N/A | D45: N/A | E45: N/A | F45: N/A | G45: N/A | H45: N/A | I45: N/A | J45: N/A | K45: N/A | L45: N/A | M45: N/A | N45: N/A | O45: N/A | P45: N/A | Q45: N/A | BA45: Improved water source available when needed | BB45: Yes | BC45: N/A | BD45: N/A | BE45: N/A | BF45: N/A | BG45: N/A | BH45: N/A | BI45: N/A | BJ45: N/A | BK45: N/A | BL45: N/A | BM45: N/A | BN45: N/A | BO45: N/A | BP45: N/A | BQ45: N/A
B46: No | C46: N/A | D46: N/A | E46: N/A | F46: N/A | G46: N/A | H46: N/A | I46: N/A | J46: N/A | K46: N/A | L46: N/A | M46: N/A | N46: N/A | O46: N/A | P46: N/A | Q46: N/A | BB46: No | BC46: N/A | BD46: N/A | BE46: N/A | BF46: N/A | BG46: N/A | BH46: N/A | BI46: N/A | BJ46: N/A | BK46: N/A | BL46: N/A | BM46: N/A | BN46: N/A | BO46: N/A | BP46: N/A | BQ46: N/A
A47: Microbiological quality at point of collection | B47: Not contaminated (No E. coli in 100 mL) | C47: N/A | D47: N/A | E47: N/A | F47: N/A | G47: N/A | H47: N/A | I47: N/A | J47: N/A | K47: N/A | L47: N/A | M47: N/A | N47: N/A | O47: N/A | P47: N/A | Q47: N/A | BA47: Microbiological quality at point of collection | BB47: Not contaminated (No E. coli in 100 mL) | BC47: N/A | BD47: N/A | BE47: N/A | BF47: N/A | BG47: N/A | BH47: N/A | BI47: N/A | BJ47: N/A | BK47: N/A | BL47: N/A | BM47: N/A | BN47: N/A | BO47: N/A | BP47: N/A | BQ47: N/A
B48: Contaminated (E. coli detected in 100 mL) | C48: N/A | D48: N/A | E48: N/A | F48: N/A | G48: N/A | H48: N/A | I48: N/A | J48: N/A | K48: N/A | L48: N/A | M48: N/A | N48: N/A | O48: N/A | P48: N/A | Q48: N/A | BB48: Contaminated (E. coli detected in 100 mL) | BC48: N/A | BD48: N/A | BE48: N/A | BF48: N/A | BG48: N/A | BH48: N/A | BI48: N/A | BJ48: N/A | BK48: N/A | BL48: N/A | BM48: N/A | BN48: N/A | BO48: N/A | BP48: N/A | BQ48: N/A
B49: Highly contaminated (>100 CFU/100 mL) | C49: N/A | D49: N/A | E49: N/A | F49: N/A | G49: N/A | H49: N/A | I49: N/A | J49: N/A | K49: N/A | L49: N/A | M49: N/A | N49: N/A | O49: N/A | P49: N/A | Q49: N/A | BB49: Highly contaminated (>100 CFU/100 mL) | BC49: N/A | BD49: N/A | BE49: N/A | BF49: N/A | BG49: N/A | BH49: N/A | BI49: N/A | BJ49: N/A | BK49: N/A | BL49: N/A | BM49: N/A | BN49: N/A | BO49: N/A | BP49: N/A | BQ49: N/A
A50: Microbiological quality of improved water sources at point of collection | B50: Not contaminated (No E. coli in 100 mL) | C50: N/A | D50: N/A | E50: N/A | F50: N/A | G50: N/A | H50: N/A | I50: N/A | J50: N/A | K50: N/A | L50: N/A | M50: N/A | N50: N/A | O50: N/A | P50: N/A | Q50: N/A | BA50: Microbiological quality of improved water sources at point of collection | BB50: Not contaminated (No E. coli in 100 mL) | BC50: N/A | BD50: N/A | BE50: N/A | BF50: N/A | BG50: N/A | BH50: N/A | BI50: N/A | BJ50: N/A | BK50: N/A | BL50: N/A | BM50: N/A | BN50: N/A | BO50: N/A | BP50: N/A | BQ50: N/A
B51: Contaminated (E. coli detected in 100 mL) | C51: N/A | D51: N/A | E51: N/A | F51: N/A | G51: N/A | H51: N/A | I51: N/A | J51: N/A | K51: N/A | L51: N/A | M51: N/A | N51: N/A | O51: N/A | P51: N/A | Q51: N/A | BB51: Contaminated (E. coli detected in 100 mL) | BC51: N/A | BD51: N/A | BE51: N/A | BF51: N/A | BG51: N/A | BH51: N/A | BI51: N/A | BJ51: N/A | BK51: N/A | BL51: N/A | BM51: N/A | BN51: N/A | BO51: N/A | BP51: N/A | BQ51: N/A
B52: Highly contaminated (>100 CFU/100 mL) | C52: N/A | D52: N/A | E52: N/A | F52: N/A | G52: N/A | H52: N/A | I52: N/A | J52: N/A | K52: N/A | L52: N/A | M52: N/A | N52: N/A | O52: N/A | P52: N/A | Q52: N/A | BB52: Highly contaminated (>100 CFU/100 mL) | BC52: N/A | BD52: N/A | BE52: N/A | BF52: N/A | BG52: N/A | BH52: N/A | BI52: N/A | BJ52: N/A | BK52: N/A | BL52: N/A | BM52: N/A | BN52: N/A | BO52: N/A | BP52: N/A | BQ52: N/A
A53: Microbiological quality of piped on premises at point of collection | B53: Not contaminated (No E. coli in 100 mL) | C53: N/A | D53: N/A | E53: N/A | F53: N/A | G53: N/A | H53: N/A | I53: N/A | J53: N/A | K53: N/A | L53: N/A | M53: N/A | N53: N/A | O53: N/A | P53: N/A | Q53: N/A | BA53: Microbiological quality of piped on premises at point of collection | BB53: Not contaminated (No E. coli in 100 mL) | BC53: N/A | BD53: N/A | BE53: N/A | BF53: N/A | BG53: N/A | BH53: N/A | BI53: N/A | BJ53: N/A | BK53: N/A | BL53: N/A | BM53: N/A | BN53: N/A | BO53: N/A | BP53: N/A | BQ53: N/A
B54: Contaminated (E. coli detected in 100 mL) | C54: N/A | D54: N/A | E54: N/A | F54: N/A | G54: N/A | H54: N/A | I54: N/A | J54: N/A | K54: N/A | L54: N/A | M54: N/A | N54: N/A | O54: N/A | P54: N/A | Q54: N/A | BB54: Contaminated (E. coli detected in 100 mL) | BC54: N/A | BD54: N/A | BE54: N/A | BF54: N/A | BG54: N/A | BH54: N/A | BI54: N/A | BJ54: N/A | BK54: N/A | BL54: N/A | BM54: N/A | BN54: N/A | BO54: N/A | BP54: N/A | BQ54: N/A
B55: Highly contaminated (>100 CFU/100 mL) | C55: N/A | D55: N/A | E55: N/A | F55: N/A | G55: N/A | H55: N/A | I55: N/A | J55: N/A | K55: N/A | L55: N/A | M55: N/A | N55: N/A | O55: N/A | P55: N/A | Q55: N/A | BB55: Highly contaminated (>100 CFU/100 mL) | BC55: N/A | BD55: N/A | BE55: N/A | BF55: N/A | BG55: N/A | BH55: N/A | BI55: N/A | BJ55: N/A | BK55: N/A | BL55: N/A | BM55: N/A | BN55: N/A | BO55: N/A | BP55: N/A | BQ55: N/A
C56: NATIONAL wealth index quintile | H56: URBAN wealth index quintile | M56: RURAL wealth index quintile | BA56: Raw numbers of respondents: | BB56: Use of drinking water sources | BC56: NATIONAL wealth index quintile | BH56: URBAN wealth index quintile | BM56: RURAL wealth index quintile
A57: Percentage based on weighted population | C57: Poorest | D57: Poor | E57: Middle | F57: Rich | G57: Richest | H57: Poorest | I57: Poor | J57: Middle | K57: Rich | L57: Richest | M57: Poorest | N57: Poor | O57: Middle | P57: Rich | Q57: Richest | BA57: Water data, raw numbers (weighted) | BC57: Poorest | BD57: Poor | BE57: Middle | BF57: Rich | BG57: Richest | BH57: Poorest | BI57: Poor | BJ57: Middle | BK57: Rich | BL57: Richest | BM57: Poorest | BN57: Poor | BO57: Middle | BP57: Rich | BQ57: Richest
A58: main source of drinking water | B58: Piped water through house connection or yard | C58: 67.48971193 | D58: 69.62809917 | E58: 71.23130035 | F58: 81.65803109 | G58: 95.21331946 | H58: 82.20551378 | I58: 92.96482412 | J58: 96.72544081 | K58: 97.68041237 | L58: 98.76847291 | M58: 64.06533575 | N58: 69.14700544 | O58: 66.30236794 | P58: 63.55311355 | Q58: 62.72727273
B59: Public standpipe | C59: 6.481481481 | D59: 3.615702479 | E59: 2.761795167 | F59: 1.243523316 | G59: 0.6243496358 | H59: 8.020050125 | I59: 3.015075377 | J59: 1.007556675 | K59: 0.5154639175 | L59: 0.4926108374 | M59: 5.263157895 | N59: 5.263157895 | O59: 2.9143898 | P59: 1.831501832 | Q59: 0.7272727273
B60: Protected tube well or bore hole | C60: 6.275720165 | D60: 11.05371901 | E60: 16.8009206 | F60: 11.29533679 | G60: 2.289281998 | H60: 6.516290727 | I60: 1.75879397 | J60: 1.007556675 | K60: 1.546391753 | L60: 0.2463054187 | M60: 5.989110708 | N60: 6.715063521 | O60: 13.66120219 | P60: 22.71062271 | Q60: 24
B61: Protected dug well or protected spring | C61: 4.423868313 | D61: 4.545454545 | E61: 3.797468354 | F61: 2.176165803 | G61: 1.352757544 | H61: 1.002506266 | I61: 0.7537688442 | J61: 0 | K61: 0.2577319588 | L61: 0.2463054187 | M61: 5.989110708 | N61: 3.992740472 | O61: 5.464480874 | P61: 4.578754579 | Q61: 6.363636364
B62: Unprotected dug well or spring | C62: 2.674897119 | D62: 4.958677686 | E62: 2.991944764 | F62: 2.176165803 | G62: 0.4162330905 | H62: 0.7518796992 | I62: 0.2512562814 | J62: 0.5037783375 | K62: 0 | L62: 0.2463054187 | M62: 3.266787659 | N62: 3.992740472 | O62: 5.646630237 | P62: 4.578754579 | Q62: 4
B63: Rainwater (into tank or cistern ) | C63: 0.7201646091 | D63: 0.3099173554 | E63: 0.3452243959 | F63: 0.103626943 | G63: 0 | H63: 0.2506265664 | I63: 0 | J63: 0 | K63: 0 | L63: 0 | M63: 1.08892922 | N63: 0.3629764065 | O63: 0.364298725 | P63: 0.3663003663 | Q63: 0.1818181818
B64: Water taken directly from pond-water or stream | C64: 11.72839506 | D64: 5.578512397 | E64: 1.726121979 | F64: 0.725388601 | G64: 0 | H64: 0.7518796992 | I64: 0.2512562814 | J64: 0 | K64: 0 | L64: 0 | M64: 14.33756806 | N64: 10.34482759 | O64: 5.282331512 | P64: 2.014652015 | Q64: 1.818181818
B65: Tanker-truck, vendor | C65: 0.2057613169 | D65: 0.3099173554 | E65: 0.3452243959 | F65: 0.621761658 | G65: 0.1040582726 | H65: 0.5012531328 | I65: 1.005025126 | J65: 0.7556675063 | K65: 0 | L65: 0 | M65: 0 | N65: 0.1814882033 | O65: 0.364298725 | P65: 0.3663003663 | Q65: 0.1818181818
A108: =A1026 -> Guatemala
A109: =A1034 -> 2003
A110: Use of sanitation facilities
A111: by wealth quintile and sub-national region
A112: Notes:
A113: WHO/UNICEF JMP customised wealth index excludes water,
A114: sanitation and hygiene assets.
A115: Survey used for analysis: | B115: =A1025 -> WHS03
A116: Improved latrines based on: | B116: 50% Rule
A117: =B1029 -> 
A120: Use of sanitation facilities | C120: NATIONAL wealth index quintile | H120: URBAN wealth index quintile | M120: RURAL wealth index quintile | BA120: Raw numbers of respondents: | BB120: Use of sanitation facilities | BC120: NATIONAL wealth index quintile | BH120: URBAN wealth index quintile | BM120: RURAL wealth index quintile
A121: Weighted percentage (used in graphs) | C121: Poorest | D121: Poor | E121: Middle | F121: Rich | G121: Richest | H121: Poorest | I121: Poor | J121: Middle | K121: Rich | L121: Richest | M121: Poorest | N121: Poor | O121: Middle | P121: Rich | Q121: Richest | BA121: Sanitation data, raw numbers (weighted) | BC121: Poorest | BD121: Poor | BE121: Middle | BF121: Rich | BG121: Richest | BH121: Poorest | BI121: Poor | BJ121: Middle | BK121: Rich | BL121: Richest | BM121: Poorest | BN121: Poor | BO121: Middle | BP121: Rich | BQ121: Richest
A122: Sanitation | B122: Improved | C122: =C153+C154+C155+(C156+C157)*0.5 -> 39.73305955 | D122: =D153+D154+D155+(D156+D157)*0.5 -> 49.53560372 | E122: 67.0310702 | F122: 88.10754912 | G122: 98.22916667 | H122: 71.0723192 | I122: 92.08542714 | J122: 98.375 | K122: 99.34895833 | L122: 99.75429975 | M122: 35.71428571 | N122: 41.47005445 | O122: 45.89416058 | P122: 56.95970696 | Q122: 76.86025408 | BA122: Sanitation | BB122: Improved | BC122: 694 | BD122: 789 | BE122: 792 | BF122: 949 | BG122: 957 | BH122: 366 | BI122: 394 | BJ122: 400 | BK122: 384 | BL122: 406 | BM122: 367 | BN122: 413 | BO122: 444 | BP122: 480 | BQ122: 527
B123: Not Improved | C123: =100-C122 -> 60.26694045 | D123: =100-D122 -> 50.46439628 | E123: 32.9689298 | F123: 11.89245088 | G123: 1.770833333 | H123: 28.9276808 | I123: 7.914572864 | J123: 1.625 | K123: 0.6510416667 | L123: 0.2457002457 | M123: 64.28571429 | N123: 58.52994555 | O123: 54.10583942 | P123: 43.04029304 | Q123: 23.13974592 | BB123: Not Improved | BC123: 281 | BD123: 186 | BE123: 182 | BF123: 29 | BG123: 15 | BH123: 35 | BI123: 9 | BJ123: 3 | BK123: 11 | BL123: 2 | BM123: 187 | BN123: 138 | BO123: 110 | BP123: 71 | BQ123: 27
A124: Sanitation ladder | B124: Basic | C124: =C122*C129/100 -> 37.18932974 | D124: =D122*D129/100 -> 45.81757341 | E124: 60.93733654 | F124: 79.50040409 | G124: 94.49894515 | H124: 64.02225001 | I124: 81.46018554 | J124: 89.63610406 | K124: 95.22017045 | L124: 96.99727137 | M124: 34.0870161 | N124: 38.90580801 | O124: 42.43574115 | P124: 51.5776874 | Q124: 70.98101823 | BA124: Sanitation ladder | BB124: Basic | BC124: 644 | BD124: 715 | BE124: 710 | BF124: 849 | BG124: 906 | BH124: 326 | BI124: 342 | BJ124: 359 | BK124: 365 | BL124: 386 | BM124: 348 | BN124: 380 | BO124: 402 | BP124: 433 | BQ124: 483
B125: Limited | C125: =C122*C128/100 -> 2.543729805 | D125: =D122*D128/100 -> 3.718030302 | E125: 6.093733654 | F125: 8.60714503 | G125: 3.730221519 | H125: 7.050069197 | I125: 10.62524159 | J125: 8.738895939 | K125: 4.128787879 | L125: 2.757028385 | M125: 1.627269613 | N125: 2.564246437 | O125: 3.458419433 | P125: 5.382019555 | Q125: 5.879235853 | BB125: Limited | BC125: 42 | BD125: 62 | BE125: 67 | BF125: 90 | BG125: 34 | BH125: 33 | BI125: 44 | BJ125: 35 | BK125: 14 | BL125: 11 | BM125: 14 | BN125: 27 | BO125: 36 | BP125: 43 | BQ125: 38
B126: Unimproved | C126: =100-(C124+C125+C127) -> 37.57700205 | D126: =100-(D124+D125+D127) -> 36.22291022 | E126: 27.67548907 | F126: 10.54808687 | G126: 1.666666667 | H126: 24.18952618 | I126: 7.412060302 | J126: 1.625 | K126: 0.6510416667 | L126: 0.2457002457 | M126: 35.71428571 | N126: 40.01814882 | O126: 39.32481752 | P126: 35.71428571 | Q126: 20.05444646 | BB126: Unimproved | BC126: 60 | BD126: 48 | BE126: 136 | BF126: 16 | BG126: 14 | BH126: 16 | BI126: 7 | BJ126: 3 | BK126: 11 | BL126: 2 | BM126: 29 | BN126: 36 | BO126: 29 | BP126: 31 | BQ126: 10
B127: Open defecation | C127: =C159 -> 22.6899384 | D127: =D159 -> 14.24148607 | E127: 5.293440736 | F127: 1.344364012 | G127: 0.1041666667 | H127: 4.738154613 | I127: 0.5025125628 | J127: 0 | K127: 0 | L127: 0 | M127: 28.57142857 | N127: 18.51179673 | O127: 14.7810219 | P127: 7.326007326 | Q127: 3.085299456 | BB127: Open defecation | BC127: 221 | BD127: 138 | BE127: 46 | BF127: 13 | BG127: 1 | BH127: 19 | BI127: 2 | BJ127: 0 | BK127: 0 | BL127: 0 | BM127: 158 | BN127: 102 | BO127: 81 | BP127: 40 | BQ127: 17
A128: Shared among Improved Sanitation | B128: Yes | C128: 6.402048656 | D128: 7.505773672 | E128: 9.090909091 | F128: 9.768907563 | G128: 3.797468354 | H128: 9.919571046 | I128: 11.53846154 | J128: 8.883248731 | K128: 4.155844156 | L128: 2.763819095 | M128: 4.556354916 | N128: 6.18336887 | O128: 7.535641548 | P128: 9.448818898 | Q128: 7.649253731 | BA128: Shared among improved sanitation facilities | BB128: Yes | BC128: N/A | BD128: N/A | BE128: N/A | BF128: N/A | BG128: N/A | BH128: N/A | BI128: N/A | BJ128: N/A | BK128: N/A | BL128: N/A | BM128: N/A | BN128: N/A | BO128: N/A | BP128: N/A | BQ128: N/A
B129: No | C129: 93.59795134 | D129: 92.49422633 | E129: 90.90909091 | F129: 90.23109244 | G129: 96.20253165 | H129: 90.08042895 | I129: 88.46153846 | J129: 91.11675127 | K129: 95.84415584 | L129: 97.2361809 | M129: 95.44364508 | N129: 93.81663113 | O129: 92.46435845 | P129: 90.5511811 | Q129: 92.35074627 | BB129: No | BC129: N/A | BD129: N/A | BE129: N/A | BF129: N/A | BG129: N/A | BH129: N/A | BI129: N/A | BJ129: N/A | BK129: N/A | BL129: N/A | BM129: N/A | BN129: N/A | BO129: N/A | BP129: N/A | BQ129: N/A
A130: Manually calculated ratios | B130: Improved latrines
B131: Other
B132: Other
C133: NATIONAL wealth index quintile | H133: URBAN wealth index quintile | M133: RURAL wealth index quintile | BA133: Raw numbers of respondents: | BB133: Use of sanitation facilities | BC133: NATIONAL wealth index quintile | BH133: URBAN wealth index quintile | BM133: RURAL wealth index quintile
A134: Percentage based on weighted population | C134: Poorest | D134: Poor | E134: Middle | F134: Rich | G134: Richest | H134: Poorest | I134: Poor | J134: Middle | K134: Rich | L134: Richest | M134: Poorest | N134: Poor | O134: Middle | P134: Rich | Q134: Richest | BA134: Sanitation data, raw numbers (weighted) | BC134: Poorest | BD134: Poor | BE134: Middle | BF134: Rich | BG134: Richest | BH134: Poorest | BI134: Poor | BJ134: Middle | BK134: Rich | BL134: Richest | BM134: Poorest | BN134: Poor | BO134: Middle | BP134: Rich | BQ134: Richest
A135: Sanitation type | B135: Sewer connection | C135: 2.666666667 | D135: 9.435897436 | E135: 25.0513347 | F135: 58.79345603 | G135: 90.22633745 | H135: 43.64089776 | I135: 78.66004963 | J135: 95.03722084 | K135: 93.67088608 | L135: 99.01960784 | M135: 0.5415162455 | N135: 0.9074410163 | O135: 2.888086643 | P135: 5.989110708 | Q135: 19.49458484 | BA135: Sanitation type | BB135: Sewer connection | BC135: N/A | BD135: N/A | BE135: N/A | BF135: N/A | BG135: N/A | BH135: N/A | BI135: N/A | BJ135: N/A | BK135: N/A | BL135: N/A | BM135: N/A | BN135: N/A | BO135: N/A | BP135: N/A | BQ135: N/A
B136: Septic tank connection | C136: 0.6153846154 | D136: 3.794871795 | E136: 8.624229979 | F136: 15.4396728 | G136: 4.835390947 | H136: 2.244389027 | I136: 2.481389578 | J136: 0.7444168734 | K136: 1.265822785 | L136: 0.4901960784 | M136: 0.1805054152 | N136: 2.540834846 | O136: 3.790613718 | P136: 13.06715064 | Q136: 33.93501805 | BB136: Septic tank connection | BC136: N/A | BD136: N/A | BE136: N/A | BF136: N/A | BG136: N/A | BH136: N/A | BI136: N/A | BJ136: N/A | BK136: N/A | BL136: N/A | BM136: N/A | BN136: N/A | BO136: N/A | BP136: N/A | BQ136: N/A
B137: Improved latrines | C137: 67.8974359 | D137: 67.69230769 | E137: 47.6386037 | F137: 22.80163599 | G137: 3.395061728 | H137: 45.38653367 | I137: 16.62531017 | J137: 3.473945409 | K137: 2.278481013 | L137: 0 | M137: 65.5234657 | N137: 71.50635209 | O137: 73.46570397 | P137: 68.05807623 | Q137: 41.6967509 | BB137: Improved latrines | BC137: N/A | BD137: N/A | BE137: N/A | BF137: N/A | BG137: N/A | BH137: N/A | BI137: N/A | BJ137: N/A | BK137: N/A | BL137: N/A | BM137: N/A | BN137: N/A | BO137: N/A | BP137: N/A | BQ137: N/A
B138: Unimproved facilities | C138: 6.153846154 | D138: 4.923076923 | E138: 13.96303901 | F138: 1.63599182 | G138: 1.440329218 | H138: 3.990024938 | I138: 1.736972705 | J138: 0.7444168734 | K138: 2.784810127 | L138: 0.4901960784 | M138: 5.23465704 | N138: 6.533575318 | O138: 5.23465704 | P138: 5.626134301 | Q138: 1.805054152 | BB138: Unimproved facilities | BC138: N/A | BD138: N/A | BE138: N/A | BF138: N/A | BG138: N/A | BH138: N/A | BI138: N/A | BJ138: N/A | BK138: N/A | BL138: N/A | BM138: N/A | BN138: N/A | BO138: N/A | BP138: N/A | BQ138: N/A
B139: Open defecation | C139: 22.66666667 | D139: 14.15384615 | E139: 4.722792608 | F139: 1.329243354 | G139: 0.1028806584 | H139: 4.738154613 | I139: 0.4962779156 | J139: 0 | K139: 0 | L139: 0 | M139: 28.5198556 | N139: 18.51179673 | O139: 14.62093863 | P139: 7.259528131 | Q139: 3.068592058 | BB139: Open defecation | BC139: N/A | BD139: N/A | BE139: N/A | BF139: N/A | BG139: N/A | BH139: N/A | BI139: N/A | BJ139: N/A | BK139: N/A | BL139: N/A | BM139: N/A | BN139: N/A | BO139: N/A | BP139: N/A | BQ139: N/A
A140: Septic tank emptying practices | B140: Not emptied/treated and disposed in situ | C140: N/A | D140: N/A | E140: N/A | F140: N/A | G140: N/A | H140: N/A | I140: N/A | J140: N/A | K140: N/A | L140: N/A | M140: N/A | N140: N/A | O140: N/A | P140: N/A | Q140: N/A | BA140: Septic tank emptying practices | BB140: Not emptied/treated and disposed in situ | BC140: N/A | BD140: N/A | BE140: N/A | BF140: N/A | BG140: N/A | BH140: N/A | BI140: N/A | BJ140: N/A | BK140: N/A | BL140: N/A | BM140: N/A | BN140: N/A | BO140: N/A | BP140: N/A | BQ140: N/A
B141: Emptied and buried on site | C141: N/A | D141: N/A | E141: N/A | F141: N/A | G141: N/A | H141: N/A | I141: N/A | J141: N/A | K141: N/A | L141: N/A | M141: N/A | N141: N/A | O141: N/A | P141: N/A | Q141: N/A | BB141: Emptied and buried on site | BC141: N/A | BD141: N/A | BE141: N/A | BF141: N/A | BG141: N/A | BH141: N/A | BI141: N/A | BJ141: N/A | BK141: N/A | BL141: N/A | BM141: N/A | BN141: N/A | BO141: N/A | BP141: N/A | BQ141: N/A
B142: Emptied and discharged locally | C142: N/A | D142: N/A | E142: N/A | F142: N/A | G142: N/A | H142: N/A | I142: N/A | J142: N/A | K142: N/A | L142: N/A | M142: N/A | N142: N/A | O142: N/A | P142: N/A | Q142: N/A | BB142: Emptied and discharged locally | BC142: N/A | BD142: N/A | BE142: N/A | BF142: N/A | BG142: N/A | BH142: N/A | BI142: N/A | BJ142: N/A | BK142: N/A | BL142: N/A | BM142: N/A | BN142: N/A | BO142: N/A | BP142: N/A | BQ142: N/A
B143: Emptied and removed offsite | C143: N/A | D143: N/A | E143: N/A | F143: N/A | G143: N/A | H143: N/A | I143: N/A | J143: N/A | K143: N/A | L143: N/A | M143: N/A | N143: N/A | O143: N/A | P143: N/A | Q143: N/A | BB143: Emptied and removed offsite | BC143: N/A | BD143: N/A | BE143: N/A | BF143: N/A | BG143: N/A | BH143: N/A | BI143: N/A | BJ143: N/A | BK143: N/A | BL143: N/A | BM143: N/A | BN143: N/A | BO143: N/A | BP143: N/A | BQ143: N/A
A144: Latrine emptying practices | B144: Not emptied/treated and disposed in situ | C144: N/A | D144: N/A | E144: N/A | F144: N/A | G144: N/A | H144: N/A | I144: N/A | J144: N/A | K144: N/A | L144: N/A | M144: N/A | N144: N/A | O144: N/A | P144: N/A | Q144: N/A | BA144: Latrine emptying practices | BB144: Not emptied/treated and disposed in situ | BC144: N/A | BD144: N/A | BE144: N/A | BF144: N/A | BG144: N/A | BH144: N/A | BI144: N/A | BJ144: N/A | BK144: N/A | BL144: N/A | BM144: N/A | BN144: N/A | BO144: N/A | BP144: N/A | BQ144: N/A
B145: Emptied and buried on site | C145: N/A | D145: N/A | E145: N/A | F145: N/A | G145: N/A | H145: N/A | I145: N/A | J145: N/A | K145: N/A | L145: N/A | M145: N/A | N145: N/A | O145: N/A | P145: N/A | Q145: N/A | BB145: Emptied and buried on site | BC145: N/A | BD145: N/A | BE145: N/A | BF145: N/A | BG145: N/A | BH145: N/A | BI145: N/A | BJ145: N/A | BK145: N/A | BL145: N/A | BM145: N/A | BN145: N/A | BO145: N/A | BP145: N/A | BQ145: N/A
B146: Emptied and discharged locally | C146: N/A | D146: N/A | E146: N/A | F146: N/A | G146: N/A | H146: N/A | I146: N/A | J146: N/A | K146: N/A | L146: N/A | M146: N/A | N146: N/A | O146: N/A | P146: N/A | Q146: N/A | BB146: Emptied and discharged locally | BC146: N/A | BD146: N/A | BE146: N/A | BF146: N/A | BG146: N/A | BH146: N/A | BI146: N/A | BJ146: N/A | BK146: N/A | BL146: N/A | BM146: N/A | BN146: N/A | BO146: N/A | BP146: N/A | BQ146: N/A
B147: Emptied and removed offsite | C147: N/A | D147: N/A | E147: N/A | F147: N/A | G147: N/A | H147: N/A | I147: N/A | J147: N/A | K147: N/A | L147: N/A | M147: N/A | N147: N/A | O147: N/A | P147: N/A | Q147: N/A | BB147: Emptied and removed offsite | BC147: N/A | BD147: N/A | BE147: N/A | BF147: N/A | BG147: N/A | BH147: N/A | BI147: N/A | BJ147: N/A | BK147: N/A | BL147: N/A | BM147: N/A | BN147: N/A | BO147: N/A | BP147: N/A | BQ147: N/A
A148: Shared among improved sanitation facilities | B148: Yes | C148: 5.128205128 | D148: 6.666666667 | E148: 7.597535934 | F148: 9.509202454 | G148: 3.703703704 | H148: 9.226932668 | I148: 11.1662531 | J148: 8.684863524 | K148: 4.050632911 | L148: 2.696078431 | M148: 3.429602888 | N148: 5.263157895 | O148: 6.678700361 | P148: 8.711433757 | Q148: 7.400722022 | BA148: Shared among improved sanitation facilities | BB148: Yes | BC148: N/A | BD148: N/A | BE148: N/A | BF148: N/A | BG148: N/A | BH148: N/A | BI148: N/A | BJ148: N/A | BK148: N/A | BL148: N/A | BM148: N/A | BN148: N/A | BO148: N/A | BP148: N/A | BQ148: N/A
B149: No | C149: 74.97435897 | D149: 82.15384615 | E149: 75.97535934 | F149: 87.83231084 | G149: 93.82716049 | H149: 83.79052369 | I149: 85.60794045 | J149: 89.08188586 | K149: 93.41772152 | L149: 94.85294118 | M149: 71.84115523 | N149: 79.85480944 | O149: 81.94945848 | P149: 83.4845735 | Q149: 89.35018051 | BB149: No | BC149: N/A | BD149: N/A | BE149: N/A | BF149: N/A | BG149: N/A | BH149: N/A | BI149: N/A | BJ149: N/A | BK149: N/A | BL149: N/A | BM149: N/A | BN149: N/A | BO149: N/A | BP149: N/A | BQ149: N/A
B150: DK/missing | C150: 19.8974359 | D150: 11.17948718 | E150: 16.42710472 | F150: 2.658486708 | G150: 2.469135802 | H150: 6.982543641 | I150: 3.225806452 | J150: 2.23325062 | K150: 2.53164557 | L150: 2.450980392 | M150: 24.72924188 | N150: 14.88203267 | O150: 11.37184116 | P150: 7.80399274 | Q150: 3.249097473 | BB150: DK/missing | BC150: N/A | BD150: N/A | BE150: N/A | BF150: N/A | BG150: N/A | BH150: N/A | BI150: N/A | BJ150: N/A | BK150: N/A | BL150: N/A | BM150: N/A | BN150: N/A | BO150: N/A | BP150: N/A | BQ150: N/A
A151: Shared among all sanitation facilities | B151: Yes | C151: 94.34850863 | D151: 92.0341394 | E151: 90.74889868 | F151: 90.06928406 | G151: 96.1414791 | H151: 89.22558923 | I151: 88.36565097 | J151: 90.97938144 | K151: 95.80052493 | L151: 97.20812183 | M151: 95.41547278 | N151: 95.02617801 | O151: 92.19143577 | P151: 90.38461538 | Q151: 92.30769231 | BA151: Shared among all sanitation facilities | BB151: Yes | BC151: N/A | BD151: N/A | BE151: N/A | BF151: N/A | BG151: N/A | BH151: N/A | BI151: N/A | BJ151: N/A | BK151: N/A | BL151: N/A | BM151: N/A | BN151: N/A | BO151: N/A | BP151: N/A | BQ151: N/A
B152: No | C152: 5.651491366 | D152: 7.965860597 | E152: 9.251101322 | F152: 9.930715935 | G152: 3.8585209 | H152: 10.77441077 | I152: 11.63434903 | J152: 9.020618557 | K152: 4.199475066 | L152: 2.791878173 | M152: 4.584527221 | N152: 4.97382199 | O152: 7.808564232 | P152: 9.615384615 | Q152: 7.692307692 | BB152: No | BC152: N/A | BD152: N/A | BE152: N/A | BF152: N/A | BG152: N/A | BH152: N/A | BI152: N/A | BJ152: N/A | BK152: N/A | BL152: N/A | BM152: N/A | BN152: N/A | BO152: N/A | BP152: N/A | BQ152: N/A
A153: What type of toilet facilities | B153: Flush to piped sewage system | C153: 2.669404517 | D153: 9.494324045 | E153: 28.07825086 | F153: 59.4622544 | G153: 91.35416667 | H153: 43.64089776 | I153: 79.64824121 | J153: 95.75 | K153: 96.35416667 | L153: 99.26289926 | M153: 0.5424954792 | N153: 0.9074410163 | O153: 2.919708029 | P153: 6.043956044 | Q153: 19.60072595 | BA153: What type of toilet facilities | BB153: Flush to piped sewage system | BC153: 26 | BD153: 92 | BE153: 244 | BF153: 575 | BG153: 877 | BH153: 175 | BI153: 317 | BJ153: 383 | BK153: 370 | BL153: 404 | BM153: 3 | BN153: 5 | BO153: 16 | BP153: 33 | BQ153: 108
B154: Flush to septic tank | C154: 0.6160164271 | D154: 3.818369453 | E154: 9.666283084 | F154: 15.61530507 | G154: 4.895833333 | H154: 2.244389027 | I154: 2.512562814 | J154: 0.75 | K154: 1.302083333 | L154: 0.4914004914 | M154: 0.1808318264 | N154: 2.540834846 | O154: 3.832116788 | P154: 13.18681319 | Q154: 34.11978221 | BB154: Flush to septic tank | BC154: 6 | BD154: 37 | BE154: 84 | BF154: 151 | BG154: 47 | BH154: 9 | BI154: 10 | BJ154: 3 | BK154: 5 | BL154: 2 | BM154: 1 | BN154: 14 | BO154: 21 | BP154: 72 | BQ154: 188
B155: Pour flush latrine | C155: 0.5133470226 | D155: 2.167182663 | E155: 3.567318757 | F155: 2.792140641 | G155: 0.5208333333 | H155: 2.992518703 | I155: 3.015075377 | J155: 0.25 | K155: 1.041666667 | L155: 0 | M155: 0.3616636528 | N155: 0.5444646098 | O155: 1.642335766 | P155: 4.578754579 | Q155: 3.811252269 | BB155: Pour flush latrine | BC155: 5 | BD155: 21 | BE155: 31 | BF155: 27 | BG155: 5 | BH155: 12 | BI155: 12 | BJ155: 1 | BK155: 4 | BL155: 0 | BM155: 2 | BN155: 3 | BO155: 9 | BP155: 25 | BQ155: 21
B156: Covered dry latrine (with privacy) | C156: 67.45379877 | D156: 65.94427245 | E156: 49.8273878 | F156: 20.2688728 | G156: 2.916666667 | H156: 42.39401496 | I156: 13.81909548 | J156: 3.25 | K156: 1.302083333 | L156: 0 | M156: 65.28028933 | N156: 70.96188748 | O156: 72.62773723 | P156: 64.1025641 | Q156: 38.11252269 | BB156: Covered dry latrine (with privacy) | BC156: 657 | BD156: 639 | BE156: 433 | BF156: 196 | BG156: 28 | BH156: 170 | BI156: 55 | BJ156: 13 | BK156: 5 | BL156: 0 | BM156: 361 | BN156: 391 | BO156: 398 | BP156: 350 | BQ156: 210
B157: Uncovered dry latrine (without privacy) | C157: 4.414784394 | D157: 2.167182663 | E157: 1.611047181 | F157: 0.2068252327 | G157: 0 | H157: 1.995012469 | I157: 0 | J157: 0 | K157: 0 | L157: 0 | M157: 3.978300181 | N157: 3.992740472 | O157: 2.372262774 | P157: 2.197802198 | Q157: 0.5444646098 | BB157: Uncovered dry latrine (without privacy) | BC157: 43 | BD157: 21 | BE157: 14 | BF157: 2 | BG157: 0 | BH157: 8 | BI157: 0 | BJ157: 0 | BK157: 0 | BL157: 0 | BM157: 22 | BN157: 22 | BO157: 13 | BP157: 12 | BQ157: 3
B158: Bucket latrine (where fresh excreta are manually removed) | C158: 1.540041068 | D158: 1.960784314 | E158: 1.495972382 | F158: 0.2068252327 | G158: 0.1041666667 | H158: 1.74563591 | I158: 0 | J158: 0 | K158: 0 | L158: 0 | M158: 0.904159132 | N158: 2.540834846 | O158: 1.642335766 | P158: 2.197802198 | Q158: 0.5444646098 | BB158: Bucket latrine (where fresh excreta are manually removed) | BC158: 15 | BD158: 19 | BE158: 13 | BF158: 2 | BG158: 1 | BH158: 7 | BI158: 0 | BJ158: 0 | BK158: 0 | BL158: 0 | BM158: 5 | BN158: 14 | BO158: 9 | BP158: 12 | BQ158: 3
B159: No facilities (open defecation) | C159: 22.6899384 | D159: 14.24148607 | E159: 5.293440736 | F159: 1.344364012 | G159: 0.1041666667 | H159: 4.738154613 | I159: 0.5025125628 | J159: 0 | K159: 0 | L159: 0 | M159: 28.57142857 | N159: 18.51179673 | O159: 14.7810219 | P159: 7.326007326 | Q159: 3.085299456 | BB159: No facilities (open defecation) | BC159: 221 | BD159: 138 | BE159: 46 | BF159: 13 | BG159: 1 | BH159: 19 | BI159: 2 | BJ159: 0 | BK159: 0 | BL159: 0 | BM159: 158 | BN159: 102 | BO159: 81 | BP159: 40 | BQ159: 17
B160: Other | C160: 0.1026694045 | D160: 0.2063983488 | E160: 0.4602991945 | F160: 0.1034126163 | G160: 0.1041666667 | H160: 0.2493765586 | I160: 0.5025125628 | J160: 0 | K160: 0 | L160: 0.2457002457 | M160: 0.1808318264 | N160: 0 | O160: 0.1824817518 | P160: 0.3663003663 | Q160: 0.1814882033 | BB160: Other | BC160: 1 | BD160: 2 | BE160: 4 | BF160: 1 | BG160: 1 | BH160: 1 | BI160: 2 | BJ160: 0 | BK160: 0 | BL160: 1 | BM160: 1 | BN160: 0 | BO160: 1 | BP160: 2 | BQ160: 1
BB161: Total | BC161: 974 | BD161: 969 | BE161: 869 | BF161: 967 | BG161: 960 | BH161: 401 | BI161: 398 | BJ161: 400 | BK161: 384 | BL161: 407 | BM161: 553 | BN161: 551 | BO161: 548 | BP161: 546 | BQ161: 551
A208: =A1026 -> Guatemala
A209: =A1034 -> 2003
A210: Access to hygiene facilities
A211: by wealth quintile and sub-national region
A212: Notes:
A213: WHO/UNICEF JMP customised wealth index excludes water,
A214: sanitation and hygiene assets.
A215: Survey used for analysis: | B215: =A1025 -> WHS03
A220: Access to handwashing | C220: NATIONAL wealth index quintile | H220: URBAN wealth index quintile | M220: RURAL wealth index quintile | BA220: Raw numbers of respondents: | BB220: Access to handwashing | BC220: NATIONAL wealth index quintile | BH220: URBAN wealth index quintile | BM220: RURAL wealth index quintile
A221: Weighted percentage (used in graphs) | C221: Poorest | D221: Poor | E221: Middle | F221: Rich | G221: Richest | H221: Poorest | I221: Poor | J221: Middle | K221: Rich | L221: Richest | M221: Poorest | N221: Poor | O221: Middle | P221: Rich | Q221: Richest | BA221: Hygiene data, raw numbers (weighted) | BC221: Poorest | BD221: Poor | BE221: Middle | BF221: Rich | BG221: Richest | BH221: Poorest | BI221: Poor | BJ221: Middle | BK221: Rich | BL221: Richest | BM221: Poorest | BN221: Poor | BO221: Middle | BP221: Rich | BQ221: Richest
A222: Hygiene ladder | B222: Basic | C222: N/A | D222: N/A | E222: N/A | F222: N/A | G222: N/A | H222: N/A | I222: N/A | J222: N/A | K222: N/A | L222: N/A | M222: N/A | N222: N/A | O222: N/A | P222: N/A | Q222: N/A | BA222: Hygiene ladder | BB222: Basic | BC222: N/A | BD222: N/A | BE222: N/A | BF222: N/A | BG222: N/A | BH222: N/A | BI222: N/A | BJ222: N/A | BK222: N/A | BL222: N/A | BM222: N/A | BN222: N/A | BO222: N/A | BP222: N/A | BQ222: N/A
B223: Limited | C223: N/A | D223: N/A | E223: N/A | F223: N/A | G223: N/A | H223: N/A | I223: N/A | J223: N/A | K223: N/A | L223: N/A | M223: N/A | N223: N/A | O223: N/A | P223: N/A | Q223: N/A | BB223: Limited | BC223: N/A | BD223: N/A | BE223: N/A | BF223: N/A | BG223: N/A | BH223: N/A | BI223: N/A | BJ223: N/A | BK223: N/A | BL223: N/A | BM223: N/A | BN223: N/A | BO223: N/A | BP223: N/A | BQ223: N/A
B224: No facility | C224: N/A | D224: N/A | E224: N/A | F224: N/A | G224: N/A | H224: N/A | I224: N/A | J224: N/A | K224: N/A | L224: N/A | M224: N/A | N224: N/A | O224: N/A | P224: N/A | Q224: N/A | BB224: No facility | BC224: N/A | BD224: N/A | BE224: N/A | BF224: N/A | BG224: N/A | BH224: N/A | BI224: N/A | BJ224: N/A | BK224: N/A | BL224: N/A | BM224: N/A | BN224: N/A | BO224: N/A | BP224: N/A | BQ224: N/A
BA225: Observed handwashing place | BB225: Fixed | BC225: N/A | BD225: N/A | BE225: N/A | BF225: N/A | BG225: N/A | BH225: N/A | BI225: N/A | BJ225: N/A | BK225: N/A | BL225: N/A | BM225: N/A | BN225: N/A | BO225: N/A | BP225: N/A | BQ225: N/A
BB226: Mobile | BC226: N/A | BD226: N/A | BE226: N/A | BF226: N/A | BG226: N/A | BH226: N/A | BI226: N/A | BJ226: N/A | BK226: N/A | BL226: N/A | BM226: N/A | BN226: N/A | BO226: N/A | BP226: N/A | BQ226: N/A
BA227: Water / Soap | BB227: Water and soap | BC227: N/A | BD227: N/A | BE227: N/A | BF227: N/A | BG227: N/A | BH227: N/A | BI227: N/A | BJ227: N/A | BK227: N/A | BL227: N/A | BM227: N/A | BN227: N/A | BO227: N/A | BP227: N/A | BQ227: N/A
BB228: Water only | BC228: N/A | BD228: N/A | BE228: N/A | BF228: N/A | BG228: N/A | BH228: N/A | BI228: N/A | BJ228: N/A | BK228: N/A | BL228: N/A | BM228: N/A | BN228: N/A | BO228: N/A | BP228: N/A | BQ228: N/A
BB229: Soap only | BC229: N/A | BD229: N/A | BE229: N/A | BF229: N/A | BG229: N/A | BH229: N/A | BI229: N/A | BJ229: N/A | BK229: N/A | BL229: N/A | BM229: N/A | BN229: N/A | BO229: N/A | BP229: N/A | BQ229: N/A
BB230: Neither | BC230: N/A | BD230: N/A | BE230: N/A | BF230: N/A | BG230: N/A | BH230: N/A | BI230: N/A | BJ230: N/A | BK230: N/A | BL230: N/A | BM230: N/A | BN230: N/A | BO230: N/A | BP230: N/A | BQ230: N/A
BA259: Raw numbers of respondents: | BB259: Menstrual health and hygiene | BC259: NATIONAL wealth index quintile | BH259: URBAN wealth index quintile | BM259: RURAL wealth index quintile
BA260: MHH data, raw numbers (weighted) | BC260: Poorest | BD260: Poor | BE260: Middle | BF260: Rich | BG260: Richest | BH260: Poorest | BI260: Poor | BJ260: Middle | BK260: Rich | BL260: Richest | BM260: Poorest | BN260: Poor | BO260: Middle | BP260: Rich | BQ260: Richest
BA261: Private place to wash and change | BB261: Yes | BC261: N/A | BD261: N/A | BE261: N/A | BF261: N/A | BG261: N/A | BH261: N/A | BI261: N/A | BJ261: N/A | BK261: N/A | BL261: N/A | BM261: N/A | BN261: N/A | BO261: N/A | BP261: N/A | BQ261: N/A
BB262: No | BC262: N/A | BD262: N/A | BE262: N/A | BF262: N/A | BG262: N/A | BH262: N/A | BI262: N/A | BJ262: N/A | BK262: N/A | BL262: N/A | BM262: N/A | BN262: N/A | BO262: N/A | BP262: N/A | BQ262: N/A
BB263: DK/not sure/missing | BC263: N/A | BD263: N/A | BE263: N/A | BF263: N/A | BG263: N/A | BH263: N/A | BI263: N/A | BJ263: N/A | BK263: N/A | BL263: N/A | BM263: N/A | BN263: N/A | BO263: N/A | BP263: N/A | BQ263: N/A
BA264: Use of menstrual materials | BB264: Materials reusable | BC264: N/A | BD264: N/A | BE264: N/A | BF264: N/A | BG264: N/A | BH264: N/A | BI264: N/A | BJ264: N/A | BK264: N/A | BL264: N/A | BM264: N/A | BN264: N/A | BO264: N/A | BP264: N/A | BQ264: N/A
BB265: Materials not reusable | BC265: N/A | BD265: N/A | BE265: N/A | BF265: N/A | BG265: N/A | BH265: N/A | BI265: N/A | BJ265: N/A | BK265: N/A | BL265: N/A | BM265: N/A | BN265: N/A | BO265: N/A | BP265: N/A | BQ265: N/A
BB266: No materials used | BC266: N/A | BD266: N/A | BE266: N/A | BF266: N/A | BG266: N/A | BH266: N/A | BI266: N/A | BJ266: N/A | BK266: N/A | BL266: N/A | BM266: N/A | BN266: N/A | BO266: N/A | BP266: N/A | BQ266: N/A
BB267: DK/not sure/missing | BC267: N/A | BD267: N/A | BE267: N/A | BF267: N/A | BG267: N/A | BH267: N/A | BI267: N/A | BJ267: N/A | BK267: N/A | BL267: N/A | BM267: N/A | BN267: N/A | BO267: N/A | BP267: N/A | BQ267: N/A
BA268: Use of menstrual materials with private place to wash and change | BB268: Materials reusable | BC268: N/A | BD268: N/A | BE268: N/A | BF268: N/A | BG268: N/A | BH268: N/A | BI268: N/A | BJ268: N/A | BK268: N/A | BL268: N/A | BM268: N/A | BN268: N/A | BO268: N/A | BP268: N/A | BQ268: N/A
BB269: Materials not reusable | BC269: N/A | BD269: N/A | BE269: N/A | BF269: N/A | BG269: N/A | BH269: N/A | BI269: N/A | BJ269: N/A | BK269: N/A | BL269: N/A | BM269: N/A | BN269: N/A | BO269: N/A | BP269: N/A | BQ269: N/A
BB270: No materials used | BC270: N/A | BD270: N/A | BE270: N/A | BF270: N/A | BG270: N/A | BH270: N/A | BI270: N/A | BJ270: N/A | BK270: N/A | BL270: N/A | BM270: N/A | BN270: N/A | BO270: N/A | BP270: N/A | BQ270: N/A
BA271: Awareness of menstruation before menarche | BB271: Yes | BC271: N/A | BD271: N/A | BE271: N/A | BF271: N/A | BG271: N/A | BH271: N/A | BI271: N/A | BJ271: N/A | BK271: N/A | BL271: N/A | BM271: N/A | BN271: N/A | BO271: N/A | BP271: N/A | BQ271: N/A
BB272: No | BC272: N/A | BD272: N/A | BE272: N/A | BF272: N/A | BG272: N/A | BH272: N/A | BI272: N/A | BJ272: N/A | BK272: N/A | BL272: N/A | BM272: N/A | BN272: N/A | BO272: N/A | BP272: N/A | BQ272: N/A
BB273: DK/not sure/missing | BC273: N/A | BD273: N/A | BE273: N/A | BF273: N/A | BG273: N/A | BH273: N/A | BI273: N/A | BJ273: N/A | BK273: N/A | BL273: N/A | BM273: N/A | BN273: N/A | BO273: N/A | BP273: N/A | BQ273: N/A
BA274: Participation in (all) activities during menstruation | BB274: Yes | BC274: N/A | BD274: N/A | BE274: N/A | BF274: N/A | BG274: N/A | BH274: N/A | BI274: N/A | BJ274: N/A | BK274: N/A | BL274: N/A | BM274: N/A | BN274: N/A | BO274: N/A | BP274: N/A | BQ274: N/A
BB275: No | BC275: N/A | BD275: N/A | BE275: N/A | BF275: N/A | BG275: N/A | BH275: N/A | BI275: N/A | BJ275: N/A | BK275: N/A | BL275: N/A | BM275: N/A | BN275: N/A | BO275: N/A | BP275: N/A | BQ275: N/A
BB276: DK/not sure/missing/no such activity | BC276: N/A | BD276: N/A | BE276: N/A | BF276: N/A | BG276: N/A | BH276: N/A | BI276: N/A | BJ276: N/A | BK276: N/A | BL276: N/A | BM276: N/A | BN276: N/A | BO276: N/A | BP276: N/A | BQ276: N/A
BA277: Participation in specific activities during menstruation | BB277: Did not go to school (amongst those usually attending school) | BC277: N/A | BD277: N/A | BE277: N/A | BF277: N/A | BG277: N/A | BH277: N/A | BI277: N/A | BJ277: N/A | BK277: N/A | BL277: N/A | BM277: N/A | BN277: N/A | BO277: N/A | BP277: N/A | BQ277: N/A
BB278: Did not go to work (amongst those who usually work) | BC278: N/A | BD278: N/A | BE278: N/A | BF278: N/A | BG278: N/A | BH278: N/A | BI278: N/A | BJ278: N/A | BK278: N/A | BL278: N/A | BM278: N/A | BN278: N/A | BO278: N/A | BP278: N/A | BQ278: N/A
BB279: Did not participate in social activities | BC279: N/A | BD279: N/A | BE279: N/A | BF279: N/A | BG279: N/A | BH279: N/A | BI279: N/A | BJ279: N/A | BK279: N/A | BL279: N/A | BM279: N/A | BN279: N/A | BO279: N/A | BP279: N/A | BQ279: N/A
BB280: Did not cook food | BC280: N/A | BD280: N/A | BE280: N/A | BF280: N/A | BG280: N/A | BH280: N/A | BI280: N/A | BJ280: N/A | BK280: N/A | BL280: N/A | BM280: N/A | BN280: N/A | BO280: N/A | BP280: N/A | BQ280: N/A
BB281: Did not eat with others | BC281: N/A | BD281: N/A | BE281: N/A | BF281: N/A | BG281: N/A | BH281: N/A | BI281: N/A | BJ281: N/A | BK281: N/A | BL281: N/A | BM281: N/A | BN281: N/A | BO281: N/A | BP281: N/A | BQ281: N/A
BB282: Did not bathe in regular place | BC282: N/A | BD282: N/A | BE282: N/A | BF282: N/A | BG282: N/A | BH282: N/A | BI282: N/A | BJ282: N/A | BK282: N/A | BL282: N/A | BM282: N/A | BN282: N/A | BO282: N/A | BP282: N/A | BQ282: N/A
BB283: Did not participate in other activities | BC283: N/A | BD283: N/A | BE283: N/A | BF283: N/A | BG283: N/A | BH283: N/A | BI283: N/A | BJ283: N/A | BK283: N/A | BL283: N/A | BM283: N/A | BN283: N/A | BO283: N/A | BP283: N/A | BQ283: N/A
BB284: DK/not sure/missing/no such activity | BC284: N/A | BD284: N/A | BE284: N/A | BF284: N/A | BG284: N/A | BH284: N/A | BI284: N/A | BJ284: N/A | BK284: N/A | BL284: N/A | BM284: N/A | BN284: N/A | BO284: N/A | BP284: N/A | BQ284: N/A
BA339: Raw numbers of respondents: | BB339: Basic water, sanitation and hygiene | BC339: NATIONAL wealth index quintile | BH339: URBAN wealth index quintile | BM339: RURAL wealth index quintile
BA340: WatSan data, raw numbers (weighted) | BC340: Poorest | BD340: Poor | BE340: Middle | BF340: Rich | BG340: Richest | BH340: Poorest | BI340: Poor | BJ340: Middle | BK340: Rich | BL340: Richest | BM340: Poorest | BN340: Poor | BO340: Middle | BP340: Rich | BQ340: Richest
BA341: Use of Basic Water Sanitation and Hygiene | BB341: Yes | BC341: N/A | BD341: N/A | BE341: N/A | BF341: N/A | BG341: N/A | BH341: N/A | BI341: N/A | BJ341: N/A | BK341: N/A | BL341: N/A | BM341: N/A | BN341: N/A | BO341: N/A | BP341: N/A | BQ341: N/A
BB342: No | BC342: N/A | BD342: N/A | BE342: N/A | BF342: N/A | BG342: N/A | BH342: N/A | BI342: N/A | BJ342: N/A | BK342: N/A | BL342: N/A | BM342: N/A | BN342: N/A | BO342: N/A | BP342: N/A | BQ342: N/A
BA343: Use of Basic Water and Sanitation | BB343: Yes | BC343: N/A | BD343: N/A | BE343: N/A | BF343: N/A | BG343: N/A | BH343: N/A | BI343: N/A | BJ343: N/A | BK343: N/A | BL343: N/A | BM343: N/A | BN343: N/A | BO343: N/A | BP343: N/A | BQ343: N/A
BB344: No | BC344: N/A | BD344: N/A | BE344: N/A | BF344: N/A | BG344: N/A | BH344: N/A | BI344: N/A | BJ344: N/A | BK344: N/A | BL344: N/A | BM344: N/A | BN344: N/A | BO344: N/A | BP344: N/A | BQ344: N/A
BA345: Use of Basic Water and Hygiene | BB345: Yes | BC345: N/A | BD345: N/A | BE345: N/A | BF345: N/A | BG345: N/A | BH345: N/A | BI345: N/A | BJ345: N/A | BK345: N/A | BL345: N/A | BM345: N/A | BN345: N/A | BO345: N/A | BP345: N/A | BQ345: N/A
BB346: No | BC346: N/A | BD346: N/A | BE346: N/A | BF346: N/A | BG346: N/A | BH346: N/A | BI346: N/A | BJ346: N/A | BK346: N/A | BL346: N/A | BM346: N/A | BN346: N/A | BO346: N/A | BP346: N/A | BQ346: N/A
BA347: Use of Basic Sanitation and Hygiene | BB347: Yes | BC347: N/A | BD347: N/A | BE347: N/A | BF347: N/A | BG347: N/A | BH347: N/A | BI347: N/A | BJ347: N/A | BK347: N/A | BL347: N/A | BM347: N/A | BN347: N/A | BO347: N/A | BP347: N/A | BQ347: N/A
BB348: No | BC348: N/A | BD348: N/A | BE348: N/A | BF348: N/A | BG348: N/A | BH348: N/A | BI348: N/A | BJ348: N/A | BK348: N/A | BL348: N/A | BM348: N/A | BN348: N/A | BO348: N/A | BP348: N/A | BQ348: N/A
BA349: Use of Basic Water | BB349: Yes | BC349: N/A | BD349: N/A | BE349: N/A | BF349: N/A | BG349: N/A | BH349: N/A | BI349: N/A | BJ349: N/A | BK349: N/A | BL349: N/A | BM349: N/A | BN349: N/A | BO349: N/A | BP349: N/A | BQ349: N/A
BB350: No | BC350: N/A | BD350: N/A | BE350: N/A | BF350: N/A | BG350: N/A | BH350: N/A | BI350: N/A | BJ350: N/A | BK350: N/A | BL350: N/A | BM350: N/A | BN350: N/A | BO350: N/A | BP350: N/A | BQ350: N/A
BA351: Use of Basic Sanitation | BB351: Yes | BC351: N/A | BD351: N/A | BE351: N/A | BF351: N/A | BG351: N/A | BH351: N/A | BI351: N/A | BJ351: N/A | BK351: N/A | BL351: N/A | BM351: N/A | BN351: N/A | BO351: N/A | BP351: N/A | BQ351: N/A
BB352: No | BC352: N/A | BD352: N/A | BE352: N/A | BF352: N/A | BG352: N/A | BH352: N/A | BI352: N/A | BJ352: N/A | BK352: N/A | BL352: N/A | BM352: N/A | BN352: N/A | BO352: N/A | BP352: N/A | BQ352: N/A
BA353: Access to Basic Hygiene | BB353: Yes | BC353: N/A | BD353: N/A | BE353: N/A | BF353: N/A | BG353: N/A | BH353: N/A | BI353: N/A | BJ353: N/A | BK353: N/A | BL353: N/A | BM353: N/A | BN353: N/A | BO353: N/A | BP353: N/A | BQ353: N/A
BB354: No | BC354: N/A | BD354: N/A | BE354: N/A | BF354: N/A | BG354: N/A | BH354: N/A | BI354: N/A | BJ354: N/A | BK354: N/A | BL354: N/A | BM354: N/A | BN354: N/A | BO354: N/A | BP354: N/A | BQ354: N/A
C399: INITIAL (national) Wealth Index | H399: URBAN Wealth Index | M399: RURAL Wealth Index
C400: Component Matrix | H400: Component Matrix | M400: Component Matrix
E401: Component | J401: Component | O401: Component
B402: Note: The INITIAL (national) Wealth Index is based on the first component of the Principal Component Analysis (PCA) which has been obtained at national level. The final national-level (NATIONAL) Wealth Index is based on the URBAN and RURAL specific wealth indexes. Regression procedures are used to establish the relationships between the two sets of scores (urban and rural) and the initial (national) wealth factors. This allows best use of the available information for each area and a better precision of the FINAL (NATIONAL) Wealth Index. For dependency reasons, all WASH variables (contained in the generic MICS and DHS scripts) have been excluded from the sets of asset variables used in the PCAs. The PCA can extracts as many components as there are asset variables in the input. Only the first of the components is used to represent the Wealth Index. The scores represent the weights of the asset variables on the Wealth Index (correlations between the variables and the component). The communalities are the proportion of each variable's variance that can be explained by the component. Proportion of explained variance is the part of the model's total variance that is explained by the component. For more information on the procedure used: The DHS Wealth Index, DHS Comparative Reports No. 6, Shea Oscar Rutstein, Kiersten Johnson, ORC Macro International Inc., 2004. The DHS Wealth Index: Approaches for Rural and Urban Areas, Shea O. Rutstein, ORC Macro International Inc., 2008. MICS Methodological Paper No. 4, Review of options for reporting water, sanitation and hygiene coverage by wealth quintile, UNICEF, 2016. | E402: 1 | J402: 1 | O402: 1
C403: Uses wood fuel | E403: 0.8332893493 | H403: Uses wood fuel | J403: 0.837863119 | M403: Permanent Income question 20 | O403: 0.7703686109
C404: Permanent Income question 17 | E404: 0.8094365987 | H404: Uses gaz fuel | J404: -0.8089792339 | M404: Permanent Income question 19 | O404: 0.76183192
C405: Uses gaz fuel | E405: -0.8009696204 | H405: Permanent Income question 17 | J405: 0.7506010725 | M405: Permanent Income question 17 | O405: 0.7566590205
C406: Permanent Income question 19 | E406: 0.7912405366 | H406: Permanent Income question 20 | J406: 0.7433733641 | M406: Uses gaz fuel | O406: -0.712333007
C407: Permanent Income question 20 | E407: 0.7906211997 | H407: Permanent Income question 19 | J407: 0.7125371439 | M407: Has hard floor | O407: -0.7008375372
C408: Permanent Income question 11 | E408: 0.738792162 | H408: Permanent Income question 11 | J408: 0.6687975372 | M408: Has hearth floor | O408: 0.6993664512
C409: Has hearth floor | E409: 0.7268491864 | H409: Uses open fire without chimney | J409: 0.6678117781 | M409: Uses wood fuel | O409: 0.6889290602
C410: Permanent Income question 14 | E410: 0.7137980409 | H410: Has hearth floor | J410: 0.6361183162 | M410: Permanent Income question 14 | O410: 0.6819285928
C411: Has hard floor | E411: -0.6808740365 | H411: Uses separate room as kitchen | J411: 0.6304417968 | M411: Permanent Income question 11 | O411: 0.6669875006
C412: Uses open fire without chimney | E412: 0.66515296 | H412: Has hard floor | J412: -0.6246409735 | M412: Permanent Income question 6 | O412: 0.5332526257
C413: Permanent Income question 12 | E413: 0.6464463744 | H413: Permanent Income question 12 | J413: 0.6007535096 | M413: Uses open fire without chimney | O413: 0.5172451145
C414: Permanent Income question 13 | E414: 0.6390374404 | H414: Permanent Income question 13 | J414: 0.5822775623 | M414: Permanent Income question 5 | O414: 0.5079510566
C415: Permanent Income question 16 | E415: 0.5590574215 | H415: Permanent Income question 14 | J415: 0.5754207656 | M415: Permanent Income question 13 | O415: 0.4882006667
C416: Permanent Income question 5 | E416: 0.5138496008 | H416: Has mud brick wall | J416: 0.5267129219 | M416: Has cement, brick, stone or wood wall | O416: -0.4697834983
C417: Permanent Income question 9 | E417: 0.4831990602 | H417: Permanent Income question 16 | J417: 0.5237892137 | M417: Permanent Income question 7 | O417: 0.3820123242
C418: Permanent Income question 15 | E418: 0.4723839793 | H418: Has Car | J418: 0.5057761907 | M418: Permanent Income question 12 | O418: 0.3660991435
C419: Has mud brick wall | E419: 0.4707476967 | H419: Permanent Income question 9 | J419: 0.4594907638 | M419: Uses living or sleeping room as kitchen | O419: 0.3626095617
C420: Has Car | E420: 0.4673753408 | H420: Permanent Income question 15 | J420: 0.4369044012 | M420: Has mud brick wall | O420: 0.35777782
C421: Has cement, brick, stone or wood wall | E421: -0.4521746553 | H421: Has cement, brick, stone or wood wall | J421: -0.4005124571 | M421: Permanent Income question 16 | O421: 0.3550517431
C422: Permanent Income question 6 | E422: 0.4132267003 | H422: Uses open fire with chimney | J422: 0.3603468924 | M422: Has Car | O422: 0.3381637191
C423: Uses separate room as kitchen | E423: 0.4041231705 | H423: Permanent Income question 7 | J423: 0.336095107 | M423: Uses wood heating | O423: 0.2833576941
... 187 more rows

Sheet ENCOVI11
A2: =A1026 -> Guatemala
A3: =A1034 -> 2011
A4: Use of drinking water sources
A5: by wealth quintile and sub-national region
A6: Notes:
A7: WHO/UNICEF JMP customised wealth index excludes water,
A8: sanitation and hygiene assets.
A9: Survey used for analysis: | B9: =A1025 -> ENCOVI11
A10: =B1028 -> 
A11: =B1027 -> 
A14: Use of drinking water sources | C14: NATIONAL wealth index quintile | H14: URBAN wealth index quintile | M14: RURAL wealth index quintile | R14: SUB-REGIONS: | BA14: Raw numbers of respondents: | BB14: Use of drinking water sources | BC14: NATIONAL wealth index quintile | BH14: URBAN wealth index quintile | BM14: RURAL wealth index quintile | BR14: SUB-REGIONS:
A15: Weighted percentage (used in graphs) | C15: Poorest | D15: Poor | E15: Middle | F15: Rich | G15: Richest | H15: Poorest | I15: Poor | J15: Middle | K15: Rich | L15: Richest | M15: Poorest | N15: Poor | O15: Middle | P15: Rich | Q15: Richest | R15: Central | S15: Metropolitana | T15: Nor-Oriente | U15: Nor-Occidente | V15: Norte | W15: Peten | X15: Sur-Occidente | Y15: Sur-Oriente | BA15: Water data, raw numbers (weighted) | BC15: Poorest | BD15: Poor | BE15: Middle | BF15: Rich | BG15: Richest | BH15: Poorest | BI15: Poor | BJ15: Middle | BK15: Rich | BL15: Richest | BM15: Poorest | BN15: Poor | BO15: Middle | BP15: Rich | BQ15: Richest | BR15: Central | BS15: Metropolitana | BT15: Nor-Oriente | BU15: Nor-Occidente | BV15: Norte | BW15: Peten | BX15: Sur-Occidente | BY15: Sur-Oriente
A16: Water | B16: Improved | C16: 72.2 | D16: 85.3 | E16: 90.7 | F16: 93.1 | G16: 98 | H16: 86 | I16: 93.9 | J16: 95.3 | K16: 98.1 | L16: 99.7 | M16: 68 | N16: 81.7 | O16: 85.5 | P16: 90.1 | Q16: 92.9 | R16: 94.3 | S16: 96.5 | T16: 86.9 | U16: 81.2 | V16: 75.7 | W16: 78.4 | X16: 90.8 | Y16: 83.4 | BA16: Water | BB16: Improved | BC16: N/A | BD16: N/A | BE16: N/A | BF16: N/A | BG16: N/A | BH16: N/A | BI16: N/A | BJ16: N/A | BK16: N/A | BL16: N/A | BM16: N/A | BN16: N/A | BO16: N/A | BP16: N/A | BQ16: N/A | BR16: N/A | BS16: N/A | BT16: N/A | BU16: N/A | BV16: N/A | BW16: N/A | BX16: N/A | BY16: N/A
B17: Not Improved | C17: 27.8 | D17: 14.7 | E17: 9.3 | F17: 6.9 | G17: 2 | H17: 14 | I17: 6.1 | J17: 4.7 | K17: 1.9 | L17: 0.3 | M17: 32 | N17: 18.3 | O17: 14.5 | P17: 9.9 | Q17: 7.1 | R17: 5.7 | S17: 3.5 | T17: 13.1 | U17: 18.8 | V17: 24.3 | W17: 21.6 | X17: 9.2 | Y17: 16.6 | BB17: Not Improved | BC17: N/A | BD17: N/A | BE17: N/A | BF17: N/A | BG17: N/A | BH17: N/A | BI17: N/A | BJ17: N/A | BK17: N/A | BL17: N/A | BM17: N/A | BN17: N/A | BO17: N/A | BP17: N/A | BQ17: N/A | BR17: N/A | BS17: N/A | BT17: N/A | BU17: N/A | BV17: N/A | BW17: N/A | BX17: N/A | BY17: N/A
A18: Water ladder | B18: Basic | C18: 66 | D18: 82.5 | E18: 88.5 | F18: 92.1 | G18: 97.8 | H18: 85.1 | I18: 93 | J18: 95.1 | K18: 98 | L18: 99.7 | M18: 60.6 | N18: 77.2 | O18: 82.2 | P18: 87.2 | Q18: 91.5 | R18: 93 | S18: 95.7 | T18: 84.5 | U18: 77.7 | V18: 72.3 | W18: 77.2 | X18: 88.5 | Y18: 81.2 | BA18: Water ladder | BB18: Basic | BC18: N/A | BD18: N/A | BE18: N/A | BF18: N/A | BG18: N/A | BH18: N/A | BI18: N/A | BJ18: N/A | BK18: N/A | BL18: N/A | BM18: N/A | BN18: N/A | BO18: N/A | BP18: N/A | BQ18: N/A | BR18: N/A | BS18: N/A | BT18: N/A | BU18: N/A | BV18: N/A | BW18: N/A | BX18: N/A | BY18: N/A
B19: Limited | C19: 2.8 | D19: 1.4 | E19: 1.1 | F19: 0.2 | G19: 0.1 | H19: 0.3 | I19: 0.6 | J19: 0 | K19: 0 | L19: 0 | M19: 3.2 | N19: 2.3 | O19: 1.6 | P19: 1.1 | Q19: 0.5 | R19: 0.5 | S19: 0.6 | T19: 1.5 | U19: 2.8 | V19: 0.6 | W19: 0.4 | X19: 0.7 | Y19: 1.7 | BB19: Limited | BC19: N/A | BD19: N/A | BE19: N/A | BF19: N/A | BG19: N/A | BH19: N/A | BI19: N/A | BJ19: N/A | BK19: N/A | BL19: N/A | BM19: N/A | BN19: N/A | BO19: N/A | BP19: N/A | BQ19: N/A | BR19: N/A | BS19: N/A | BT19: N/A | BU19: N/A | BV19: N/A | BW19: N/A | BX19: N/A | BY19: N/A
B20: Unimproved | C20: 8.2 | D20: 5.9 | E20: 3.6 | F20: 3.1 | G20: 1.1 | H20: 12 | I20: 4.4 | J20: 2.9 | K20: 1.4 | L20: 0.3 | M20: 7.2 | N20: 5.2 | O20: 4.1 | P20: 3.1 | Q20: 2.3 | R20: 5.2 | S20: 3 | T20: 4 | U20: 4 | V20: 6.2 | W20: 5.7 | X20: 3.7 | Y20: 4.4 | BB20: Unimproved | BC20: N/A | BD20: N/A | BE20: N/A | BF20: N/A | BG20: N/A | BH20: N/A | BI20: N/A | BJ20: N/A | BK20: N/A | BL20: N/A | BM20: N/A | BN20: N/A | BO20: N/A | BP20: N/A | BQ20: N/A | BR20: N/A | BS20: N/A | BT20: N/A | BU20: N/A | BV20: N/A | BW20: N/A | BX20: N/A | BY20: N/A
B21: Surface water | C21: 23.1 | D21: 10.2 | E21: 6.8 | F21: 4.6 | G21: 1 | H21: 2.5 | I21: 2 | J21: 2 | K21: 0.6 | L21: 0 | M21: 28.9 | N21: 15.2 | O21: 12.1 | P21: 8.6 | Q21: 5.8 | R21: 1.3 | S21: 0.6 | T21: 9.9 | U21: 15.5 | V21: 20.9 | W21: 16.8 | X21: 7 | Y21: 12.7 | BB21: Surface water | BC21: N/A | BD21: N/A | BE21: N/A | BF21: N/A | BG21: N/A | BH21: N/A | BI21: N/A | BJ21: N/A | BK21: N/A | BL21: N/A | BM21: N/A | BN21: N/A | BO21: N/A | BP21: N/A | BQ21: N/A | BR21: N/A | BS21: N/A | BT21: N/A | BU21: N/A | BV21: N/A | BW21: N/A | BX21: N/A | BY21: N/A
A22: Improved water point at more than 30 minutes | B22: Yes | C22: 4 | D22: 1.7 | E22: 1.2 | F22: 0.2 | G22: 0.1 | H22: 0.3 | I22: 0.7 | J22: 0 | K22: 0 | L22: 0 | M22: 5 | N22: 2.9 | O22: 1.9 | P22: 1.2 | Q22: 0.5 | R22: 0.5 | S22: 0.7 | T22: 1.8 | U22: 3.4 | V22: 0.8 | W22: 0.5 | X22: 0.8 | Y22: 2.1 | BA22: Improved water point at more than 30 minutes | BB22: Yes | BC22: N/A | BD22: N/A | BE22: N/A | BF22: N/A | BG22: N/A | BH22: N/A | BI22: N/A | BJ22: N/A | BK22: N/A | BL22: N/A | BM22: N/A | BN22: N/A | BO22: N/A | BP22: N/A | BQ22: N/A | BR22: N/A | BS22: N/A | BT22: N/A | BU22: N/A | BV22: N/A | BW22: N/A | BX22: N/A | BY22: N/A
B23: No | C23: 96 | D23: 98.3 | E23: 98.8 | F23: 99.8 | G23: 99.9 | H23: 99.7 | I23: 99.3 | J23: 100 | K23: 100 | L23: 100 | M23: 95 | N23: 97.1 | O23: 98.1 | P23: 98.8 | Q23: 99.5 | R23: 99.5 | S23: 99.3 | T23: 98.2 | U23: 96.6 | V23: 99.2 | W23: 99.5 | X23: 99.2 | Y23: 97.9 | BB23: No | BC23: N/A | BD23: N/A | BE23: N/A | BF23: N/A | BG23: N/A | BH23: N/A | BI23: N/A | BJ23: N/A | BK23: N/A | BL23: N/A | BM23: N/A | BN23: N/A | BO23: N/A | BP23: N/A | BQ23: N/A | BR23: N/A | BS23: N/A | BT23: N/A | BU23: N/A | BV23: N/A | BW23: N/A | BX23: N/A | BY23: N/A
A24: Manually calculated ratios | B24: Improved wells
B25: Improved springs
B26: Other
C27: NATIONAL wealth index quintile | H27: URBAN wealth index quintile | M27: RURAL wealth index quintile | R27: SUB-REGIONS: | BA27: Raw numbers of respondents: | BB27: Use of drinking water sources | BC27: NATIONAL wealth index quintile | BH27: URBAN wealth index quintile | BM27: RURAL wealth index quintile | BR27: SUB-REGIONS:
A28: Percentage based on weighted population | C28: Poorest | D28: Poor | E28: Middle | F28: Rich | G28: Richest | H28: Poorest | I28: Poor | J28: Middle | K28: Rich | L28: Richest | M28: Poorest | N28: Poor | O28: Middle | P28: Rich | Q28: Richest | R28: Central | S28: Metropolitana | T28: Nor-Oriente | U28: Nor-Occidente | V28: Norte | W28: Peten | X28: Sur-Occidente | Y28: Sur-Oriente | BA28: Water data, raw numbers (weighted) | BC28: Poorest | BD28: Poor | BE28: Middle | BF28: Rich | BG28: Richest | BH28: Poorest | BI28: Poor | BJ28: Middle | BK28: Rich | BL28: Richest | BM28: Poorest | BN28: Poor | BO28: Middle | BP28: Rich | BQ28: Richest | BR28: Central | BS28: Metropolitana | BT28: Nor-Oriente | BU28: Nor-Occidente | BV28: Norte | BW28: Peten | BX28: Sur-Occidente | BY28: Sur-Oriente
A29: Piped water | B29: Yes | C29: 49.1 | D29: 69.8 | E29: 74.7 | F29: 80.3 | G29: 93.7 | H29: 78.8 | I29: 86.7 | J29: 89.7 | K29: 93.9 | L29: 97.7 | M29: 42.5 | N29: 60.6 | O29: 68.1 | P29: 68.5 | Q29: 78.6 | R29: 80.1 | S29: 88.2 | T29: 76 | U29: 70.3 | V29: 56.4 | W29: 67 | X29: 70.8 | Y29: 73.6 | BA29: Piped water | BB29: Yes | BC29: N/A | BD29: N/A | BE29: N/A | BF29: N/A | BG29: N/A | BH29: N/A | BI29: N/A | BJ29: N/A | BK29: N/A | BL29: N/A | BM29: N/A | BN29: N/A | BO29: N/A | BP29: N/A | BQ29: N/A | BR29: N/A | BS29: N/A | BT29: N/A | BU29: N/A | BV29: N/A | BW29: N/A | BX29: N/A | BY29: N/A
B30: No | C30: 50.9 | D30: 30.2 | E30: 25.3 | F30: 19.7 | G30: 6.3 | H30: 21.2 | I30: 13.3 | J30: 10.3 | K30: 6.1 | L30: 2.3 | M30: 57.5 | N30: 39.4 | O30: 31.9 | P30: 31.5 | Q30: 21.4 | R30: 19.9 | S30: 11.8 | T30: 24 | U30: 29.7 | V30: 43.6 | W30: 33 | X30: 29.2 | Y30: 26.4 | BB30: No | BC30: N/A | BD30: N/A | BE30: N/A | BF30: N/A | BG30: N/A | BH30: N/A | BI30: N/A | BJ30: N/A | BK30: N/A | BL30: N/A | BM30: N/A | BN30: N/A | BO30: N/A | BP30: N/A | BQ30: N/A | BR30: N/A | BS30: N/A | BT30: N/A | BU30: N/A | BV30: N/A | BW30: N/A | BX30: N/A | BY30: N/A
A31: Piped water on premises | B31: Yes | C31: 46.5 | D31: 67 | E31: 72 | F31: 78.8 | G31: 93.5 | H31: 76.2 | I31: 84.6 | J31: 89.3 | K31: 93.9 | L31: 97.4 | M31: 40.1 | N31: 58 | O31: 64.4 | P31: 66 | Q31: 76.9 | R31: 76.8 | S31: 87.8 | T31: 73.3 | U31: 66.8 | V31: 55.1 | W31: 67 | X31: 69.8 | Y31: 71.4 | BA31: Piped water on premises | BB31: Yes | BC31: N/A | BD31: N/A | BE31: N/A | BF31: N/A | BG31: N/A | BH31: N/A | BI31: N/A | BJ31: N/A | BK31: N/A | BL31: N/A | BM31: N/A | BN31: N/A | BO31: N/A | BP31: N/A | BQ31: N/A | BR31: N/A | BS31: N/A | BT31: N/A | BU31: N/A | BV31: N/A | BW31: N/A | BX31: N/A | BY31: N/A
B32: No | C32: 53.5 | D32: 33 | E32: 28 | F32: 21.2 | G32: 6.5 | H32: 23.8 | I32: 15.4 | J32: 10.7 | K32: 6.1 | L32: 2.6 | M32: 59.9 | N32: 42 | O32: 35.6 | P32: 34 | Q32: 23.1 | R32: 23.2 | S32: 12.2 | T32: 26.7 | U32: 33.2 | V32: 44.9 | W32: 33 | X32: 30.2 | Y32: 28.6 | BB32: No | BC32: N/A | BD32: N/A | BE32: N/A | BF32: N/A | BG32: N/A | BH32: N/A | BI32: N/A | BJ32: N/A | BK32: N/A | BL32: N/A | BM32: N/A | BN32: N/A | BO32: N/A | BP32: N/A | BQ32: N/A | BR32: N/A | BS32: N/A | BT32: N/A | BU32: N/A | BV32: N/A | BW32: N/A | BX32: N/A | BY32: N/A
A33: Piped water into dwelling | B33: Yes | C33: N/A | D33: N/A | E33: N/A | F33: N/A | G33: N/A | H33: N/A | I33: N/A | J33: N/A | K33: N/A | L33: N/A | M33: N/A | N33: N/A | O33: N/A | P33: N/A | Q33: N/A | R33: N/A | S33: N/A | T33: N/A | U33: N/A | V33: N/A | W33: N/A | X33: N/A | Y33: N/A | BA33: Piped water into dwelling | BB33: Yes | BC33: N/A | BD33: N/A | BE33: N/A | BF33: N/A | BG33: N/A | BH33: N/A | BI33: N/A | BJ33: N/A | BK33: N/A | BL33: N/A | BM33: N/A | BN33: N/A | BO33: N/A | BP33: N/A | BQ33: N/A | BR33: N/A | BS33: N/A | BT33: N/A | BU33: N/A | BV33: N/A | BW33: N/A | BX33: N/A | BY33: N/A
B34: No | C34: N/A | D34: N/A | E34: N/A | F34: N/A | G34: N/A | H34: N/A | I34: N/A | J34: N/A | K34: N/A | L34: N/A | M34: N/A | N34: N/A | O34: N/A | P34: N/A | Q34: N/A | R34: N/A | S34: N/A | T34: N/A | U34: N/A | V34: N/A | W34: N/A | X34: N/A | Y34: N/A | BB34: No | BC34: N/A | BD34: N/A | BE34: N/A | BF34: N/A | BG34: N/A | BH34: N/A | BI34: N/A | BJ34: N/A | BK34: N/A | BL34: N/A | BM34: N/A | BN34: N/A | BO34: N/A | BP34: N/A | BQ34: N/A | BR34: N/A | BS34: N/A | BT34: N/A | BU34: N/A | BV34: N/A | BW34: N/A | BX34: N/A | BY34: N/A
A35: Water source on premises | B35: Yes | C35: 48.4 | D35: 67.9 | E35: 73 | F35: 79.4 | G35: 93.7 | H35: 77.1 | I35: 84.8 | J35: 89.5 | K35: 93.9 | L35: 97.6 | M35: 42.5 | N35: 59.2 | O35: 65.7 | P35: 66.8 | Q35: 78 | R35: 77.3 | S35: 88.4 | T35: 74.2 | U35: 68.1 | V35: 57.8 | W35: 67.5 | X35: 70.5 | Y35: 72.7 | BA35: Water source on premises | BB35: Yes | BC35: N/A | BD35: N/A | BE35: N/A | BF35: N/A | BG35: N/A | BH35: N/A | BI35: N/A | BJ35: N/A | BK35: N/A | BL35: N/A | BM35: N/A | BN35: N/A | BO35: N/A | BP35: N/A | BQ35: N/A | BR35: N/A | BS35: N/A | BT35: N/A | BU35: N/A | BV35: N/A | BW35: N/A | BX35: N/A | BY35: N/A
B36: No | C36: 51.6 | D36: 32.1 | E36: 27 | F36: 20.6 | G36: 6.3 | H36: 22.9 | I36: 15.2 | J36: 10.5 | K36: 6.1 | L36: 2.4 | M36: 57.5 | N36: 40.8 | O36: 34.3 | P36: 33.2 | Q36: 22 | R36: 22.7 | S36: 11.6 | T36: 25.8 | U36: 31.9 | V36: 42.2 | W36: 32.5 | X36: 29.5 | Y36: 27.3 | BB36: No | BC36: N/A | BD36: N/A | BE36: N/A | BF36: N/A | BG36: N/A | BH36: N/A | BI36: N/A | BJ36: N/A | BK36: N/A | BL36: N/A | BM36: N/A | BN36: N/A | BO36: N/A | BP36: N/A | BQ36: N/A | BR36: N/A | BS36: N/A | BT36: N/A | BU36: N/A | BV36: N/A | BW36: N/A | BX36: N/A | BY36: N/A
A37: Improved Water source on premises | B37: Yes | C37: 64.8 | D37: 78.7 | E37: 79.8 | F37: 84.9 | G37: 95.4 | H37: 88.8 | I37: 90.2 | J37: 93.9 | K37: 95.8 | L37: 97.8 | M37: 59.4 | N37: 71.1 | O37: 75.9 | P37: 73.6 | Q37: 83 | R37: 81.9 | S37: 91.4 | T37: 84.7 | U37: 82.3 | V37: 73.1 | W37: 85.4 | X37: 77 | Y37: 85.9 | BA37: Improved water source on premises | BB37: Yes | BC37: N/A | BD37: N/A | BE37: N/A | BF37: N/A | BG37: N/A | BH37: N/A | BI37: N/A | BJ37: N/A | BK37: N/A | BL37: N/A | BM37: N/A | BN37: N/A | BO37: N/A | BP37: N/A | BQ37: N/A | BR37: N/A | BS37: N/A | BT37: N/A | BU37: N/A | BV37: N/A | BW37: N/A | BX37: N/A | BY37: N/A
B38: No | C38: 35.2 | D38: 21.3 | E38: 20.2 | F38: 15.1 | G38: 4.6 | H38: 11.2 | I38: 9.8 | J38: 6.1 | K38: 4.2 | L38: 2.2 | M38: 40.6 | N38: 28.9 | O38: 24.1 | P38: 26.4 | Q38: 17 | R38: 18.1 | S38: 8.6 | T38: 15.3 | U38: 17.7 | V38: 26.9 | W38: 14.6 | X38: 23 | Y38: 14.1 | BB38: No | BC38: N/A | BD38: N/A | BE38: N/A | BF38: N/A | BG38: N/A | BH38: N/A | BI38: N/A | BJ38: N/A | BK38: N/A | BL38: N/A | BM38: N/A | BN38: N/A | BO38: N/A | BP38: N/A | BQ38: N/A | BR38: N/A | BS38: N/A | BT38: N/A | BU38: N/A | BV38: N/A | BW38: N/A | BX38: N/A | BY38: N/A
A39: Piped water on premises available when needed | B39: Yes | C39: N/A | D39: N/A | E39: N/A | F39: N/A | G39: N/A | H39: N/A | I39: N/A | J39: N/A | K39: N/A | L39: N/A | M39: N/A | N39: N/A | O39: N/A | P39: N/A | Q39: N/A | R39: N/A | S39: N/A | T39: N/A | U39: N/A | V39: N/A | W39: N/A | X39: N/A | Y39: N/A | BA39: Piped water on premises available when needed | BB39: Yes | BC39: N/A | BD39: N/A | BE39: N/A | BF39: N/A | BG39: N/A | BH39: N/A | BI39: N/A | BJ39: N/A | BK39: N/A | BL39: N/A | BM39: N/A | BN39: N/A | BO39: N/A | BP39: N/A | BQ39: N/A | BR39: N/A | BS39: N/A | BT39: N/A | BU39: N/A | BV39: N/A | BW39: N/A | BX39: N/A | BY39: N/A
B40: No | C40: N/A | D40: N/A | E40: N/A | F40: N/A | G40: N/A | H40: N/A | I40: N/A | J40: N/A | K40: N/A | L40: N/A | M40: N/A | N40: N/A | O40: N/A | P40: N/A | Q40: N/A | R40: N/A | S40: N/A | T40: N/A | U40: N/A | V40: N/A | W40: N/A | X40: N/A | Y40: N/A | BB40: No | BC40: N/A | BD40: N/A | BE40: N/A | BF40: N/A | BG40: N/A | BH40: N/A | BI40: N/A | BJ40: N/A | BK40: N/A | BL40: N/A | BM40: N/A | BN40: N/A | BO40: N/A | BP40: N/A | BQ40: N/A | BR40: N/A | BS40: N/A | BT40: N/A | BU40: N/A | BV40: N/A | BW40: N/A | BX40: N/A | BY40: N/A
A41: Water point at more than 30 minutes | B41: Yes | C41: 9.8 | D41: 3.6 | E41: 2 | F41: 0.8 | G41: 0.3 | H41: 2.1 | I41: 0.8 | J41: 0.3 | K41: 0 | L41: 0 | M41: 10.9 | N41: 7.1 | O41: 3.3 | P41: 2.5 | Q41: 1.3 | R41: 0.7 | S41: 0.7 | T41: 4.3 | U41: 6.3 | V41: 5 | W41: 5.3 | X41: 1.6 | Y41: 5.6 | BA41: Water point at more than 30 minutes | BB41: Yes | BC41: N/A | BD41: N/A | BE41: N/A | BF41: N/A | BG41: N/A | BH41: N/A | BI41: N/A | BJ41: N/A | BK41: N/A | BL41: N/A | BM41: N/A | BN41: N/A | BO41: N/A | BP41: N/A | BQ41: N/A | BR41: N/A | BS41: N/A | BT41: N/A | BU41: N/A | BV41: N/A | BW41: N/A | BX41: N/A | BY41: N/A
B42: No | C42: 90.2 | D42: 96.4 | E42: 98 | F42: 99.2 | G42: 99.7 | H42: 97.9 | I42: 99.2 | J42: 99.7 | K42: 100 | L42: 100 | M42: 89.1 | N42: 92.9 | O42: 96.7 | P42: 97.5 | Q42: 98.7 | R42: 99.3 | S42: 99.3 | T42: 95.7 | U42: 93.7 | V42: 95 | W42: 94.7 | X42: 98.4 | Y42: 94.4 | BB42: No | BC42: N/A | BD42: N/A | BE42: N/A | BF42: N/A | BG42: N/A | BH42: N/A | BI42: N/A | BJ42: N/A | BK42: N/A | BL42: N/A | BM42: N/A | BN42: N/A | BO42: N/A | BP42: N/A | BQ42: N/A | BR42: N/A | BS42: N/A | BT42: N/A | BU42: N/A | BV42: N/A | BW42: N/A | BX42: N/A | BY42: N/A
A43: Water source available when needed | B43: Yes | C43: N/A | D43: N/A | E43: N/A | F43: N/A | G43: N/A | H43: N/A | I43: N/A | J43: N/A | K43: N/A | L43: N/A | M43: N/A | N43: N/A | O43: N/A | P43: N/A | Q43: N/A | R43: N/A | S43: N/A | T43: N/A | U43: N/A | V43: N/A | W43: N/A | X43: N/A | Y43: N/A | BA43: Water source available when needed | BB43: Yes | BC43: N/A | BD43: N/A | BE43: N/A | BF43: N/A | BG43: N/A | BH43: N/A | BI43: N/A | BJ43: N/A | BK43: N/A | BL43: N/A | BM43: N/A | BN43: N/A | BO43: N/A | BP43: N/A | BQ43: N/A | BR43: N/A | BS43: N/A | BT43: N/A | BU43: N/A | BV43: N/A | BW43: N/A | BX43: N/A | BY43: N/A
B44: No | C44: N/A | D44: N/A | E44: N/A | F44: N/A | G44: N/A | H44: N/A | I44: N/A | J44: N/A | K44: N/A | L44: N/A | M44: N/A | N44: N/A | O44: N/A | P44: N/A | Q44: N/A | R44: N/A | S44: N/A | T44: N/A | U44: N/A | V44: N/A | W44: N/A | X44: N/A | Y44: N/A | BB44: No | BC44: N/A | BD44: N/A | BE44: N/A | BF44: N/A | BG44: N/A | BH44: N/A | BI44: N/A | BJ44: N/A | BK44: N/A | BL44: N/A | BM44: N/A | BN44: N/A | BO44: N/A | BP44: N/A | BQ44: N/A | BR44: N/A | BS44: N/A | BT44: N/A | BU44: N/A | BV44: N/A | BW44: N/A | BX44: N/A | BY44: N/A
A45: Improved water source available when needed | B45: Yes | C45: N/A | D45: N/A | E45: N/A | F45: N/A | G45: N/A | H45: N/A | I45: N/A | J45: N/A | K45: N/A | L45: N/A | M45: N/A | N45: N/A | O45: N/A | P45: N/A | Q45: N/A | R45: N/A | S45: N/A | T45: N/A | U45: N/A | V45: N/A | W45: N/A | X45: N/A | Y45: N/A | BA45: Improved water source available when needed | BB45: Yes | BC45: N/A | BD45: N/A | BE45: N/A | BF45: N/A | BG45: N/A | BH45: N/A | BI45: N/A | BJ45: N/A | BK45: N/A | BL45: N/A | BM45: N/A | BN45: N/A | BO45: N/A | BP45: N/A | BQ45: N/A | BR45: N/A | BS45: N/A | BT45: N/A | BU45: N/A | BV45: N/A | BW45: N/A | BX45: N/A | BY45: N/A
B46: No | C46: N/A | D46: N/A | E46: N/A | F46: N/A | G46: N/A | H46: N/A | I46: N/A | J46: N/A | K46: N/A | L46: N/A | M46: N/A | N46: N/A | O46: N/A | P46: N/A | Q46: N/A | R46: N/A | S46: N/A | T46: N/A | U46: N/A | V46: N/A | W46: N/A | X46: N/A | Y46: N/A | BB46: No | BC46: N/A | BD46: N/A | BE46: N/A | BF46: N/A | BG46: N/A | BH46: N/A | BI46: N/A | BJ46: N/A | BK46: N/A | BL46: N/A | BM46: N/A | BN46: N/A | BO46: N/A | BP46: N/A | BQ46: N/A | BR46: N/A | BS46: N/A | BT46: N/A | BU46: N/A | BV46: N/A | BW46: N/A | BX46: N/A | BY46: N/A
A47: Microbiological quality at point of collection | B47: Not contaminated (No E. coli in 100 mL) | C47: N/A | D47: N/A | E47: N/A | F47: N/A | G47: N/A | H47: N/A | I47: N/A | J47: N/A | K47: N/A | L47: N/A | M47: N/A | N47: N/A | O47: N/A | P47: N/A | Q47: N/A | R47: N/A | S47: N/A | T47: N/A | U47: N/A | V47: N/A | W47: N/A | X47: N/A | Y47: N/A | BA47: Microbiological quality at point of collection | BB47: Not contaminated (No E. coli in 100 mL) | BC47: N/A | BD47: N/A | BE47: N/A | BF47: N/A | BG47: N/A | BH47: N/A | BI47: N/A | BJ47: N/A | BK47: N/A | BL47: N/A | BM47: N/A | BN47: N/A | BO47: N/A | BP47: N/A | BQ47: N/A | BR47: N/A | BS47: N/A | BT47: N/A | BU47: N/A | BV47: N/A | BW47: N/A | BX47: N/A | BY47: N/A
B48: Contaminated (E. coli detected in 100 mL) | C48: N/A | D48: N/A | E48: N/A | F48: N/A | G48: N/A | H48: N/A | I48: N/A | J48: N/A | K48: N/A | L48: N/A | M48: N/A | N48: N/A | O48: N/A | P48: N/A | Q48: N/A | R48: N/A | S48: N/A | T48: N/A | U48: N/A | V48: N/A | W48: N/A | X48: N/A | Y48: N/A | BB48: Contaminated (E. coli detected in 100 mL) | BC48: N/A | BD48: N/A | BE48: N/A | BF48: N/A | BG48: N/A | BH48: N/A | BI48: N/A | BJ48: N/A | BK48: N/A | BL48: N/A | BM48: N/A | BN48: N/A | BO48: N/A | BP48: N/A | BQ48: N/A | BR48: N/A | BS48: N/A | BT48: N/A | BU48: N/A | BV48: N/A | BW48: N/A | BX48: N/A | BY48: N/A
B49: Highly contaminated (>100 CFU/100 mL) | C49: N/A | D49: N/A | E49: N/A | F49: N/A | G49: N/A | H49: N/A | I49: N/A | J49: N/A | K49: N/A | L49: N/A | M49: N/A | N49: N/A | O49: N/A | P49: N/A | Q49: N/A | R49: N/A | S49: N/A | T49: N/A | U49: N/A | V49: N/A | W49: N/A | X49: N/A | Y49: N/A | BB49: Highly contaminated (>100 CFU/100 mL) | BC49: N/A | BD49: N/A | BE49: N/A | BF49: N/A | BG49: N/A | BH49: N/A | BI49: N/A | BJ49: N/A | BK49: N/A | BL49: N/A | BM49: N/A | BN49: N/A | BO49: N/A | BP49: N/A | BQ49: N/A | BR49: N/A | BS49: N/A | BT49: N/A | BU49: N/A | BV49: N/A | BW49: N/A | BX49: N/A | BY49: N/A
A50: Microbiological quality of improved water sources at point of collection | B50: Not contaminated (No E. coli in 100 mL) | C50: N/A | D50: N/A | E50: N/A | F50: N/A | G50: N/A | H50: N/A | I50: N/A | J50: N/A | K50: N/A | L50: N/A | M50: N/A | N50: N/A | O50: N/A | P50: N/A | Q50: N/A | R50: N/A | S50: N/A | T50: N/A | U50: N/A | V50: N/A | W50: N/A | X50: N/A | Y50: N/A | BA50: Microbiological quality of improved water sources at point of collection | BB50: Not contaminated (No E. coli in 100 mL) | BC50: N/A | BD50: N/A | BE50: N/A | BF50: N/A | BG50: N/A | BH50: N/A | BI50: N/A | BJ50: N/A | BK50: N/A | BL50: N/A | BM50: N/A | BN50: N/A | BO50: N/A | BP50: N/A | BQ50: N/A | BR50: N/A | BS50: N/A | BT50: N/A | BU50: N/A | BV50: N/A | BW50: N/A | BX50: N/A | BY50: N/A
B51: Contaminated (E. coli detected in 100 mL) | C51: N/A | D51: N/A | E51: N/A | F51: N/A | G51: N/A | H51: N/A | I51: N/A | J51: N/A | K51: N/A | L51: N/A | M51: N/A | N51: N/A | O51: N/A | P51: N/A | Q51: N/A | R51: N/A | S51: N/A | T51: N/A | U51: N/A | V51: N/A | W51: N/A | X51: N/A | Y51: N/A | BB51: Contaminated (E. coli detected in 100 mL) | BC51: N/A | BD51: N/A | BE51: N/A | BF51: N/A | BG51: N/A | BH51: N/A | BI51: N/A | BJ51: N/A | BK51: N/A | BL51: N/A | BM51: N/A | BN51: N/A | BO51: N/A | BP51: N/A | BQ51: N/A | BR51: N/A | BS51: N/A | BT51: N/A | BU51: N/A | BV51: N/A | BW51: N/A | BX51: N/A | BY51: N/A
B52: Highly contaminated (>100 CFU/100 mL) | C52: N/A | D52: N/A | E52: N/A | F52: N/A | G52: N/A | H52: N/A | I52: N/A | J52: N/A | K52: N/A | L52: N/A | M52: N/A | N52: N/A | O52: N/A | P52: N/A | Q52: N/A | R52: N/A | S52: N/A | T52: N/A | U52: N/A | V52: N/A | W52: N/A | X52: N/A | Y52: N/A | BB52: Highly contaminated (>100 CFU/100 mL) | BC52: N/A | BD52: N/A | BE52: N/A | BF52: N/A | BG52: N/A | BH52: N/A | BI52: N/A | BJ52: N/A | BK52: N/A | BL52: N/A | BM52: N/A | BN52: N/A | BO52: N/A | BP52: N/A | BQ52: N/A | BR52: N/A | BS52: N/A | BT52: N/A | BU52: N/A | BV52: N/A | BW52: N/A | BX52: N/A | BY52: N/A
A53: Microbiological quality of piped on premises at point of collection | B53: Not contaminated (No E. coli in 100 mL) | C53: N/A | D53: N/A | E53: N/A | F53: N/A | G53: N/A | H53: N/A | I53: N/A | J53: N/A | K53: N/A | L53: N/A | M53: N/A | N53: N/A | O53: N/A | P53: N/A | Q53: N/A | R53: N/A | S53: N/A | T53: N/A | U53: N/A | V53: N/A | W53: N/A | X53: N/A | Y53: N/A | BA53: Microbiological quality of piped on premises at point of collection | BB53: Not contaminated (No E. coli in 100 mL) | BC53: N/A | BD53: N/A | BE53: N/A | BF53: N/A | BG53: N/A | BH53: N/A | BI53: N/A | BJ53: N/A | BK53: N/A | BL53: N/A | BM53: N/A | BN53: N/A | BO53: N/A | BP53: N/A | BQ53: N/A | BR53: N/A | BS53: N/A | BT53: N/A | BU53: N/A | BV53: N/A | BW53: N/A | BX53: N/A | BY53: N/A
B54: Contaminated (E. coli detected in 100 mL) | C54: N/A | D54: N/A | E54: N/A | F54: N/A | G54: N/A | H54: N/A | I54: N/A | J54: N/A | K54: N/A | L54: N/A | M54: N/A | N54: N/A | O54: N/A | P54: N/A | Q54: N/A | R54: N/A | S54: N/A | T54: N/A | U54: N/A | V54: N/A | W54: N/A | X54: N/A | Y54: N/A | BB54: Contaminated (E. coli detected in 100 mL) | BC54: N/A | BD54: N/A | BE54: N/A | BF54: N/A | BG54: N/A | BH54: N/A | BI54: N/A | BJ54: N/A | BK54: N/A | BL54: N/A | BM54: N/A | BN54: N/A | BO54: N/A | BP54: N/A | BQ54: N/A | BR54: N/A | BS54: N/A | BT54: N/A | BU54: N/A | BV54: N/A | BW54: N/A | BX54: N/A | BY54: N/A
B55: Highly contaminated (>100 CFU/100 mL) | C55: N/A | D55: N/A | E55: N/A | F55: N/A | G55: N/A | H55: N/A | I55: N/A | J55: N/A | K55: N/A | L55: N/A | M55: N/A | N55: N/A | O55: N/A | P55: N/A | Q55: N/A | R55: N/A | S55: N/A | T55: N/A | U55: N/A | V55: N/A | W55: N/A | X55: N/A | Y55: N/A | BB55: Highly contaminated (>100 CFU/100 mL) | BC55: N/A | BD55: N/A | BE55: N/A | BF55: N/A | BG55: N/A | BH55: N/A | BI55: N/A | BJ55: N/A | BK55: N/A | BL55: N/A | BM55: N/A | BN55: N/A | BO55: N/A | BP55: N/A | BQ55: N/A | BR55: N/A | BS55: N/A | BT55: N/A | BU55: N/A | BV55: N/A | BW55: N/A | BX55: N/A | BY55: N/A
C56: NATIONAL wealth index quintile | H56: URBAN wealth index quintile | M56: RURAL wealth index quintile | R56: SUB-REGIONS: | BA56: Raw numbers of respondents: | BB56: Use of drinking water sources | BC56: NATIONAL wealth index quintile | BH56: URBAN wealth index quintile | BM56: RURAL wealth index quintile | BR56: SUB-REGIONS:
A57: Percentage based on weighted population | C57: Poorest | D57: Poor | E57: Middle | F57: Rich | G57: Richest | H57: Poorest | I57: Poor | J57: Middle | K57: Rich | L57: Richest | M57: Poorest | N57: Poor | O57: Middle | P57: Rich | Q57: Richest | R57: Central | S57: Metropolitana | T57: Nor-Oriente | U57: Nor-Occidente | V57: Norte | W57: Peten | X57: Sur-Occidente | Y57: Sur-Oriente | BA57: Water data, raw numbers (weighted) | BC57: Poorest | BD57: Poor | BE57: Middle | BF57: Rich | BG57: Richest | BH57: Poorest | BI57: Poor | BJ57: Middle | BK57: Rich | BL57: Richest | BM57: Poorest | BN57: Poor | BO57: Middle | BP57: Rich | BQ57: Richest | BR57: Central | BS57: Metropolitana | BT57: Nor-Oriente | BU57: Nor-Occidente | BV57: Norte | BW57: Peten | BX57: Sur-Occidente | BY57: Sur-Oriente
A58: ¿De dónde obtienen principalmente el agua para consumo de los miembros del hogar? | B58: Tuberia dentro de la vivienda | C58: 23.5 | D58: 43.9 | E58: 51 | F58: 61.1 | G58: 86.4 | H58: 54.1 | I58: 70.4 | J58: 74.9 | K58: 84.9 | L58: 93.9 | M58: 18 | N58: 33.9 | O58: 40.7 | P58: 42.5 | Q58: 60.6 | R58: 61.5 | S58: 86.1 | T58: 49.1 | U58: 52.9 | V58: 35.2 | W58: 49.1 | X58: 53.5 | Y58: 41.4
B59: Tuberia fuera de la vivienda, pero dentro del terreno | C59: 23 | D59: 23.1 | E59: 21 | F59: 17.8 | G59: 7 | H59: 22.1 | I59: 14.3 | J59: 14.4 | K59: 9 | L59: 3.6 | M59: 22.1 | N59: 24.1 | O59: 23.6 | P59: 23.5 | Q59: 16.3 | R59: 15.3 | S59: 1.7 | T59: 24.2 | U59: 14 | V59: 19.9 | W59: 17.9 | X59: 16.3 | Y59: 30
B60: Chorro Público | C60: 2.6 | D60: 2.9 | E60: 2.8 | F60: 1.5 | G60: 0.2 | H60: 2.6 | I60: 2.1 | J60: 0.4 | K60: 0 | L60: 0.2 | M60: 2.4 | N60: 2.5 | O60: 3.7 | P60: 2.6 | Q60: 1.7 | R60: 3.2 | S60: 0.4 | T60: 2.7 | U60: 3.5 | V60: 1.3 | W60: 0 | X60: 1 | Y60: 2.2
B61: Pozo perforado público o privado | C61: 19.7 | D61: 14.1 | E61: 14.9 | F61: 12.2 | G61: 3.6 | H61: 6.2 | I61: 6.5 | J61: 5.4 | K61: 3.6 | L61: 1.6 | M61: 21.6 | N61: 19 | O61: 15.8 | P61: 20.6 | Q61: 13.2 | R61: 13.8 | S61: 3.8 | T61: 9.7 | U61: 10 | V61: 9.5 | W61: 11.3 | X61: 19.9 | Y61: 9.8
B62: Río, lago, manantial | C62: 20.5 | D62: 9.4 | E62: 6.1 | F62: 4.2 | G62: 1 | H62: 2.4 | I62: 1.9 | J62: 2 | K62: 0.6 | L62: 0 | M62: 25.6 | N62: 13.7 | O62: 10.9 | P62: 7.2 | Q62: 5.1 | R62: 1.2 | S62: 0.6 | T62: 9.3 | U62: 14.9 | V62: 18.8 | W62: 16.1 | X62: 6 | Y62: 12.3
B63: Camión cisterna | C63: 1 | D63: 0.2 | E63: 0.4 | F63: 0.5 | G63: 0.6 | H63: 0.9 | I63: 0.5 | J63: 0.2 | K63: 0.6 | L63: 0.3 | M63: 1 | N63: 0.1 | O63: 0.3 | P63: 0.5 | Q63: 0.9 | R63: 0.4 | S63: 4.4 | T63: 0.8 | U63: 0 | V63: 0 | W63: 0 | X63: 0 | Y63: 0
B64: Agua de Lluvia | C64: 2.3 | D64: 1.2 | E64: 0.7 | F64: 0.2 | G64: 0.1 | H64: 0.1 | I64: 0.2 | J64: 0.1 | K64: 0 | L64: 0.2 | M64: 2.9 | N64: 2 | O64: 1.4 | P64: 0.5 | Q64: 0.2 | R64: 0 | S64: 0.1 | T64: 0.4 | U64: 0.9 | V64: 9.7 | W64: 0.2 | X64: 0.1 | Y64: 0
B65: Otro, Cuál | C65: 7.3 | D65: 5.4 | E65: 3.2 | F65: 2.7 | G65: 1 | H65: 11.6 | I65: 4.2 | J65: 2.7 | K65: 1.3 | L65: 0.3 | M65: 6.4 | N65: 4.7 | O65: 3.6 | P65: 2.6 | Q65: 2 | R65: 4.6 | S65: 2.9 | T65: 3.8 | U65: 3.9 | V65: 5.6 | W65: 5.4 | X65: 3.2 | Y65: 4.3
A108: =A1026 -> Guatemala
A109: =A1034 -> 2011
A110: Use of sanitation facilities
A111: by wealth quintile and sub-national region
A112: Notes:
A113: WHO/UNICEF JMP customised wealth index excludes water,
A114: sanitation and hygiene assets.
A115: Survey used for analysis: | B115: =A1025 -> ENCOVI11
A116: =B1030 -> Ratio of Improved latrines based on: | B116: 50%Rule
A117: =B1029 -> Ratio of Shared improved based on: | B117: Shared sanitation
A120: Use of sanitation facilities | C120: NATIONAL wealth index quintile | H120: URBAN wealth index quintile | M120: RURAL wealth index quintile | R120: SUB-REGIONS: | BA120: Raw numbers of respondents: | BB120: Use of sanitation facilities | BC120: NATIONAL wealth index quintile | BH120: URBAN wealth index quintile | BM120: RURAL wealth index quintile | BR120: SUB-REGIONS:
A121: Weighted percentage (used in graphs) | C121: Poorest | D121: Poor | E121: Middle | F121: Rich | G121: Richest | H121: Poorest | I121: Poor | J121: Middle | K121: Rich | L121: Richest | M121: Poorest | N121: Poor | O121: Middle | P121: Rich | Q121: Richest | R121: Central | S121: Metropolitana | T121: Nor-Oriente | U121: Nor-Occidente | V121: Norte | W121: Peten | X121: Sur-Occidente | Y121: Sur-Oriente | BA121: Sanitation data, raw numbers (weighted) | BC121: Poorest | BD121: Poor | BE121: Middle | BF121: Rich | BG121: Richest | BH121: Poorest | BI121: Poor | BJ121: Middle | BK121: Rich | BL121: Richest | BM121: Poorest | BN121: Poor | BO121: Middle | BP121: Rich | BQ121: Richest | BR121: Central | BS121: Metropolitana | BT121: Nor-Oriente | BU121: Nor-Occidente | BV121: Norte | BW121: Peten | BX121: Sur-Occidente | BY121: Sur-Oriente
A122: Sanitation | B122: Improved | C122: =C153+C154+C155+C156*0.5 -> 44.25833593 | D122: =D153+D154+D155+D156*0.5 -> 52.29025473 | E122: 67.85575955 | F122: 81.15839799 | G122: 96.123578 | H122: 69.68864469 | I122: 83.844747 | J122: 91.58435799 | K122: 96.1405647 | L122: 99.34103812 | M122: 39.81024668 | N122: 42.59023894 | O122: 52.61127972 | P122: 63.94836272 | Q122: 80.754144 | R122: 84.29477499 | S122: 91.61057692 | T122: 68.05759624 | U122: 56.26107501 | V122: 57.45705907 | W122: 52.23300971 | X122: 65.16336988 | Y122: 60.75998752 | BA122: Sanitation | BB122: Improved | BC122: N/A | BD122: N/A | BE122: N/A | BF122: N/A | BG122: N/A | BH122: N/A | BI122: N/A | BJ122: N/A | BK122: N/A | BL122: N/A | BM122: N/A | BN122: N/A | BO122: N/A | BP122: N/A | BQ122: N/A | BR122: N/A | BS122: N/A | BT122: N/A | BU122: N/A | BV122: N/A | BW122: N/A | BX122: N/A | BY122: N/A
B123: Not Improved | C123: =C157+C156*0.5 -> 55.74166407 | D123: =D157+D156*0.5 -> 47.70974527 | E123: 32.14424045 | F123: 18.84160201 | G123: 3.876422004 | H123: 30.31135531 | I123: 16.155253 | J123: 8.415642008 | K123: 3.859435304 | L123: 0.6589618816 | M123: 60.18975332 | N123: 57.40976106 | O123: 47.38872028 | P123: 36.05163728 | Q123: 19.245856 | R123: 15.70522501 | S123: 8.389423077 | T123: 31.94240376 | U123: 43.73892499 | V123: 42.54294093 | W123: 47.76699029 | X123: 34.83663012 | Y123: 39.24001248 | BB123: Not Improved | BC123: N/A | BD123: N/A | BE123: N/A | BF123: N/A | BG123: N/A | BH123: N/A | BI123: N/A | BJ123: N/A | BK123: N/A | BL123: N/A | BM123: N/A | BN123: N/A | BO123: N/A | BP123: N/A | BQ123: N/A | BR123: N/A | BS123: N/A | BT123: N/A | BU123: N/A | BV123: N/A | BW123: N/A | BX123: N/A | BY123: N/A
A124: Sanitation ladder | B124: Basic | C124: =C122*C152/100 -> 37.4898485 | D124: =D122*D152/100 -> 44.89542931 | E124: 58.60142827 | F124: 71.27208016 | G124: 89.07727886 | H124: 54.09519823 | I124: 67.95397201 | J124: 78.33536599 | K124: 85.88268343 | L124: 95.34560331 | M124: 34.54103953 | N124: 37.21627626 | O124: 46.47420226 | P124: 56.45568215 | Q124: 74.72236411 | R124: 70.21614944 | S124: 76.787941 | T124: 60.3526285 | U124: 52.33588373 | V124: 53.49945759 | W124: 46.84412859 | X124: 56.63130957 | Y124: 54.40449282 | BA124: Sanitation ladder | BB124: Basic | BC124: N/A | BD124: N/A | BE124: N/A | BF124: N/A | BG124: N/A | BH124: N/A | BI124: N/A | BJ124: N/A | BK124: N/A | BL124: N/A | BM124: N/A | BN124: N/A | BO124: N/A | BP124: N/A | BQ124: N/A | BR124: N/A | BS124: N/A | BT124: N/A | BU124: N/A | BV124: N/A | BW124: N/A | BX124: N/A | BY124: N/A
B125: Limited | C125: =C122*C151/100 -> 6.768487427 | D125: =D122*D151/100 -> 7.39482542 | E125: 9.254331278 | F125: 9.886317834 | G125: 7.046299132 | H125: 15.59344645 | I125: 15.89077499 | J125: 13.24899201 | K125: 10.25788126 | L125: 3.995434805 | M125: 5.269207154 | N125: 5.373962678 | O125: 6.13707746 | P125: 7.492680575 | Q125: 6.031779886 | R125: 14.07862555 | S125: 14.82263593 | T125: 7.704967736 | U125: 3.92519128 | V125: 3.957601477 | W125: 5.388881117 | X125: 8.532060312 | Y125: 6.355494694 | BB125: Limited | BC125: N/A | BD125: N/A | BE125: N/A | BF125: N/A | BG125: N/A | BH125: N/A | BI125: N/A | BJ125: N/A | BK125: N/A | BL125: N/A | BM125: N/A | BN125: N/A | BO125: N/A | BP125: N/A | BQ125: N/A | BR125: N/A | BS125: N/A | BT125: N/A | BU125: N/A | BV125: N/A | BW125: N/A | BX125: N/A | BY125: N/A
B126: Unimproved | C126: =100-(C124+C125+C127) -> 30.4378311 | D126: =100-(D124+D125+D127) -> 32.44917037 | E126: 26.00123945 | F126: 15.87898738 | G126: 3.502415459 | H126: 20.17704518 | I126: 14.04186141 | J126: 7.407780689 | K126: 3.290676417 | L126: 0.598134631 | M126: 32.68817204 | N126: 34.9517031 | O126: 33.22584724 | P126: 30.28337531 | Q126: 16.41148931 | R126: 11.60777207 | S126: 7.1875 | T126: 16.69115486 | U126: 31.66962 | V126: 34.64599916 | W126: 31.99029126 | X126: 28.15306628 | Y126: 17.93851436 | BB126: Unimproved | BC126: N/A | BD126: N/A | BE126: N/A | BF126: N/A | BG126: N/A | BH126: N/A | BI126: N/A | BJ126: N/A | BK126: N/A | BL126: N/A | BM126: N/A | BN126: N/A | BO126: N/A | BP126: N/A | BQ126: N/A | BR126: N/A | BS126: N/A | BT126: N/A | BU126: N/A | BV126: N/A | BW126: N/A | BX126: N/A | BY126: N/A
B127: Open defecation | C127: =C157 -> 25.30383297 | D127: =D157 -> 15.2605749 | E127: 6.143001007 | F127: 2.962614625 | G127: 0.3740065451 | H127: 10.13431013 | I127: 2.113391587 | J127: 1.007861318 | K127: 0.5687588869 | L127: 0.06082725061 | M127: 27.50158128 | N127: 22.45805796 | O127: 14.16287304 | P127: 5.768261965 | Q127: 2.834366696 | R127: 4.097452935 | S127: 1.201923077 | T127: 15.2512489 | U127: 12.06930498 | V127: 7.896941768 | W127: 15.77669903 | X127: 6.683563833 | Y127: 21.30149813 | BB127: Open defecation | BC127: N/A | BD127: N/A | BE127: N/A | BF127: N/A | BG127: N/A | BH127: N/A | BI127: N/A | BJ127: N/A | BK127: N/A | BL127: N/A | BM127: N/A | BN127: N/A | BO127: N/A | BP127: N/A | BQ127: N/A | BR127: N/A | BS127: N/A | BT127: N/A | BU127: N/A | BV127: N/A | BW127: N/A | BX127: N/A | BY127: N/A
A128: Shared among Improved Sanitation | B128: Yes | C128: N/A | D128: N/A | E128: N/A | F128: N/A | G128: N/A | H128: N/A | I128: N/A | J128: N/A | K128: N/A | L128: N/A | M128: N/A | N128: N/A | O128: N/A | P128: N/A | Q128: N/A | R128: N/A | S128: N/A | T128: N/A | U128: N/A | V128: N/A | W128: N/A | X128: N/A | Y128: N/A | BA128: Shared among improved sanitation facilities | BB128: Yes | BC128: N/A | BD128: N/A | BE128: N/A | BF128: N/A | BG128: N/A | BH128: N/A | BI128: N/A | BJ128: N/A | BK128: N/A | BL128: N/A | BM128: N/A | BN128: N/A | BO128: N/A | BP128: N/A | BQ128: N/A | BR128: N/A | BS128: N/A | BT128: N/A | BU128: N/A | BV128: N/A | BW128: N/A | BX128: N/A | BY128: N/A
B129: No | C129: N/A | D129: N/A | E129: N/A | F129: N/A | G129: N/A | H129: N/A | I129: N/A | J129: N/A | K129: N/A | L129: N/A | M129: N/A | N129: N/A | O129: N/A | P129: N/A | Q129: N/A | R129: N/A | S129: N/A | T129: N/A | U129: N/A | V129: N/A | W129: N/A | X129: N/A | Y129: N/A | BB129: No | BC129: N/A | BD129: N/A | BE129: N/A | BF129: N/A | BG129: N/A | BH129: N/A | BI129: N/A | BJ129: N/A | BK129: N/A | BL129: N/A | BM129: N/A | BN129: N/A | BO129: N/A | BP129: N/A | BQ129: N/A | BR129: N/A | BS129: N/A | BT129: N/A | BU129: N/A | BV129: N/A | BW129: N/A | BX129: N/A | BY129: N/A
A130: Manually calculated ratios | B130: Improved latrines
B131: Other
B132: Other
C133: NATIONAL wealth index quintile | H133: URBAN wealth index quintile | M133: RURAL wealth index quintile | R133: SUB-REGIONS: | BA133: Raw numbers of respondents: | BB133: Use of sanitation facilities | BC133: NATIONAL wealth index quintile | BH133: URBAN wealth index quintile | BM133: RURAL wealth index quintile | BR133: SUB-REGIONS:
A134: Percentage based on weighted population | C134: Poorest | D134: Poor | E134: Middle | F134: Rich | G134: Richest | H134: Poorest | I134: Poor | J134: Middle | K134: Rich | L134: Richest | M134: Poorest | N134: Poor | O134: Middle | P134: Rich | Q134: Richest | R134: Central | S134: Metropolitana | T134: Nor-Oriente | U134: Nor-Occidente | V134: Norte | W134: Peten | X134: Sur-Occidente | Y134: Sur-Oriente | BA134: Sanitation data, raw numbers (weighted) | BC134: Poorest | BD134: Poor | BE134: Middle | BF134: Rich | BG134: Richest | BH134: Poorest | BI134: Poor | BJ134: Middle | BK134: Rich | BL134: Richest | BM134: Poorest | BN134: Poor | BO134: Middle | BP134: Rich | BQ134: Richest | BR134: Central | BS134: Metropolitana | BT134: Nor-Oriente | BU134: Nor-Occidente | BV134: Norte | BW134: Peten | BX134: Sur-Occidente | BY134: Sur-Oriente
A135: Sanitation type | B135: Sewer connection | C135: 6.738859458 | D135: 9.932227156 | E135: 23.38678441 | F135: 40.19123756 | G135: 77.8245286 | H135: 34.96133496 | I135: 57.42735216 | J135: 69.3408587 | K135: 80.56063376 | L135: 94.07948094 | M135: 2.125237192 | N135: 1.359938993 | O135: 5.336368235 | P135: 9.899244332 | Q135: 27.8628369 | R135: 60.40471157 | S135: 73.72596154 | T135: 26.42521305 | U135: 15.55424296 | V135: 11.98156682 | W135: 3.640776699 | X135: 27.10342168 | Y135: 19.58489388 | BA135: Sanitation type | BB135: Sewer connection | BC135: N/A | BD135: N/A | BE135: N/A | BF135: N/A | BG135: N/A | BH135: N/A | BI135: N/A | BJ135: N/A | BK135: N/A | BL135: N/A | BM135: N/A | BN135: N/A | BO135: N/A | BP135: N/A | BQ135: N/A | BR135: N/A | BS135: N/A | BT135: N/A | BU135: N/A | BV135: N/A | BW135: N/A | BX135: N/A | BY135: N/A
B136: Septic tank connection | C136: 2.679962605 | D136: 4.977798551 | E136: 9.96978852 | F136: 13.66878282 | G136: 7.433380084 | H136: 4.436304436 | I136: 5.120910384 | J136: 8.062890546 | K136: 5.037578712 | L136: 2.169505272 | M136: 2.707147375 | N136: 3.139298424 | O136: 8.118361153 | P136: 12.70780856 | Q136: 20.63773251 | R136: 6.644518272 | S136: 4.0625 | T136: 14.78107552 | U136: 4.430005907 | V136: 5.634687893 | W136: 6.359223301 | X136: 4.160008816 | Y136: 11.65730337 | BB136: Septic tank connection | BC136: N/A | BD136: N/A | BE136: N/A | BF136: N/A | BG136: N/A | BH136: N/A | BI136: N/A | BJ136: N/A | BK136: N/A | BL136: N/A | BM136: N/A | BN136: N/A | BO136: N/A | BP136: N/A | BQ136: N/A | BR136: N/A | BS136: N/A | BT136: N/A | BU136: N/A | BV136: N/A | BW136: N/A | BX136: N/A | BY136: N/A
B137: Improved latrines | C137: N/A | D137: N/A | E137: N/A | F137: N/A | G137: N/A | H137: N/A | I137: N/A | J137: N/A | K137: N/A | L137: N/A | M137: N/A | N137: N/A | O137: N/A | P137: N/A | Q137: N/A | R137: N/A | S137: N/A | T137: N/A | U137: N/A | V137: N/A | W137: N/A | X137: N/A | Y137: N/A | BB137: Improved latrines | BC137: N/A | BD137: N/A | BE137: N/A | BF137: N/A | BG137: N/A | BH137: N/A | BI137: N/A | BJ137: N/A | BK137: N/A | BL137: N/A | BM137: N/A | BN137: N/A | BO137: N/A | BP137: N/A | BQ137: N/A | BR137: N/A | BS137: N/A | BT137: N/A | BU137: N/A | BV137: N/A | BW137: N/A | BX137: N/A | BY137: N/A
B138: Unimproved facilities | C138: N/A | D138: N/A | E138: N/A | F138: N/A | G138: N/A | H138: N/A | I138: N/A | J138: N/A | K138: N/A | L138: N/A | M138: N/A | N138: N/A | O138: N/A | P138: N/A | Q138: N/A | R138: N/A | S138: N/A | T138: N/A | U138: N/A | V138: N/A | W138: N/A | X138: N/A | Y138: N/A | BB138: Unimproved facilities | BC138: N/A | BD138: N/A | BE138: N/A | BF138: N/A | BG138: N/A | BH138: N/A | BI138: N/A | BJ138: N/A | BK138: N/A | BL138: N/A | BM138: N/A | BN138: N/A | BO138: N/A | BP138: N/A | BQ138: N/A | BR138: N/A | BS138: N/A | BT138: N/A | BU138: N/A | BV138: N/A | BW138: N/A | BX138: N/A | BY138: N/A
B139: Open defecation | C139: 25.30383297 | D139: 15.2605749 | E139: 6.143001007 | F139: 2.962614625 | G139: 0.3740065451 | H139: 10.13431013 | I139: 2.113391587 | J139: 1.007861318 | K139: 0.5687588869 | L139: 0.06082725061 | M139: 27.50158128 | N139: 22.45805796 | O139: 14.16287304 | P139: 5.768261965 | Q139: 2.834366696 | R139: 4.097452935 | S139: 1.201923077 | T139: 15.2512489 | U139: 12.06930498 | V139: 7.896941768 | W139: 15.77669903 | X139: 6.683563833 | Y139: 21.30149813 | BB139: Open defecation | BC139: N/A | BD139: N/A | BE139: N/A | BF139: N/A | BG139: N/A | BH139: N/A | BI139: N/A | BJ139: N/A | BK139: N/A | BL139: N/A | BM139: N/A | BN139: N/A | BO139: N/A | BP139: N/A | BQ139: N/A | BR139: N/A | BS139: N/A | BT139: N/A | BU139: N/A | BV139: N/A | BW139: N/A | BX139: N/A | BY139: N/A
A140: Septic tank emptying practices | B140: Not emptied/treated and disposed in situ | C140: N/A | D140: N/A | E140: N/A | F140: N/A | G140: N/A | H140: N/A | I140: N/A | J140: N/A | K140: N/A | L140: N/A | M140: N/A | N140: N/A | O140: N/A | P140: N/A | Q140: N/A | R140: N/A | S140: N/A | T140: N/A | U140: N/A | V140: N/A | W140: N/A | X140: N/A | Y140: N/A | BA140: Septic tank emptying practices | BB140: Not emptied/treated and disposed in situ | BC140: N/A | BD140: N/A | BE140: N/A | BF140: N/A | BG140: N/A | BH140: N/A | BI140: N/A | BJ140: N/A | BK140: N/A | BL140: N/A | BM140: N/A | BN140: N/A | BO140: N/A | BP140: N/A | BQ140: N/A | BR140: N/A | BS140: N/A | BT140: N/A | BU140: N/A | BV140: N/A | BW140: N/A | BX140: N/A | BY140: N/A
B141: Emptied and buried on site | C141: N/A | D141: N/A | E141: N/A | F141: N/A | G141: N/A | H141: N/A | I141: N/A | J141: N/A | K141: N/A | L141: N/A | M141: N/A | N141: N/A | O141: N/A | P141: N/A | Q141: N/A | R141: N/A | S141: N/A | T141: N/A | U141: N/A | V141: N/A | W141: N/A | X141: N/A | Y141: N/A | BB141: Emptied and buried on site | BC141: N/A | BD141: N/A | BE141: N/A | BF141: N/A | BG141: N/A | BH141: N/A | BI141: N/A | BJ141: N/A | BK141: N/A | BL141: N/A | BM141: N/A | BN141: N/A | BO141: N/A | BP141: N/A | BQ141: N/A | BR141: N/A | BS141: N/A | BT141: N/A | BU141: N/A | BV141: N/A | BW141: N/A | BX141: N/A | BY141: N/A
B142: Emptied and discharged locally | C142: N/A | D142: N/A | E142: N/A | F142: N/A | G142: N/A | H142: N/A | I142: N/A | J142: N/A | K142: N/A | L142: N/A | M142: N/A | N142: N/A | O142: N/A | P142: N/A | Q142: N/A | R142: N/A | S142: N/A | T142: N/A | U142: N/A | V142: N/A | W142: N/A | X142: N/A | Y142: N/A | BB142: Emptied and discharged locally | BC142: N/A | BD142: N/A | BE142: N/A | BF142: N/A | BG142: N/A | BH142: N/A | BI142: N/A | BJ142: N/A | BK142: N/A | BL142: N/A | BM142: N/A | BN142: N/A | BO142: N/A | BP142: N/A | BQ142: N/A | BR142: N/A | BS142: N/A | BT142: N/A | BU142: N/A | BV142: N/A | BW142: N/A | BX142: N/A | BY142: N/A
B143: Emptied and removed offsite | C143: N/A | D143: N/A | E143: N/A | F143: N/A | G143: N/A | H143: N/A | I143: N/A | J143: N/A | K143: N/A | L143: N/A | M143: N/A | N143: N/A | O143: N/A | P143: N/A | Q143: N/A | R143: N/A | S143: N/A | T143: N/A | U143: N/A | V143: N/A | W143: N/A | X143: N/A | Y143: N/A | BB143: Emptied and removed offsite | BC143: N/A | BD143: N/A | BE143: N/A | BF143: N/A | BG143: N/A | BH143: N/A | BI143: N/A | BJ143: N/A | BK143: N/A | BL143: N/A | BM143: N/A | BN143: N/A | BO143: N/A | BP143: N/A | BQ143: N/A | BR143: N/A | BS143: N/A | BT143: N/A | BU143: N/A | BV143: N/A | BW143: N/A | BX143: N/A | BY143: N/A
A144: Latrine emptying practices | B144: Not emptied/treated and disposed in situ | C144: N/A | D144: N/A | E144: N/A | F144: N/A | G144: N/A | H144: N/A | I144: N/A | J144: N/A | K144: N/A | L144: N/A | M144: N/A | N144: N/A | O144: N/A | P144: N/A | Q144: N/A | R144: N/A | S144: N/A | T144: N/A | U144: N/A | V144: N/A | W144: N/A | X144: N/A | Y144: N/A | BA144: Latrine emptying practices | BB144: Not emptied/treated and disposed in situ | BC144: N/A | BD144: N/A | BE144: N/A | BF144: N/A | BG144: N/A | BH144: N/A | BI144: N/A | BJ144: N/A | BK144: N/A | BL144: N/A | BM144: N/A | BN144: N/A | BO144: N/A | BP144: N/A | BQ144: N/A | BR144: N/A | BS144: N/A | BT144: N/A | BU144: N/A | BV144: N/A | BW144: N/A | BX144: N/A | BY144: N/A
B145: Emptied and buried on site | C145: N/A | D145: N/A | E145: N/A | F145: N/A | G145: N/A | H145: N/A | I145: N/A | J145: N/A | K145: N/A | L145: N/A | M145: N/A | N145: N/A | O145: N/A | P145: N/A | Q145: N/A | R145: N/A | S145: N/A | T145: N/A | U145: N/A | V145: N/A | W145: N/A | X145: N/A | Y145: N/A | BB145: Emptied and buried on site | BC145: N/A | BD145: N/A | BE145: N/A | BF145: N/A | BG145: N/A | BH145: N/A | BI145: N/A | BJ145: N/A | BK145: N/A | BL145: N/A | BM145: N/A | BN145: N/A | BO145: N/A | BP145: N/A | BQ145: N/A | BR145: N/A | BS145: N/A | BT145: N/A | BU145: N/A | BV145: N/A | BW145: N/A | BX145: N/A | BY145: N/A
B146: Emptied and discharged locally | C146: N/A | D146: N/A | E146: N/A | F146: N/A | G146: N/A | H146: N/A | I146: N/A | J146: N/A | K146: N/A | L146: N/A | M146: N/A | N146: N/A | O146: N/A | P146: N/A | Q146: N/A | R146: N/A | S146: N/A | T146: N/A | U146: N/A | V146: N/A | W146: N/A | X146: N/A | Y146: N/A | BB146: Emptied and discharged locally | BC146: N/A | BD146: N/A | BE146: N/A | BF146: N/A | BG146: N/A | BH146: N/A | BI146: N/A | BJ146: N/A | BK146: N/A | BL146: N/A | BM146: N/A | BN146: N/A | BO146: N/A | BP146: N/A | BQ146: N/A | BR146: N/A | BS146: N/A | BT146: N/A | BU146: N/A | BV146: N/A | BW146: N/A | BX146: N/A | BY146: N/A
B147: Emptied and removed offsite | C147: N/A | D147: N/A | E147: N/A | F147: N/A | G147: N/A | H147: N/A | I147: N/A | J147: N/A | K147: N/A | L147: N/A | M147: N/A | N147: N/A | O147: N/A | P147: N/A | Q147: N/A | R147: N/A | S147: N/A | T147: N/A | U147: N/A | V147: N/A | W147: N/A | X147: N/A | Y147: N/A | BB147: Emptied and removed offsite | BC147: N/A | BD147: N/A | BE147: N/A | BF147: N/A | BG147: N/A | BH147: N/A | BI147: N/A | BJ147: N/A | BK147: N/A | BL147: N/A | BM147: N/A | BN147: N/A | BO147: N/A | BP147: N/A | BQ147: N/A | BR147: N/A | BS147: N/A | BT147: N/A | BU147: N/A | BV147: N/A | BW147: N/A | BX147: N/A | BY147: N/A
A148: Shared among improved sanitation facilities | B148: Yes | C148: N/A | D148: N/A | E148: N/A | F148: N/A | G148: N/A | H148: N/A | I148: N/A | J148: N/A | K148: N/A | L148: N/A | M148: N/A | N148: N/A | O148: N/A | P148: N/A | Q148: N/A | R148: N/A | S148: N/A | T148: N/A | U148: N/A | V148: N/A | W148: N/A | X148: N/A | Y148: N/A | BA148: Shared among improved sanitation facilities | BB148: Yes | BC148: N/A | BD148: N/A | BE148: N/A | BF148: N/A | BG148: N/A | BH148: N/A | BI148: N/A | BJ148: N/A | BK148: N/A | BL148: N/A | BM148: N/A | BN148: N/A | BO148: N/A | BP148: N/A | BQ148: N/A | BR148: N/A | BS148: N/A | BT148: N/A | BU148: N/A | BV148: N/A | BW148: N/A | BX148: N/A | BY148: N/A
B149: No | C149: N/A | D149: N/A | E149: N/A | F149: N/A | G149: N/A | H149: N/A | I149: N/A | J149: N/A | K149: N/A | L149: N/A | M149: N/A | N149: N/A | O149: N/A | P149: N/A | Q149: N/A | R149: N/A | S149: N/A | T149: N/A | U149: N/A | V149: N/A | W149: N/A | X149: N/A | Y149: N/A | BB149: No | BC149: N/A | BD149: N/A | BE149: N/A | BF149: N/A | BG149: N/A | BH149: N/A | BI149: N/A | BJ149: N/A | BK149: N/A | BL149: N/A | BM149: N/A | BN149: N/A | BO149: N/A | BP149: N/A | BQ149: N/A | BR149: N/A | BS149: N/A | BT149: N/A | BU149: N/A | BV149: N/A | BW149: N/A | BX149: N/A | BY149: N/A
B150: DK/missing | C150: N/A | D150: N/A | E150: N/A | F150: N/A | G150: N/A | H150: N/A | I150: N/A | J150: N/A | K150: N/A | L150: N/A | M150: N/A | N150: N/A | O150: N/A | P150: N/A | Q150: N/A | R150: N/A | S150: N/A | T150: N/A | U150: N/A | V150: N/A | W150: N/A | X150: N/A | Y150: N/A | BB150: DK/missing | BC150: N/A | BD150: N/A | BE150: N/A | BF150: N/A | BG150: N/A | BH150: N/A | BI150: N/A | BJ150: N/A | BK150: N/A | BL150: N/A | BM150: N/A | BN150: N/A | BO150: N/A | BP150: N/A | BQ150: N/A | BR150: N/A | BS150: N/A | BT150: N/A | BU150: N/A | BV150: N/A | BW150: N/A | BX150: N/A | BY150: N/A
A151: Shared among all sanitation facilities | B151: Yes | C151: 15.29313582 | D151: 14.14188066 | E151: 13.63823991 | F151: 12.18150934 | G151: 7.330458644 | H151: 22.37587849 | I151: 18.95261845 | J151: 14.46643542 | K151: 10.66967028 | L151: 4.021937843 | M151: 13.23580634 | N151: 12.61782702 | O151: 11.66494617 | P151: 11.71676687 | Q151: 7.469313137 | R151: 16.70165862 | S151: 16.18004866 | T151: 11.32124577 | U151: 6.976744186 | V151: 6.887929075 | W151: 10.31700288 | X151: 13.09333806 | Y151: 10.46 | BA151: Shared among all sanitation facilities | BB151: Yes | BC151: N/A | BD151: N/A | BE151: N/A | BF151: N/A | BG151: N/A | BH151: N/A | BI151: N/A | BJ151: N/A | BK151: N/A | BL151: N/A | BM151: N/A | BN151: N/A | BO151: N/A | BP151: N/A | BQ151: N/A | BR151: N/A | BS151: N/A | BT151: N/A | BU151: N/A | BV151: N/A | BW151: N/A | BX151: N/A | BY151: N/A
B152: No | C152: 84.70686418 | D152: 85.85811934 | E152: 86.36176009 | F152: 87.81849066 | G152: 92.66954136 | H152: 77.62412151 | I152: 81.04738155 | J152: 85.53356458 | K152: 89.33032972 | L152: 95.97806216 | M152: 86.76419366 | N152: 87.38217298 | O152: 88.33505383 | P152: 88.28323313 | Q152: 92.53068686 | R152: 83.29834138 | S152: 83.81995134 | T152: 88.67875423 | U152: 93.02325581 | V152: 93.11207093 | W152: 89.68299712 | X152: 86.90666194 | Y152: 89.54 | BB152: No | BC152: N/A | BD152: N/A | BE152: N/A | BF152: N/A | BG152: N/A | BH152: N/A | BI152: N/A | BJ152: N/A | BK152: N/A | BL152: N/A | BM152: N/A | BN152: N/A | BO152: N/A | BP152: N/A | BQ152: N/A | BR152: N/A | BS152: N/A | BT152: N/A | BU152: N/A | BV152: N/A | BW152: N/A | BX152: N/A | BY152: N/A
A153: ¿Qué tipo de servicio sanitario tiene este hogar? | B153: Inodoro conectado a la red de drenaje | C153: 6.738859458 | D153: 9.932227156 | E153: 23.38678441 | F153: 40.19123756 | G153: 77.8245286 | H153: 34.96133496 | I153: 57.42735216 | J153: 69.3408587 | K153: 80.56063376 | L153: 94.07948094 | M153: 2.125237192 | N153: 1.359938993 | O153: 5.336368235 | P153: 9.899244332 | Q153: 27.8628369 | R153: 60.40471157 | S153: 73.72596154 | T153: 26.42521305 | U153: 15.55424296 | V153: 11.98156682 | W153: 3.640776699 | X153: 27.10342168 | Y153: 19.58489388 | BA153: ¿Qué tipo de servicio sanitario tiene este hogar? | BB153: Inodoro conectado a la red de drenaje | BC153: 865 | BD153: 1275 | BE153: 3019 | BF153: 5128 | BG153: 9988 | BH153: 1718 | BI153: 2826 | BJ153: 3440 | BK153: 3966 | BL153: 4640 | BM153: 168 | BN153: 107 | BO153: 422 | BP153: 786 | BQ153: 2202 | BR153: 6000 | BS153: 3067 | BT153: 3597 | BU153: 790 | BV153: 572 | BW153: 75 | BX153: 4919 | BY153: 1255
B154: Inodoro conectado a fosa séptica | C154: 2.679962605 | D154: 4.977798551 | E154: 9.96978852 | F154: 13.66878282 | G154: 7.433380084 | H154: 4.436304436 | I154: 5.120910384 | J154: 8.062890546 | K154: 5.037578712 | L154: 2.169505272 | M154: 2.707147375 | N154: 3.139298424 | O154: 8.118361153 | P154: 12.70780856 | Q154: 20.63773251 | R154: 6.644518272 | S154: 4.0625 | T154: 14.78107552 | U154: 4.430005907 | V154: 5.634687893 | W154: 6.359223301 | X154: 4.160008816 | Y154: 11.65730337 | BB154: Inodoro conectado a fosa séptica | BC154: 344 | BD154: 639 | BE154: 1287 | BF154: 1744 | BG154: 954 | BH154: 218 | BI154: 252 | BJ154: 400 | BK154: 248 | BL154: 107 | BM154: 214 | BN154: 247 | BO154: 642 | BP154: 1009 | BQ154: 1631 | BR154: 660 | BS154: 169 | BT154: 2012 | BU154: 225 | BV154: 269 | BW154: 131 | BX154: 755 | BY154: 747
B155: Excusado lavable | C155: 4.401682767 | D155: 4.931058659 | E155: 8.497947169 | F155: 11.41939023 | G155: 7.363253857 | H155: 10.11396011 | I155: 7.254623044 | J155: 6.772828059 | K155: 7.251675807 | L155: 2.493917275 | M155: 2.28969007 | N155: 3.139298424 | O155: 5.930703085 | P155: 11.05793451 | Q155: 15.84208528 | R155: 5.63777308 | S155: 6.634615385 | T155: 10.16015281 | U155: 4.607206143 | V155: 5.194805195 | W155: 10.24271845 | X155: 5.746873106 | Y155: 11.57927591 | BB155: Excusado lavable | BC155: 565 | BD155: 633 | BE155: 1097 | BF155: 1457 | BG155: 945 | BH155: 497 | BI155: 357 | BJ155: 336 | BK155: 357 | BL155: 123 | BM155: 181 | BN155: 247 | BO155: 469 | BP155: 878 | BQ155: 1252 | BR155: 560 | BS155: 276 | BT155: 1383 | BU155: 234 | BV155: 248 | BW155: 211 | BX155: 1043 | BY155: 742
B156: Letrina o pozo ciego | C156: 60.8756622 | D156: 64.89834073 | E156: 52.00247889 | F156: 31.75797476 | G156: 7.004830918 | H156: 40.35409035 | I156: 28.08372282 | J156: 14.81556138 | K156: 6.581352834 | L156: 1.196269262 | M156: 65.37634409 | N156: 69.9034062 | O156: 66.45169449 | P156: 60.56675063 | Q156: 32.82297862 | R156: 23.21554415 | S156: 14.375 | T156: 33.38230973 | U156: 63.33924001 | V156: 69.29199832 | W156: 63.98058252 | X156: 56.30613257 | Y156: 35.87702871 | BB156: Letrina o pozo ciego | BC156: 7814 | BD156: 8331 | BE156: 6713 | BF156: 4052 | BG156: 899 | BH156: 1983 | BI156: 1382 | BJ156: 735 | BK156: 324 | BL156: 59 | BM156: 5168 | BN156: 5500 | BO156: 5255 | BP156: 4809 | BQ156: 2594 | BR156: 2306 | BS156: 598 | BT156: 4544 | BU156: 3217 | BV156: 3308 | BW156: 1318 | BX156: 10219 | BY156: 2299
B157: No tiene | C157: 25.30383297 | D157: 15.2605749 | E157: 6.143001007 | F157: 2.962614625 | G157: 0.3740065451 | H157: 10.13431013 | I157: 2.113391587 | J157: 1.007861318 | K157: 0.5687588869 | L157: 0.06082725061 | M157: 27.50158128 | N157: 22.45805796 | O157: 14.16287304 | P157: 5.768261965 | Q157: 2.834366696 | R157: 4.097452935 | S157: 1.201923077 | T157: 15.2512489 | U157: 12.06930498 | V157: 7.896941768 | W157: 15.77669903 | X157: 6.683563833 | Y157: 21.30149813 | BB157: No tiene | BC157: 3248 | BD157: 1959 | BE157: 793 | BF157: 378 | BG157: 48 | BH157: 498 | BI157: 104 | BJ157: 50 | BK157: 28 | BL157: 3 | BM157: 2174 | BN157: 1767 | BO157: 1120 | BP157: 458 | BQ157: 224 | BR157: 407 | BS157: 50 | BT157: 2076 | BU157: 613 | BV157: 377 | BW157: 325 | BX157: 1213 | BY157: 1365
BB158: Total | BC158: 12836 | BD158: 12837 | BE158: 12909 | BF158: 12759 | BG158: 12834 | BH158: 4914 | BI158: 4921 | BJ158: 4961 | BK158: 4923 | BL158: 4932 | BM158: 7905 | BN158: 7868 | BO158: 7908 | BP158: 7940 | BQ158: 7903 | BR158: 9933 | BS158: 4160 | BT158: 13612 | BU158: 5079 | BV158: 4774 | BW158: 2060 | BX158: 18149 | BY158: 6408
A208: =A1026 -> Guatemala
A209: =A1034 -> 2011
A210: Access to hygiene facilities
A211: by wealth quintile and sub-national region
A212: Notes:
A213: WHO/UNICEF JMP customised wealth index excludes water,
A214: sanitation and hygiene assets.
A215: Survey used for analysis: | B215: =A1025 -> ENCOVI11
A220: Access to handwashing | C220: NATIONAL wealth index quintile | H220: URBAN wealth index quintile | M220: RURAL wealth index quintile | R220: SUB-REGIONS: | BA220: Raw numbers of respondents: | BB220: Access to handwashing | BC220: NATIONAL wealth index quintile | BH220: URBAN wealth index quintile | BM220: RURAL wealth index quintile | BR220: SUB-REGIONS:
A221: Weighted percentage (used in graphs) | C221: Poorest | D221: Poor | E221: Middle | F221: Rich | G221: Richest | H221: Poorest | I221: Poor | J221: Middle | K221: Rich | L221: Richest | M221: Poorest | N221: Poor | O221: Middle | P221: Rich | Q221: Richest | R221: Central | S221: Metropolitana | T221: Nor-Oriente | U221: Nor-Occidente | V221: Norte | W221: Peten | X221: Sur-Occidente | Y221: Sur-Oriente | BA221: Hygiene data, raw numbers (weighted) | BC221: Poorest | BD221: Poor | BE221: Middle | BF221: Rich | BG221: Richest | BH221: Poorest | BI221: Poor | BJ221: Middle | BK221: Rich | BL221: Richest | BM221: Poorest | BN221: Poor | BO221: Middle | BP221: Rich | BQ221: Richest | BR221: Central | BS221: Metropolitana | BT221: Nor-Oriente | BU221: Nor-Occidente | BV221: Norte | BW221: Peten | BX221: Sur-Occidente | BY221: Sur-Oriente
A222: Hygiene ladder | B222: Basic | C222: N/A | D222: N/A | E222: N/A | F222: N/A | G222: N/A | H222: N/A | I222: N/A | J222: N/A | K222: N/A | L222: N/A | M222: N/A | N222: N/A | O222: N/A | P222: N/A | Q222: N/A | R222: N/A | S222: N/A | T222: N/A | U222: N/A | V222: N/A | W222: N/A | X222: N/A | Y222: N/A | BA222: Hygiene ladder | BB222: Basic | BC222: N/A | BD222: N/A | BE222: N/A | BF222: N/A | BG222: N/A | BH222: N/A | BI222: N/A | BJ222: N/A | BK222: N/A | BL222: N/A | BM222: N/A | BN222: N/A | BO222: N/A | BP222: N/A | BQ222: N/A | BR222: N/A | BS222: N/A | BT222: N/A | BU222: N/A | BV222: N/A | BW222: N/A | BX222: N/A | BY222: N/A
B223: Limited | C223: N/A | D223: N/A | E223: N/A | F223: N/A | G223: N/A | H223: N/A | I223: N/A | J223: N/A | K223: N/A | L223: N/A | M223: N/A | N223: N/A | O223: N/A | P223: N/A | Q223: N/A | R223: N/A | S223: N/A | T223: N/A | U223: N/A | V223: N/A | W223: N/A | X223: N/A | Y223: N/A | BB223: Limited | BC223: N/A | BD223: N/A | BE223: N/A | BF223: N/A | BG223: N/A | BH223: N/A | BI223: N/A | BJ223: N/A | BK223: N/A | BL223: N/A | BM223: N/A | BN223: N/A | BO223: N/A | BP223: N/A | BQ223: N/A | BR223: N/A | BS223: N/A | BT223: N/A | BU223: N/A | BV223: N/A | BW223: N/A | BX223: N/A | BY223: N/A
B224: No facility | C224: N/A | D224: N/A | E224: N/A | F224: N/A | G224: N/A | H224: N/A | I224: N/A | J224: N/A | K224: N/A | L224: N/A | M224: N/A | N224: N/A | O224: N/A | P224: N/A | Q224: N/A | R224: N/A | S224: N/A | T224: N/A | U224: N/A | V224: N/A | W224: N/A | X224: N/A | Y224: N/A | BB224: No facility | BC224: N/A | BD224: N/A | BE224: N/A | BF224: N/A | BG224: N/A | BH224: N/A | BI224: N/A | BJ224: N/A | BK224: N/A | BL224: N/A | BM224: N/A | BN224: N/A | BO224: N/A | BP224: N/A | BQ224: N/A | BR224: N/A | BS224: N/A | BT224: N/A | BU224: N/A | BV224: N/A | BW224: N/A | BX224: N/A | BY224: N/A
BA225: Observed handwashing place | BB225: Fixed | BC225: N/A | BD225: N/A | BE225: N/A | BF225: N/A | BG225: N/A | BH225: N/A | BI225: N/A | BJ225: N/A | BK225: N/A | BL225: N/A | BM225: N/A | BN225: N/A | BO225: N/A | BP225: N/A | BQ225: N/A | BR225: N/A | BS225: N/A | BT225: N/A | BU225: N/A | BV225: N/A | BW225: N/A | BX225: N/A | BY225: N/A
BB226: Mobile | BC226: N/A | BD226: N/A | BE226: N/A | BF226: N/A | BG226: N/A | BH226: N/A | BI226: N/A | BJ226: N/A | BK226: N/A | BL226: N/A | BM226: N/A | BN226: N/A | BO226: N/A | BP226: N/A | BQ226: N/A | BR226: N/A | BS226: N/A | BT226: N/A | BU226: N/A | BV226: N/A | BW226: N/A | BX226: N/A | BY226: N/A
BA227: Water / Soap | BB227: Water and soap | BC227: N/A | BD227: N/A | BE227: N/A | BF227: N/A | BG227: N/A | BH227: N/A | BI227: N/A | BJ227: N/A | BK227: N/A | BL227: N/A | BM227: N/A | BN227: N/A | BO227: N/A | BP227: N/A | BQ227: N/A | BR227: N/A | BS227: N/A | BT227: N/A | BU227: N/A | BV227: N/A | BW227: N/A | BX227: N/A | BY227: N/A
BB228: Water only | BC228: N/A | BD228: N/A | BE228: N/A | BF228: N/A | BG228: N/A | BH228: N/A | BI228: N/A | BJ228: N/A | BK228: N/A | BL228: N/A | BM228: N/A | BN228: N/A | BO228: N/A | BP228: N/A | BQ228: N/A | BR228: N/A | BS228: N/A | BT228: N/A | BU228: N/A | BV228: N/A | BW228: N/A | BX228: N/A | BY228: N/A
BB229: Soap only | BC229: N/A | BD229: N/A | BE229: N/A | BF229: N/A | BG229: N/A | BH229: N/A | BI229: N/A | BJ229: N/A | BK229: N/A | BL229: N/A | BM229: N/A | BN229: N/A | BO229: N/A | BP229: N/A | BQ229: N/A | BR229: N/A | BS229: N/A | BT229: N/A | BU229: N/A | BV229: N/A | BW229: N/A | BX229: N/A | BY229: N/A
BB230: Neither | BC230: N/A | BD230: N/A | BE230: N/A | BF230: N/A | BG230: N/A | BH230: N/A | BI230: N/A | BJ230: N/A | BK230: N/A | BL230: N/A | BM230: N/A | BN230: N/A | BO230: N/A | BP230: N/A | BQ230: N/A | BR230: N/A | BS230: N/A | BT230: N/A | BU230: N/A | BV230: N/A | BW230: N/A | BX230: N/A | BY230: N/A
BA259: Raw numbers of respondents: | BB259: Menstrual health and hygiene | BC259: NATIONAL wealth index quintile | BH259: URBAN wealth index quintile | BM259: RURAL wealth index quintile | BR259: SUB-REGIONS:
BA260: MHH data, raw numbers (weighted) | BC260: Poorest | BD260: Poor | BE260: Middle | BF260: Rich | BG260: Richest | BH260: Poorest | BI260: Poor | BJ260: Middle | BK260: Rich | BL260: Richest | BM260: Poorest | BN260: Poor | BO260: Middle | BP260: Rich | BQ260: Richest | BR260: Central | BS260: Metropolitana | BT260: Nor-Oriente | BU260: Nor-Occidente | BV260: Norte | BW260: Peten | BX260: Sur-Occidente | BY260: Sur-Oriente
BA261: Private place to wash and change | BB261: Yes | BC261: N/A | BD261: N/A | BE261: N/A | BF261: N/A | BG261: N/A | BH261: N/A | BI261: N/A | BJ261: N/A | BK261: N/A | BL261: N/A | BM261: N/A | BN261: N/A | BO261: N/A | BP261: N/A | BQ261: N/A | BR261: N/A | BS261: N/A | BT261: N/A | BU261: N/A | BV261: N/A | BW261: N/A | BX261: N/A | BY261: N/A
BB262: No | BC262: N/A | BD262: N/A | BE262: N/A | BF262: N/A | BG262: N/A | BH262: N/A | BI262: N/A | BJ262: N/A | BK262: N/A | BL262: N/A | BM262: N/A | BN262: N/A | BO262: N/A | BP262: N/A | BQ262: N/A | BR262: N/A | BS262: N/A | BT262: N/A | BU262: N/A | BV262: N/A | BW262: N/A | BX262: N/A | BY262: N/A
BB263: DK/not sure/missing | BC263: N/A | BD263: N/A | BE263: N/A | BF263: N/A | BG263: N/A | BH263: N/A | BI263: N/A | BJ263: N/A | BK263: N/A | BL263: N/A | BM263: N/A | BN263: N/A | BO263: N/A | BP263: N/A | BQ263: N/A | BR263: N/A | BS263: N/A | BT263: N/A | BU263: N/A | BV263: N/A | BW263: N/A | BX263: N/A | BY263: N/A
BA264: Use of menstrual materials | BB264: Materials reusable | BC264: N/A | BD264: N/A | BE264: N/A | BF264: N/A | BG264: N/A | BH264: N/A | BI264: N/A | BJ264: N/A | BK264: N/A | BL264: N/A | BM264: N/A | BN264: N/A | BO264: N/A | BP264: N/A | BQ264: N/A | BR264: N/A | BS264: N/A | BT264: N/A | BU264: N/A | BV264: N/A | BW264: N/A | BX264: N/A | BY264: N/A
BB265: Materials not reusable | BC265: N/A | BD265: N/A | BE265: N/A | BF265: N/A | BG265: N/A | BH265: N/A | BI265: N/A | BJ265: N/A | BK265: N/A | BL265: N/A | BM265: N/A | BN265: N/A | BO265: N/A | BP265: N/A | BQ265: N/A | BR265: N/A | BS265: N/A | BT265: N/A | BU265: N/A | BV265: N/A | BW265: N/A | BX265: N/A | BY265: N/A
BB266: No materials used | BC266: N/A | BD266: N/A | BE266: N/A | BF266: N/A | BG266: N/A | BH266: N/A | BI266: N/A | BJ266: N/A | BK266: N/A | BL266: N/A | BM266: N/A | BN266: N/A | BO266: N/A | BP266: N/A | BQ266: N/A | BR266: N/A | BS266: N/A | BT266: N/A | BU266: N/A | BV266: N/A | BW266: N/A | BX266: N/A | BY266: N/A
BB267: DK/not sure/missing | BC267: N/A | BD267: N/A | BE267: N/A | BF267: N/A | BG267: N/A | BH267: N/A | BI267: N/A | BJ267: N/A | BK267: N/A | BL267: N/A | BM267: N/A | BN267: N/A | BO267: N/A | BP267: N/A | BQ267: N/A | BR267: N/A | BS267: N/A | BT267: N/A | BU267: N/A | BV267: N/A | BW267: N/A | BX267: N/A | BY267: N/A
BA268: Use of menstrual materials with private place to wash and change | BB268: Materials reusable | BC268: N/A | BD268: N/A | BE268: N/A | BF268: N/A | BG268: N/A | BH268: N/A | BI268: N/A | BJ268: N/A | BK268: N/A | BL268: N/A | BM268: N/A | BN268: N/A | BO268: N/A | BP268: N/A | BQ268: N/A | BR268: N/A | BS268: N/A | BT268: N/A | BU268: N/A | BV268: N/A | BW268: N/A | BX268: N/A | BY268: N/A
BB269: Materials not reusable | BC269: N/A | BD269: N/A | BE269: N/A | BF269: N/A | BG269: N/A | BH269: N/A | BI269: N/A | BJ269: N/A | BK269: N/A | BL269: N/A | BM269: N/A | BN269: N/A | BO269: N/A | BP269: N/A | BQ269: N/A | BR269: N/A | BS269: N/A | BT269: N/A | BU269: N/A | BV269: N/A | BW269: N/A | BX269: N/A | BY269: N/A
BB270: No materials used | BC270: N/A | BD270: N/A | BE270: N/A | BF270: N/A | BG270: N/A | BH270: N/A | BI270: N/A | BJ270: N/A | BK270: N/A | BL270: N/A | BM270: N/A | BN270: N/A | BO270: N/A | BP270: N/A | BQ270: N/A | BR270: N/A | BS270: N/A | BT270: N/A | BU270: N/A | BV270: N/A | BW270: N/A | BX270: N/A | BY270: N/A
BA271: Awareness of menstruation before menarche | BB271: Yes | BC271: N/A | BD271: N/A | BE271: N/A | BF271: N/A | BG271: N/A | BH271: N/A | BI271: N/A | BJ271: N/A | BK271: N/A | BL271: N/A | BM271: N/A | BN271: N/A | BO271: N/A | BP271: N/A | BQ271: N/A | BR271: N/A | BS271: N/A | BT271: N/A | BU271: N/A | BV271: N/A | BW271: N/A | BX271: N/A | BY271: N/A
BB272: No | BC272: N/A | BD272: N/A | BE272: N/A | BF272: N/A | BG272: N/A | BH272: N/A | BI272: N/A | BJ272: N/A | BK272: N/A | BL272: N/A | BM272: N/A | BN272: N/A | BO272: N/A | BP272: N/A | BQ272: N/A | BR272: N/A | BS272: N/A | BT272: N/A | BU272: N/A | BV272: N/A | BW272: N/A | BX272: N/A | BY272: N/A
BB273: DK/not sure/missing | BC273: N/A | BD273: N/A | BE273: N/A | BF273: N/A | BG273: N/A | BH273: N/A | BI273: N/A | BJ273: N/A | BK273: N/A | BL273: N/A | BM273: N/A | BN273: N/A | BO273: N/A | BP273: N/A | BQ273: N/A | BR273: N/A | BS273: N/A | BT273: N/A | BU273: N/A | BV273: N/A | BW273: N/A | BX273: N/A | BY273: N/A
BA274: Participation in (all) activities during menstruation | BB274: Yes | BC274: N/A | BD274: N/A | BE274: N/A | BF274: N/A | BG274: N/A | BH274: N/A | BI274: N/A | BJ274: N/A | BK274: N/A | BL274: N/A | BM274: N/A | BN274: N/A | BO274: N/A | BP274: N/A | BQ274: N/A | BR274: N/A | BS274: N/A | BT274: N/A | BU274: N/A | BV274: N/A | BW274: N/A | BX274: N/A | BY274: N/A
BB275: No | BC275: N/A | BD275: N/A | BE275: N/A | BF275: N/A | BG275: N/A | BH275: N/A | BI275: N/A | BJ275: N/A | BK275: N/A | BL275: N/A | BM275: N/A | BN275: N/A | BO275: N/A | BP275: N/A | BQ275: N/A | BR275: N/A | BS275: N/A | BT275: N/A | BU275: N/A | BV275: N/A | BW275: N/A | BX275: N/A | BY275: N/A
BB276: DK/not sure/missing/no such activity | BC276: N/A | BD276: N/A | BE276: N/A | BF276: N/A | BG276: N/A | BH276: N/A | BI276: N/A | BJ276: N/A | BK276: N/A | BL276: N/A | BM276: N/A | BN276: N/A | BO276: N/A | BP276: N/A | BQ276: N/A | BR276: N/A | BS276: N/A | BT276: N/A | BU276: N/A | BV276: N/A | BW276: N/A | BX276: N/A | BY276: N/A
BA277: Participation in specific activities during menstruation | BB277: Did not go to school (amongst those usually attending school) | BC277: N/A | BD277: N/A | BE277: N/A | BF277: N/A | BG277: N/A | BH277: N/A | BI277: N/A | BJ277: N/A | BK277: N/A | BL277: N/A | BM277: N/A | BN277: N/A | BO277: N/A | BP277: N/A | BQ277: N/A | BR277: N/A | BS277: N/A | BT277: N/A | BU277: N/A | BV277: N/A | BW277: N/A | BX277: N/A | BY277: N/A
BB278: Did not go to work (amongst those who usually work) | BC278: N/A | BD278: N/A | BE278: N/A | BF278: N/A | BG278: N/A | BH278: N/A | BI278: N/A | BJ278: N/A | BK278: N/A | BL278: N/A | BM278: N/A | BN278: N/A | BO278: N/A | BP278: N/A | BQ278: N/A | BR278: N/A | BS278: N/A | BT278: N/A | BU278: N/A | BV278: N/A | BW278: N/A | BX278: N/A | BY278: N/A
BB279: Did not participate in social activities | BC279: N/A | BD279: N/A | BE279: N/A | BF279: N/A | BG279: N/A | BH279: N/A | BI279: N/A | BJ279: N/A | BK279: N/A | BL279: N/A | BM279: N/A | BN279: N/A | BO279: N/A | BP279: N/A | BQ279: N/A | BR279: N/A | BS279: N/A | BT279: N/A | BU279: N/A | BV279: N/A | BW279: N/A | BX279: N/A | BY279: N/A
BB280: Did not cook food | BC280: N/A | BD280: N/A | BE280: N/A | BF280: N/A | BG280: N/A | BH280: N/A | BI280: N/A | BJ280: N/A | BK280: N/A | BL280: N/A | BM280: N/A | BN280: N/A | BO280: N/A | BP280: N/A | BQ280: N/A | BR280: N/A | BS280: N/A | BT280: N/A | BU280: N/A | BV280: N/A | BW280: N/A | BX280: N/A | BY280: N/A
BB281: Did not eat with others | BC281: N/A | BD281: N/A | BE281: N/A | BF281: N/A | BG281: N/A | BH281: N/A | BI281: N/A | BJ281: N/A | BK281: N/A | BL281: N/A | BM281: N/A | BN281: N/A | BO281: N/A | BP281: N/A | BQ281: N/A | BR281: N/A | BS281: N/A | BT281: N/A | BU281: N/A | BV281: N/A | BW281: N/A | BX281: N/A | BY281: N/A
BB282: Did not bathe in regular place | BC282: N/A | BD282: N/A | BE282: N/A | BF282: N/A | BG282: N/A | BH282: N/A | BI282: N/A | BJ282: N/A | BK282: N/A | BL282: N/A | BM282: N/A | BN282: N/A | BO282: N/A | BP282: N/A | BQ282: N/A | BR282: N/A | BS282: N/A | BT282: N/A | BU282: N/A | BV282: N/A | BW282: N/A | BX282: N/A | BY282: N/A
BB283: Did not participate in other activities | BC283: N/A | BD283: N/A | BE283: N/A | BF283: N/A | BG283: N/A | BH283: N/A | BI283: N/A | BJ283: N/A | BK283: N/A | BL283: N/A | BM283: N/A | BN283: N/A | BO283: N/A | BP283: N/A | BQ283: N/A | BR283: N/A | BS283: N/A | BT283: N/A | BU283: N/A | BV283: N/A | BW283: N/A | BX283: N/A | BY283: N/A
BB284: DK/not sure/missing/no such activity | BC284: N/A | BD284: N/A | BE284: N/A | BF284: N/A | BG284: N/A | BH284: N/A | BI284: N/A | BJ284: N/A | BK284: N/A | BL284: N/A | BM284: N/A | BN284: N/A | BO284: N/A | BP284: N/A | BQ284: N/A | BR284: N/A | BS284: N/A | BT284: N/A | BU284: N/A | BV284: N/A | BW284: N/A | BX284: N/A | BY284: N/A
BA339: Raw numbers of respondents: | BB339: Basic water, sanitation and hygiene | BC339: NATIONAL wealth index quintile | BH339: URBAN wealth index quintile | BM339: RURAL wealth index quintile | BR339: SUB-REGIONS:
BA340: WatSan data, raw numbers (weighted) | BC340: Poorest | BD340: Poor | BE340: Middle | BF340: Rich | BG340: Richest | BH340: Poorest | BI340: Poor | BJ340: Middle | BK340: Rich | BL340: Richest | BM340: Poorest | BN340: Poor | BO340: Middle | BP340: Rich | BQ340: Richest | BR340: Central | BS340: Metropolitana | BT340: Nor-Oriente | BU340: Nor-Occidente | BV340: Norte | BW340: Peten | BX340: Sur-Occidente | BY340: Sur-Oriente
BA341: Use of Basic Water Sanitation and Hygiene | BB341: Yes | BC341: N/A | BD341: N/A | BE341: N/A | BF341: N/A | BG341: N/A | BH341: N/A | BI341: N/A | BJ341: N/A | BK341: N/A | BL341: N/A | BM341: N/A | BN341: N/A | BO341: N/A | BP341: N/A | BQ341: N/A | BR341: N/A | BS341: N/A | BT341: N/A | BU341: N/A | BV341: N/A | BW341: N/A | BX341: N/A | BY341: N/A
BB342: No | BC342: N/A | BD342: N/A | BE342: N/A | BF342: N/A | BG342: N/A | BH342: N/A | BI342: N/A | BJ342: N/A | BK342: N/A | BL342: N/A | BM342: N/A | BN342: N/A | BO342: N/A | BP342: N/A | BQ342: N/A | BR342: N/A | BS342: N/A | BT342: N/A | BU342: N/A | BV342: N/A | BW342: N/A | BX342: N/A | BY342: N/A
BA343: Use of Basic Water and Sanitation | BB343: Yes | BC343: N/A | BD343: N/A | BE343: N/A | BF343: N/A | BG343: N/A | BH343: N/A | BI343: N/A | BJ343: N/A | BK343: N/A | BL343: N/A | BM343: N/A | BN343: N/A | BO343: N/A | BP343: N/A | BQ343: N/A | BR343: N/A | BS343: N/A | BT343: N/A | BU343: N/A | BV343: N/A | BW343: N/A | BX343: N/A | BY343: N/A
BB344: No | BC344: N/A | BD344: N/A | BE344: N/A | BF344: N/A | BG344: N/A | BH344: N/A | BI344: N/A | BJ344: N/A | BK344: N/A | BL344: N/A | BM344: N/A | BN344: N/A | BO344: N/A | BP344: N/A | BQ344: N/A | BR344: N/A | BS344: N/A | BT344: N/A | BU344: N/A | BV344: N/A | BW344: N/A | BX344: N/A | BY344: N/A
BA345: Use of Basic Water and Hygiene | BB345: Yes | BC345: N/A | BD345: N/A | BE345: N/A | BF345: N/A | BG345: N/A | BH345: N/A | BI345: N/A | BJ345: N/A | BK345: N/A | BL345: N/A | BM345: N/A | BN345: N/A | BO345: N/A | BP345: N/A | BQ345: N/A | BR345: N/A | BS345: N/A | BT345: N/A | BU345: N/A | BV345: N/A | BW345: N/A | BX345: N/A | BY345: N/A
BB346: No | BC346: N/A | BD346: N/A | BE346: N/A | BF346: N/A | BG346: N/A | BH346: N/A | BI346: N/A | BJ346: N/A | BK346: N/A | BL346: N/A | BM346: N/A | BN346: N/A | BO346: N/A | BP346: N/A | BQ346: N/A | BR346: N/A | BS346: N/A | BT346: N/A | BU346: N/A | BV346: N/A | BW346: N/A | BX346: N/A | BY346: N/A
BA347: Use of Basic Sanitation and Hygiene | BB347: Yes | BC347: N/A | BD347: N/A | BE347: N/A | BF347: N/A | BG347: N/A | BH347: N/A | BI347: N/A | BJ347: N/A | BK347: N/A | BL347: N/A | BM347: N/A | BN347: N/A | BO347: N/A | BP347: N/A | BQ347: N/A | BR347: N/A | BS347: N/A | BT347: N/A | BU347: N/A | BV347: N/A | BW347: N/A | BX347: N/A | BY347: N/A
BB348: No | BC348: N/A | BD348: N/A | BE348: N/A | BF348: N/A | BG348: N/A | BH348: N/A | BI348: N/A | BJ348: N/A | BK348: N/A | BL348: N/A | BM348: N/A | BN348: N/A | BO348: N/A | BP348: N/A | BQ348: N/A | BR348: N/A | BS348: N/A | BT348: N/A | BU348: N/A | BV348: N/A | BW348: N/A | BX348: N/A | BY348: N/A
BA349: Use of Basic Water | BB349: Yes | BC349: N/A | BD349: N/A | BE349: N/A | BF349: N/A | BG349: N/A | BH349: N/A | BI349: N/A | BJ349: N/A | BK349: N/A | BL349: N/A | BM349: N/A | BN349: N/A | BO349: N/A | BP349: N/A | BQ349: N/A | BR349: N/A | BS349: N/A | BT349: N/A | BU349: N/A | BV349: N/A | BW349: N/A | BX349: N/A | BY349: N/A
BB350: No | BC350: N/A | BD350: N/A | BE350: N/A | BF350: N/A | BG350: N/A | BH350: N/A | BI350: N/A | BJ350: N/A | BK350: N/A | BL350: N/A | BM350: N/A | BN350: N/A | BO350: N/A | BP350: N/A | BQ350: N/A | BR350: N/A | BS350: N/A | BT350: N/A | BU350: N/A | BV350: N/A | BW350: N/A | BX350: N/A | BY350: N/A
BA351: Use of Basic Sanitation | BB351: Yes | BC351: N/A | BD351: N/A | BE351: N/A | BF351: N/A | BG351: N/A | BH351: N/A | BI351: N/A | BJ351: N/A | BK351: N/A | BL351: N/A | BM351: N/A | BN351: N/A | BO351: N/A | BP351: N/A | BQ351: N/A | BR351: N/A | BS351: N/A | BT351: N/A | BU351: N/A | BV351: N/A | BW351: N/A | BX351: N/A | BY351: N/A
BB352: No | BC352: N/A | BD352: N/A | BE352: N/A | BF352: N/A | BG352: N/A | BH352: N/A | BI352: N/A | BJ352: N/A | BK352: N/A | BL352: N/A | BM352: N/A | BN352: N/A | BO352: N/A | BP352: N/A | BQ352: N/A | BR352: N/A | BS352: N/A | BT352: N/A | BU352: N/A | BV352: N/A | BW352: N/A | BX352: N/A | BY352: N/A
BA353: Access to Basic Hygiene | BB353: Yes | BC353: N/A | BD353: N/A | BE353: N/A | BF353: N/A | BG353: N/A | BH353: N/A | BI353: N/A | BJ353: N/A | BK353: N/A | BL353: N/A | BM353: N/A | BN353: N/A | BO353: N/A | BP353: N/A | BQ353: N/A | BR353: N/A | BS353: N/A | BT353: N/A | BU353: N/A | BV353: N/A | BW353: N/A | BX353: N/A | BY353: N/A
BB354: No | BC354: N/A | BD354: N/A | BE354: N/A | BF354: N/A | BG354: N/A | BH354: N/A | BI354: N/A | BJ354: N/A | BK354: N/A | BL354: N/A | BM354: N/A | BN354: N/A | BO354: N/A | BP354: N/A | BQ354: N/A | BR354: N/A | BS354: N/A | BT354: N/A | BU354: N/A | BV354: N/A | BW354: N/A | BX354: N/A | BY354: N/A
C399: INITIAL (national) Wealth Index | H399: URBAN Wealth Index | M399: RURAL Wealth Index
C400: Component Matrix | H400: Component Matrix | M400: Component Matrix
E401: Component | J401: Component | O401: Component
B402: Note: The INITIAL (national) Wealth Index is based on the first component of the Principal Component Analysis (PCA) which has been obtained at national level. The final national-level (NATIONAL) Wealth Index is based on the URBAN and RURAL specific wealth indexes. Regression procedures are used to establish the relationships between the two sets of scores (urban and rural) and the initial (national) wealth factors. This allows best use of the available information for each area and a better precision of the FINAL (NATIONAL) Wealth Index. For dependency reasons, all WASH variables (contained in the generic MICS and DHS scripts) have been excluded from the sets of asset variables used in the PCAs. The PCA can extracts as many components as there are asset variables in the input. Only the first of the components is used to represent the Wealth Index. The scores represent the weights of the asset variables on the Wealth Index (correlations between the variables and the component). The communalities are the proportion of each variable's variance that can be explained by the component. Proportion of explained variance is the part of the model's total variance that is explained by the component. For more information on the procedure used: The DHS Wealth Index, DHS Comparative Reports No. 6, Shea Oscar Rutstein, Kiersten Johnson, ORC Macro International Inc., 2004. The DHS Wealth Index: Approaches for Rural and Urban Areas, Shea O. Rutstein, ORC Macro International Inc., 2008. MICS Methodological Paper No. 4, Review of options for reporting water, sanitation and hygiene coverage by wealth quintile, UNICEF, 2016. | E402: 1 | J402: 1 | O402: 1
C403: roof3 | E403: 0.7271597302 | H403: floor1 | J403: -0.6472912105 | M403: roof3 | O403: 0.7379756442
C404: floor1 | E404: -0.7052185683 | H404: roof3 | J404: 0.6226346121 | M404: dwelling1 | O404: -0.7077880018
C405: ¿Tiene el hogar servicio de TV por cable? | E405: 0.5841341218 | H405: wall2 | J405: -0.614135788 | M405: floor1 | O405: -0.6661350861
C406: Number of members per sleeping room | E406: 0.5756091548 | H406: Number of members per sleeping room | J406: 0.5643107128 | M406: El mes pasado, ¿Utilizaron energía eléctrica? | O406: 0.557374091
C407: El mes pasado, ¿Utilizaron leña para cocinar en este hogar? | E407: -0.5490009743 | H407: dwelling5 | J407: 0.543189998 | M407: dwelling4 | O407: 0.5332680517
C408: wall2 | E408: -0.5360138286 | H408: wall1 | J408: 0.5251293682 | M408: wall4 | O408: 0.5329529175
C409: El mes pasado, ¿Utilizaron energía eléctrica? | E409: 0.5291610611 | H409: El mes pasado, ¿Utilizaron leña para cocinar en este hogar? | J409: -0.5174989091 | M409: Number of members per sleeping room | O409: 0.5066957613
C410: dwelling1 | E410: -0.4943603198 | H410: ¿Tiene el hogar servicio de TV por cable? | J410: 0.4915522638 | M410: ¿Tiene el hogar servicio de TV por cable? | O410: 0.4611665006
C411: ¿Tiene el hogar servicio de teléfono fijo? | E411: 0.4383905729 | H411: ¿Tiene el hogar servicio de teléfono fijo? | J411: 0.4735321931 | M411: dwelling5 | O411: 0.4609882142
C412: dwelling5 | E412: 0.429450188 | H412: dwelling1 | J412: -0.4614306067 | M412: floor6 | O412: 0.4520043925
C413: ¿Tiene el hogar servicio de Internet? | E413: 0.4177512066 | H413: floor4 | J413: 0.456384973 | M413: roof2 | O413: -0.4492561339
C414: floor2 | E414: 0.3948257465 | H414: ¿Tiene el hogar servicio de Internet? | J414: 0.4553908428 | M414: floor2 | O414: 0.3684189037
C415: roof6 | E415: -0.3847824132 | H415: roof6 | J415: -0.4263116819 | M415: ¿En esta vivienda existe en la cocina una chimenea o una salida de escape para el humo? | O415: 0.3013941333
C416: dwelling4 | E416: 0.3819601387 | H416: floor6 | J416: 0.3333386835 | M416: El mes pasado, ¿Utilizaron leña para cocinar en este hogar? | O416: -0.2980076745
C417: wall4 | E417: 0.3791489321 | H417: El mes pasado, ¿Utilizaron energía eléctrica? | J417: 0.325013736 | M417: wall2 | O417: -0.295174603
C418: floor6 | E418: 0.3699590838 | H418: floor2 | J418: 0.3107183616 | M418: roof6 | O418: -0.2709606037
C419: roof5 | E419: -0.2805586406 | H419: roof5 | J419: -0.2822548499 | M419: floor4 | O419: 0.2427036589
C420: floor4 | E420: 0.2694537317 | H420: dwelling4 | J420: 0.2366009645 | M420: ¿Tiene el hogar servicio de teléfono fijo? | O420: 0.2166071576
C421: wall1 | E421: 0.2581718559 | H421: wall4 | J421: 0.2241751793 | M421: ¿Tiene el hogar servicio de Internet? | O421: 0.2121330991
C422: sit3 | E422: -0.2454599146 | H422: ¿En esta vivienda existe en la cocina una chimenea o una salida de escape para el humo? | J422: 0.192342448 | M422: roof5 | O422: -0.19809105
C423: ¿En esta vivienda existe en la cocina una chimenea o una salida de escape para el humo? | E423: 0.2353032341 | H423: roof1 | J423: -0.1913936589 | M423: roof1 | O423: -0.1523737788
C424: roof1 | E424: -0.2086593781 | H424: sit4 | J424: 0.1777681554 | M424: roof4 | O424: -0.1386136006
C425: roof2 | E425: -0.1852092559 | H425: roof2 | J425: 0.1314274341 | M425: floor5 | O425: 0.1141402848
C426: floor5 | E426: 0.1563750751 | H426: sit3 | J426: -0.1154625567 | M426: wall1 | O426: -0.1131680478
... 151 more rows

Sheet DHS15
A2: =A1026 -> Guatemala
A3: =A1034 -> 2015
A4: Use of drinking water sources
A5: by wealth quintile and sub-national region
A6: Notes:
A7: WHO/UNICEF JMP customised wealth index excludes water,
A8: sanitation and hygiene assets.
A9: Survey used for analysis: | B9: =A1025 -> DHS15
A10: =B1028 -> 
A11: =B1027 -> 
A14: Use of drinking water sources | C14: NATIONAL wealth index quintile | H14: URBAN wealth index quintile | M14: RURAL wealth index quintile | R14: SUB-REGIONS: | BA14: Raw numbers of respondents: | BB14: Use of drinking water sources | BC14: NATIONAL wealth index quintile | BH14: URBAN wealth index quintile | BM14: RURAL wealth index quintile | BR14: SUB-REGIONS:
A15: Weighted percentage (used in graphs) | C15: Poorest | D15: Poor | E15: Middle | F15: Rich | G15: Richest | H15: Poorest | I15: Poor | J15: Middle | K15: Rich | L15: Richest | M15: Poorest | N15: Poor | O15: Middle | P15: Rich | Q15: Richest | R15: Central | S15: Metropolitana | T15: Noroccidente | U15: Nororiente | V15: Norte | W15: Petén | X15: Suroccidente | Y15: Suroriente | BA15: Water data, raw numbers (weighted) | BC15: Poorest | BD15: Poor | BE15: Middle | BF15: Rich | BG15: Richest | BH15: Poorest | BI15: Poor | BJ15: Middle | BK15: Rich | BL15: Richest | BM15: Poorest | BN15: Poor | BO15: Middle | BP15: Rich | BQ15: Richest | BR15: Central | BS15: Metropolitana | BT15: Noroccidente | BU15: Nororiente | BV15: Norte | BW15: Petén | BX15: Suroccidente | BY15: Suroriente
A16: Water | B16: Improved | C16: 85.9 | D16: 96.2 | E16: 98.6 | F16: 99.4 | G16: 99.9 | H16: 98.6 | I16: 99.7 | J16: 99.9 | K16: 100 | L16: 99.9 | M16: 81.2 | N16: 91.4 | O16: 97 | P16: 98.2 | Q16: 98.9 | R16: 99.4 | S16: 99.9 | T16: 95.3 | U16: 94.3 | V16: 82.1 | W16: 95.6 | X16: 98.3 | Y16: 94.4 | BA16: Water | BB16: Improved | BC16: N/A | BD16: N/A | BE16: N/A | BF16: N/A | BG16: N/A | BH16: N/A | BI16: N/A | BJ16: N/A | BK16: N/A | BL16: N/A | BM16: N/A | BN16: N/A | BO16: N/A | BP16: N/A | BQ16: N/A | BR16: N/A | BS16: N/A | BT16: N/A | BU16: N/A | BV16: N/A | BW16: N/A | BX16: N/A | BY16: N/A
B17: Not Improved | C17: 14.1 | D17: 3.8 | E17: 1.4 | F17: 0.6 | G17: 0.1 | H17: 1.4 | I17: 0.3 | J17: 0.1 | K17: 0 | L17: 0.1 | M17: 18.8 | N17: 8.6 | O17: 3 | P17: 1.8 | Q17: 1.1 | R17: 0.6 | S17: 0.1 | T17: 4.7 | U17: 5.7 | V17: 17.9 | W17: 4.4 | X17: 1.7 | Y17: 5.6 | BB17: Not Improved | BC17: N/A | BD17: N/A | BE17: N/A | BF17: N/A | BG17: N/A | BH17: N/A | BI17: N/A | BJ17: N/A | BK17: N/A | BL17: N/A | BM17: N/A | BN17: N/A | BO17: N/A | BP17: N/A | BQ17: N/A | BR17: N/A | BS17: N/A | BT17: N/A | BU17: N/A | BV17: N/A | BW17: N/A | BX17: N/A | BY17: N/A
A18: Water ladder | B18: Basic | C18: 84.4 | D18: 95.4 | E18: 98.3 | F18: 99.3 | G18: 99.9 | H18: 98.2 | I18: 99.6 | J18: 99.9 | K18: 99.9 | L18: 99.9 | M18: 79.2 | N18: 90.5 | O18: 96 | P18: 97.7 | Q18: 98.8 | R18: 99.3 | S18: 99.9 | T18: 94 | U18: 93.6 | V18: 80.8 | W18: 95 | X18: 98 | Y18: 93.4 | BA18: Water ladder | BB18: Basic | BC18: N/A | BD18: N/A | BE18: N/A | BF18: N/A | BG18: N/A | BH18: N/A | BI18: N/A | BJ18: N/A | BK18: N/A | BL18: N/A | BM18: N/A | BN18: N/A | BO18: N/A | BP18: N/A | BQ18: N/A | BR18: N/A | BS18: N/A | BT18: N/A | BU18: N/A | BV18: N/A | BW18: N/A | BX18: N/A | BY18: N/A
B19: Limited | C19: 1.6 | D19: 0.8 | E19: 0.3 | F19: 0.1 | G19: 0.1 | H19: 0.3 | I19: 0.1 | J19: 0 | K19: 0.1 | L19: 0 | M19: 2 | N19: 0.9 | O19: 1 | P19: 0.5 | Q19: 0.1 | R19: 0.1 | S19: 0 | T19: 1.3 | U19: 0.7 | V19: 1.3 | W19: 0.6 | X19: 0.3 | Y19: 1 | BB19: Limited | BC19: N/A | BD19: N/A | BE19: N/A | BF19: N/A | BG19: N/A | BH19: N/A | BI19: N/A | BJ19: N/A | BK19: N/A | BL19: N/A | BM19: N/A | BN19: N/A | BO19: N/A | BP19: N/A | BQ19: N/A | BR19: N/A | BS19: N/A | BT19: N/A | BU19: N/A | BV19: N/A | BW19: N/A | BX19: N/A | BY19: N/A
B20: Unimproved | C20: 8 | D20: 2.3 | E20: 0.9 | F20: 0.2 | G20: 0.1 | H20: 1.2 | I20: 0.3 | J20: 0.1 | K20: 0 | L20: 0.1 | M20: 10.3 | N20: 4.9 | O20: 1.9 | P20: 1.2 | Q20: 0.3 | R20: 0.5 | S20: 0.1 | T20: 2.3 | U20: 3.4 | V20: 9 | W20: 2 | X20: 1.1 | Y20: 4.7 | BB20: Unimproved | BC20: N/A | BD20: N/A | BE20: N/A | BF20: N/A | BG20: N/A | BH20: N/A | BI20: N/A | BJ20: N/A | BK20: N/A | BL20: N/A | BM20: N/A | BN20: N/A | BO20: N/A | BP20: N/A | BQ20: N/A | BR20: N/A | BS20: N/A | BT20: N/A | BU20: N/A | BV20: N/A | BW20: N/A | BX20: N/A | BY20: N/A
B21: Surface water | C21: 6.1 | D21: 1.5 | E21: 0.5 | F21: 0.5 | G21: 0 | H21: 0.2 | I21: 0 | J21: 0 | K21: 0 | L21: 0 | M21: 8.5 | N21: 3.7 | O21: 1.2 | P21: 0.6 | Q21: 0.8 | R21: 0.1 | S21: 0 | T21: 2.4 | U21: 2.3 | V21: 8.9 | W21: 2.4 | X21: 0.6 | Y21: 0.9 | BB21: Surface water | BC21: N/A | BD21: N/A | BE21: N/A | BF21: N/A | BG21: N/A | BH21: N/A | BI21: N/A | BJ21: N/A | BK21: N/A | BL21: N/A | BM21: N/A | BN21: N/A | BO21: N/A | BP21: N/A | BQ21: N/A | BR21: N/A | BS21: N/A | BT21: N/A | BU21: N/A | BV21: N/A | BW21: N/A | BX21: N/A | BY21: N/A
A22: Improved water point at more than 30 minutes | B22: Yes | C22: 1.8 | D22: 0.8 | E22: 0.3 | F22: 0.1 | G22: 0.1 | H22: 0.3 | I22: 0.1 | J22: 0 | K22: 0.1 | L22: 0 | M22: 2.5 | N22: 1 | O22: 1 | P22: 0.5 | Q22: 0.1 | R22: 0.1 | S22: 0 | T22: 1.4 | U22: 0.7 | V22: 1.5 | W22: 0.7 | X22: 0.3 | Y22: 1.1 | BA22: Improved water point at more than 30 minutes | BB22: Yes | BC22: N/A | BD22: N/A | BE22: N/A | BF22: N/A | BG22: N/A | BH22: N/A | BI22: N/A | BJ22: N/A | BK22: N/A | BL22: N/A | BM22: N/A | BN22: N/A | BO22: N/A | BP22: N/A | BQ22: N/A | BR22: N/A | BS22: N/A | BT22: N/A | BU22: N/A | BV22: N/A | BW22: N/A | BX22: N/A | BY22: N/A
B23: No | C23: 98.2 | D23: 99.2 | E23: 99.7 | F23: 99.9 | G23: 99.9 | H23: 99.7 | I23: 99.9 | J23: 100 | K23: 99.9 | L23: 100 | M23: 97.5 | N23: 99 | O23: 99 | P23: 99.5 | Q23: 99.9 | R23: 99.9 | S23: 100 | T23: 98.6 | U23: 99.3 | V23: 98.5 | W23: 99.3 | X23: 99.7 | Y23: 98.9 | BB23: No | BC23: N/A | BD23: N/A | BE23: N/A | BF23: N/A | BG23: N/A | BH23: N/A | BI23: N/A | BJ23: N/A | BK23: N/A | BL23: N/A | BM23: N/A | BN23: N/A | BO23: N/A | BP23: N/A | BQ23: N/A | BR23: N/A | BS23: N/A | BT23: N/A | BU23: N/A | BV23: N/A | BW23: N/A | BX23: N/A | BY23: N/A
A24: Manually calculated ratios | B24: Improved wells
B25: Improved springs
B26: Other
C27: NATIONAL wealth index quintile | H27: URBAN wealth index quintile | M27: RURAL wealth index quintile | R27: SUB-REGIONS: | BA27: Raw numbers of respondents: | BB27: Use of drinking water sources | BC27: NATIONAL wealth index quintile | BH27: URBAN wealth index quintile | BM27: RURAL wealth index quintile | BR27: SUB-REGIONS:
A28: Percentage based on weighted population | C28: Poorest | D28: Poor | E28: Middle | F28: Rich | G28: Richest | H28: Poorest | I28: Poor | J28: Middle | K28: Rich | L28: Richest | M28: Poorest | N28: Poor | O28: Middle | P28: Rich | Q28: Richest | R28: Central | S28: Metropolitana | T28: Noroccidente | U28: Nororiente | V28: Norte | W28: Petén | X28: Suroccidente | Y28: Suroriente | BA28: Water data, raw numbers (weighted) | BC28: Poorest | BD28: Poor | BE28: Middle | BF28: Rich | BG28: Richest | BH28: Poorest | BI28: Poor | BJ28: Middle | BK28: Rich | BL28: Richest | BM28: Poorest | BN28: Poor | BO28: Middle | BP28: Rich | BQ28: Richest | BR28: Central | BS28: Metropolitana | BT28: Noroccidente | BU28: Nororiente | BV28: Norte | BW28: Petén | BX28: Suroccidente | BY28: Suroriente
A29: Piped water | B29: Yes | C29: 63.1 | D29: 74 | E29: 70.4 | F29: 53.7 | G29: 28.7 | H29: 78.9 | I29: 66.1 | J29: 47.4 | K29: 33.3 | L29: 21.6 | M29: 57 | N29: 68.3 | O29: 74 | P29: 70.5 | Q29: 51.5 | R29: 57.9 | S29: 40.4 | T29: 77.4 | U29: 64.4 | V29: 51.3 | W29: 37.2 | X29: 62 | Y29: 64.5 | BA29: Piped water | BB29: Yes | BC29: N/A | BD29: N/A | BE29: N/A | BF29: N/A | BG29: N/A | BH29: N/A | BI29: N/A | BJ29: N/A | BK29: N/A | BL29: N/A | BM29: N/A | BN29: N/A | BO29: N/A | BP29: N/A | BQ29: N/A | BR29: N/A | BS29: N/A | BT29: N/A | BU29: N/A | BV29: N/A | BW29: N/A | BX29: N/A | BY29: N/A
B30: No | C30: 36.9 | D30: 26 | E30: 29.6 | F30: 46.3 | G30: 71.3 | H30: 21.1 | I30: 33.9 | J30: 52.6 | K30: 66.7 | L30: 78.4 | M30: 43 | N30: 31.7 | O30: 26 | P30: 29.5 | Q30: 48.5 | R30: 42.1 | S30: 59.6 | T30: 22.6 | U30: 35.6 | V30: 48.7 | W30: 62.8 | X30: 38 | Y30: 35.5 | BB30: No | BC30: N/A | BD30: N/A | BE30: N/A | BF30: N/A | BG30: N/A | BH30: N/A | BI30: N/A | BJ30: N/A | BK30: N/A | BL30: N/A | BM30: N/A | BN30: N/A | BO30: N/A | BP30: N/A | BQ30: N/A | BR30: N/A | BS30: N/A | BT30: N/A | BU30: N/A | BV30: N/A | BW30: N/A | BX30: N/A | BY30: N/A
A31: Piped water on premises | B31: Yes | C31: 52.6 | D31: 67.7 | E31: 65.8 | F31: 52.6 | G31: 28.4 | H31: 71.8 | I31: 64.2 | J31: 46.8 | K31: 33.1 | L31: 21.5 | M31: 45.7 | N31: 59.3 | O31: 69.1 | P31: 65 | Q31: 50 | R31: 55 | S31: 38.8 | T31: 69.5 | U31: 56.8 | V31: 45.9 | W31: 34.6 | X31: 58.8 | Y31: 56.2 | BA31: Piped water on premises | BB31: Yes | BC31: N/A | BD31: N/A | BE31: N/A | BF31: N/A | BG31: N/A | BH31: N/A | BI31: N/A | BJ31: N/A | BK31: N/A | BL31: N/A | BM31: N/A | BN31: N/A | BO31: N/A | BP31: N/A | BQ31: N/A | BR31: N/A | BS31: N/A | BT31: N/A | BU31: N/A | BV31: N/A | BW31: N/A | BX31: N/A | BY31: N/A
B32: No | C32: 47.4 | D32: 32.3 | E32: 34.2 | F32: 47.4 | G32: 71.6 | H32: 28.2 | I32: 35.8 | J32: 53.2 | K32: 66.9 | L32: 78.5 | M32: 54.3 | N32: 40.7 | O32: 30.9 | P32: 35 | Q32: 50 | R32: 45 | S32: 61.2 | T32: 30.5 | U32: 43.2 | V32: 54.1 | W32: 65.4 | X32: 41.2 | Y32: 43.8 | BB32: No | BC32: N/A | BD32: N/A | BE32: N/A | BF32: N/A | BG32: N/A | BH32: N/A | BI32: N/A | BJ32: N/A | BK32: N/A | BL32: N/A | BM32: N/A | BN32: N/A | BO32: N/A | BP32: N/A | BQ32: N/A | BR32: N/A | BS32: N/A | BT32: N/A | BU32: N/A | BV32: N/A | BW32: N/A | BX32: N/A | BY32: N/A
A33: Piped water into dwelling | B33: Yes | C33: N/A | D33: N/A | E33: N/A | F33: N/A | G33: N/A | H33: N/A | I33: N/A | J33: N/A | K33: N/A | L33: N/A | M33: N/A | N33: N/A | O33: N/A | P33: N/A | Q33: N/A | R33: N/A | S33: N/A | T33: N/A | U33: N/A | V33: N/A | W33: N/A | X33: N/A | Y33: N/A | BA33: Piped water into dwelling | BB33: Yes | BC33: N/A | BD33: N/A | BE33: N/A | BF33: N/A | BG33: N/A | BH33: N/A | BI33: N/A | BJ33: N/A | BK33: N/A | BL33: N/A | BM33: N/A | BN33: N/A | BO33: N/A | BP33: N/A | BQ33: N/A | BR33: N/A | BS33: N/A | BT33: N/A | BU33: N/A | BV33: N/A | BW33: N/A | BX33: N/A | BY33: N/A
B34: No | C34: N/A | D34: N/A | E34: N/A | F34: N/A | G34: N/A | H34: N/A | I34: N/A | J34: N/A | K34: N/A | L34: N/A | M34: N/A | N34: N/A | O34: N/A | P34: N/A | Q34: N/A | R34: N/A | S34: N/A | T34: N/A | U34: N/A | V34: N/A | W34: N/A | X34: N/A | Y34: N/A | BB34: No | BC34: N/A | BD34: N/A | BE34: N/A | BF34: N/A | BG34: N/A | BH34: N/A | BI34: N/A | BJ34: N/A | BK34: N/A | BL34: N/A | BM34: N/A | BN34: N/A | BO34: N/A | BP34: N/A | BQ34: N/A | BR34: N/A | BS34: N/A | BT34: N/A | BU34: N/A | BV34: N/A | BW34: N/A | BX34: N/A | BY34: N/A
A35: Water source on premises | B35: Yes | C35: 69.5 | D35: 84.4 | E35: 92.2 | F35: 97.3 | G35: 99.5 | H35: 89.4 | I35: 96.3 | J35: 98.5 | K35: 99.8 | L35: 99.8 | M35: 63.3 | N35: 75.4 | O35: 86.6 | P35: 91.1 | Q35: 96.3 | R35: 93.4 | S35: 97.6 | T35: 85.3 | U35: 86.5 | V35: 69.8 | W35: 81.2 | X35: 93 | Y35: 80.5 | BA35: Water source on premises | BB35: Yes | BC35: N/A | BD35: N/A | BE35: N/A | BF35: N/A | BG35: N/A | BH35: N/A | BI35: N/A | BJ35: N/A | BK35: N/A | BL35: N/A | BM35: N/A | BN35: N/A | BO35: N/A | BP35: N/A | BQ35: N/A | BR35: N/A | BS35: N/A | BT35: N/A | BU35: N/A | BV35: N/A | BW35: N/A | BX35: N/A | BY35: N/A
B36: No | C36: 30.5 | D36: 15.6 | E36: 7.8 | F36: 2.7 | G36: 0.5 | H36: 10.6 | I36: 3.7 | J36: 1.5 | K36: 0.2 | L36: 0.2 | M36: 36.7 | N36: 24.6 | O36: 13.4 | P36: 8.9 | Q36: 3.7 | R36: 6.6 | S36: 2.4 | T36: 14.7 | U36: 13.5 | V36: 30.2 | W36: 18.8 | X36: 7 | Y36: 19.5 | BB36: No | BC36: N/A | BD36: N/A | BE36: N/A | BF36: N/A | BG36: N/A | BH36: N/A | BI36: N/A | BJ36: N/A | BK36: N/A | BL36: N/A | BM36: N/A | BN36: N/A | BO36: N/A | BP36: N/A | BQ36: N/A | BR36: N/A | BS36: N/A | BT36: N/A | BU36: N/A | BV36: N/A | BW36: N/A | BX36: N/A | BY36: N/A
A37: Improved Water source on premises | B37: Yes | C37: 79.5 | D37: 87.6 | E37: 93.4 | F37: 97.9 | G37: 99.6 | H37: 90.3 | I37: 96.6 | J37: 98.7 | K37: 99.8 | L37: 99.9 | M37: 76.2 | N37: 82 | O37: 89 | P37: 92.6 | Q37: 97.4 | R37: 93.9 | S37: 97.7 | T37: 89.2 | U37: 91.3 | V37: 83.5 | W37: 84.7 | X37: 94.5 | Y37: 84.9 | BA37: Improved water source on premises | BB37: Yes | BC37: N/A | BD37: N/A | BE37: N/A | BF37: N/A | BG37: N/A | BH37: N/A | BI37: N/A | BJ37: N/A | BK37: N/A | BL37: N/A | BM37: N/A | BN37: N/A | BO37: N/A | BP37: N/A | BQ37: N/A | BR37: N/A | BS37: N/A | BT37: N/A | BU37: N/A | BV37: N/A | BW37: N/A | BX37: N/A | BY37: N/A
B38: No | C38: 20.5 | D38: 12.4 | E38: 6.6 | F38: 2.1 | G38: 0.4 | H38: 9.7 | I38: 3.4 | J38: 1.3 | K38: 0.2 | L38: 0.1 | M38: 23.8 | N38: 18 | O38: 11 | P38: 7.4 | Q38: 2.6 | R38: 6.1 | S38: 2.3 | T38: 10.8 | U38: 8.7 | V38: 16.5 | W38: 15.3 | X38: 5.5 | Y38: 15.1 | BB38: No | BC38: N/A | BD38: N/A | BE38: N/A | BF38: N/A | BG38: N/A | BH38: N/A | BI38: N/A | BJ38: N/A | BK38: N/A | BL38: N/A | BM38: N/A | BN38: N/A | BO38: N/A | BP38: N/A | BQ38: N/A | BR38: N/A | BS38: N/A | BT38: N/A | BU38: N/A | BV38: N/A | BW38: N/A | BX38: N/A | BY38: N/A
A39: Piped water on premises available when needed | B39: Yes | C39: N/A | D39: N/A | E39: N/A | F39: N/A | G39: N/A | H39: N/A | I39: N/A | J39: N/A | K39: N/A | L39: N/A | M39: N/A | N39: N/A | O39: N/A | P39: N/A | Q39: N/A | R39: N/A | S39: N/A | T39: N/A | U39: N/A | V39: N/A | W39: N/A | X39: N/A | Y39: N/A | BA39: Piped water on premises available when needed | BB39: Yes | BC39: N/A | BD39: N/A | BE39: N/A | BF39: N/A | BG39: N/A | BH39: N/A | BI39: N/A | BJ39: N/A | BK39: N/A | BL39: N/A | BM39: N/A | BN39: N/A | BO39: N/A | BP39: N/A | BQ39: N/A | BR39: N/A | BS39: N/A | BT39: N/A | BU39: N/A | BV39: N/A | BW39: N/A | BX39: N/A | BY39: N/A
B40: No | C40: N/A | D40: N/A | E40: N/A | F40: N/A | G40: N/A | H40: N/A | I40: N/A | J40: N/A | K40: N/A | L40: N/A | M40: N/A | N40: N/A | O40: N/A | P40: N/A | Q40: N/A | R40: N/A | S40: N/A | T40: N/A | U40: N/A | V40: N/A | W40: N/A | X40: N/A | Y40: N/A | BB40: No | BC40: N/A | BD40: N/A | BE40: N/A | BF40: N/A | BG40: N/A | BH40: N/A | BI40: N/A | BJ40: N/A | BK40: N/A | BL40: N/A | BM40: N/A | BN40: N/A | BO40: N/A | BP40: N/A | BQ40: N/A | BR40: N/A | BS40: N/A | BT40: N/A | BU40: N/A | BV40: N/A | BW40: N/A | BX40: N/A | BY40: N/A
A41: Water point at more than 30 minutes | B41: Yes | C41: 4.3 | D41: 1.6 | E41: 0.6 | F41: 0.3 | G41: 0.1 | H41: 0.6 | I41: 0.1 | J41: 0 | K41: 0.1 | L41: 0.1 | M41: 5.9 | N41: 2.6 | O41: 1.4 | P41: 0.8 | Q41: 0.5 | R41: 0.1 | S41: 0 | T41: 2.7 | U41: 1.7 | V41: 4.9 | W41: 1.2 | X41: 0.6 | Y41: 1.8 | BA41: Water point at more than 30 minutes | BB41: Yes | BC41: N/A | BD41: N/A | BE41: N/A | BF41: N/A | BG41: N/A | BH41: N/A | BI41: N/A | BJ41: N/A | BK41: N/A | BL41: N/A | BM41: N/A | BN41: N/A | BO41: N/A | BP41: N/A | BQ41: N/A | BR41: N/A | BS41: N/A | BT41: N/A | BU41: N/A | BV41: N/A | BW41: N/A | BX41: N/A | BY41: N/A
B42: No | C42: 95.7 | D42: 98.4 | E42: 99.4 | F42: 99.7 | G42: 99.9 | H42: 99.4 | I42: 99.9 | J42: 100 | K42: 99.9 | L42: 99.9 | M42: 94.1 | N42: 97.4 | O42: 98.6 | P42: 99.2 | Q42: 99.5 | R42: 99.9 | S42: 100 | T42: 97.3 | U42: 98.3 | V42: 95.1 | W42: 98.8 | X42: 99.4 | Y42: 98.2 | BB42: No | BC42: N/A | BD42: N/A | BE42: N/A | BF42: N/A | BG42: N/A | BH42: N/A | BI42: N/A | BJ42: N/A | BK42: N/A | BL42: N/A | BM42: N/A | BN42: N/A | BO42: N/A | BP42: N/A | BQ42: N/A | BR42: N/A | BS42: N/A | BT42: N/A | BU42: N/A | BV42: N/A | BW42: N/A | BX42: N/A | BY42: N/A
A43: Water source available when needed | B43: Yes | C43: N/A | D43: N/A | E43: N/A | F43: N/A | G43: N/A | H43: N/A | I43: N/A | J43: N/A | K43: N/A | L43: N/A | M43: N/A | N43: N/A | O43: N/A | P43: N/A | Q43: N/A | R43: N/A | S43: N/A | T43: N/A | U43: N/A | V43: N/A | W43: N/A | X43: N/A | Y43: N/A | BA43: Water source available when needed | BB43: Yes | BC43: N/A | BD43: N/A | BE43: N/A | BF43: N/A | BG43: N/A | BH43: N/A | BI43: N/A | BJ43: N/A | BK43: N/A | BL43: N/A | BM43: N/A | BN43: N/A | BO43: N/A | BP43: N/A | BQ43: N/A | BR43: N/A | BS43: N/A | BT43: N/A | BU43: N/A | BV43: N/A | BW43: N/A | BX43: N/A | BY43: N/A
B44: No | C44: N/A | D44: N/A | E44: N/A | F44: N/A | G44: N/A | H44: N/A | I44: N/A | J44: N/A | K44: N/A | L44: N/A | M44: N/A | N44: N/A | O44: N/A | P44: N/A | Q44: N/A | R44: N/A | S44: N/A | T44: N/A | U44: N/A | V44: N/A | W44: N/A | X44: N/A | Y44: N/A | BB44: No | BC44: N/A | BD44: N/A | BE44: N/A | BF44: N/A | BG44: N/A | BH44: N/A | BI44: N/A | BJ44: N/A | BK44: N/A | BL44: N/A | BM44: N/A | BN44: N/A | BO44: N/A | BP44: N/A | BQ44: N/A | BR44: N/A | BS44: N/A | BT44: N/A | BU44: N/A | BV44: N/A | BW44: N/A | BX44: N/A | BY44: N/A
A45: Improved water source available when needed | B45: Yes | C45: N/A | D45: N/A | E45: N/A | F45: N/A | G45: N/A | H45: N/A | I45: N/A | J45: N/A | K45: N/A | L45: N/A | M45: N/A | N45: N/A | O45: N/A | P45: N/A | Q45: N/A | R45: N/A | S45: N/A | T45: N/A | U45: N/A | V45: N/A | W45: N/A | X45: N/A | Y45: N/A | BA45: Improved water source available when needed | BB45: Yes | BC45: N/A | BD45: N/A | BE45: N/A | BF45: N/A | BG45: N/A | BH45: N/A | BI45: N/A | BJ45: N/A | BK45: N/A | BL45: N/A | BM45: N/A | BN45: N/A | BO45: N/A | BP45: N/A | BQ45: N/A | BR45: N/A | BS45: N/A | BT45: N/A | BU45: N/A | BV45: N/A | BW45: N/A | BX45: N/A | BY45: N/A
B46: No | C46: N/A | D46: N/A | E46: N/A | F46: N/A | G46: N/A | H46: N/A | I46: N/A | J46: N/A | K46: N/A | L46: N/A | M46: N/A | N46: N/A | O46: N/A | P46: N/A | Q46: N/A | R46: N/A | S46: N/A | T46: N/A | U46: N/A | V46: N/A | W46: N/A | X46: N/A | Y46: N/A | BB46: No | BC46: N/A | BD46: N/A | BE46: N/A | BF46: N/A | BG46: N/A | BH46: N/A | BI46: N/A | BJ46: N/A | BK46: N/A | BL46: N/A | BM46: N/A | BN46: N/A | BO46: N/A | BP46: N/A | BQ46: N/A | BR46: N/A | BS46: N/A | BT46: N/A | BU46: N/A | BV46: N/A | BW46: N/A | BX46: N/A | BY46: N/A
A47: Microbiological quality at point of collection | B47: Not contaminated (No E. coli in 100 mL) | C47: N/A | D47: N/A | E47: N/A | F47: N/A | G47: N/A | H47: N/A | I47: N/A | J47: N/A | K47: N/A | L47: N/A | M47: N/A | N47: N/A | O47: N/A | P47: N/A | Q47: N/A | R47: N/A | S47: N/A | T47: N/A | U47: N/A | V47: N/A | W47: N/A | X47: N/A | Y47: N/A | BA47: Microbiological quality at point of collection | BB47: Not contaminated (No E. coli in 100 mL) | BC47: N/A | BD47: N/A | BE47: N/A | BF47: N/A | BG47: N/A | BH47: N/A | BI47: N/A | BJ47: N/A | BK47: N/A | BL47: N/A | BM47: N/A | BN47: N/A | BO47: N/A | BP47: N/A | BQ47: N/A | BR47: N/A | BS47: N/A | BT47: N/A | BU47: N/A | BV47: N/A | BW47: N/A | BX47: N/A | BY47: N/A
B48: Contaminated (E. coli detected in 100 mL) | C48: N/A | D48: N/A | E48: N/A | F48: N/A | G48: N/A | H48: N/A | I48: N/A | J48: N/A | K48: N/A | L48: N/A | M48: N/A | N48: N/A | O48: N/A | P48: N/A | Q48: N/A | R48: N/A | S48: N/A | T48: N/A | U48: N/A | V48: N/A | W48: N/A | X48: N/A | Y48: N/A | BB48: Contaminated (E. coli detected in 100 mL) | BC48: N/A | BD48: N/A | BE48: N/A | BF48: N/A | BG48: N/A | BH48: N/A | BI48: N/A | BJ48: N/A | BK48: N/A | BL48: N/A | BM48: N/A | BN48: N/A | BO48: N/A | BP48: N/A | BQ48: N/A | BR48: N/A | BS48: N/A | BT48: N/A | BU48: N/A | BV48: N/A | BW48: N/A | BX48: N/A | BY48: N/A
B49: Highly contaminated (>100 CFU/100 mL) | C49: N/A | D49: N/A | E49: N/A | F49: N/A | G49: N/A | H49: N/A | I49: N/A | J49: N/A | K49: N/A | L49: N/A | M49: N/A | N49: N/A | O49: N/A | P49: N/A | Q49: N/A | R49: N/A | S49: N/A | T49: N/A | U49: N/A | V49: N/A | W49: N/A | X49: N/A | Y49: N/A | BB49: Highly contaminated (>100 CFU/100 mL) | BC49: N/A | BD49: N/A | BE49: N/A | BF49: N/A | BG49: N/A | BH49: N/A | BI49: N/A | BJ49: N/A | BK49: N/A | BL49: N/A | BM49: N/A | BN49: N/A | BO49: N/A | BP49: N/A | BQ49: N/A | BR49: N/A | BS49: N/A | BT49: N/A | BU49: N/A | BV49: N/A | BW49: N/A | BX49: N/A | BY49: N/A
A50: Microbiological quality of improved water sources at point of collection | B50: Not contaminated (No E. coli in 100 mL) | C50: N/A | D50: N/A | E50: N/A | F50: N/A | G50: N/A | H50: N/A | I50: N/A | J50: N/A | K50: N/A | L50: N/A | M50: N/A | N50: N/A | O50: N/A | P50: N/A | Q50: N/A | R50: N/A | S50: N/A | T50: N/A | U50: N/A | V50: N/A | W50: N/A | X50: N/A | Y50: N/A | BA50: Microbiological quality of improved water sources at point of collection | BB50: Not contaminated (No E. coli in 100 mL) | BC50: N/A | BD50: N/A | BE50: N/A | BF50: N/A | BG50: N/A | BH50: N/A | BI50: N/A | BJ50: N/A | BK50: N/A | BL50: N/A | BM50: N/A | BN50: N/A | BO50: N/A | BP50: N/A | BQ50: N/A | BR50: N/A | BS50: N/A | BT50: N/A | BU50: N/A | BV50: N/A | BW50: N/A | BX50: N/A | BY50: N/A
B51: Contaminated (E. coli detected in 100 mL) | C51: N/A | D51: N/A | E51: N/A | F51: N/A | G51: N/A | H51: N/A | I51: N/A | J51: N/A | K51: N/A | L51: N/A | M51: N/A | N51: N/A | O51: N/A | P51: N/A | Q51: N/A | R51: N/A | S51: N/A | T51: N/A | U51: N/A | V51: N/A | W51: N/A | X51: N/A | Y51: N/A | BB51: Contaminated (E. coli detected in 100 mL) | BC51: N/A | BD51: N/A | BE51: N/A | BF51: N/A | BG51: N/A | BH51: N/A | BI51: N/A | BJ51: N/A | BK51: N/A | BL51: N/A | BM51: N/A | BN51: N/A | BO51: N/A | BP51: N/A | BQ51: N/A | BR51: N/A | BS51: N/A | BT51: N/A | BU51: N/A | BV51: N/A | BW51: N/A | BX51: N/A | BY51: N/A
B52: Highly contaminated (>100 CFU/100 mL) | C52: N/A | D52: N/A | E52: N/A | F52: N/A | G52: N/A | H52: N/A | I52: N/A | J52: N/A | K52: N/A | L52: N/A | M52: N/A | N52: N/A | O52: N/A | P52: N/A | Q52: N/A | R52: N/A | S52: N/A | T52: N/A | U52: N/A | V52: N/A | W52: N/A | X52: N/A | Y52: N/A | BB52: Highly contaminated (>100 CFU/100 mL) | BC52: N/A | BD52: N/A | BE52: N/A | BF52: N/A | BG52: N/A | BH52: N/A | BI52: N/A | BJ52: N/A | BK52: N/A | BL52: N/A | BM52: N/A | BN52: N/A | BO52: N/A | BP52: N/A | BQ52: N/A | BR52: N/A | BS52: N/A | BT52: N/A | BU52: N/A | BV52: N/A | BW52: N/A | BX52: N/A | BY52: N/A
A53: Microbiological quality of piped on premises at point of collection | B53: Not contaminated (No E. coli in 100 mL) | C53: N/A | D53: N/A | E53: N/A | F53: N/A | G53: N/A | H53: N/A | I53: N/A | J53: N/A | K53: N/A | L53: N/A | M53: N/A | N53: N/A | O53: N/A | P53: N/A | Q53: N/A | R53: N/A | S53: N/A | T53: N/A | U53: N/A | V53: N/A | W53: N/A | X53: N/A | Y53: N/A | BA53: Microbiological quality of piped on premises at point of collection | BB53: Not contaminated (No E. coli in 100 mL) | BC53: N/A | BD53: N/A | BE53: N/A | BF53: N/A | BG53: N/A | BH53: N/A | BI53: N/A | BJ53: N/A | BK53: N/A | BL53: N/A | BM53: N/A | BN53: N/A | BO53: N/A | BP53: N/A | BQ53: N/A | BR53: N/A | BS53: N/A | BT53: N/A | BU53: N/A | BV53: N/A | BW53: N/A | BX53: N/A | BY53: N/A
B54: Contaminated (E. coli detected in 100 mL) | C54: N/A | D54: N/A | E54: N/A | F54: N/A | G54: N/A | H54: N/A | I54: N/A | J54: N/A | K54: N/A | L54: N/A | M54: N/A | N54: N/A | O54: N/A | P54: N/A | Q54: N/A | R54: N/A | S54: N/A | T54: N/A | U54: N/A | V54: N/A | W54: N/A | X54: N/A | Y54: N/A | BB54: Contaminated (E. coli detected in 100 mL) | BC54: N/A | BD54: N/A | BE54: N/A | BF54: N/A | BG54: N/A | BH54: N/A | BI54: N/A | BJ54: N/A | BK54: N/A | BL54: N/A | BM54: N/A | BN54: N/A | BO54: N/A | BP54: N/A | BQ54: N/A | BR54: N/A | BS54: N/A | BT54: N/A | BU54: N/A | BV54: N/A | BW54: N/A | BX54: N/A | BY54: N/A
B55: Highly contaminated (>100 CFU/100 mL) | C55: N/A | D55: N/A | E55: N/A | F55: N/A | G55: N/A | H55: N/A | I55: N/A | J55: N/A | K55: N/A | L55: N/A | M55: N/A | N55: N/A | O55: N/A | P55: N/A | Q55: N/A | R55: N/A | S55: N/A | T55: N/A | U55: N/A | V55: N/A | W55: N/A | X55: N/A | Y55: N/A | BB55: Highly contaminated (>100 CFU/100 mL) | BC55: N/A | BD55: N/A | BE55: N/A | BF55: N/A | BG55: N/A | BH55: N/A | BI55: N/A | BJ55: N/A | BK55: N/A | BL55: N/A | BM55: N/A | BN55: N/A | BO55: N/A | BP55: N/A | BQ55: N/A | BR55: N/A | BS55: N/A | BT55: N/A | BU55: N/A | BV55: N/A | BW55: N/A | BX55: N/A | BY55: N/A
C56: NATIONAL wealth index quintile | H56: URBAN wealth index quintile | M56: RURAL wealth index quintile | R56: SUB-REGIONS: | BA56: Raw numbers of respondents: | BB56: Use of drinking water sources | BC56: NATIONAL wealth index quintile | BH56: URBAN wealth index quintile | BM56: RURAL wealth index quintile | BR56: SUB-REGIONS:
A57: Percentage based on weighted population | C57: Poorest | D57: Poor | E57: Middle | F57: Rich | G57: Richest | H57: Poorest | I57: Poor | J57: Middle | K57: Rich | L57: Richest | M57: Poorest | N57: Poor | O57: Middle | P57: Rich | Q57: Richest | R57: Central | S57: Metropolitana | T57: Noroccidente | U57: Nororiente | V57: Norte | W57: Petén | X57: Suroccidente | Y57: Suroriente | BA57: Water data, raw numbers (weighted) | BC57: Poorest | BD57: Poor | BE57: Middle | BF57: Rich | BG57: Richest | BH57: Poorest | BI57: Poor | BJ57: Middle | BK57: Rich | BL57: Richest | BM57: Poorest | BN57: Poor | BO57: Middle | BP57: Rich | BQ57: Richest | BR57: Central | BS57: Metropolitana | BT57: Noroccidente | BU57: Nororiente | BV57: Norte | BW57: Petén | BX57: Suroccidente | BY57: Suroriente
A58: Source of drinking water | B58: Piped into dwelling | C58: 11.3 | D58: 18 | E58: 25.3 | F58: 27 | G58: 19.1 | H58: 20.9 | I58: 29.4 | J58: 27.8 | K58: 22 | L58: 17.9 | M58: 9.5 | N58: 13.4 | O58: 19 | P58: 24.1 | Q58: 21.9 | R58: 24.1 | S58: 21.4 | T58: 13.4 | U58: 27.2 | V58: 12.6 | W58: 11.3 | X58: 21.1 | Y58: 25.7
B59: Piped to yard/plot | C59: 41.3 | D59: 49.7 | E59: 40.5 | F59: 25.6 | G59: 9.3 | H59: 50.9 | I59: 34.8 | J59: 18.9 | K59: 11.1 | L59: 3.6 | M59: 36.2 | N59: 45.9 | O59: 50.1 | P59: 40.9 | Q59: 28.1 | R59: 31 | S59: 17.4 | T59: 56.1 | U59: 29.6 | V59: 33.3 | W59: 23.3 | X59: 37.7 | Y59: 30.4
B60: Public tap/standpipe | C60: 2.5 | D60: 2.4 | E60: 1.6 | F60: 0.2 | G60: 0.1 | H60: 2 | I60: 0.4 | J60: 0.1 | K60: 0 | L60: 0 | M60: 2.5 | N60: 3.1 | O60: 2 | P60: 1.9 | Q60: 0.5 | R60: 0.8 | S60: 0.2 | T60: 3.4 | U60: 2.1 | V60: 1.3 | W60: 0.7 | X60: 0.5 | Y60: 3.5
B61: Other piped | C61: 8 | D61: 3.9 | E61: 3 | F61: 0.8 | G61: 0.2 | H61: 5.2 | I61: 1.6 | J61: 0.6 | K61: 0.1 | L61: 0.1 | M61: 8.7 | N61: 5.9 | O61: 2.8 | P61: 3.6 | Q61: 1 | R61: 2.1 | S61: 1.5 | T61: 4.5 | U61: 5.5 | V61: 4.2 | W61: 1.9 | X61: 2.7 | Y61: 4.8
B62: Public fountain/tank | C62: 1.5 | D62: 1.2 | E62: 0.8 | F62: 0.1 | G62: 0 | H62: 0.9 | I62: 0.2 | J62: 0 | K62: 0 | L62: 0 | M62: 1.5 | N62: 1.3 | O62: 1.4 | P62: 1 | Q62: 0.3 | R62: 2.2 | S62: 0 | T62: 0.6 | U62: 0.8 | V62: 1.1 | W62: 0.3 | X62: 0.4 | Y62: 1.6
B63: Mechanical or manual well | C63: 14 | D63: 14.5 | E63: 14.1 | F63: 7.9 | G63: 1.9 | H63: 9.4 | I63: 7.3 | J63: 4.1 | K63: 1.1 | L63: 1.1 | M63: 14.9 | N63: 15.2 | O63: 16.2 | P63: 17 | Q63: 10.9 | R63: 12.8 | S63: 3.8 | T63: 5.2 | U63: 4.6 | V63: 9.7 | W63: 25.1 | X63: 18.7 | Y63: 8.5
B64: River/irrigation channel | C64: 4.7 | D64: 0.9 | E64: 0.2 | F64: 0.5 | G64: 0 | H64: 0.2 | I64: 0 | J64: 0 | K64: 0 | L64: 0 | M64: 6.6 | N64: 2.4 | O64: 0.6 | P64: 0.3 | Q64: 0.8 | R64: 0.1 | S64: 0 | T64: 1.7 | U64: 1.8 | V64: 6.8 | W64: 1.7 | X64: 0.3 | Y64: 0.8
B65: Lake or stream | C65: 1.4 | D65: 0.6 | E65: 0.2 | F65: 0 | G65: 0 | H65: 0 | I65: 0 | J65: 0 | K65: 0 | L65: 0 | M65: 1.8 | N65: 1.2 | O65: 0.6 | P65: 0.3 | Q65: 0 | R65: 0 | S65: 0 | T65: 0.7 | U65: 0.5 | V65: 2.1 | W65: 0.7 | X65: 0.3 | Y65: 0.1
B66: Protected spring | C66: 2.4 | D66: 1.1 | E66: 0.4 | F66: 0.3 | G66: 0.1 | H66: 0.3 | I66: 0.2 | J66: 0 | K66: 0 | L66: 0.1 | M66: 3.1 | N66: 2 | O66: 1 | P66: 0.4 | Q66: 0.5 | R66: 0.1 | S66: 0 | T66: 1.2 | U66: 1.4 | V66: 2.5 | W66: 0.9 | X66: 0.4 | Y66: 2.1
B67: Unprotected spring | C67: 7.4 | D67: 2.1 | E67: 0.7 | F67: 0.2 | G67: 0 | H67: 1.1 | I67: 0.2 | J67: 0.1 | K67: 0 | L67: 0.1 | M67: 9.8 | N67: 4.4 | O67: 1.8 | P67: 1 | Q67: 0.2 | R67: 0.3 | S67: 0.1 | T67: 1.9 | U67: 2.9 | V67: 8.8 | W67: 2 | X67: 1 | Y67: 4.3
B68: Rainwater | C68: 3.7 | D68: 1.3 | E68: 1.1 | F68: 0.5 | G68: 0 | H68: 0.2 | I68: 0.1 | J68: 0 | K68: 0 | L68: 0 | M68: 4.5 | N68: 3.1 | O68: 1 | P68: 1.7 | Q68: 0.8 | R68: 0.1 | S68: 0 | T68: 2.2 | U68: 0.4 | V68: 5.9 | W68: 10.6 | X68: 0 | Y68: 0
B69: Tanker truck | C69: 0.2 | D69: 0.1 | E69: 0 | F69: 0.3 | G69: 0 | H69: 0.2 | I69: 0 | J69: 0.1 | K69: 0 | L69: 0 | M69: 0.1 | N69: 0.3 | O69: 0.1 | P69: 0 | Q69: 0.3 | R69: 0.1 | S69: 0.1 | T69: 0.3 | U69: 0.1 | V69: 0.2 | W69: 0.1 | X69: 0 | Y69: 0.3
B70: Bottled water | C70: 1 | D70: 4 | E70: 11.8 | F70: 36.7 | G70: 69.1 | H70: 8.7 | I70: 25.7 | J70: 48.1 | K70: 65.5 | L70: 77.2 | M70: 0.2 | N70: 1.2 | O70: 3.2 | P70: 7.6 | Q70: 34.5 | R70: 26.4 | S70: 55.5 | T70: 8.5 | U70: 22.7 | V70: 11.3 | W70: 21.5 | X70: 16.8 | Y70: 17.4
B71: Other | C71: 0.6 | D71: 0.1 | E71: 0.2 | F71: 0 | G71: 0 | H71: 0.1 | I71: 0.1 | J71: 0 | K71: 0 | L71: 0 | M71: 0.5 | N71: 0.6 | O71: 0.1 | P71: 0.2 | Q71: 0 | R71: 0.2 | S71: 0 | T71: 0.4 | U71: 0.5 | V71: 0.2 | W71: 0 | X71: 0.1 | Y71: 0.3
A108: =A1026 -> Guatemala
A109: =A1034 -> 2015
A110: Use of sanitation facilities
A111: by wealth quintile and sub-national region
A112: Notes:
A113: WHO/UNICEF JMP customised wealth index excludes water,
A114: sanitation and hygiene assets.
A115: Survey used for analysis: | B115: =A1025 -> DHS15
A116: =B1030 -> Ratio of Improved latrines based on: | B116: 50% Rule
A117: =B1029 -> Ratio of Shared improved based on: | B117: Shared sanitation
A120: Use of sanitation facilities | C120: NATIONAL wealth index quintile | H120: URBAN wealth index quintile | M120: RURAL wealth index quintile | R120: SUB-REGIONS: | BA120: Raw numbers of respondents: | BB120: Use of sanitation facilities | BC120: NATIONAL wealth index quintile | BH120: URBAN wealth index quintile | BM120: RURAL wealth index quintile | BR120: SUB-REGIONS:
A121: Weighted percentage (used in graphs) | C121: Poorest | D121: Poor | E121: Middle | F121: Rich | G121: Richest | H121: Poorest | I121: Poor | J121: Middle | K121: Rich | L121: Richest | M121: Poorest | N121: Poor | O121: Middle | P121: Rich | Q121: Richest | R121: Central | S121: Metropolitana | T121: Noroccidente | U121: Nororiente | V121: Norte | W121: Petén | X121: Suroccidente | Y121: Suroriente | BA121: Sanitation data, raw numbers (weighted) | BC121: Poorest | BD121: Poor | BE121: Middle | BF121: Rich | BG121: Richest | BH121: Poorest | BI121: Poor | BJ121: Middle | BK121: Rich | BL121: Richest | BM121: Poorest | BN121: Poor | BO121: Middle | BP121: Rich | BQ121: Richest | BR121: Central | BS121: Metropolitana | BT121: Noroccidente | BU121: Nororiente | BV121: Norte | BW121: Petén | BX121: Suroccidente | BY121: Suroriente
A122: Sanitation | B122: Improved | C122: =C153+C154+C156+C157+C158*0.5 -> 46.88428623 | D122: =D153+D154+D156+D157+D158*0.5 -> 59.18567037 | E122: 73.52313674 | F122: 88.51961013 | G122: 97.06994057 | H122: 69.23798211 | I122: 88.18684501 | J122: 95.6303549 | K122: 97.72450581 | L122: 98.6890541 | M122: 43.55856069 | N122: 49.89269883 | O122: 57.90748105 | P122: 68.88717228 | Q122: 82.6162852 | R122: 82.15092419 | S122: 92.31221787 | T122: 60.47402613 | U122: 69.06060595 | V122: 61.19284747 | W122: 58.47839043 | X122: 70.60565147 | Y122: 68.55945324 | BA122: Sanitation | BB122: Improved | BC122: N/A | BD122: N/A | BE122: N/A | BF122: N/A | BG122: N/A | BH122: N/A | BI122: N/A | BJ122: N/A | BK122: N/A | BL122: N/A | BM122: N/A | BN122: N/A | BO122: N/A | BP122: N/A | BQ122: N/A | BR122: N/A | BS122: N/A | BT122: N/A | BU122: N/A | BV122: N/A | BW122: N/A | BX122: N/A | BY122: N/A
B123: Not Improved | C123: =C159+C155+C158*0.5+C160 -> 53.11571377 | D123: =D159+D155+D158*0.5+D160 -> 40.81432963 | E123: 26.47686326 | F123: 11.48038987 | G123: 2.930059429 | H123: 30.76201789 | I123: 11.81315499 | J123: 4.369645098 | K123: 2.275494186 | L123: 1.310945897 | M123: 56.44143931 | N123: 50.10730117 | O123: 42.09251895 | P123: 31.11282772 | Q123: 17.3837148 | R123: 17.84907581 | S123: 7.687782133 | T123: 39.52597387 | U123: 30.93939405 | V123: 38.80715253 | W123: 41.52160957 | X123: 29.39434853 | Y123: 31.44054676 | BB123: Not Improved | BC123: N/A | BD123: N/A | BE123: N/A | BF123: N/A | BG123: N/A | BH123: N/A | BI123: N/A | BJ123: N/A | BK123: N/A | BL123: N/A | BM123: N/A | BN123: N/A | BO123: N/A | BP123: N/A | BQ123: N/A | BR123: N/A | BS123: N/A | BT123: N/A | BU123: N/A | BV123: N/A | BW123: N/A | BX123: N/A | BY123: N/A
A124: Sanitation ladder | B124: Basic | C124: =C122*C152/100 -> 39.12993813 | D124: =D122*D152/100 -> 48.98007856 | E124: 61.97871623 | F124: 75.64290274 | G124: 91.89782353 | H124: 55.52733096 | I124: 72.25601115 | J124: 79.99760084 | K124: 90.31931073 | L124: 96.50141945 | M124: 37.59556565 | N124: 40.60167371 | O124: 48.64892994 | P124: 58.79088752 | Q124: 74.40199035 | R124: 66.36297938 | S124: 78.05680366 | T124: 54.72515209 | U124: 61.49431817 | V124: 54.28767273 | W124: 51.28597508 | X124: 60.53029418 | Y124: 59.57950912 | BA124: Sanitation ladder | BB124: Basic | BC124: N/A | BD124: N/A | BE124: N/A | BF124: N/A | BG124: N/A | BH124: N/A | BI124: N/A | BJ124: N/A | BK124: N/A | BL124: N/A | BM124: N/A | BN124: N/A | BO124: N/A | BP124: N/A | BQ124: N/A | BR124: N/A | BS124: N/A | BT124: N/A | BU124: N/A | BV124: N/A | BW124: N/A | BX124: N/A | BY124: N/A
B125: Limited | C125: =C122*C151/100 -> 7.727236067 | D125: =D122*D151/100 -> 10.19148474 | E125: 11.5444205 | F125: 12.83101939 | G125: 5.172117038 | H125: 13.71065115 | I125: 15.93083386 | J125: 15.63275407 | K125: 7.405195085 | L125: 2.187634653 | M125: 5.962995035 | N125: 9.243676949 | O125: 9.234514768 | P125: 10.09628477 | Q125: 8.139861609 | R125: 15.78794481 | S125: 14.2554142 | T125: 5.748874046 | U125: 7.56628778 | V125: 6.90517474 | W125: 7.192415352 | X125: 10.00301806 | Y125: 8.979944114 | BB125: Limited | BC125: N/A | BD125: N/A | BE125: N/A | BF125: N/A | BG125: N/A | BH125: N/A | BI125: N/A | BJ125: N/A | BK125: N/A | BL125: N/A | BM125: N/A | BN125: N/A | BO125: N/A | BP125: N/A | BQ125: N/A | BR125: N/A | BS125: N/A | BT125: N/A | BU125: N/A | BV125: N/A | BW125: N/A | BX125: N/A | BY125: N/A
B126: Unimproved | C126: =100-C124-C125-C127 -> 34.83978723 | D126: =100-D124-D125-D127 -> 31.68147932 | E126: 23.50013611 | F126: 10.93957156 | G126: 2.852353815 | H126: 25.31512864 | I126: 10.7571362 | J126: 4.310572923 | K126: 2.234169259 | L126: 1.310945897 | M126: 34.1075489 | N126: 36.84148789 | O126: 32.76605849 | P126: 27.76521226 | Q126: 16.60602202 | R126: 13.93103322 | S126: 6.944300192 | T126: 30.86069424 | U126: 17.20987365 | V126: 34.30592873 | W126: 29.90185216 | X126: 25.2283408 | Y126: 16.56582549 | BB126: Unimproved | BC126: N/A | BD126: N/A | BE126: N/A | BF126: N/A | BG126: N/A | BH126: N/A | BI126: N/A | BJ126: N/A | BK126: N/A | BL126: N/A | BM126: N/A | BN126: N/A | BO126: N/A | BP126: N/A | BQ126: N/A | BR126: N/A | BS126: N/A | BT126: N/A | BU126: N/A | BV126: N/A | BW126: N/A | BX126: N/A | BY126: N/A
B127: Open defecation | C127: =C160 -> 18.30303858 | D127: =D160 -> 9.14695738 | E127: 2.97672716 | F127: 0.5865063074 | G127: 0.07770561399 | H127: 5.446889248 | I127: 1.056018786 | J127: 0.05907217539 | K127: 0.04132492688 | L127: 0 | M127: 22.33389041 | N127: 13.31316144 | O127: 9.350496803 | P127: 3.347615458 | Q127: 0.8521260228 | R127: 3.918042592 | S127: 0.7434819411 | T127: 8.665279623 | U127: 13.72952039 | V127: 4.501223795 | W127: 11.61975741 | X127: 4.238346966 | Y127: 14.87472127 | BB127: Open defecation | BC127: N/A | BD127: N/A | BE127: N/A | BF127: N/A | BG127: N/A | BH127: N/A | BI127: N/A | BJ127: N/A | BK127: N/A | BL127: N/A | BM127: N/A | BN127: N/A | BO127: N/A | BP127: N/A | BQ127: N/A | BR127: N/A | BS127: N/A | BT127: N/A | BU127: N/A | BV127: N/A | BW127: N/A | BX127: N/A | BY127: N/A
A128: Shared among Improved Sanitation | B128: Yes | C128: N/A | D128: N/A | E128: N/A | F128: N/A | G128: N/A | H128: N/A | I128: N/A | J128: N/A | K128: N/A | L128: N/A | M128: N/A | N128: N/A | O128: N/A | P128: N/A | Q128: N/A | R128: N/A | S128: N/A | T128: N/A | U128: N/A | V128: N/A | W128: N/A | X128: N/A | Y128: N/A | BA128: Shared among improved sanitation facilities | BB128: Yes | BC128: N/A | BD128: N/A | BE128: N/A | BF128: N/A | BG128: N/A | BH128: N/A | BI128: N/A | BJ128: N/A | BK128: N/A | BL128: N/A | BM128: N/A | BN128: N/A | BO128: N/A | BP128: N/A | BQ128: N/A | BR128: N/A | BS128: N/A | BT128: N/A | BU128: N/A | BV128: N/A | BW128: N/A | BX128: N/A | BY128: N/A
B129: No | C129: N/A | D129: N/A | E129: N/A | F129: N/A | G129: N/A | H129: N/A | I129: N/A | J129: N/A | K129: N/A | L129: N/A | M129: N/A | N129: N/A | O129: N/A | P129: N/A | Q129: N/A | R129: N/A | S129: N/A | T129: N/A | U129: N/A | V129: N/A | W129: N/A | X129: N/A | Y129: N/A | BB129: No | BC129: N/A | BD129: N/A | BE129: N/A | BF129: N/A | BG129: N/A | BH129: N/A | BI129: N/A | BJ129: N/A | BK129: N/A | BL129: N/A | BM129: N/A | BN129: N/A | BO129: N/A | BP129: N/A | BQ129: N/A | BR129: N/A | BS129: N/A | BT129: N/A | BU129: N/A | BV129: N/A | BW129: N/A | BX129: N/A | BY129: N/A
A130: Manually calculated ratios | B130: Improved latrines
B131: Other
B132: Other
C133: NATIONAL wealth index quintile | H133: URBAN wealth index quintile | M133: RURAL wealth index quintile | R133: SUB-REGIONS: | BA133: Raw numbers of respondents: | BB133: Use of sanitation facilities | BC133: NATIONAL wealth index quintile | BH133: URBAN wealth index quintile | BM133: RURAL wealth index quintile | BR133: SUB-REGIONS:
A134: Percentage based on weighted population | C134: Poorest | D134: Poor | E134: Middle | F134: Rich | G134: Richest | H134: Poorest | I134: Poor | J134: Middle | K134: Rich | L134: Richest | M134: Poorest | N134: Poor | O134: Middle | P134: Rich | Q134: Richest | R134: Central | S134: Metropolitana | T134: Noroccidente | U134: Nororiente | V134: Norte | W134: Petén | X134: Suroccidente | Y134: Suroriente | BA134: Sanitation data, raw numbers (weighted) | BC134: Poorest | BD134: Poor | BE134: Middle | BF134: Rich | BG134: Richest | BH134: Poorest | BI134: Poor | BJ134: Middle | BK134: Rich | BL134: Richest | BM134: Poorest | BN134: Poor | BO134: Middle | BP134: Rich | BQ134: Richest | BR134: Central | BS134: Metropolitana | BT134: Noroccidente | BU134: Nororiente | BV134: Norte | BW134: Petén | BX134: Suroccidente | BY134: Suroriente
A135: Sanitation type | B135: Sewer connection | C135: 4.650220517 | D135: 15.15248068 | E135: 31.42351978 | F135: 58.40303138 | G135: 82.26727142 | H135: 36.48294977 | I135: 66.74968916 | J135: 83.29399508 | K135: 87.55261626 | L135: 92.87053167 | M135: 1.375112635 | N135: 4.619930172 | O135: 10.18514168 | P135: 16.57986028 | Q135: 29.70375597 | R135: 51.70370945 | S135: 75.83419098 | T135: 22.00084662 | U135: 32.1340622 | V135: 18.05647377 | W135: 8.097022964 | X135: 31.3967659 | Y135: 24.89926996 | BA135: Sanitation type | BB135: Sewer connection | BC135: N/A | BD135: N/A | BE135: N/A | BF135: N/A | BG135: N/A | BH135: N/A | BI135: N/A | BJ135: N/A | BK135: N/A | BL135: N/A | BM135: N/A | BN135: N/A | BO135: N/A | BP135: N/A | BQ135: N/A | BR135: N/A | BS135: N/A | BT135: N/A | BU135: N/A | BV135: N/A | BW135: N/A | BX135: N/A | BY135: N/A
B136: Septic tank connection | C136: 8.290601467 | D136: 13.20999315 | E136: 21.78885831 | F136: 21.72914848 | G136: 13.5143047 | H136: 10.71025823 | I136: 13.58657793 | J136: 9.829469047 | K136: 9.437869943 | L136: 5.682662639 | M136: 7.968455084 | N136: 9.794830433 | O136: 15.45843731 | P136: 27.33000211 | Q136: 39.63791503 | R136: 18.38050765 | S136: 10.85920699 | T136: 9.260841207 | U136: 22.39871894 | V136: 10.14768879 | W136: 19.25824231 | X136: 16.07661325 | Y136: 30.36180059 | BB136: Septic tank connection | BC136: N/A | BD136: N/A | BE136: N/A | BF136: N/A | BG136: N/A | BH136: N/A | BI136: N/A | BJ136: N/A | BK136: N/A | BL136: N/A | BM136: N/A | BN136: N/A | BO136: N/A | BP136: N/A | BQ136: N/A | BR136: N/A | BS136: N/A | BT136: N/A | BU136: N/A | BV136: N/A | BW136: N/A | BX136: N/A | BY136: N/A
B137: Improved latrines | C137: N/A | D137: N/A | E137: N/A | F137: N/A | G137: N/A | H137: N/A | I137: N/A | J137: N/A | K137: N/A | L137: N/A | M137: N/A | N137: N/A | O137: N/A | P137: N/A | Q137: N/A | R137: N/A | S137: N/A | T137: N/A | U137: N/A | V137: N/A | W137: N/A | X137: N/A | Y137: N/A | BB137: Improved latrines | BC137: N/A | BD137: N/A | BE137: N/A | BF137: N/A | BG137: N/A | BH137: N/A | BI137: N/A | BJ137: N/A | BK137: N/A | BL137: N/A | BM137: N/A | BN137: N/A | BO137: N/A | BP137: N/A | BQ137: N/A | BR137: N/A | BS137: N/A | BT137: N/A | BU137: N/A | BV137: N/A | BW137: N/A | BX137: N/A | BY137: N/A
B138: Unimproved facilities | C138: N/A | D138: N/A | E138: N/A | F138: N/A | G138: N/A | H138: N/A | I138: N/A | J138: N/A | K138: N/A | L138: N/A | M138: N/A | N138: N/A | O138: N/A | P138: N/A | Q138: N/A | R138: N/A | S138: N/A | T138: N/A | U138: N/A | V138: N/A | W138: N/A | X138: N/A | Y138: N/A | BB138: Unimproved facilities | BC138: N/A | BD138: N/A | BE138: N/A | BF138: N/A | BG138: N/A | BH138: N/A | BI138: N/A | BJ138: N/A | BK138: N/A | BL138: N/A | BM138: N/A | BN138: N/A | BO138: N/A | BP138: N/A | BQ138: N/A | BR138: N/A | BS138: N/A | BT138: N/A | BU138: N/A | BV138: N/A | BW138: N/A | BX138: N/A | BY138: N/A
B139: Open defecation | C139: 18.30303858 | D139: 9.142481122 | E139: 2.976479635 | F139: 0.5865063074 | G139: 0.07770561399 | H139: 5.444117723 | I139: 1.056018786 | J139: 0.05907217539 | K139: 0.04132492688 | L139: 0 | M139: 22.33389041 | N139: 13.30992233 | O139: 9.346978359 | P139: 3.347615458 | Q139: 0.8521260228 | R139: 3.917444599 | S139: 0.7434819411 | T139: 8.665279623 | U139: 13.72952039 | V139: 4.501223795 | W139: 11.61975741 | X139: 4.237137868 | Y139: 14.86997129 | BB139: Open defecation | BC139: N/A | BD139: N/A | BE139: N/A | BF139: N/A | BG139: N/A | BH139: N/A | BI139: N/A | BJ139: N/A | BK139: N/A | BL139: N/A | BM139: N/A | BN139: N/A | BO139: N/A | BP139: N/A | BQ139: N/A | BR139: N/A | BS139: N/A | BT139: N/A | BU139: N/A | BV139: N/A | BW139: N/A | BX139: N/A | BY139: N/A
A140: Septic tank emptying practices | B140: Not emptied/treated and disposed in situ | C140: N/A | D140: N/A | E140: N/A | F140: N/A | G140: N/A | H140: N/A | I140: N/A | J140: N/A | K140: N/A | L140: N/A | M140: N/A | N140: N/A | O140: N/A | P140: N/A | Q140: N/A | R140: N/A | S140: N/A | T140: N/A | U140: N/A | V140: N/A | W140: N/A | X140: N/A | Y140: N/A | BA140: Septic tank emptying practices | BB140: Not emptied/treated and disposed in situ | BC140: N/A | BD140: N/A | BE140: N/A | BF140: N/A | BG140: N/A | BH140: N/A | BI140: N/A | BJ140: N/A | BK140: N/A | BL140: N/A | BM140: N/A | BN140: N/A | BO140: N/A | BP140: N/A | BQ140: N/A | BR140: N/A | BS140: N/A | BT140: N/A | BU140: N/A | BV140: N/A | BW140: N/A | BX140: N/A | BY140: N/A
B141: Emptied and buried on site | C141: N/A | D141: N/A | E141: N/A | F141: N/A | G141: N/A | H141: N/A | I141: N/A | J141: N/A | K141: N/A | L141: N/A | M141: N/A | N141: N/A | O141: N/A | P141: N/A | Q141: N/A | R141: N/A | S141: N/A | T141: N/A | U141: N/A | V141: N/A | W141: N/A | X141: N/A | Y141: N/A | BB141: Emptied and buried on site | BC141: N/A | BD141: N/A | BE141: N/A | BF141: N/A | BG141: N/A | BH141: N/A | BI141: N/A | BJ141: N/A | BK141: N/A | BL141: N/A | BM141: N/A | BN141: N/A | BO141: N/A | BP141: N/A | BQ141: N/A | BR141: N/A | BS141: N/A | BT141: N/A | BU141: N/A | BV141: N/A | BW141: N/A | BX141: N/A | BY141: N/A
B142: Emptied and discharged locally | C142: N/A | D142: N/A | E142: N/A | F142: N/A | G142: N/A | H142: N/A | I142: N/A | J142: N/A | K142: N/A | L142: N/A | M142: N/A | N142: N/A | O142: N/A | P142: N/A | Q142: N/A | R142: N/A | S142: N/A | T142: N/A | U142: N/A | V142: N/A | W142: N/A | X142: N/A | Y142: N/A | BB142: Emptied and discharged locally | BC142: N/A | BD142: N/A | BE142: N/A | BF142: N/A | BG142: N/A | BH142: N/A | BI142: N/A | BJ142: N/A | BK142: N/A | BL142: N/A | BM142: N/A | BN142: N/A | BO142: N/A | BP142: N/A | BQ142: N/A | BR142: N/A | BS142: N/A | BT142: N/A | BU142: N/A | BV142: N/A | BW142: N/A | BX142: N/A | BY142: N/A
B143: Emptied and removed offsite | C143: N/A | D143: N/A | E143: N/A | F143: N/A | G143: N/A | H143: N/A | I143: N/A | J143: N/A | K143: N/A | L143: N/A | M143: N/A | N143: N/A | O143: N/A | P143: N/A | Q143: N/A | R143: N/A | S143: N/A | T143: N/A | U143: N/A | V143: N/A | W143: N/A | X143: N/A | Y143: N/A | BB143: Emptied and removed offsite | BC143: N/A | BD143: N/A | BE143: N/A | BF143: N/A | BG143: N/A | BH143: N/A | BI143: N/A | BJ143: N/A | BK143: N/A | BL143: N/A | BM143: N/A | BN143: N/A | BO143: N/A | BP143: N/A | BQ143: N/A | BR143: N/A | BS143: N/A | BT143: N/A | BU143: N/A | BV143: N/A | BW143: N/A | BX143: N/A | BY143: N/A
A144: Latrine emptying practices | B144: Not emptied/treated and disposed in situ | C144: N/A | D144: N/A | E144: N/A | F144: N/A | G144: N/A | H144: N/A | I144: N/A | J144: N/A | K144: N/A | L144: N/A | M144: N/A | N144: N/A | O144: N/A | P144: N/A | Q144: N/A | R144: N/A | S144: N/A | T144: N/A | U144: N/A | V144: N/A | W144: N/A | X144: N/A | Y144: N/A | BA144: Latrine emptying practices | BB144: Not emptied/treated and disposed in situ | BC144: N/A | BD144: N/A | BE144: N/A | BF144: N/A | BG144: N/A | BH144: N/A | BI144: N/A | BJ144: N/A | BK144: N/A | BL144: N/A | BM144: N/A | BN144: N/A | BO144: N/A | BP144: N/A | BQ144: N/A | BR144: N/A | BS144: N/A | BT144: N/A | BU144: N/A | BV144: N/A | BW144: N/A | BX144: N/A | BY144: N/A
B145: Emptied and buried on site | C145: N/A | D145: N/A | E145: N/A | F145: N/A | G145: N/A | H145: N/A | I145: N/A | J145: N/A | K145: N/A | L145: N/A | M145: N/A | N145: N/A | O145: N/A | P145: N/A | Q145: N/A | R145: N/A | S145: N/A | T145: N/A | U145: N/A | V145: N/A | W145: N/A | X145: N/A | Y145: N/A | BB145: Emptied and buried on site | BC145: N/A | BD145: N/A | BE145: N/A | BF145: N/A | BG145: N/A | BH145: N/A | BI145: N/A | BJ145: N/A | BK145: N/A | BL145: N/A | BM145: N/A | BN145: N/A | BO145: N/A | BP145: N/A | BQ145: N/A | BR145: N/A | BS145: N/A | BT145: N/A | BU145: N/A | BV145: N/A | BW145: N/A | BX145: N/A | BY145: N/A
B146: Emptied and discharged locally | C146: N/A | D146: N/A | E146: N/A | F146: N/A | G146: N/A | H146: N/A | I146: N/A | J146: N/A | K146: N/A | L146: N/A | M146: N/A | N146: N/A | O146: N/A | P146: N/A | Q146: N/A | R146: N/A | S146: N/A | T146: N/A | U146: N/A | V146: N/A | W146: N/A | X146: N/A | Y146: N/A | BB146: Emptied and discharged locally | BC146: N/A | BD146: N/A | BE146: N/A | BF146: N/A | BG146: N/A | BH146: N/A | BI146: N/A | BJ146: N/A | BK146: N/A | BL146: N/A | BM146: N/A | BN146: N/A | BO146: N/A | BP146: N/A | BQ146: N/A | BR146: N/A | BS146: N/A | BT146: N/A | BU146: N/A | BV146: N/A | BW146: N/A | BX146: N/A | BY146: N/A
B147: Emptied and removed offsite | C147: N/A | D147: N/A | E147: N/A | F147: N/A | G147: N/A | H147: N/A | I147: N/A | J147: N/A | K147: N/A | L147: N/A | M147: N/A | N147: N/A | O147: N/A | P147: N/A | Q147: N/A | R147: N/A | S147: N/A | T147: N/A | U147: N/A | V147: N/A | W147: N/A | X147: N/A | Y147: N/A | BB147: Emptied and removed offsite | BC147: N/A | BD147: N/A | BE147: N/A | BF147: N/A | BG147: N/A | BH147: N/A | BI147: N/A | BJ147: N/A | BK147: N/A | BL147: N/A | BM147: N/A | BN147: N/A | BO147: N/A | BP147: N/A | BQ147: N/A | BR147: N/A | BS147: N/A | BT147: N/A | BU147: N/A | BV147: N/A | BW147: N/A | BX147: N/A | BY147: N/A
A148: Shared among improved sanitation facilities | B148: Yes | C148: N/A | D148: N/A | E148: N/A | F148: N/A | G148: N/A | H148: N/A | I148: N/A | J148: N/A | K148: N/A | L148: N/A | M148: N/A | N148: N/A | O148: N/A | P148: N/A | Q148: N/A | R148: N/A | S148: N/A | T148: N/A | U148: N/A | V148: N/A | W148: N/A | X148: N/A | Y148: N/A | BA148: Shared among improved sanitation facilities | BB148: Yes | BC148: N/A | BD148: N/A | BE148: N/A | BF148: N/A | BG148: N/A | BH148: N/A | BI148: N/A | BJ148: N/A | BK148: N/A | BL148: N/A | BM148: N/A | BN148: N/A | BO148: N/A | BP148: N/A | BQ148: N/A | BR148: N/A | BS148: N/A | BT148: N/A | BU148: N/A | BV148: N/A | BW148: N/A | BX148: N/A | BY148: N/A
B149: No | C149: N/A | D149: N/A | E149: N/A | F149: N/A | G149: N/A | H149: N/A | I149: N/A | J149: N/A | K149: N/A | L149: N/A | M149: N/A | N149: N/A | O149: N/A | P149: N/A | Q149: N/A | R149: N/A | S149: N/A | T149: N/A | U149: N/A | V149: N/A | W149: N/A | X149: N/A | Y149: N/A | BB149: No | BC149: N/A | BD149: N/A | BE149: N/A | BF149: N/A | BG149: N/A | BH149: N/A | BI149: N/A | BJ149: N/A | BK149: N/A | BL149: N/A | BM149: N/A | BN149: N/A | BO149: N/A | BP149: N/A | BQ149: N/A | BR149: N/A | BS149: N/A | BT149: N/A | BU149: N/A | BV149: N/A | BW149: N/A | BX149: N/A | BY149: N/A
B150: DK/missing | C150: N/A | D150: N/A | E150: N/A | F150: N/A | G150: N/A | H150: N/A | I150: N/A | J150: N/A | K150: N/A | L150: N/A | M150: N/A | N150: N/A | O150: N/A | P150: N/A | Q150: N/A | R150: N/A | S150: N/A | T150: N/A | U150: N/A | V150: N/A | W150: N/A | X150: N/A | Y150: N/A | BB150: DK/missing | BC150: N/A | BD150: N/A | BE150: N/A | BF150: N/A | BG150: N/A | BH150: N/A | BI150: N/A | BJ150: N/A | BK150: N/A | BL150: N/A | BM150: N/A | BN150: N/A | BO150: N/A | BP150: N/A | BQ150: N/A | BR150: N/A | BS150: N/A | BT150: N/A | BU150: N/A | BV150: N/A | BW150: N/A | BX150: N/A | BY150: N/A
A151: Shared among all sanitation facilities | B151: Yes | C151: 16.48150519 | D151: 17.21951391 | E151: 15.70175188 | F151: 14.49511512 | G151: 5.328237566 | H151: 19.80221077 | I151: 18.06486428 | J151: 16.34706269 | K151: 7.577623467 | L151: 2.216694317 | M151: 13.68960531 | N151: 18.52711352 | O151: 15.94701514 | P151: 14.65626245 | Q151: 9.852611491 | R151: 19.21821935 | S151: 15.44260828 | T151: 9.506352419 | U151: 10.95601128 | V151: 11.28428407 | W151: 12.29927038 | X151: 14.16744673 | Y151: 13.09803928 | BA151: Shared among all sanitation facilities | BB151: Yes | BC151: N/A | BD151: N/A | BE151: N/A | BF151: N/A | BG151: N/A | BH151: N/A | BI151: N/A | BJ151: N/A | BK151: N/A | BL151: N/A | BM151: N/A | BN151: N/A | BO151: N/A | BP151: N/A | BQ151: N/A | BR151: N/A | BS151: N/A | BT151: N/A | BU151: N/A | BV151: N/A | BW151: N/A | BX151: N/A | BY151: N/A
B152: No | C152: 83.46066728 | D152: 82.75665082 | E152: 84.29824812 | F152: 85.45327146 | G152: 94.67176243 | H152: 80.19778923 | I152: 81.93513572 | J152: 83.65293731 | K152: 92.42237653 | L152: 97.78330568 | M152: 86.31039469 | N152: 81.37798649 | O152: 84.01147668 | P152: 85.34373755 | Q152: 90.05729339 | R152: 80.78178065 | S152: 84.55739172 | T152: 90.49364758 | U152: 89.04398872 | V152: 88.71571593 | W152: 87.70072962 | X152: 85.73009797 | Y152: 86.90196072 | BB152: No | BC152: N/A | BD152: N/A | BE152: N/A | BF152: N/A | BG152: N/A | BH152: N/A | BI152: N/A | BJ152: N/A | BK152: N/A | BL152: N/A | BM152: N/A | BN152: N/A | BO152: N/A | BP152: N/A | BQ152: N/A | BR152: N/A | BS152: N/A | BT152: N/A | BU152: N/A | BV152: N/A | BW152: N/A | BX152: N/A | BY152: N/A
A153: Type of toilet facility | B153: Flush to piped sewer system | C153: 4.650220517 | D153: 15.1598995 | E153: 31.42613297 | F153: 58.40303138 | G153: 82.26727142 | H153: 36.50152273 | I153: 66.74968916 | J153: 83.29399508 | K153: 87.55261626 | L153: 92.87053167 | M153: 1.375112635 | N153: 4.621054483 | O153: 10.18897563 | P153: 16.57986028 | Q153: 29.70375597 | R153: 51.71160196 | S153: 75.83419098 | T153: 22.00084662 | U153: 32.1340622 | V153: 18.05647377 | W153: 8.097022964 | X153: 31.40572519 | Y153: 24.90722366 | BA153: Type of toilet facility | BB153: Flush to piped sewer system | BC153: 965.71142 | BD153: 3146.669728 | BE153: 6521.043191 | BF153: 12138.77253 | BG153: 17082.77377 | BH153: 3218.945899 | BI153: 5896.490456 | BJ153: 7353.006854 | BK153: 7726.264579 | BL153: 8202.635637 | BM153: 164.216199 | BN153: 550.952571 | BO153: 1217.305315 | BP153: 1978.865138 | BQ153: 3546.287996 | BR153: 5845.707901 | BS153: 15502.84953 | BT153: 3248.55759 | BU153: 2935.880554 | BV153: 1746.543336 | BW153: 321.634767 | BX153: 7991.408646 | BY153: 2262.388318
B154: Flush to septic tank | C154: 8.290601467 | D154: 13.21646091 | E154: 21.79067027 | F154: 21.72914848 | G154: 13.5143047 | H154: 10.71571068 | I154: 13.58657793 | J154: 9.829469047 | K154: 9.437869943 | L154: 5.682662639 | M154: 7.968455084 | N154: 9.797214112 | O154: 15.46425626 | P154: 27.33000211 | Q154: 39.63791503 | R154: 18.38331341 | S154: 10.85920699 | T154: 9.260841207 | U154: 22.39871894 | V154: 10.14768879 | W154: 19.25824231 | X154: 16.08120083 | Y154: 30.37149921 | BB154: Flush to septic tank | BC154: 1721.70943 | BD154: 2743.279231 | BE154: 4521.647705 | BF154: 4516.29281 | BG154: 2806.241241 | BH154: 944.982301 | BI154: 1200.20225 | BJ154: 867.723456 | BK154: 832.864663 | BL154: 501.91175 | BM154: 951.594344 | BN154: 1168.088436 | BO154: 1847.557795 | BP154: 3261.9327 | BQ154: 4732.312722 | BR154: 2078.130949 | BS154: 2219.957118 | BT154: 1367.419014 | BU154: 2046.425471 | BV154: 981.55257 | BW154: 764.987367 | BX154: 4091.975159 | BY154: 2758.722769
B155: Flush to somewhere else | C155: 1.222963153 | D155: 2.253951358 | E155: 3.867558848 | F155: 2.801515706 | G155: 1.60340169 | H155: 3.220431199 | I155: 2.979496926 | J155: 1.870300019 | K155: 1.548048619 | L155: 1.175086108 | M155: 0.383372231 | N155: 2.145526537 | O155: 2.199838052 | P155: 3.973196831 | Q155: 3.754537879 | R155: 1.780129733 | S155: 1.469786237 | T155: 2.904750984 | U155: 3.554992081 | V155: 1.192265402 | W155: 0.2026141525 | X155: 3.087467491 | Y155: 3.029427179 | BB155: Flush to somewhere else | BC155: 253.972791 | BD155: 467.842185 | BE155: 802.533303 | BF155: 582.280767 | BG155: 332.945871 | BH155: 283.998941 | BI155: 263.200854 | BJ155: 165.105886 | BK155: 136.610803 | BL155: 103.787531 | BM155: 45.782381 | BN155: 255.803814 | BO155: 262.820783 | BP155: 474.215136 | BQ155: 448.248788 | BR155: 201.233728 | BS155: 300.469677 | BT155: 428.903988 | BU155: 324.796537 | BV155: 115.323912 | BW155: 8.04836 | BX155: 785.627915 | BY155: 275.1708
B156: Flush, don't know where | C156: 0.01743682058 | D156: 0.06556544004 | E156: 0.009481386095 | F156: 0.01732239235 | G156: 0.02035613398 | H156: 0 | I156: 0 | J156: 0 | K156: 0.04789896719 | L156: 0 | M156: 0.03032238761 | N156: 0.05084806979 | O156: 0.06316644308 | P156: 0.01648400106 | Q156: 0.03015675594 | R156: 0 | S156: 0 | T156: 0 | U156: 0.05320403368 | V156: 0 | W156: 0 | X156: 0.03738978523 | Y156: 0.1392666682 | BB156: Flush, don't know where | BC156: 3.621105 | BD156: 13.609113 | BE156: 1.967424 | BF156: 3.600371 | BG156: 4.226945 | BH156: 0 | BI156: 0 | BJ156: 0 | BK156: 4.226945 | BL156: 0 | BM156: 3.621105 | BN156: 6.062442 | BO156: 7.546671 | BP156: 1.967424 | BQ156: 3.600371 | BR156: 0 | BS156: 0 | BT156: 0 | BU156: 4.860907 | BV156: 0 | BW156: 0 | BX156: 9.514095 | BY156: 12.649956
B157: Ventilated Improved Pit latrine (VIP) | C157: 1.317190622 | D157: 1.821941409 | E157: 0.8849536623 | F157: 0.3340212013 | G157: 0.01905618985 | H157: 0.2449105216 | I157: 0.07293864052 | J157: 0.06661787026 | K157: 0 | L157: 0 | M157: 1.670264517 | N157: 1.490251219 | O157: 2.194184513 | P157: 1.407724787 | Q157: 0.5653871148 | R157: 0.09533699475 | S157: 0.1443059368 | T157: 1.542728465 | U157: 1.057150029 | V157: 0.8463469441 | W157: 1.674064757 | X157: 1.356106164 | Y157: 0.5574700523 | BB157: Ventilated Improved Pit latrine (VIP) | BC157: 273.541012 | BD157: 378.171892 | BE157: 183.631281 | BF157: 69.424605 | BG157: 3.957012 | BH157: 21.597831 | BI157: 6.443206 | BJ157: 5.880876 | BK157: 0 | BL157: 0 | BM157: 199.46329 | BN157: 177.677572 | BO157: 262.145339 | BP157: 168.016947 | BQ157: 67.500741 | BR157: 10.777315 | BS157: 29.500588 | BT157: 227.793155 | BU157: 96.584932 | BV157: 81.864357 | BW157: 66.498197 | BX157: 345.070794 | BY157: 50.636464
B158: Latrine | C158: 65.2176736 | D158: 57.84360623 | E158: 38.82379688 | F158: 16.07217336 | G158: 2.497904249 | H158: 43.55167637 | I158: 15.55527855 | J158: 4.880545808 | K158: 1.37224128 | L158: 0.2717195787 | M158: 65.02881213 | N158: 67.86666189 | O158: 59.99379641 | P158: 47.10620222 | Q158: 25.35814066 | R158: 23.92134366 | S158: 10.94902791 | T158: 55.33921968 | U158: 26.83494152 | V158: 64.28467592 | W158: 58.8981208 | X158: 43.45045901 | Y158: 25.16798731 | BB158: Latrine | BC158: 13543.75603 | BD158: 12006.32792 | BE158: 8056.086842 | BF158: 3340.519351 | BG158: 518.689054 | BH158: 3840.675116 | BI158: 1374.11204 | BJ158: 430.843625 | BK158: 121.096315 | BL158: 23.999181 | BM158: 7765.752478 | BN158: 8091.510713 | BO158: 7167.62606 | BP158: 5622.292336 | BQ158: 3027.471338 | BR158: 2704.17435 | BS158: 2238.319286 | BT158: 8171.169283 | BU158: 2451.734315 | BV158: 6218.045325 | BW158: 2339.586221 | BX158: 11056.27626 | BY158: 2286.074163
B159: Open latrine | C159: 0.9808752471 | D159: 0.4916177812 | E159: 0.2206788151 | F159: 0.05628118224 | G159: 0 | H159: 0.318859257 | I159: 0 | J159: 0 | K159: 0 | L159: 0 | M159: 1.209770606 | N159: 0.7152822417 | O159: 0.54528589 | P159: 0.238914315 | Q159: 0.09798057002 | R159: 0.1902316589 | S159: 0 | T159: 0.2863334198 | U159: 0.2374108128 | V159: 0.9713253681 | W159: 0.2501776106 | X159: 0.3433045693 | Y159: 0.9524046585 | BB159: Open latrine | BC159: 203.698389 | BD159: 102.042813 | BE159: 45.791701 | BF159: 11.697757 | BG159: 0 | BH159: 28.11912 | BI159: 0 | BJ159: 0 | BK159: 0 | BL159: 0 | BM159: 144.471024 | BN159: 85.280663 | BO159: 65.146825 | BP159: 28.515271 | BQ159: 11.697757 | BR159: 21.504627 | BS159: 0 | BT159: 42.278855 | BU159: 21.690684 | BV159: 93.953109 | BW159: 9.937704 | BX159: 87.356273 | BY159: 86.509408
B160: No facility | C160: 18.30303858 | D160: 9.14695738 | E160: 2.97672716 | F160: 0.5865063074 | G160: 0.07770561399 | H160: 5.446889248 | I160: 1.056018786 | J160: 0.05907217539 | K160: 0.04132492688 | L160: 0 | M160: 22.33389041 | N160: 13.31316144 | O160: 9.350496803 | P160: 3.347615458 | Q160: 0.8521260228 | R160: 3.918042592 | S160: 0.7434819411 | T160: 8.665279623 | U160: 13.72952039 | V160: 4.501223795 | W160: 11.61975741 | X160: 4.238346966 | Y160: 14.87472127 | BB160: No facility | BC160: 3800.992514 | BD160: 1898.591339 | BE160: 617.682309 | BF160: 121.902348 | BG160: 16.135547 | BH160: 480.34275 | BI160: 93.285898 | BJ160: 5.214759 | BK160: 3.646805 | BL160: 0 | BM160: 2667.117223 | BN160: 1587.282849 | BO160: 1117.129913 | BP160: 399.54978 | BQ160: 101.73408 | BR160: 442.912841 | BS160: 151.990659 | BT160: 1279.480757 | BU160: 1254.377106 | BV160: 435.388577 | BW160: 461.566922 | BX160: 1078.477328 | BY160: 1351.109867
BB161: Total | BC161: 20767.00269 | BD161: 20756.53422 | BE161: 20750.38376 | BF161: 20784.49054 | BG161: 20764.96944 | BH161: 8818.661958 | BI161: 8833.734704 | BJ161: 8827.775456 | BK161: 8824.71011 | BL161: 8832.334099 | BM161: 11942.01804 | BN161: 11922.65906 | BO161: 11947.2787 | BP161: 11935.35473 | BQ161: 11938.85379 | BR161: 11304.44171 | BS161: 20443.08686 | BT161: 14765.60264 | BU161: 9136.350506 | BV161: 9672.671186 | BW161: 3972.259538 | BX161: 25445.70647 | BY161: 9083.261745
A208: =A1026 -> Guatemala
A209: =A1034 -> 2015
A210: Access to hygiene facilities
A211: by wealth quintile and sub-national region
A212: Notes:
A213: WHO/UNICEF JMP customised wealth index excludes water,
A214: sanitation and hygiene assets.
A215: Survey used for analysis: | B215: =A1025 -> DHS15
A220: Access to handwashing | C220: NATIONAL wealth index quintile | H220: URBAN wealth index quintile | M220: RURAL wealth index quintile | R220: SUB-REGIONS: | BA220: Raw numbers of respondents: | BB220: Access to handwashing | BC220: NATIONAL wealth index quintile | BH220: URBAN wealth index quintile | BM220: RURAL wealth index quintile | BR220: SUB-REGIONS:
